Workbook

Sheet Portada

Sheet Directorio

Sheet Introduccion

Sheet Índice

Sheet Hoja15 (hidden)
B1: certificados | F1: sa muerte
B2: ind | C2: vgr | F2: ind | J2: vgr
A3: sesa1 | B3: ='1 Total'!F14 -> 10902884 | C3: ='1 Total'!F52 -> 89375345 | F3: total | G3: na | H3: ex | I3: i | J3: total | K3: na | L3: ex | M3: i
A4: sesa2 | B4: ='2 Ind'!U115 -> 10902884 | C4: ='2 Grupo'!U101 -> 89375345 | E4: sesa1 | F4: ='1 Total'!G14 -> 4509326461362 | G4: ='1 T.N.'!G14 -> 2876607417023 | H4: ='1 T.E.'!G14 -> 872372706113 | I4: ='1T.I.'!G14 -> 760346338226
A5: sesa 8 | B5: ='8Individual'!B52 -> 10902884 | C5: ='8GRUPO'!B52 -> 89375345 | E5: sesa8 | F5: ='8Individual'!D52 -> 4509326461362 | G5: ='8M.N.'!D52 -> 2876607417023 | H5: ='8M.E.'!D52 -> 872372706113
E6: sesa9 | F6: ='9Individual'!B101 -> 4509326461362 | G6: ='9M.N.'!B100 -> 2876607417023 | H6: ='9M.E.'!B100 -> 872372706113
A7: dif | B7: =B3-B4 -> 0 | C7: =C3-C4 -> 0

Sheet 1 Total
A2: 1. SEGURO DIRECTO EN LA OPERACIÓN DE VIDA
B3: DICIEMBRE DE 2021
A4: DICIEMBRE DE 2021
A6: TOTAL
E9: PÓLIZAS EN VIGOR | F9: CERTIFICADOS O PARTICIPANTES EN VIGOR | G9: SUMA ASEGURADA EN VIGOR POR MUERTE | H9: SUMA ASEGURADA EN VIGOR POR SOBREVIVENCIA | I9: PRIMA EMITIDA DIRECTA | J9: NÚMERO DE SINIESTROS | K9: SINIESTROS DIRECTOS | L9: RESCATES | M9: VENCIMIENTOS | N9: COSTO DE DIVIDENDOS
C10: TIPO DE SEGURO | K10: DIRECTOS | M10: DIRECTOS
A13: TOTAL | E13: =E14+E52 -> 10744958 | F13: 100278229 | G13: 15192008771998 | H13: 539145137535 | I13: 2.426939245e+11 | J13: 502508 | K13: 8.420630723e+10 | L13: 126327553230 | M13: 3.056633136e+10 | N13: 562745637
B14: TOTAL INDIVIDUAL | E14: =E15+E19+E23+E27+E31+E35+E39+E43+E47+E51 -> 10639509 | F14: 10902884 | G14: 4509326461362 | H14: 538933078425 | I14: 1.798457843e+11 | J14: 128589 | K14: 4.333664533e+10 | L14: 122708684024 | M14: 2.974828036e+10 | N14: 12478966
B15: TRADICIONAL | E15: =SUM(E16:E18) -> 6288974 | F15: =SUM(F16:F18) -> 6402898 | G15: 2497960960171 | H15: 302665296788 | I15: 5.731731671e+10 | J15: 65745 | K15: 1.507609272e+10 | L15: 23552818508 | M15: 1.224879802e+10 | N15: 17967516
C16: Renovación | E16: 3145578 | F16: 3178429 | G16: 1319891356049 | H16: 65491162422 | I16: 2.409358732e+10 | J16: 44884 | K16: 1.039288638e+10 | L16: 10700439170 | M16: 5762327646 | N16: 4020788
C17: Primer año | E17: 3066175 | F17: 3138376 | G17: 1116343006863 | H17: 210476931808 | I17: 3.107007166e+10 | J17: 18348 | K17: 3368219232 | L17: 11950366988 | M17: 5519315399 | N17: 14002938
C18: Otro | E18: 77221 | F18: 86093 | G18: 61726597259 | H18: 26697202558 | I18: 2153657737 | J18: 2513 | K18: 1314987108 | L18: 902012350 | M18: 967154978.2 | N18: -56210
B19: RETIRO | E19: =SUM(E20:E22) -> 3388 | F19: =SUM(F20:F22) -> 3390 | G19: 834042286 | H19: 80217486 | I19: 138957421.7 | J19: 474 | K19: 143755974 | L19: 21190265 | M19: 138647565 | N19: 17436
C20: Renovación | E20: 1156 | F20: 1158 | G20: 762723850 | H20: 8899050 | I20: 5928967.91 | J20: 101 | K20: 38295003.42 | L20: 2587208 | M20: 37494807.42 | N20: 0
C21: Primer año | E21: 447 | F21: 447 | G21: 71318436 | H21: 71318436 | I21: 17001132.1 | J21: 4 | K21: 210442.61 | L21: 0 | M21: 210442.61 | N21: 0
C22: Otro | E22: 1785 | F22: 1785 | H22: 0 | I22: 116027321.7 | J22: 369 | K22: 105250528 | L22: 18603057 | M22: 100942314.9 | N22: 17436
B23: MICROSEGURO | E23: =SUM(E24:E26) -> 53268 | F23: =SUM(F24:F26) -> 53268 | G23: 12200938000 | H23: 0 | I23: 58987630.46 | J23: 88 | K23: 17066778 | L23: 0 | M23: 0 | N23: 0
C24: Renovación | E24: 19165 | F24: 19165 | G24: 5259878000 | I24: 39290055.74 | J24: 49 | K24: 13434270 | L24: 0 | M24: 0 | N24: 0
C25: Primer año | E25: 34103 | F25: 34103 | G25: 6941060000 | I25: 19697574.72 | J25: 38 | K25: 3557508 | L25: 0 | M25: 0 | N25: 0
C26: Otro | I26: 0 | J26: 1 | K26: 75000 | L26: 0 | M26: 0 | N26: 0
B27: MANCOMUNADO | E27: =SUM(E28:E30) -> 9306 | F27: =SUM(F28:F30) -> 9306 | G27: 15857966588 | H27: 589838 | I27: 67063049.86 | J27: 82 | K27: 63905735.81 | L27: 536352535 | M27: 39538078.8 | N27: 0
C28: Renovación | E28: 6491 | F28: 6491 | G28: 9619718470 | H28: 589838 | I28: 63079317.13 | J28: 74 | K28: 60527061.93 | L28: 313494452 | M28: 38759404.92 | N28: 0
C29: Primer año | E29: 2815 | F29: 2815 | G29: 6238248118 | I29: 3983732.73 | J29: 8 | K29: 3378673.88 | L29: 222858083 | M29: 778673.88 | N29: 0
C30: Otro
B31: FLEXIBLE SIN TASA GARANTIZADA | E31: =SUM(E32:E34) -> 2338497 | F31: =SUM(F32:F34) -> 2344045 | G31: 1074078309469 | H31: 0 | I31: 7.596171811e+10 | J31: 33222 | K31: 1.147177328e+10 | L31: 67403921573 | M31: 194654520.8 | N31: -11257013
C32: Renovación | E32: 346962 | F32: 352480 | G32: 262649460139 | I32: 1.621585844e+10 | J32: 2295 | K32: 3323595319 | L32: 19746869016 | M32: 83015425.7 | N32: -11257018
C33: Primer año | E33: 1863801 | F33: 1863831 | G33: 805995531790 | I33: 5.695597342e+10 | J33: 30449 | K33: 7765265633 | L33: 41991832896 | M33: 4933200 | N33: 5
C34: Otro | E34: 127734 | F34: 127734 | G34: 5433317540 | H34: 0 | I34: 2789886246 | J34: 478 | K34: 382912327.8 | L34: 5665219661 | M34: 106705895.1 | N34: 0
B35: FLEXIBLE CON TASA GARANTIZADA | E35: =SUM(E36:E38) -> 672435 | F35: =SUM(F36:F38) -> 675104 | G35: 264110486756 | H35: 60892269575 | I35: 3.509058662e+10 | J35: 11829 | K35: 8440591385 | L35: 28046166282 | M35: 7724220142 | N35: 0
C36: Renovación | E36: 92327 | F36: 93080 | G36: 25562081279 | H36: 3979601 | I36: 2850391174 | J36: 781 | K36: 510266980.6 | L36: 1315547429 | M36: 47634397.03 | N36: 0
C37: Primer año | E37: 556021 | F37: 557937 | G37: 235360965624 | H37: 60888289974 | I37: 2.722411867e+10 | J37: 10850 | K37: 7824714013 | L37: 21556420744 | M37: 7644848598 | N37: 0
C38: Otro | E38: 24087 | F38: 24087 | G38: 3187439853 | I38: 5016076782 | J38: 198 | K38: 105610391.3 | L38: 5174198109 | M38: 31737147.47 | N38: 0
B39: EDUCATIVO | E39: =SUM(E40:E42) -> 188219 | F39: =SUM(F40:F42) -> 329451 | G39: 238224706824 | H39: 175294704738 | I39: 6272460690 | J39: 9402 | K39: 4390556704 | L39: 2725120787 | M39: 7889822526 | N39: 5751027
C40: Renovación | E40: 105229 | F40: 163899 | G40: 67785651925 | H40: 6717293561 | I40: 3504563933 | J40: 7794 | K40: 3768311308 | L40: 789157346 | M40: 3594372966 | N40: 36961
C41: Primer año | E41: 79697 | F41: 159022 | G41: 169739017774 | H41: 166145083705 | I41: 2624903463 | J41: 1390 | K41: 501007886.1 | L41: 1910843029 | M41: 4183499225 | N41: 5714066
C42: Otro | E42: 3293 | F42: 6530 | G42: 700037125 | H42: 2432327472 | I42: 142993294.3 | J42: 218 | K42: 121237510.4 | L42: 25120412 | M42: 111950335.3 | N42: 0
B43: DEUDORES | E43: =SUM(E44:E46) -> 1083081 | F43: =SUM(F44:F46) -> 1083081 | G43: 405745551268 | H43: 0 | I43: 2364177809 | J43: 3749 | K43: 458137871.7 | L43: 423114074 | M43: 0 | N43: 0
C44: Renovación | E44: 43088 | F44: 43088 | G44: 55293992228 | I44: 394141636.8 | J44: 237 | K44: 74413692.24 | L44: 0 | M44: 0 | N44: 0
C45: Primer año | E45: 295474 | F45: 295474 | G45: 265154804580 | I45: 577208539.8 | J45: 740 | K45: 127412377.8 | L45: 0 | M45: 0 | N45: 0
C46: Otro | E46: 744519 | F46: 744519 | G46: 85296754460 | I46: 1392827632 | J46: 2772 | K46: 256311801.6 | L46: 423114074 | M46: 0 | N46: 0
C47: OTROS | E47: =SUM(E48:E50) -> 1196 | F47: 1196 | G47: 0 | H47: 0 | I47: 335765 | J47: 109 | K47: 30270664.03 | L47: 0 | M47: 30270666 | N47: 0
C48: Renovación
C49: Primer año | E49: 582 | F49: 582 | H49: 0 | I49: 335765 | J49: 109 | K49: 30270664.03 | L49: 0 | M49: 30270666 | N49: 0
C50: Otro | E50: 614 | F50: 614 | I50: 0 | L50: 0 | N50: 0
B51: No Especificado | E51: 1145 | F51: 1145 | G51: 313500000 | I51: 2574180488 | J51: 3889 | K51: 3244494221 | L51: 0 | M51: 1482328834 | N51: 0
B52: TOTAL GRUPO | E52: =E53+E57+E61+E65+E69+E73+E77+E81+E85+E89 -> 105449 | F52: =F53+F57+F61+F65+F69+F73+F77+F81+F85+F89 -> 89375345 | G52: 10682682310636 | H52: 212059110 | I52: 6.284814019e+10 | J52: 373919 | K52: 4.08696619e+10 | L52: 3618869206 | M52: 818050999.2 | N52: 550266671
B53: TRADICIONAL | E53: =SUM(E54:E56) -> 94025 | F53: =SUM(F54:F56) -> 25389967 | G53: 4993762550805 | H53: 0 | I53: 2.25026166e+10 | J53: 93495 | K53: 1.645509005e+10 | L53: 0 | M53: 0 | N53: 61496009
C54: Renovación | E54: 15983 | F54: 14041775 | G54: 3053333407583 | I54: 1.627449039e+10 | J54: 41468 | K54: 1.106583938e+10 | L54: 0 | M54: 0 | N54: 41781248
C55: Primer año | E55: 78042 | F55: 11348192 | G55: 1940429143222 | I55: 6228126213 | J55: 52018 | K55: 5388650668 | L55: 0 | M55: 0 | N55: 19714761
C56: Otro | J56: 9 | K56: 600000 | M56: 0
B57: TRABAJADORES DEL ESTADO | E57: =SUM(E58:E60) -> 865 | F57: =SUM(F58:F60) -> 2635828 | G57: 929411524715 | H57: 212059110 | I57: 9096065463 | J57: 32431 | K57: 8752000504 | L57: 1685454655 | M57: 0 | N57: -9759793
C58: Renovación | E58: 596 | F58: 1387866 | G58: 835485427467 | I58: 7756415528 | J58: 23847 | K58: 7377889406 | L58: 1685454655 | M58: 0 | N58: -3187719
C59: Primer año | E59: 269 | F59: 1247962 | G59: 93926097248 | H59: 212059110 | I59: 1339649935 | J59: 8584 | K59: 1374111097 | L59: 0 | M59: 0 | N59: -6572074
C60: Otro
B61: RETIRO | E61: =SUM(E62:E64) -> 650 | F61: =SUM(F62:F64) -> 521924 | G61: 0 | H61: 0 | I61: 339315478.9 | J61: 8758 | K61: 820646558.3 | L61: 0 | M61: 818050999.2 | N61: 0
C62: Renovación | E62: 2 | F62: 518629 | I62: 309693695 | J62: 5370 | K62: 171245579.5 | L62: 0 | M62: 170816105.6 | N62: 0
C63: Primer año | E63: 580 | F63: 580 | H63: 0 | I63: -50985.01 | J63: 571 | K63: 10400812.9 | L63: 0 | M63: 10325812.9 | N63: 0
C64: Otro | E64: 68 | F64: 2715 | H64: 0 | I64: 29672768.83 | J64: 2817 | K64: 639000165.8 | L64: 0 | M64: 636909080.7 | N64: 0
B65: ORFANDAD | E65: =SUM(E66:E68) -> 6 | F65: =SUM(F66:F68) -> 82391 | G65: 3512967030 | H65: 0 | I65: 103349953.8 | J65: 235 | K65: 4733993.25 | L65: 0 | M65: 0 | N65: 16806048
C66: Renovación | E66: 6 | F66: 82391 | G66: 3512967030 | I66: 103349953.8 | J66: 235 | K66: 4733993.25 | L66: 0 | M66: 0 | N66: 16794408
C67: Primer año | I67: 0 | L67: 0 | N67: 11640
C68: Otro
B69: MICROSEGURO | E69: =SUM(E70:E72) -> 35 | F69: =SUM(F70:F72) -> 591240 | G69: 27091198000 | H69: 0 | I69: 37485909.15 | J69: 1086 | K69: 50613401.98 | L69: 0 | M69: 0 | N69: 0
C70: Renovación | E70: 1 | F70: 22 | G70: 1320000 | I70: 139998.24 | L70: 0 | N70: 0
C71: Primer año | E71: 34 | F71: 591218 | G71: 27089878000 | I71: 37345910.91 | J71: 1086 | K71: 50613401.98 | L71: 0 | M71: 0 | N71: 0
C72: Otro
B73: FLEXIBLE SIN TASA GARANTIZADA | E73: =SUM(E74:E76) -> 334 | F73: =SUM(F74:F76) -> 126130 | G73: 78517314 | H73: 0 | I73: 4985381996 | J73: 12870 | K73: 4752574269 | L73: 1933414551 | M73: 0 | N73: 0
C74: Renovación | E74: 105 | F74: 7371 | G74: 33529211 | I74: 0 | L74: 0 | N74: 0
C75: Primer año | E75: 229 | F75: 118759 | G75: 44988103 | I75: 4985381996 | J75: 12870 | K75: 4752574269 | L75: 1933414551 | M75: 0 | N75: 0
C76: Otro
B77: FLEXIBLE CON TASA GARANTIZADA | E77: =SUM(E78:E80) -> 770 | F77: =SUM(F78:F80) -> 772 | G77: 27867870 | H77: 0 | I77: 186683.52 | J77: 0 | K77: 0 | L77: 0 | M77: 0 | N77: 0
C78: Renovación | E78: 1 | F78: 3 | G78: 6140160 | I78: 186683.52 | L78: 0 | N78: 0
C79: Primer año | E79: 769 | F79: 769 | G79: 21727710 | I79: 0 | L79: 0 | N79: 0
C80: Otro
B81: DEUDORES | E81: =SUM(E82:E84) -> 7241 | F81: =SUM(F82:F84) -> 17517226 | G81: 3240570164102 | H81: 0 | I81: 1.351225717e+10 | J81: 80153 | K81: 6225599137 | L81: 0 | M81: 0 | N81: 22376706
C82: Renovación | E82: 732 | F82: 3598086 | G82: 564116162516 | I82: 5391694778 | J82: 25529 | K82: 2942966691 | L82: 0 | M82: 0 | N82: 5415099
C83: Primer año | E83: 4316 | F83: 13211068 | G83: 2644931604843 | I83: 7780321068 | J83: 52971 | K83: 3131714045 | L83: 0 | M83: 0 | N83: 16961607
C84: Otro | E84: 2193 | F84: 708072 | G84: 31522396743 | I84: 340241329.5 | J84: 1653 | K84: 150918400.4 | L84: 0 | M84: 0 | N84: 0
B85: OTROS | E85: =SUM(E86:E88) -> 1133 | F85: =SUM(F86:F88) -> 688689 | G85: 177457892800 | H85: 0 | I85: 1794975955 | J85: 11287 | K85: 1916330210 | L85: 0 | M85: 0 | N85: 489023717
C86: Renovación | I86: 0 | L86: 0 | N86: 0
C87: Primer año | E87: 1127 | F87: 688589 | G87: 177440192800 | I87: 1794975955 | J87: 11287 | K87: 1916330210 | L87: 0 | M87: 0 | N87: 489023717
C88: Otro | E88: 6 | F88: 100 | G88: 17700000 | I88: 0 | L88: 0 | N88: 0
B89: PÓLIZAS CONCENTRADAS* | E89: 390 | F89: 41821178 | G89: 1310769628000 | I89: 1.047650497e+10 | J89: 133604 | K89: 1892073782 | L89: 0 | M89: 0 | N89: -29676016
B95: * PARA AQUELLAS PÓLIZAS QUE POR RAZONES ADMINISTRATIVAS, COMERCIALES O DE CUALQUIER OTRA ÍNDOLE, PERO QUE SE ENCUENTRE DOCUMENTADA EN SUS NOTAS TÉCNICAS CORRESPONDIENTES, Y LA INSTITUCIÓN NO TENGA A SU DISPOSICIÓN EL DETALLE DE LA INFORMACION DE CADA ASEGURADO, SE REPORTARÉ EN ESTE APARTADO LA INFORMACIÓN. CABE MENCIONAR QUE LAS PÓLIZAS AUTO-ADMINISTRADAS NO DEBERÁN SER CONSIDERADAS EN ESTE CAMPO.
B99: GRUPO PÓLIZA NO CONCENTRADA | E99: =E52-E89 -> 105059 | F99: =F52-F89 -> 47554167 | G99: 9371912682636 | H99: =H52-H89 -> 212059110 | I99: 5.237163522e+10 | J99: 240315 | K99: 3.897758812e+10 | L99: 3618869206 | M99: 818050999.2 | N99: 579942687

Sheet 1 T.N.
A2: 1. SEGURO DIRECTO EN LA OPERACIÓN DE VIDA
A4: DICIEMBRE DE 2021
A6: MONEDA NACIONAL
E9: PÓLIZAS EN VIGOR | F9: CERTIFICADOS O PARTICIPANTES EN VIGOR | G9: SUMA ASEGURADA EN VIGOR POR MUERTE | H9: SUMA ASEGURADA EN VIGOR POR SOBREVIVENCIA | I9: PRIMA EMITIDA DIRECTA | J9: NÚMERO DE SINIESTROS | K9: SINIESTROS DIRECTOS | L9: RESCATES | M9: VENCIMIENTOS | N9: COSTO DE DIVIDENDOS
C10: TIPO DE SEGURO | K10: DIRECTOS | M10: DIRECTOS
A13: TOTAL | E13: =E14+E52 -> 9265469 | F13: 98610509 | G13: 13559118377504 | H13: 30648249786 | I13: 1.747489176e+11 | J13: 442791 | K13: 6.177233238e+10 | L13: 84332169882 | M13: 7388091911 | N13: 552480219
B14: TOTAL INDIVIDUAL | E14: =E15+E19+E23+E27+E31+E35+E39+E43+E47+E51 -> 9160679 | F14: 9238624 | G14: 2876607417023 | H14: 30436190676 | I14: 1.122169475e+11 | J14: 72109 | K14: 2.151613503e+10 | L14: 80713300676 | M14: 7181409612 | N14: 2213548
B15: TRADICIONAL | E15: =SUM(E16:E18) -> 5406678 | F15: =SUM(F16:F18) -> 5477888 | G15: 1575182385272 | H15: 30095422576 | I15: 1.736176199e+10 | J15: 32122 | K15: 4951284560 | L15: 2193207144 | M15: 1651564595 | N15: 1821321
C16: Renovación | E16: 2674469 | F16: 2686552 | G16: 990948332779 | H16: 271081103 | I16: 8451689335 | J16: 15060 | K16: 2738284888 | L16: 885505425 | M16: 179941154.3 | N16: 1679788
C17: Primer año | E17: 2701646 | F17: 2759277 | G17: 545766021635 | H17: 9771936862 | I17: 7496665655 | J17: 16499 | K17: 1683291292 | L17: 984495326 | M17: 1032347743 | N17: 197772
C18: Otro | E18: 30563 | F18: 32059 | G18: 38468030858 | H18: 20052404611 | I18: 1413406994 | J18: 563 | K18: 529708379.4 | L18: 323206393 | M18: 439275697 | N18: -56239
B19: RETIRO | E19: =SUM(E20:E22) -> 1159 | F19: =SUM(F20:F22) -> 1159 | G19: 0 | H19: 0 | I19: 24327511.76 | J19: 298 | K19: 78269790.7 | L19: 5430763 | M19: 76572869.08 | N19: 17436
C20: Renovación
C21: Primer año | E21: 153 | F21: 153 | H21: 0 | I21: 4244510.3 | J21: 3 | K21: 195400 | L21: 0 | M21: 195400 | N21: 0
C22: Otro | E22: 1006 | F22: 1006 | H22: 0 | I22: 20083001.46 | J22: 295 | K22: 78074390.7 | L22: 5430763 | M22: 76377469.08 | N22: 17436
B23: MICROSEGURO | E23: =SUM(E24:E26) -> 53268 | F23: =SUM(F24:F26) -> 53268 | G23: 12200938000 | H23: 0 | I23: 58987630.46 | J23: 88 | K23: 17066778 | L23: 0 | M23: 0 | N23: 0
C24: Renovación | E24: 19165 | F24: 19165 | G24: 5259878000 | I24: 39290055.74 | J24: 49 | K24: 13434270 | L24: 0 | M24: 0 | N24: 0
C25: Primer año | E25: 34103 | F25: 34103 | G25: 6941060000 | I25: 19697574.72 | J25: 38 | K25: 3557508 | L25: 0 | M25: 0 | N25: 0
C26: Otro | I26: 0 | J26: 1 | K26: 75000 | L26: 0 | M26: 0 | N26: 0
B27: MANCOMUNADO | E27: =SUM(E28:E30) -> 8548 | F27: =SUM(F28:F30) -> 8548 | G27: 14312101857 | H27: 589838 | I27: 16252043.04 | J27: 36 | K27: 13050555.86 | L27: 487082309 | M27: 1905992 | N27: 0
C28: Renovación | E28: 5785 | F28: 5785 | G28: 8149377295 | H28: 589838 | I28: 15568794.95 | J28: 31 | K28: 10450555.86 | L28: 264224226 | M28: 1905992 | N28: 0
C29: Primer año | E29: 2763 | F29: 2763 | G29: 6162724562 | I29: 683248.09 | J29: 5 | K29: 2600000 | L29: 222858083 | M29: 0 | N29: 0
C30: Otro
B31: FLEXIBLE SIN TASA GARANTIZADA | E31: =SUM(E32:E34) -> 2227659 | F31: =SUM(F32:F34) -> 2233022 | G31: 858077723397 | H31: 0 | I31: 6.867717483e+10 | J31: 32467 | K31: 1.06031181e+10 | L31: 57889093399 | M31: 135525960.9 | N31: 374743
C32: Renovación | E32: 253783 | F32: 259118 | G32: 60892600135 | I32: 1.341012554e+10 | J32: 1602 | K32: 2595057355 | L32: 13959437320 | M32: 31906570.04 | N32: 374738
C33: Primer año | E33: 1848629 | F33: 1848657 | G33: 792189242111 | I33: 5.253322672e+10 | J33: 30415 | K33: 7727280678 | L33: 39929304895 | M33: 0 | N33: 5
C34: Otro | E34: 125247 | F34: 125247 | G34: 4995881151 | H34: 0 | I34: 2733822574 | J34: 450 | K34: 280780066.3 | L34: 4000351184 | M34: 103619390.9 | N34: 0
B35: FLEXIBLE CON TASA GARANTIZADA | E35: =SUM(E36:E38) -> 378238 | F35: =SUM(F36:F38) -> 378241 | G35: 55284422932 | H35: 20900000 | I35: 2.364070993e+10 | J35: 3070 | K35: 5296268440 | L35: 19677960910 | M35: 5219000145 | N35: 0
C36: Renovación | E36: 38927 | F36: 38930 | G36: 1615406507 | I36: 30432919.44 | J36: 354 | K36: 49410868.35 | L36: 132214674 | M36: 46400303.35 | N36: 0
C37: Primer año | E37: 319204 | F37: 319204 | G37: 52458489649 | H37: 20900000 | I37: 1.888379666e+10 | J37: 2560 | K37: 5224873149 | L37: 14946818422 | M37: 5140862694 | N37: 0
C38: Otro | E38: 20107 | F38: 20107 | G38: 1210526776 | I38: 4726480354 | J38: 156 | K38: 21984422.22 | L38: 4598927814 | M38: 31737147.47 | N38: 0
B39: EDUCATIVO | E39: =SUM(E40:E42) -> 2148 | F39: =SUM(F40:F42) -> 3517 | G39: 1715257169 | H39: 319278262 | I39: 85125660.84 | J39: 269 | K39: 99034257.27 | L39: 37412077 | M39: 95577906.22 | N39: 48
C40: Renovación | E40: 1548 | F40: 2528 | G40: 1677016231 | H40: 2540498 | I40: 62996102.46 | J40: 252 | K40: 92641015.01 | L40: 31066538 | M40: 87354659.32 | N40: 0
C41: Primer año | E41: 207 | F41: 208 | G41: 38240938 | H41: 103731075 | I41: 4621217.62 | J41: 4 | K41: 395420.36 | L41: 5991288 | M41: 2225425 | N41: 48
C42: Otro | E42: 393 | F42: 781 | H42: 213006689 | I42: 17508340.76 | J42: 13 | K42: 5997821.9 | L42: 354251 | M42: 5997821.9 | N42: 0
B43: DEUDORES | E43: =SUM(E44:E46) -> 1081187 | F43: =SUM(F44:F46) -> 1081187 | G43: 359521088396 | H43: 0 | I43: 2351803827 | J43: 3746 | K43: 455380404.4 | L43: 423114074 | M43: 0 | N43: 0
C44: Renovación | E44: 43088 | F44: 43088 | G44: 55293992228 | I44: 394141636.8 | J44: 237 | K44: 74413692.24 | L44: 0 | M44: 0 | N44: 0
C45: Primer año | E45: 293580 | F45: 293580 | G45: 218930341708 | I45: 564834558.1 | J45: 737 | K45: 124654910.5 | L45: 0 | M45: 0 | N45: 0
C46: Otro | E46: 744519 | F46: 744519 | G46: 85296754460 | I46: 1392827632 | J46: 2772 | K46: 256311801.6 | L46: 423114074 | M46: 0 | N46: 0
C47: OTROS | E47: =SUM(E48:E50) -> 649 | F47: 649 | G47: 0 | H47: 0 | I47: 0 | J47: 8 | K47: 1262143.94 | L47: 0 | M47: 1262144 | N47: 0
C48: Renovación
C49: Primer año | E49: 35 | F49: 35 | H49: 0 | I49: 0 | J49: 8 | K49: 1262143.94 | L49: 0 | M49: 1262144 | N49: 0
C50: Otro | E50: 614 | F50: 614 | I50: 0 | L50: 0 | N50: 0
B51: No Especificado | E51: 1145 | F51: 1145 | G51: 313500000 | I51: 804029.97 | J51: 5 | K51: 1400000 | L51: 0 | M51: 0 | N51: 0
B52: TOTAL GRUPO | E52: =E53+E57+E61+E65+E69+E73+E77+E81+E85+E89 -> 104790 | F52: =F53+F57+F61+F65+F69+F73+F77+F81+F85+F89 -> 89371885 | G52: 10682510960481 | H52: 212059110 | I52: 6.253197011e+10 | J52: 370682 | K52: 4.025619735e+10 | L52: 3618869206 | M52: 206682299.3 | N52: 550266671
B53: TRADICIONAL | E53: =SUM(E54:E56) -> 94025 | F53: =SUM(F54:F56) -> 25389967 | G53: 4993762550805 | H53: 0 | I53: 2.25026166e+10 | J53: 93495 | K53: 1.645509005e+10 | L53: 0 | M53: 0 | N53: 61496009
C54: Renovación | E54: 15983 | F54: 14041775 | G54: 3053333407583 | I54: 1.627449039e+10 | J54: 41468 | K54: 1.106583938e+10 | L54: 0 | M54: 0 | N54: 41781248
C55: Primer año | E55: 78042 | F55: 11348192 | G55: 1940429143222 | I55: 6228126213 | J55: 52018 | K55: 5388650668 | L55: 0 | M55: 0 | N55: 19714761
C56: Otro | J56: 9 | K56: 600000 | M56: 0
B57: TRABAJADORES DEL ESTADO | E57: =SUM(E58:E60) -> 865 | F57: =SUM(F58:F60) -> 2635828 | G57: 929411524715 | H57: 212059110 | I57: 9096065463 | J57: 32431 | K57: 8752000504 | L57: 1685454655 | M57: 0 | N57: -9759793
C58: Renovación | E58: 596 | F58: 1387866 | G58: 835485427467 | I58: 7756415528 | J58: 23847 | K58: 7377889406 | L58: 1685454655 | M58: 0 | N58: -3187719
C59: Primer año | E59: 269 | F59: 1247962 | G59: 93926097248 | H59: 212059110 | I59: 1339649935 | J59: 8584 | K59: 1374111097 | L59: 0 | M59: 0 | N59: -6572074
C60: Otro
B61: RETIRO | E61: =SUM(E62:E64) -> 4 | F61: =SUM(F62:F64) -> 518773 | G61: 0 | H61: 0 | I61: 309642710 | J61: 5521 | K61: 207182006.5 | L61: 0 | M61: 206682299.3 | N61: 0
C62: Renovación | E62: 1 | F62: 518472 | I62: 309693695 | J62: 5207 | K62: 125827158.9 | L62: 0 | M62: 125402451.7 | N62: 0
C63: Primer año | I63: -50985.01 | J63: 0 | L63: 0 | M63: -75000 | N63: 0
C64: Otro | E64: 3 | F64: 301 | H64: 0 | I64: 0 | J64: 314 | K64: 81354847.62 | L64: 0 | M64: 81354847.62 | N64: 0
B65: ORFANDAD | E65: =SUM(E66:E68) -> 6 | F65: =SUM(F66:F68) -> 82391 | G65: 3512967030 | H65: 0 | I65: 103349953.8 | J65: 235 | K65: 4733993.25 | L65: 0 | M65: 0 | N65: 16806048
C66: Renovación | E66: 6 | F66: 82391 | G66: 3512967030 | I66: 103349953.8 | J66: 235 | K66: 4733993.25 | L66: 0 | M66: 0 | N66: 16794408
C67: Primer año | I67: 0 | L67: 0 | N67: 11640
C68: Otro
B69: MICROSEGURO | E69: =SUM(E70:E72) -> 35 | F69: =SUM(F70:F72) -> 591240 | G69: 27091198000 | H69: 0 | I69: 37485909.15 | J69: 1086 | K69: 50613401.98 | L69: 0 | M69: 0 | N69: 0
C70: Renovación | E70: 1 | F70: 22 | G70: 1320000 | I70: 139998.24 | L70: 0 | N70: 0
C71: Primer año | E71: 34 | F71: 591218 | G71: 27089878000 | I71: 37345910.91 | J71: 1086 | K71: 50613401.98 | L71: 0 | M71: 0 | N71: 0
C72: Otro
B73: FLEXIBLE SIN TASA GARANTIZADA | E73: =SUM(E74:E76) -> 334 | F73: =SUM(F74:F76) -> 126130 | G73: 78517314 | H73: 0 | I73: 4985381996 | J73: 12870 | K73: 4752574269 | L73: 1933414551 | M73: 0 | N73: 0
C74: Renovación | E74: 105 | F74: 7371 | G74: 33529211 | I74: 0 | L74: 0 | N74: 0
C75: Primer año | E75: 229 | F75: 118759 | G75: 44988103 | I75: 4985381996 | J75: 12870 | K75: 4752574269 | L75: 1933414551 | M75: 0 | N75: 0
C76: Otro
B77: FLEXIBLE CON TASA GARANTIZADA | E77: =SUM(E78:E80) -> 769 | F77: =SUM(F78:F80) -> 769 | G77: 21727710 | H77: 0 | I77: 0 | J77: 0 | K77: 0 | L77: 0 | M77: 0 | N77: 0
C78: Renovación
C79: Primer año | E79: 769 | F79: 769 | G79: 21727710 | I79: 0 | L79: 0 | N79: 0
C80: Otro
B81: DEUDORES | E81: =SUM(E82:E84) -> 7240 | F81: =SUM(F82:F84) -> 17517214 | G81: 3240569168510 | H81: 0 | I81: 1.351220331e+10 | J81: 80153 | K81: 6225599137 | L81: 0 | M81: 0 | N81: 22376706
C82: Renovación | E82: 731 | F82: 3598074 | G82: 564115166924 | I82: 5391640909 | J82: 25529 | K82: 2942966691 | L82: 0 | M82: 0 | N82: 5415099
C83: Primer año | E83: 4316 | F83: 13211068 | G83: 2644931604843 | I83: 7780321068 | J83: 52971 | K83: 3131714045 | L83: 0 | M83: 0 | N83: 16961607
C84: Otro | E84: 2193 | F84: 708072 | G84: 31522396743 | I84: 340241329.5 | J84: 1653 | K84: 150918400.4 | L84: 0 | M84: 0 | N84: 0
B85: OTROS | E85: =SUM(E86:E88) -> 1132 | F85: =SUM(F86:F88) -> 688474 | G85: 177455369277 | H85: 0 | I85: 1794553455 | J85: 11287 | K85: 1916330210 | L85: 0 | M85: 0 | N85: 489023717
C86: Renovación | I86: 0 | L86: 0 | N86: 0
C87: Primer año | E87: 1126 | F87: 688374 | G87: 177437669277 | I87: 1794553455 | J87: 11287 | K87: 1916330210 | L87: 0 | M87: 0 | N87: 489023717
C88: Otro | E88: 6 | F88: 100 | G88: 17700000 | I88: 0 | L88: 0 | N88: 0
B89: PÓLIZAS CONCENTRADAS* | E89: 380 | F89: 41821099 | G89: 1310607937120 | I89: 1.019067071e+10 | J89: 133604 | K89: 1892073782 | L89: 0 | M89: 0 | N89: -29676016
B95: * PARA AQUELLAS PÓLIZAS QUE POR RAZONES ADMINISTRATIVAS, COMERCIALES O DE CUALQUIER OTRA ÍNDOLE, PERO QUE SE ENCUENTRE DOCUMENTADA EN SUS NOTAS TÉCNICAS CORRESPONDIENTES, Y LA INSTITUCIÓN NO TENGA A SU DISPOSICIÓN EL DETALLE DE LA INFORMACION DE CADA ASEGURADO, SE REPORTARÉ EN ESTE APARTADO LA INFORMACIÓN. CABE MENCIONAR QUE LAS PÓLIZAS AUTO-ADMINISTRADAS NO DEBERÁN SER CONSIDERADAS EN ESTE CAMPO.
B99: GRUPO PÓLIZA NO CONCENTRADA | E99: =E52-E89 -> 104410 | F99: =F52-F89 -> 47550786 | G99: 9371903023361 | H99: 212059110 | I99: 5.23412994e+10 | J99: 237078 | K99: 3.836412357e+10 | L99: 3618869206 | M99: 206682299.3 | N99: 579942687

Sheet 1 T.E.
A2: 1. SEGURO DIRECTO EN LA OPERACIÓN DE VIDA
A4: DICIEMBRE DE 2021
A6: MONEDA EXTRANJERA
E9: PÓLIZAS EN VIGOR | F9: CERTIFICADOS O PARTICIPANTES EN VIGOR | G9: SUMA ASEGURADA EN VIGOR POR MUERTE | H9: SUMA ASEGURADA EN VIGOR POR SOBREVIVENCIA | I9: PRIMA EMITIDA DIRECTA | J9: NÚMERO DE SINIESTROS | K9: SINIESTROS DIRECTOS | L9: RESCATES | M9: VENCIMIENTOS | N9: COSTO DE DIVIDENDOS
C10: TIPO DE SEGURO | K10: DIRECTOS | M10: DIRECTOS
A13: TOTAL | E13: =E14+E52 -> 521948 | F13: 605772 | G13: 872544056268 | H13: 288117255281 | I13: 3.559969319e+10 | J13: 32113 | K13: 1.407364225e+10 | L13: 24947852097 | M13: 1.711421137e+10 | N13: -9160467
B14: TOTAL INDIVIDUAL | E14: =E15+E19+E23+E27+E31+E35+E39+E43+E47+E51 -> 521935 | F14: 605463 | G14: 872372706113 | H14: 288117255281 | I14: 3.531319588e+10 | J14: 32113 | K14: 1.407364225e+10 | L14: 24947852097 | M14: 1.711421137e+10 | N14: -9160467
B15: TRADICIONAL | E15: =SUM(E16:E18) -> 359481 | F15: =SUM(F16:F18) -> 380822 | G15: 557182293368 | H15: 183633085130 | I15: 2.385999058e+10 | J15: 19468 | K15: 8042449326 | L15: 15662003273 | M15: 8882317408 | N15: 2417087
C16: Renovación | E16: 197349 | F16: 206286 | G16: 205916231565 | H16: 37335133999 | I16: 8759433980 | J16: 17670 | K16: 6216644343 | L16: 5968443936 | M16: 4735758901 | N16: 2335362
C17: Primer año | E17: 143121 | F17: 149068 | G17: 341178298981 | H17: 141326160796 | I17: 1.47080223e+10 | J17: 765 | K17: 1184482502 | L17: 9277328471 | M17: 3713893135 | N17: 81696
C18: Otro | E18: 19011 | F18: 25468 | G18: 10087762822 | H18: 4971790335 | I18: 392534292.1 | J18: 1033 | K18: 641322480.9 | L18: 416230866 | M18: 432665372.6 | N18: 29
B19: RETIRO | E19: =SUM(E20:E22) -> 1078 | F19: =SUM(F20:F22) -> 1078 | G19: 753824800 | H19: 0 | I19: 88586185.44 | J19: 49 | K19: 24627193.34 | L19: 14893559 | M19: 21215706.21 | N19: 0
C20: Renovación | E20: 459 | F20: 459 | G20: 753824800 | H20: 0 | I20: 5104769.73 | J20: 20 | K20: 5909798.59 | L20: 1721265 | M20: 5109602.59 | N20: 0
C21: Primer año | E21: 52 | F21: 52 | H21: 0 | I21: 1925680.86 | L21: 0 | N21: 0
C22: Otro | E22: 567 | F22: 567 | H22: 0 | I22: 81555734.85 | J22: 29 | K22: 18717394.75 | L22: 13172294 | M22: 16106103.62 | N22: 0
B23: MICROSEGURO | E23: =SUM(E24:E26) -> 0 | F23: =SUM(F24:F26) -> 0 | G23: 0 | H23: 0 | I23: 0 | J23: 0 | K23: 0 | L23: 0 | M23: 0 | N23: 0
C24: Renovación
C25: Primer año
C26: Otro
B27: MANCOMUNADO | E27: =SUM(E28:E30) -> 580 | F27: =SUM(F28:F30) -> 580 | G27: 1320257359 | H27: 0 | I27: 40788162.49 | J27: 36 | K27: 48866996.21 | L27: 48583173 | M27: 36221112.56 | N27: 0
C28: Renovación | E28: 576 | F28: 576 | G28: 1306275170 | I28: 40665382.21 | J28: 36 | K28: 48866996.21 | L28: 48583173 | M28: 36221112.56 | N28: 0
C29: Primer año | E29: 4 | F29: 4 | G29: 13982189 | I29: 122780.28 | L29: 0 | N29: 0
C30: Otro
B31: FLEXIBLE SIN TASA GARANTIZADA | E31: =SUM(E32:E34) -> 35765 | F31: =SUM(F32:F34) -> 35826 | G31: 70720275090 | H31: 0 | I31: 4416955868 | J31: 243 | K31: 386482674.7 | L31: 4856771167 | M31: 3174835.48 | N31: -11631756
C32: Renovación | E32: 28104 | F32: 28165 | G32: 67291018302 | I32: 972857378.3 | J32: 217 | K32: 299268517.3 | L32: 2471146374 | M32: 88331.2 | N32: -11631756
C33: Primer año | E33: 5673 | F33: 5673 | G33: 3305733040 | I33: 3408938759 | J33: 18 | K33: 10432304.82 | L33: 965306072 | M33: 0 | N33: 0
C34: Otro | E34: 1988 | F34: 1988 | G34: 123523748 | I34: 35159731 | J34: 8 | K34: 76781852.64 | L34: 1420318721 | M34: 3086504.28 | N34: 0
B35: FLEXIBLE CON TASA GARANTIZADA | E35: =SUM(E36:E38) -> 47746 | F35: =SUM(F36:F38) -> 48166 | G35: 58501415901 | H35: 100615858 | I35: 3957616299 | J35: 5825 | K35: 2263777135 | L35: 2556910071 | M35: 2321466953 | N35: 0
C36: Renovación | E36: 10866 | F36: 11134 | G36: 6053478051 | H36: 3979601 | I36: 702323865.2 | J36: 218 | K36: 219199602.7 | L36: 361324015 | M36: 1234093.68 | N36: 0
C37: Primer año | E37: 35684 | F37: 35836 | G37: 51824340644 | H37: 96636257 | I37: 3174564277 | J37: 5592 | K37: 2017931946 | L37: 1992413945 | M37: 2320232860 | N37: 0
C38: Otro | E38: 1196 | F38: 1196 | G38: 623597206 | I38: 80728156.41 | J38: 15 | K38: 26645586.33 | L38: 203172111 | M38: 0 | N38: 0
B39: EDUCATIVO | E39: =SUM(E40:E42) -> 75056 | F39: =SUM(F40:F42) -> 136762 | G39: 137670176723 | H39: 104383554293 | I39: 2936883376 | J39: 6477 | K39: 3297113649 | L39: 1808690854 | M39: 5842247540 | N39: 54202
C40: Renovación | E40: 37604 | F40: 59827 | G40: 35843005147 | H40: 2768435239 | I40: 1400398350 | J40: 5389 | K40: 2814130125 | L40: 442171495 | M40: 2713920632 | N40: 32958
C41: Primer año | E41: 35054 | F41: 72187 | G41: 101127134451 | H41: 99729354758 | I41: 1434197108 | J41: 894 | K41: 369931772.5 | L41: 1343274283 | M41: 3024562332 | N41: 21244
C42: Otro | E42: 2398 | F42: 4748 | G42: 700037125 | H42: 1885764296 | I42: 102287918.2 | J42: 194 | K42: 113051751.4 | L42: 23245076 | M42: 103764576.3 | N42: 0
B43: DEUDORES | E43: =SUM(E44:E46) -> 1894 | F43: =SUM(F44:F46) -> 1894 | G43: 46224462872 | H43: 0 | I43: 12373981.73 | J43: 3 | K43: 2757467.32 | L43: 0 | M43: 0 | N43: 0
C44: Renovación
C45: Primer año | E45: 1894 | F45: 1894 | G45: 46224462872 | I45: 12373981.73 | J45: 3 | K45: 2757467.32 | L45: 0 | M45: 0 | N45: 0
C46: Otro
C47: OTROS | E47: =SUM(E48:E50) -> 335 | F47: 335 | G47: 0 | H47: 0 | I47: 1428 | J47: 12 | K47: 7567813.79 | L47: 0 | M47: 7567815 | N47: 0
C48: Renovación
C49: Primer año | E49: 335 | F49: 335 | H49: 0 | I49: 1428 | J49: 12 | K49: 7567813.79 | L49: 0 | M49: 7567815 | N49: 0
C50: Otro
B51: No Especificado
B52: TOTAL GRUPO | E52: =E53+E57+E61+E65+E69+E73+E77+E81+E85+E89 -> 13 | F52: =F53+F57+F61+F65+F69+F73+F77+F81+F85+F89 -> 309 | G52: 171350155 | H52: 0 | I52: 286497312.2 | J52: 0 | K52: 0 | L52: 0 | M52: 0 | N52: 0
B53: TRADICIONAL | E53: =SUM(E54:E56) -> 0 | F53: =SUM(F54:F56) -> 0 | G53: 0 | H53: 0 | I53: 0 | J53: 0 | K53: 0 | L53: 0 | M53: 0 | N53: 0
C54: Renovación
C55: Primer año
C56: Otro
B57: TRABAJADORES DEL ESTADO | E57: =SUM(E58:E60) -> 0 | F57: =SUM(F58:F60) -> 0 | G57: 0 | H57: 0 | I57: 0 | J57: 0 | K57: 0 | L57: 0 | M57: 0 | N57: 0
C58: Renovación
C59: Primer año
C60: Otro
B61: RETIRO | E61: =SUM(E62:E64) -> 0 | F61: =SUM(F62:F64) -> 0 | G61: 0 | H61: 0 | I61: 0 | J61: 0 | K61: 0 | L61: 0 | M61: 0 | N61: 0
C62: Renovación
C63: Primer año
C64: Otro
B65: ORFANDAD | E65: =SUM(E66:E68) -> 0 | F65: =SUM(F66:F68) -> 0 | G65: 0 | H65: 0 | I65: 0 | J65: 0 | K65: 0 | L65: 0 | M65: 0 | N65: 0
C66: Renovación
C67: Primer año
C68: Otro
B69: MICROSEGURO | E69: =SUM(E70:E72) -> 0 | F69: =SUM(F70:F72) -> 0 | G69: 0 | H69: 0 | I69: 0 | J69: 0 | K69: 0 | L69: 0 | M69: 0 | N69: 0
C70: Renovación
C71: Primer año
C72: Otro
B73: FLEXIBLE SIN TASA GARANTIZADA | E73: =SUM(E74:E76) -> 0 | F73: =SUM(F74:F76) -> 0 | G73: 0 | H73: 0 | I73: 0 | J73: 0 | K73: 0 | L73: 0 | M73: 0 | N73: 0
C74: Renovación
C75: Primer año
C76: Otro
B77: FLEXIBLE CON TASA GARANTIZADA | E77: =SUM(E78:E80) -> 1 | F77: =SUM(F78:F80) -> 3 | G77: 6140160 | H77: 0 | I77: 186683.52 | J77: 0 | K77: 0 | L77: 0 | M77: 0 | N77: 0
C78: Renovación | E78: 1 | F78: 3 | G78: 6140160 | I78: 186683.52 | L78: 0 | N78: 0
C79: Primer año
C80: Otro
B81: DEUDORES | E81: =SUM(E82:E84) -> 1 | F81: =SUM(F82:F84) -> 12 | G81: 995592 | H81: 0 | I81: 53868.33 | J81: 0 | K81: 0 | L81: 0 | M81: 0 | N81: 0
C82: Renovación | E82: 1 | F82: 12 | G82: 995592 | I82: 53868.33 | L82: 0 | N82: 0
C83: Primer año
C84: Otro
B85: OTROS | E85: =SUM(E86:E88) -> 1 | F85: =SUM(F86:F88) -> 215 | G85: 2523523 | H85: 0 | I85: 422499.49 | J85: 0 | K85: 0 | L85: 0 | M85: 0 | N85: 0
C86: Renovación
C87: Primer año | E87: 1 | F87: 215 | G87: 2523523 | I87: 422499.49 | L87: 0 | N87: 0
C88: Otro
B89: PÓLIZAS CONCENTRADAS* | E89: 10 | F89: 79 | G89: 161690880 | I89: 285834260.9 | L89: 0 | N89: 0
B95: * PARA AQUELLAS PÓLIZAS QUE POR RAZONES ADMINISTRATIVAS, COMERCIALES O DE CUALQUIER OTRA ÍNDOLE, PERO QUE SE ENCUENTRE DOCUMENTADA EN SUS NOTAS TÉCNICAS CORRESPONDIENTES, Y LA INSTITUCIÓN NO TENGA A SU DISPOSICIÓN EL DETALLE DE LA INFORMACION DE CADA ASEGURADO, SE REPORTARÉ EN ESTE APARTADO LA INFORMACIÓN. CABE MENCIONAR QUE LAS PÓLIZAS AUTO-ADMINISTRADAS NO DEBERÁN SER CONSIDERADAS EN ESTE CAMPO.
B99: GRUPO PÓLIZA NO CONCENTRADA | E99: =E52-E89 -> 3 | F99: =F52-F89 -> 230 | G99: 9659275 | H99: 0 | I99: 663051.34 | J99: 0 | K99: 0 | L99: 0 | M99: 0 | N99: 0

Sheet 1T.I.
A2: 1. SEGURO DIRECTO EN LA OPERACIÓN DE VIDA
A4: DICIEMBRE DE 2021
A6: TITULOS INDIZADOS
E9: PÓLIZAS EN VIGOR | F9: CERTIFICADOS O PARTICIPANTES EN VIGOR | G9: SUMA ASEGURADA EN VIGOR POR MUERTE | H9: SUMA ASEGURADA EN VIGOR POR SOBREVIVENCIA | I9: PRIMA EMITIDA DIRECTA | J9: NÚMERO DE SINIESTROS | K9: SINIESTROS DIRECTOS | L9: RESCATES | M9: VENCIMIENTOS | N9: COSTO DE DIVIDENDOS
C10: TIPO DE SEGURO | K10: DIRECTOS | M10: DIRECTOS
A13: TOTAL | E13: =E14+E52 -> 957541 | F13: 1061948 | G13: 760346338226 | H13: 220379632468 | I13: 2.977193728e+10 | J13: 23720 | K13: 5117238377 | L13: 17047531251 | M13: 4581699240 | N13: 19425885
B14: TOTAL INDIVIDUAL | E14: =E15+E19+E23+E27+E31+E35+E39+E43+E47+E51 -> 956895 | F14: 1058797 | G14: 760346338226 | H14: 220379632468 | I14: 2.974226451e+10 | J14: 20483 | K14: 4503773826 | L14: 17047531251 | M14: 3970330540 | N14: 19425885
B15: TRADICIONAL | E15: =SUM(E16:E18) -> 522815 | F15: =SUM(F16:F18) -> 544188 | G15: 365596281531 | H15: 88936789082 | I15: 1.609556415e+10 | J15: 14155 | K15: 2082358832 | L15: 5697608091 | M15: 1714916020 | N15: 13729108
C16: Renovación | E16: 273760 | F16: 285591 | G16: 123026791705 | H16: 27884947320 | I16: 6882464003 | J16: 12154 | K16: 1437957146 | L16: 3846489809 | M16: 846627591.1 | N16: 5638
C17: Primer año | E17: 221408 | F17: 230031 | G17: 229398686247 | H17: 59378834150 | I17: 8865383697 | J17: 1084 | K17: 500445438.2 | L17: 1688543191 | M17: 773074520.8 | N17: 13723470
C18: Otro | E18: 27647 | F18: 28566 | G18: 13170803579 | H18: 1673007612 | I18: 347716450.2 | J18: 917 | K18: 143956247.7 | L18: 162575091 | M18: 95213908.54 | N18: 0
B19: RETIRO | E19: =SUM(E20:E22) -> 1151 | F19: =SUM(F20:F22) -> 1153 | G19: 80217486 | H19: 80217486 | I19: 26043724.52 | J19: 127 | K19: 40858990 | L19: 865943 | M19: 40858989.69 | N19: 0
C20: Renovación | E20: 697 | F20: 699 | G20: 8899050 | H20: 8899050 | I20: 824198.18 | J20: 81 | K20: 32385204.83 | L20: 865943 | M20: 32385204.83 | N20: 0
C21: Primer año | E21: 242 | F21: 242 | G21: 71318436 | H21: 71318436 | I21: 10830940.94 | J21: 1 | K21: 15042.61 | L21: 0 | M21: 15042.61 | N21: 0
C22: Otro | E22: 212 | F22: 212 | H22: 0 | I22: 14388585.4 | J22: 45 | K22: 8458742.56 | L22: 0 | M22: 8458742.25 | N22: 0
B23: MICROSEGURO | E23: =SUM(E24:E26) -> 0 | F23: =SUM(F24:F26) -> 0 | G23: 0 | H23: 0 | I23: 0 | J23: 0 | K23: 0 | L23: 0 | M23: 0 | N23: 0
C24: Renovación
C25: Primer año
C26: Otro
B27: MANCOMUNADO | E27: =SUM(E28:E30) -> 178 | F27: =SUM(F28:F30) -> 178 | G27: 225607372 | H27: 0 | I27: 10022844.33 | J27: 10 | K27: 1988183.74 | L27: 687053 | M27: 1410974.24 | N27: 0
C28: Renovación | E28: 130 | F28: 130 | G28: 164066005 | I28: 6845139.97 | J28: 7 | K28: 1209509.86 | L28: 687053 | M28: 632300.36 | N28: 0
C29: Primer año | E29: 48 | F29: 48 | G29: 61541367 | I29: 3177704.36 | J29: 3 | K29: 778673.88 | L29: 0 | M29: 778673.88 | N29: 0
C30: Otro
B31: FLEXIBLE SIN TASA GARANTIZADA | E31: =SUM(E32:E34) -> 75073 | F31: =SUM(F32:F34) -> 75197 | G31: 145280310982 | H31: 0 | I31: 2867587414 | J31: 512 | K31: 482172505.5 | L31: 4658057007 | M31: 55953724.46 | N31: 0
C32: Renovación | E32: 65075 | F32: 65197 | G32: 134465841702 | I32: 1832875530 | J32: 476 | K32: 429269446.5 | L32: 3316285322 | M32: 51020524.46 | N32: 0
C33: Primer año | E33: 9499 | F33: 9501 | G33: 10500556639 | I33: 1013807943 | J33: 16 | K33: 27552650.09 | L33: 1097221929 | M33: 4933200 | N33: 0
C34: Otro | E34: 499 | F34: 499 | G34: 313912641 | I34: 20903940.8 | J34: 20 | K34: 25350408.89 | L34: 244549756 | M34: 0 | N34: 0
B35: FLEXIBLE CON TASA GARANTIZADA | E35: =SUM(E36:E38) -> 246451 | F35: =SUM(F36:F38) -> 248697 | G35: 150324647923 | H35: 60770753717 | I35: 7492260390 | J35: 2934 | K35: 880545810.2 | L35: 5811295301 | M35: 183753044 | N35: 0
C36: Renovación | E36: 42534 | F36: 43016 | G36: 17893196721 | I36: 2117634390 | J36: 209 | K36: 241656509.6 | L36: 822008740 | M36: 0 | N36: 0
C37: Primer año | E37: 201133 | F37: 202897 | G37: 131078135331 | H37: 60770753717 | I37: 5165757729 | J37: 2698 | K37: 581908917.9 | L37: 4617188377 | M37: 183753044 | N37: 0
C38: Otro | E38: 2784 | F38: 2784 | G38: 1353315871 | I38: 208868271.5 | J38: 27 | K38: 56980382.76 | L38: 372098184 | M38: 0 | N38: 0
B39: EDUCATIVO | E39: =SUM(E40:E42) -> 111015 | F39: =SUM(F40:F42) -> 189172 | G39: 98839272932 | H39: 70591872183 | I39: 3250451653 | J39: 2656 | K39: 994408798.1 | L39: 879017856 | M39: 1951997080 | N39: 5696777
C40: Renovación | E40: 66077 | F40: 101544 | G40: 30265630547 | H40: 3946317824 | I40: 2041169480 | J40: 2153 | K40: 861540167.7 | L40: 315919313 | M40: 793097674.7 | N40: 4003
C41: Primer año | E41: 44436 | F41: 86627 | G41: 68573642385 | H41: 66311997872 | I41: 1186085138 | J41: 492 | K41: 130680693.3 | L41: 561577458 | M41: 1156711468 | N41: 5692774
C42: Otro | E42: 502 | F42: 1001 | H42: 333556487 | I42: 23197035.31 | J42: 11 | K42: 2187937.14 | L42: 1521085 | M42: 2187937.14 | N42: 0
B43: DEUDORES | E43: =SUM(E44:E46) -> 0 | F43: =SUM(F44:F46) -> 0 | G43: 0 | H43: 0 | I43: 0 | J43: 0 | K43: 0 | L43: 0 | M43: 0 | N43: 0
C44: Renovación
C45: Primer año
C46: Otro
C47: OTROS | E47: =SUM(E48:E50) -> 212 | F47: 212 | G47: 0 | H47: 0 | I47: 334337 | J47: 89 | K47: 21440706.3 | L47: 0 | M47: 21440707 | N47: 0
C48: Renovación
C49: Primer año | E49: 212 | F49: 212 | H49: 0 | I49: 334337 | J49: 89 | K49: 21440706.3 | L49: 0 | M49: 21440707 | N49: 0
C50: Otro
B51: No Especificado
B52: TOTAL GRUPO | E52: =E53+E57+E61+E65+E69+E73+E77+E81+E85+E89 -> 646 | F52: =F53+F57+F61+F65+F69+F73+F77+F81+F85+F89 -> 3151 | G52: 0 | H52: 0 | I52: 29672768.83 | J52: 3237 | K52: 613464551.8 | L52: 0 | M52: 611368699.9 | N52: 0
B53: TRADICIONAL | E53: =SUM(E54:E56) -> 0 | F53: =SUM(F54:F56) -> 0 | G53: 0 | H53: 0 | I53: 0 | J53: 0 | K53: 0 | L53: 0 | M53: 0 | N53: 0
C54: Renovación
C55: Primer año
C56: Otro
B57: TRABAJADORES DEL ESTADO | E57: =SUM(E58:E60) -> 0 | F57: =SUM(F58:F60) -> 0 | G57: 0 | H57: 0 | I57: 0 | J57: 0 | K57: 0 | L57: 0 | M57: 0 | N57: 0
C58: Renovación
C59: Primer año
C60: Otro
B61: RETIRO | E61: =SUM(E62:E64) -> 646 | F61: =SUM(F62:F64) -> 3151 | G61: 0 | H61: 0 | I61: 29672768.83 | J61: 3237 | K61: 613464551.8 | L61: 0 | M61: 611368699.9 | N61: 0
C62: Renovación | E62: 1 | F62: 157 | J62: 163 | K62: 45418420.64 | M62: 45413653.88
C63: Primer año | E63: 580 | F63: 580 | H63: 0 | I63: 0 | J63: 571 | K63: 10400812.9 | L63: 0 | M63: 10400812.9 | N63: 0
C64: Otro | E64: 65 | F64: 2414 | H64: 0 | I64: 29672768.83 | J64: 2503 | K64: 557645318.2 | L64: 0 | M64: 555554233.1 | N64: 0
B65: ORFANDAD | E65: =SUM(E66:E68) -> 0 | F65: =SUM(F66:F68) -> 0 | G65: 0 | H65: 0 | I65: 0 | J65: 0 | K65: 0 | L65: 0 | M65: 0 | N65: 0
C66: Renovación
C67: Primer año
C68: Otro
B69: MICROSEGURO | E69: =SUM(E70:E72) -> 0 | F69: =SUM(F70:F72) -> 0 | G69: 0 | H69: 0 | I69: 0 | J69: 0 | K69: 0 | L69: 0 | M69: 0 | N69: 0
C70: Renovación
C71: Primer año
C72: Otro
B73: FLEXIBLE SIN TASA GARANTIZADA | E73: =SUM(E74:E76) -> 0 | F73: =SUM(F74:F76) -> 0 | G73: 0 | H73: 0 | I73: 0 | J73: 0 | K73: 0 | L73: 0 | M73: 0 | N73: 0
C74: Renovación
C75: Primer año
C76: Otro
B77: FLEXIBLE CON TASA GARANTIZADA | E77: =SUM(E78:E80) -> 0 | F77: =SUM(F78:F80) -> 0 | G77: 0 | H77: 0 | I77: 0 | J77: 0 | K77: 0 | L77: 0 | M77: 0 | N77: 0
C78: Renovación
C79: Primer año
C80: Otro
B81: DEUDORES | E81: =SUM(E82:E84) -> 0 | F81: =SUM(F82:F84) -> 0 | G81: 0 | H81: 0 | I81: 0 | J81: 0 | K81: 0 | L81: 0 | M81: 0 | N81: 0
C82: Renovación
C83: Primer año
C84: Otro
B85: OTROS | E85: =SUM(E86:E88) -> 0 | F85: =SUM(F86:F88) -> 0 | G85: 0 | H85: 0 | I85: 0 | J85: 0 | K85: 0 | L85: 0 | M85: 0 | N85: 0
C86: Renovación
C87: Primer año
C88: Otro
B89: PÓLIZAS CONCENTRADAS*
B95: * PARA AQUELLAS PÓLIZAS QUE POR RAZONES ADMINISTRATIVAS, COMERCIALES O DE CUALQUIER OTRA ÍNDOLE, PERO QUE SE ENCUENTRE DOCUMENTADA EN SUS NOTAS TÉCNICAS CORRESPONDIENTES, Y LA INSTITUCIÓN NO TENGA A SU DISPOSICIÓN EL DETALLE DE LA INFORMACION DE CADA ASEGURADO, SE REPORTARÉ EN ESTE APARTADO LA INFORMACIÓN. CABE MENCIONAR QUE LAS PÓLIZAS AUTO-ADMINISTRADAS NO DEBERÁN SER CONSIDERADAS EN ESTE CAMPO.
B99: GRUPO PÓLIZA NO CONCENTRADA | E99: =E52-E89 -> 646 | F99: =F52-F89 -> 3151 | G99: 0 | H99: 0 | I99: 29672768.83 | J99: 3237 | K99: 613464551.8 | L99: 0 | M99: 611368699.9 | N99: 0

Sheet 2 Ind
A2: 2. EXPUESTOS EN LA OPERACIÓN DE VIDA POR TIPO DE SEGURO,
A3: AÑOS DE ANTIGÜEDAD Y EDAD ALCANZADA
A5: ='1 Total'!A4 -> DICIEMBRE DE 2021
A7: VIDA INDIVIDUAL
A9: TOTAL
A11: EDAD | E11: SALDADO Y | G11: PÓLIZAS O CERTIFICADOS EN VIGOR CON ANTIGÜEDAD MENOR O IGUAL A:
A12: ALCANZADA | E12: PRORROGADO | G12: 1 año | I12: 2 años | K12: 3 años | M12: 4 años | O12: 5 años | Q12: 6 años | S12: más de 6 años | U12: TOTAL
E13: H | F13: M | G13: H | H13: M | I13: H | J13: M | K13: H | L13: M | M13: H | N13: M | O13: H | P13: M | Q13: H | R13: M | S13: H | T13: M
A14: De | B14: 0 | C14: años | E14: 0 | F14: 0 | G14: 731 | H14: 694 | U14: =SUM(E14:T14) -> 1425
B15: 1 | E15: 3 | F15: 1 | G15: 1848 | H15: 1675 | I15: 1 | J15: 0 | U15: =SUM(E15:T15) -> 3528
B16: 2 | E16: 15 | F16: 15 | G16: 1977 | H16: 1849 | I16: 724 | J16: 732 | K16: 1 | L16: 1 | O16: 0 | P16: 1 | U16: 5315
B17: 3 | E17: 58 | F17: 63 | G17: 1779 | H17: 1513 | I17: 1083 | J17: 938 | K17: 729 | L17: 700 | M17: 4 | N17: 0 | U17: 6867
B18: 4 | E18: 160 | F18: 186 | G18: 1721 | H18: 1412 | I18: 857 | J18: 786 | K18: 1033 | L18: 922 | M18: 673 | N18: 609 | O18: 2 | P18: 0 | U18: 8361
B19: 5 | E19: 206 | F19: 240 | G19: 1681 | H19: 1393 | I19: 912 | J19: 704 | K19: 861 | L19: 722 | M19: 855 | N19: 830 | O19: 599 | P19: 560 | Q19: 0 | R19: 1 | U19: 9564
B20: 6 | E20: 335 | F20: 322 | G20: 1603 | H20: 1386 | I20: 951 | J20: 630 | K20: 819 | L20: 592 | M20: 650 | N20: 689 | O20: 772 | P20: 777 | Q20: 527 | R20: 492 | U20: 10545
B21: 7 | E21: 358 | F21: 357 | G21: 1582 | H21: 1227 | I21: 931 | J21: 580 | K21: 749 | L21: 483 | M21: 485 | N21: 516 | O21: 569 | P21: 515 | Q21: 1188 | R21: 1158 | S21: 1 | T21: 0 | U21: 10699
B22: 8 | E22: 443 | F22: 386 | G22: 1443 | H22: 1159 | I22: 813 | J22: 508 | K22: 654 | L22: 429 | M22: 448 | N22: 438 | O22: 464 | P22: 425 | Q22: 1132 | R22: 1092 | S22: 433 | T22: 462 | U22: 10729
B23: 9 | E23: 467 | F23: 432 | G23: 1353 | H23: 1020 | I23: 776 | J23: 454 | K23: 590 | L23: 366 | M23: 400 | N23: 402 | O23: 358 | P23: 342 | Q23: 823 | R23: 727 | S23: 1106 | T23: 974 | U23: 10590
B24: 10 | E24: 479 | F24: 490 | G24: 1271 | H24: 965 | I24: 676 | J24: 365 | K24: 517 | L24: 340 | M24: 321 | N24: 337 | O24: 306 | P24: 317 | Q24: 710 | R24: 675 | S24: 1348 | T24: 1402 | U24: 10519
B25: 11 | E25: 511 | F25: 521 | G25: 1158 | H25: 881 | I25: 617 | J25: 306 | K25: 451 | L25: 290 | M25: 309 | N25: 284 | O25: 273 | P25: 244 | Q25: 641 | R25: 604 | S25: 1825 | T25: 1663 | U25: 10578
B26: 12 | E26: 553 | F26: 506 | G26: 1293 | H26: 843 | I26: 449 | J26: 238 | K26: 353 | L26: 228 | M26: 240 | N26: 236 | O26: 224 | P26: 227 | Q26: 492 | R26: 489 | S26: 1901 | T26: 1875 | U26: 10147
B27: 13 | E27: 545 | F27: 562 | G27: 1315 | H27: 923 | I27: 385 | J27: 193 | K27: 281 | L27: 176 | M27: 192 | N27: 182 | O27: 201 | P27: 201 | Q27: 467 | R27: 418 | S27: 2175 | T27: 2081 | U27: 10297
B28: 14 | E28: 605 | F28: 554 | G28: 7609 | H28: 6161 | I28: 389 | J28: 189 | K28: 271 | L28: 141 | M28: 134 | N28: 154 | O28: 205 | P28: 177 | Q28: 428 | R28: 386 | S28: 2456 | T28: 2232 | U28: 22091
B29: 15 | E29: 633 | F29: 584 | G29: 31617 | H29: 26001 | I29: 311 | J29: 152 | K29: 233 | L29: 118 | M29: 132 | N29: 134 | O29: 133 | P29: 143 | Q29: 311 | R29: 323 | S29: 2531 | T29: 2409 | U29: 65765
B30: 16 | E30: 617 | F30: 598 | G30: 1173 | H30: 980 | I30: 257 | J30: 130 | K30: 190 | L30: 97 | M30: 95 | N30: 104 | O30: 110 | P30: 112 | Q30: 296 | R30: 261 | S30: 2628 | T30: 2445 | U30: 10093
B31: 17 | E31: 589 | F31: 573 | G31: 1344 | H31: 1083 | I31: 279 | J31: 173 | K31: 143 | L31: 85 | M31: 100 | N31: 104 | O31: 86 | P31: 103 | Q31: 219 | R31: 206 | S31: 2452 | T31: 2314 | U31: 9853
B32: 18 | E32: 294 | F32: 287 | G32: 6763 | H32: 4723 | I32: 297 | J32: 201 | K32: 160 | L32: 115 | M32: 63 | N32: 73 | O32: 67 | P32: 72 | Q32: 140 | R32: 123 | S32: 1129 | T32: 1203 | U32: 15710
B33: 19 | E33: 55 | F33: 46 | G33: 17293 | H33: 11582 | I33: 336 | J33: 257 | K33: 188 | L33: 156 | M33: 102 | N33: 76 | O33: 63 | P33: 45 | Q33: 94 | R33: 68 | S33: 151 | T33: 134 | U33: 30646
B34: 20 | E34: 62 | F34: 53 | G34: 25815 | H34: 16752 | I34: 608 | J34: 506 | K34: 232 | L34: 213 | M34: 126 | N34: 134 | O34: 91 | P34: 67 | Q34: 85 | R34: 67 | S34: 203 | T34: 138 | U34: 45152
B35: 21 | E35: 76 | F35: 101 | G35: 32241 | H35: 20601 | I35: 895 | J35: 782 | K35: 454 | L35: 398 | M35: 174 | N35: 147 | O35: 117 | P35: 98 | Q35: 112 | R35: 111 | S35: 204 | T35: 160 | U35: 56671
B36: 22 | E36: 164 | F36: 129 | G36: 37334 | H36: 25257 | I36: 1098 | J36: 869 | K36: 717 | L36: 595 | M36: 374 | N36: 361 | O36: 133 | P36: 132 | Q36: 139 | R36: 113 | S36: 113 | T36: 101 | U36: 67629
B37: 23 | E37: 136 | F37: 152 | G37: 42736 | H37: 29260 | I37: 1569 | J37: 1099 | K37: 829 | L37: 591 | M37: 612 | N37: 540 | O37: 273 | P37: 273 | Q37: 182 | R37: 149 | S37: 77 | T37: 62 | U37: 78540
B38: 24 | E38: 164 | F38: 176 | G38: 47965 | H38: 34466 | I38: 1927 | J38: 1740 | K38: 1046 | L38: 831 | M38: 737 | N38: 596 | O38: 461 | P38: 421 | Q38: 351 | R38: 306 | S38: 115 | T38: 93 | U38: 91395
B39: 25 | E39: 152 | F39: 171 | G39: 53940 | H39: 39694 | I39: 2782 | J39: 2876 | K39: 1508 | L39: 1301 | M39: 978 | N39: 760 | O39: 471 | P39: 409 | Q39: 595 | R39: 524 | S39: 127 | T39: 106 | U39: 106394
B40: 26 | E40: 117 | F40: 157 | G40: 61926 | H40: 46896 | I40: 3690 | J40: 4220 | K40: 2046 | L40: 2517 | M40: 1274 | N40: 1147 | O40: 627 | P40: 537 | Q40: 841 | R40: 737 | S40: 291 | T40: 258 | U40: 127281
B41: 27 | E41: 177 | F41: 263 | G41: 69106 | H41: 53545 | I41: 4524 | J41: 5724 | K41: 2739 | L41: 3906 | M41: 1793 | N41: 2559 | O41: 856 | P41: 944 | Q41: 1064 | R41: 860 | S41: 544 | T41: 434 | U41: 149038
B42: 28 | E42: 231 | F42: 265 | G42: 72083 | H42: 56270 | I42: 5204 | J42: 6493 | K42: 3280 | L42: 4903 | M42: 2498 | N42: 3640 | O42: 1351 | P42: 2119 | Q42: 1465 | R42: 1346 | S42: 737 | T42: 628 | U42: 162513
B43: 29 | E43: 259 | F43: 363 | G43: 78063 | H43: 61196 | I43: 5691 | J43: 7087 | K43: 3855 | L43: 5434 | M43: 2900 | N43: 4270 | O43: 1849 | P43: 2922 | Q43: 2023 | R43: 2564 | S43: 1164 | T43: 992 | U43: 180632
B44: 30 | E44: 338 | F44: 446 | G44: 80599 | H44: 63195 | I44: 6138 | J44: 7555 | K44: 4248 | L44: 5728 | M44: 3241 | N44: 4586 | O44: 2275 | P44: 3458 | Q44: 2771 | R44: 4162 | S44: 1657 | T44: 1609 | U44: 192006
B45: 31 | E45: 398 | F45: 533 | G45: 86317 | H45: 68783 | I45: 6760 | J45: 8062 | K45: 4574 | L45: 6222 | M45: 3623 | N45: 5222 | O45: 2615 | P45: 3929 | Q45: 3553 | R45: 5562 | S45: 2489 | T45: 2983 | U45: 211625
B46: 32 | E46: 481 | F46: 594 | G46: 86408 | H46: 69164 | I46: 7202 | J46: 8596 | K46: 4873 | L46: 6638 | M46: 3751 | N46: 5702 | O46: 2764 | P46: 4146 | Q46: 4162 | R46: 6317 | S46: 3716 | T46: 5118 | U46: 219632
B47: 33 | E47: 549 | F47: 710 | G47: 87966 | H47: 70797 | I47: 7497 | J47: 9011 | K47: 5157 | L47: 7011 | M47: 4261 | N47: 6019 | O47: 3060 | P47: 4724 | Q47: 4517 | R47: 7000 | S47: 5160 | T47: 7451 | U47: 230890
B48: 34 | E48: 647 | F48: 899 | G48: 89407 | H48: 72576 | I48: 7995 | J48: 9276 | K48: 5609 | L48: 7305 | M48: 4467 | N48: 6313 | O48: 3245 | P48: 4732 | Q48: 4980 | R48: 7295 | S48: 7017 | T48: 10381 | U48: 242144
B49: 35 | E49: 890 | F49: 1023 | G49: 91308 | H49: 73633 | I49: 8415 | J49: 9387 | K49: 5958 | L49: 7646 | M49: 4991 | N49: 6506 | O49: 3657 | P49: 5033 | Q49: 5710 | R49: 7884 | S49: 9166 | T49: 13210 | U49: 254417
B50: 36 | E50: 1031 | F50: 1140 | G50: 91658 | H50: 73493 | I50: 8480 | J50: 9525 | K50: 6411 | L50: 7663 | M50: 5295 | N50: 6986 | O50: 3994 | P50: 5282 | Q50: 6088 | R50: 8440 | S50: 10986 | T50: 16301 | U50: 262773
B51: 37 | E51: 1067 | F51: 1328 | G51: 91545 | H51: 74632 | I51: 8565 | J51: 9521 | K51: 6467 | L51: 7990 | M51: 5659 | N51: 7057 | O51: 4194 | P51: 5535 | Q51: 6395 | R51: 9029 | S51: 12911 | T51: 18638 | U51: 270533
B52: 38 | E52: 1225 | F52: 1475 | G52: 91321 | H52: 74126 | I52: 8700 | J52: 9703 | K52: 6596 | L52: 7970 | M52: 5806 | N52: 7007 | O52: 4480 | P52: 5552 | Q52: 7086 | R52: 9229 | S52: 14565 | T52: 20669 | U52: 275510
B53: 39 | E53: 1404 | F53: 1508 | G53: 94315 | H53: 75057 | I53: 8584 | J53: 9257 | K53: 6778 | L53: 7955 | M53: 5864 | N53: 7047 | O53: 4491 | P53: 5672 | Q53: 7400 | R53: 9115 | S53: 15843 | T53: 22467 | U53: 282757
B54: 40 | E54: 1519 | F54: 1575 | G54: 89637 | H54: 72855 | I54: 8323 | J54: 8945 | K54: 6586 | L54: 7824 | M54: 5805 | N54: 6866 | O54: 4554 | P54: 5474 | Q54: 7383 | R54: 8964 | S54: 17507 | T54: 24007 | U54: 277824
B55: 41 | E55: 1799 | F55: 1767 | G55: 92396 | H55: 74450 | I55: 8388 | J55: 8726 | K55: 6624 | L55: 7710 | M55: 5890 | N55: 6890 | O55: 4500 | P55: 5459 | Q55: 7520 | R55: 9112 | S55: 19356 | T55: 25895 | U55: 286482
B56: 42 | E56: 1807 | F56: 1730 | G56: 88065 | H56: 70632 | I56: 7865 | J56: 8156 | K56: 6232 | L56: 7005 | M56: 5450 | N56: 6476 | O56: 4130 | P56: 5075 | Q56: 7422 | R56: 8412 | S56: 20479 | T56: 26538 | U56: 275474
B57: 43 | E57: 1983 | F57: 1889 | G57: 87986 | H57: 70436 | I57: 7608 | J57: 8131 | K57: 6029 | L57: 6822 | M57: 5399 | N57: 6197 | O57: 4197 | P57: 4813 | Q57: 7249 | R57: 8498 | S57: 22127 | T57: 28286 | U57: 277650
B58: 44 | E58: 2097 | F58: 2029 | G58: 87756 | H58: 70257 | I58: 7658 | J58: 7686 | K58: 5849 | L58: 6500 | M58: 5451 | N58: 6096 | O58: 4097 | P58: 4624 | Q58: 7304 | R58: 7992 | S58: 23441 | T58: 29544 | U58: 278381
B59: 45 | E59: 2117 | F59: 1945 | G59: 88560 | H59: 69628 | I59: 7420 | J59: 7471 | K59: 5708 | L59: 6116 | M59: 5221 | N59: 6022 | O59: 4089 | P59: 4561 | Q59: 7019 | R59: 7838 | S59: 24699 | T59: 30322 | U59: 278736
B60: 46 | E60: 2385 | F60: 2183 | G60: 89928 | H60: 71054 | I60: 7066 | J60: 7405 | K60: 5732 | L60: 6066 | M60: 4984 | N60: 5667 | O60: 3855 | P60: 4421 | Q60: 7037 | R60: 7796 | S60: 26203 | T60: 32001 | U60: 283783
B61: 47 | E61: 2456 | F61: 2251 | G61: 91780 | H61: 72214 | I61: 7163 | J61: 7386 | K61: 5437 | L61: 6168 | M61: 4927 | N61: 5541 | O61: 3784 | P61: 4375 | Q61: 6851 | R61: 7614 | S61: 28042 | T61: 34076 | U61: 290065
B62: 48 | E62: 2527 | F62: 2210 | G62: 90986 | H62: 71528 | I62: 7090 | J62: 7038 | K62: 5227 | L62: 5897 | M62: 4824 | N62: 5498 | O62: 3527 | P62: 4166 | Q62: 6642 | R62: 7220 | S62: 28057 | T62: 34562 | U62: 286999
B63: 49 | E63: 2420 | F63: 2386 | G63: 88855 | H63: 70747 | I63: 6710 | J63: 6536 | K63: 5115 | L63: 5914 | M63: 4755 | N63: 5227 | O63: 3378 | P63: 4123 | Q63: 6127 | R63: 6953 | S63: 27605 | T63: 34662 | U63: 281513
B64: 50 | E64: 2602 | F64: 2342 | G64: 82530 | H64: 65073 | I64: 6447 | J64: 6428 | K64: 5073 | L64: 5898 | M64: 4378 | N64: 4910 | O64: 3076 | P64: 3817 | Q64: 5815 | R64: 6607 | S64: 27444 | T64: 34671 | U64: 267111
B65: 51 | E65: 2479 | F65: 2271 | G65: 81216 | H65: 67212 | I65: 6038 | J65: 6132 | K65: 4673 | L65: 5586 | M65: 4328 | N65: 4668 | O65: 2932 | P65: 3482 | Q65: 5365 | R65: 6151 | S65: 26614 | T65: 33551 | U65: 262698
B66: 52 | E66: 2321 | F66: 2195 | G66: 72966 | H66: 58285 | I66: 5617 | J66: 6063 | K66: 4492 | L66: 5494 | M66: 3878 | N66: 4370 | O66: 2761 | P66: 3510 | Q66: 5020 | R66: 5985 | S66: 25618 | T66: 34253 | U66: 242828
B67: 53 | E67: 2378 | F67: 2299 | G67: 70291 | H67: 57186 | I67: 5392 | J67: 5798 | K67: 4261 | L67: 5413 | M67: 3609 | N67: 4522 | O67: 2592 | P67: 3426 | Q67: 4529 | R67: 5836 | S67: 25327 | T67: 35823 | U67: 238682
B68: 54 | E68: 2281 | F68: 2468 | G68: 67205 | H68: 54793 | I68: 4911 | J68: 5700 | K68: 4111 | L68: 5439 | M68: 3508 | N68: 4375 | O68: 2461 | P68: 3432 | Q68: 4336 | R68: 5684 | S68: 24520 | T68: 35963 | U68: 231187
B69: 55 | E69: 2328 | F69: 2627 | G69: 65032 | H69: 53205 | I69: 4789 | J69: 5044 | K69: 3740 | L69: 4562 | M69: 3311 | N69: 4014 | O69: 2470 | P69: 3051 | Q69: 4255 | R69: 5247 | S69: 24778 | T69: 34444 | U69: 222897
B70: 56 | E70: 2407 | F70: 2351 | G70: 61620 | H70: 51093 | I70: 4685 | J70: 5110 | K70: 3680 | L70: 4822 | M70: 3201 | N70: 3642 | O70: 2423 | P70: 2918 | Q70: 4009 | R70: 4855 | S70: 24895 | T70: 34406 | U70: 216117
B71: 57 | E71: 2369 | F71: 2069 | G71: 59894 | H71: 48840 | I71: 4399 | J71: 4674 | K71: 3406 | L71: 4239 | M71: 2843 | N71: 3877 | O71: 2109 | P71: 3035 | Q71: 3685 | R71: 4702 | S71: 24076 | T71: 34698 | U71: 208915
B72: 58 | E72: 2367 | F72: 1976 | G72: 57727 | H72: 47328 | I72: 4335 | J72: 4400 | K72: 3353 | L72: 3867 | M72: 2637 | N72: 3565 | O72: 1954 | P72: 2823 | Q72: 3406 | R72: 4752 | S72: 23827 | T72: 34410 | U72: 202727
B73: 59 | E73: 2265 | F73: 1861 | G73: 55785 | H73: 45364 | I73: 4033 | J73: 4050 | K73: 2902 | L73: 3360 | M73: 2704 | N73: 3192 | O73: 2042 | P73: 2508 | Q73: 3153 | R73: 4551 | S73: 23077 | T73: 34415 | U73: 195262
B74: 60 | E74: 2225 | F74: 1711 | G74: 53391 | H74: 43695 | I74: 3732 | J74: 3723 | K74: 2773 | L74: 3136 | M74: 2480 | N74: 2785 | O74: 1826 | P74: 2276 | Q74: 3241 | R74: 4028 | S74: 22064 | T74: 33353 | U74: 186439
B75: 61 | E75: 2169 | F75: 1755 | G75: 51728 | H75: 41987 | I75: 3534 | J75: 3320 | K75: 2514 | L75: 2814 | M75: 2321 | N75: 2497 | O75: 1737 | P75: 2095 | Q75: 3056 | R75: 3569 | S75: 22675 | T75: 32871 | U75: 180642
B76: 62 | E76: 2229 | F76: 1557 | G76: 48344 | H76: 37818 | I76: 3344 | J76: 3149 | K76: 2327 | L76: 2509 | M76: 2076 | N76: 2226 | O76: 1632 | P76: 1866 | Q76: 2740 | R76: 3209 | S76: 21998 | T76: 30733 | U76: 167757
B77: 63 | E77: 2115 | F77: 1563 | G77: 44432 | H77: 34523 | I77: 2920 | J77: 2497 | K77: 2140 | L77: 2159 | M77: 1880 | N77: 1980 | O77: 1348 | P77: 1623 | Q77: 2541 | R77: 2811 | S77: 20860 | T77: 28092 | U77: 153484
B78: 64 | E78: 2206 | F78: 1606 | G78: 42554 | H78: 32564 | I78: 2433 | J78: 2046 | K78: 1785 | L78: 1690 | M78: 1751 | N78: 1827 | O78: 1310 | P78: 1498 | Q78: 2216 | R78: 2508 | S78: 20579 | T78: 26283 | U78: 144856
B79: 65 | E79: 2114 | F79: 1451 | G79: 38632 | H79: 29656 | I79: 2226 | J79: 1801 | K79: 1422 | L79: 1335 | M79: 1424 | N79: 1425 | O79: 1018 | P79: 1169 | Q79: 1949 | R79: 2014 | S79: 18822 | T79: 23508 | U79: =SUM(E79:T79) -> 129966
B80: 66 | E80: 2144 | F80: 1394 | G80: 36205 | H80: 26478 | I80: 2029 | J80: 1703 | K80: 1234 | L80: 1239 | M80: 1097 | N80: 1106 | O80: 828 | P80: 962 | Q80: 1797 | R80: 1844 | S80: 17462 | T80: 21546 | U80: 119068
B81: 67 | E81: 2149 | F81: 1384 | G81: 31549 | H81: 23076 | I81: 1917 | J81: 1520 | K81: 1109 | L81: 976 | M81: 1037 | N81: 1061 | O81: 715 | P81: 772 | Q81: 1344 | R81: 1539 | S81: 16218 | T81: 19811 | U81: 106177
B82: 68 | E82: 2208 | F82: 1241 | G82: 27773 | H82: 20071 | I82: 1706 | J82: 1395 | K82: 1029 | L82: 913 | M82: 881 | N82: 875 | O82: 576 | P82: 591 | Q82: 1260 | R82: 1258 | S82: 14657 | T82: 17396 | U82: 93830
B83: 69 | E83: 2135 | F83: 1193 | G83: 24489 | H83: 18071 | I83: 1395 | J83: 1148 | K83: 882 | L83: 817 | M83: 816 | N83: 751 | O83: 541 | P83: 523 | Q83: 986 | R83: 1116 | S83: 13314 | T83: 15671 | U83: 83848
B84: 70 | E84: 2213 | F84: 1171 | G84: 20802 | H84: 15086 | I84: 1221 | J84: 1006 | K84: 750 | L84: 626 | M84: 761 | N84: 649 | O84: 471 | P84: 505 | Q84: 940 | R84: 971 | S84: 12345 | T84: 13987 | U84: 73504
B85: 71 | E85: 8984 | F85: 1211 | G85: 48404 | H85: 39466 | I85: 1157 | J85: 910 | K85: 667 | L85: 622 | M85: 561 | N85: 594 | O85: 413 | P85: 398 | Q85: 775 | R85: 847 | S85: 11462 | T85: 12365 | U85: 128836
B86: 72 | E86: 2133 | F86: 1087 | G86: 11238 | H86: 9635 | I86: 977 | J86: 741 | K86: 615 | L86: 544 | M86: 542 | N86: 503 | O86: 355 | P86: 336 | Q86: 697 | R86: 683 | S86: 10615 | T86: 11322 | U86: 52023
B87: 73 | E87: 2110 | F87: 1079 | G87: 9701 | H87: 8534 | I87: 476 | J87: 394 | K87: 467 | L87: 450 | M87: 426 | N87: 443 | O87: 292 | P87: 298 | Q87: 616 | R87: 669 | S87: 9275 | T87: 9967 | U87: 45197
B88: 74 | E88: 2228 | F88: 940 | G88: 9036 | H88: 8015 | I88: 312 | J88: 213 | K88: 219 | L88: 231 | M88: 395 | N88: 392 | O88: 268 | P88: 273 | Q88: 539 | R88: 595 | S88: 8568 | T88: 9021 | U88: 41245
B89: 75 | E89: 2133 | F89: 874 | G89: 8020 | H89: 7223 | I89: 262 | J89: 206 | K89: 72 | L89: 67 | M89: 160 | N89: 185 | O89: 195 | P89: 235 | Q89: 439 | R89: 469 | S89: 7590 | T89: 7829 | U89: 35959
B90: 76 | E90: 2100 | F90: 838 | G90: 7437 | H90: 6548 | I90: 215 | J90: 156 | K90: 63 | L90: 61 | M90: 68 | N90: 54 | O90: 106 | P90: 85 | Q90: 430 | R90: 454 | S90: 7028 | T90: 6899 | U90: 32542
B91: 77 | E91: 2125 | F91: 748 | G91: 6731 | H91: 5964 | I91: 160 | J91: 114 | K91: 63 | L91: 63 | M91: 59 | N91: 63 | O91: 22 | P91: 21 | Q91: 261 | R91: 272 | S91: 6240 | T91: 5867 | U91: 28773
B92: 78 | E92: 2110 | F92: 681 | G92: 5925 | H92: 5282 | I92: 112 | J92: 107 | K92: 47 | L92: 47 | M92: 44 | N92: 54 | O92: 23 | P92: 15 | Q92: 107 | R92: 106 | S92: 5552 | T92: 5378 | U92: 25590
B93: 79 | E93: 1983 | F93: 649 | G93: 5232 | H93: 4713 | I93: 101 | J93: 85 | K93: 35 | L93: 32 | M93: 39 | N93: 38 | O93: 21 | P93: 13 | Q93: 28 | R93: 37 | S93: 4933 | T93: 4669 | U93: 22608
B94: 80 | E94: 1837 | F94: 510 | G94: 4631 | H94: 4091 | I94: 83 | J94: 70 | K94: 29 | L94: 42 | M94: 42 | N94: 33 | O94: 25 | P94: 9 | Q94: 27 | R94: 35 | S94: 4061 | T94: 3719 | U94: 19244
B95: 81 | E95: 1812 | F95: 488 | G95: 4175 | H95: 3744 | I95: 83 | J95: 67 | K95: 31 | L95: 30 | M95: 31 | N95: 22 | O95: 12 | P95: 8 | Q95: 33 | R95: 29 | S95: 3405 | T95: 3172 | U95: 17142
B96: 82 | E96: 1760 | F96: 419 | G96: 3624 | H96: 3395 | I96: 77 | J96: 62 | K96: 27 | L96: 35 | M96: 25 | N96: 23 | O96: 5 | P96: 6 | Q96: 15 | R96: 18 | S96: 2813 | T96: 2627 | U96: 14931
B97: 83 | E97: 1710 | F97: 438 | G97: 3095 | H97: 2748 | I97: 51 | J97: 38 | K97: 26 | L97: 27 | M97: 21 | N97: 21 | O97: 1 | P97: 8 | Q97: 21 | R97: 14 | S97: 2319 | T97: 2158 | U97: 12696
B98: 84 | E98: 1636 | F98: 397 | G98: 2726 | H98: 2400 | I98: 39 | J98: 33 | K98: 27 | L98: 17 | M98: 19 | N98: 21 | O98: 9 | P98: 6 | Q98: 13 | R98: 19 | S98: 2080 | T98: 1848 | U98: 11290
B99: 85 | E99: 1556 | F99: 300 | G99: 2486 | H99: 2223 | I99: 44 | J99: 31 | K99: 19 | L99: 29 | M99: 24 | N99: 26 | O99: 6 | P99: 6 | Q99: 18 | R99: 7 | S99: 1791 | T99: 1587 | U99: 10153
B100: 86 | E100: 1557 | F100: 305 | G100: 2334 | H100: 1999 | I100: 43 | J100: 31 | K100: 17 | L100: 13 | M100: 20 | N100: 12 | O100: 7 | P100: 6 | Q100: 9 | R100: 6 | S100: 1460 | T100: 1277 | U100: 9096
B101: 87 | E101: 1337 | F101: 230 | G101: 2143 | H101: 1851 | I101: 21 | J101: 19 | K101: 8 | L101: 12 | M101: 8 | N101: 11 | O101: 5 | P101: 1 | Q101: 5 | R101: 3 | S101: 1093 | T101: 1024 | U101: 7771
B102: 88 | E102: 1420 | F102: 245 | G102: 2053 | H102: 1734 | I102: 20 | J102: 13 | K102: 11 | L102: 11 | M102: 12 | N102: 14 | O102: 4 | P102: 3 | Q102: 6 | R102: 3 | S102: 925 | T102: 884 | U102: 7358
B103: 89 | E103: 1375 | F103: 189 | G103: 1885 | H103: 1593 | I103: 19 | J103: 11 | K103: 6 | L103: 8 | M103: 12 | N103: 9 | O103: 1 | P103: 2 | Q103: 4 | R103: 2 | S103: 833 | T103: 752 | U103: 6701
B104: 90 | E104: 1383 | F104: 167 | G104: 1964 | H104: 1569 | I104: 15 | J104: 10 | K104: 8 | L104: 10 | M104: 7 | N104: 10 | O104: 1 | P104: 1 | Q104: 2 | R104: 0 | S104: 725 | T104: 642 | U104: 6514
B105: 91 | E105: 1384 | F105: 187 | G105: 1829 | H105: 1578 | I105: 8 | J105: 10 | K105: 6 | L105: 2 | M105: 9 | N105: 7 | O105: 4 | P105: 1 | Q105: 2 | R105: 0 | S105: 601 | T105: 601 | U105: 6229
B106: 92 | E106: 1142 | F106: 136 | G106: 1760 | H106: 1394 | I106: 8 | J106: 9 | K106: 2 | L106: 1 | M106: 4 | N106: 9 | O106: 0 | P106: 1 | Q106: 0 | R106: 1 | S106: 555 | T106: 508 | U106: 5530
B107: 93 | E107: 1132 | F107: 102 | G107: 1720 | H107: 1484 | I107: 2 | J107: 1 | K107: 1 | L107: 2 | M107: 2 | N107: 2 | O107: 0 | P107: 1 | Q107: 0 | R107: 3 | S107: 461 | T107: 430 | U107: 5343
B108: 94 | E108: 1059 | F108: 92 | G108: 1669 | H108: 1416 | I108: 0 | J108: 0 | K108: 0 | L108: 0 | M108: 0 | N108: 0 | O108: 0 | P108: 1 | Q108: 2 | R108: 0 | S108: 385 | T108: 363 | U108: 4987
B109: 95 | E109: 1069 | F109: 89 | G109: 1809 | H109: 1410 | I109: 0 | J109: 1 | M109: 0 | N109: 1 | O109: 0 | P109: 1 | Q109: 3 | R109: 0 | S109: 366 | T109: 286 | U109: 5035
B110: 96 | E110: 858 | F110: 59 | G110: 1755 | H110: 1460 | I110: 0 | J110: 0 | K110: 0 | L110: 0 | O110: 0 | P110: 0 | Q110: 3 | R110: 0 | S110: 289 | T110: 304 | U110: 4728
B111: 97 | E111: 542 | F111: 40 | G111: 1658 | H111: 1352 | I111: 4 | J111: 0 | K111: 3 | L111: 0 | O111: 0 | P111: 1 | Q111: 1 | R111: 0 | S111: 245 | T111: 244 | U111: 4090
B112: 98 | E112: 485 | F112: 36 | G112: 1696 | H112: 1356 | Q112: 0 | R112: 1 | S112: 191 | T112: 188 | U112: 3953
B113: 99 | E113: 254 | F113: 25 | G113: 19 | H113: 15 | I113: 0 | J113: 0 | M113: 1 | N113: 0 | Q113: 1 | R113: 0 | S113: 122 | T113: 190 | U113: 627
A114: De | B114: 100 | C114: años y más | E114: 103 | F114: 20 | G114: 16 | H114: 11 | I114: 13 | J114: 0 | K114: 8 | L114: 0 | M114: 0 | N114: 0 | O114: 0 | P114: 0 | Q114: 0 | R114: 0 | S114: 325 | T114: 441 | U114: 937
A115: TOTAL | E115: =SUM(E14:E114) -> 136625 | F115: =SUM(F14:F114) -> 89240 | G115: 3645492 | H115: 2886271 | I115: 274064 | J115: 286344 | K115: 200272 | L115: 234050 | M115: 169785 | N115: 203111 | O115: 124144 | P115: 154955 | Q115: 207241 | R115: 251742 | S115: 892215 | T115: 1147333 | U115: =SUM(E115:T115) -> 10902884

Sheet 2A (hidden)
A2: 2 a. EXPUESTOS EN LA OPERACIÓN DE VIDA POR TIPO DE SEGURO,
A3: AÑOS DE ANTIGÜEDAD Y EDAD ALCANZADA
A5: =#REF! -> 
A7: VIDA INDIVIDUAL
E10: 2 | F10: 3 | G10: 4 | H10: 5 | I10: 6 | J10: 7 | K10: 8 | L10: 9 | M10: 10 | N10: 11 | O10: 12 | P10: 13 | Q10: 14 | R10: 15 | S10: 16 | T10: 17
A11: EDAD | E11: SALDADO Y | G11: PÓLIZAS O CERTIFICADOS EN VIGOR CON ANTIGÜEDAD MENOR O IGUAL A:
A12: ALCANZADA | E12: PRORROGADO | G12: 1 año | I12: 2 años | K12: 3 años | M12: 4 años | O12: 5 años | Q12: 6 años | S12: más de 6 años | U12: TOTAL
E13: H | F13: M | G13: H | H13: M | I13: H | J13: M | K13: H | L13: M | M13: H | N13: M | O13: H | P13: M | Q13: H | R13: M | S13: H | T13: M
A14: De | B14: 0 | C14: años | E14: 0 | F14: 0 | G14: 728 | H14: 670 | I14: 0 | J14: 0 | K14: 0 | L14: 0 | M14: 0 | N14: 0 | O14: 0 | P14: 0 | Q14: 0 | R14: 0 | S14: 0 | T14: 0 | U14: =SUM(E14:T14) -> 1398
B15: 1 | E15: 3 | F15: 1 | G15: 1176 | H15: 1112 | I15: 774 | J15: 795 | K15: 0 | L15: 0 | M15: 0 | N15: 0 | O15: 0 | P15: 0 | Q15: 0 | R15: 0 | S15: 0 | T15: 0 | U15: =SUM(E15:T15) -> 3861
B16: 2 | E16: 12 | F16: 21 | G16: 1145 | H16: 984 | I16: 1146 | J16: 999 | K16: 777 | L16: 748 | M16: 0 | N16: 0 | O16: 0 | P16: 0 | Q16: 0 | R16: 0 | S16: 0 | T16: 0 | U16: 5832
B17: 3 | E17: 85 | F17: 82 | G17: 1196 | H17: 1051 | I17: 970 | J17: 867 | K17: 1098 | L17: 990 | M17: 732 | N17: 662 | O17: 0 | P17: 0 | Q17: 0 | R17: 0 | S17: 0 | T17: 0 | U17: 7733
B18: 4 | E18: 115 | F18: 132 | G18: 1255 | H18: 1006 | I18: 1126 | J18: 778 | K18: 998 | L18: 748 | M18: 908 | N18: 904 | O18: 635 | P18: 607 | Q18: 0 | R18: 0 | S18: 0 | T18: 0 | U18: 9212
B19: 5 | E19: 214 | F19: 225 | G19: 1374 | H19: 1097 | I19: 1308 | J19: 699 | K19: 1085 | L19: 616 | M19: 741 | N19: 742 | O19: 823 | P19: 833 | Q19: 564 | R19: 523 | S19: 0 | T19: 0 | U19: 10844
B20: 6 | E20: 252 | F20: 253 | G20: 1540 | H20: 1091 | I20: 1293 | J20: 658 | K20: 1013 | L20: 512 | M20: 661 | N20: 615 | O20: 604 | P20: 556 | Q20: 748 | R20: 729 | S20: 446 | T20: 535 | U20: 11506
B21: 7 | E21: 299 | F21: 268 | G21: 1586 | H21: 1033 | I21: 1146 | J21: 558 | K21: 885 | L21: 464 | M21: 631 | N21: 525 | O21: 490 | P21: 466 | Q21: 527 | R21: 478 | S21: 1016 | T21: 1267 | U21: 11639
B22: 8 | E22: 362 | F22: 329 | G22: 1533 | H22: 1028 | I22: 1107 | J22: 524 | K22: 813 | L22: 392 | M22: 544 | N22: 473 | O22: 391 | P22: 376 | Q22: 408 | R22: 396 | S22: 1451 | T22: 1597 | U22: 11724
B23: 9 | E23: 359 | F23: 394 | G23: 1471 | H23: 939 | I23: 995 | J23: 412 | K23: 721 | L23: 348 | M23: 474 | N23: 403 | O23: 346 | P23: 337 | Q23: 369 | R23: 354 | S23: 1552 | T23: 2107 | U23: 11581
B24: 10 | E24: 385 | F24: 414 | G24: 1418 | H24: 929 | I24: 903 | J24: 358 | K24: 640 | L24: 306 | M24: 425 | N24: 357 | O24: 288 | P24: 257 | Q24: 342 | R24: 315 | S24: 1885 | T24: 2424 | U24: 11646
B25: 11 | E25: 427 | F25: 409 | G25: 1286 | H25: 824 | I25: 676 | J25: 267 | K25: 497 | L25: 236 | M25: 362 | N25: 265 | O25: 235 | P25: 243 | Q25: 279 | R25: 252 | S25: 1943 | T25: 2549 | U25: 10750
B26: 12 | E26: 438 | F26: 471 | G26: 1216 | H26: 878 | I26: 592 | J26: 218 | K26: 422 | L26: 184 | M26: 281 | N26: 223 | O26: 218 | P26: 214 | Q26: 242 | R26: 238 | S26: 2110 | T26: 2770 | U26: 10715
B27: 13 | E27: 486 | F27: 478 | G27: 1293 | H27: 828 | I27: 623 | J27: 233 | K27: 426 | L27: 134 | M27: 229 | N27: 187 | O27: 214 | P27: 196 | Q27: 221 | R27: 206 | S27: 2389 | T27: 2912 | U27: 11055
B28: 14 | E28: 516 | F28: 506 | G28: 1136 | H28: 828 | I28: 474 | J28: 179 | K28: 316 | L28: 114 | M28: 185 | N28: 144 | O28: 155 | P28: 154 | Q28: 164 | R28: 164 | S28: 2408 | T28: 3126 | U28: 10569
B29: 15 | E29: 529 | F29: 511 | G29: 1090 | H29: 783 | I29: 408 | J29: 155 | K29: 286 | L29: 97 | M29: 150 | N29: 140 | O29: 120 | P29: 118 | Q29: 150 | R29: 131 | S29: 2408 | T29: 3160 | U29: 10236
B30: 16 | E30: 554 | F30: 544 | G30: 1187 | H30: 895 | I30: 416 | J30: 179 | K30: 221 | L30: 71 | M30: 162 | N30: 117 | O30: 88 | P30: 102 | Q30: 109 | R30: 101 | S30: 2556 | T30: 3309 | U30: 10611
B31: 17 | E31: 479 | F31: 504 | G31: 1157 | H31: 867 | I31: 422 | J31: 225 | K31: 221 | L31: 99 | M31: 106 | N31: 94 | O31: 84 | P31: 91 | Q31: 95 | R31: 83 | S31: 2294 | T31: 3134 | U31: 9955
B32: 18 | E32: 230 | F32: 223 | G32: 8156 | H32: 3932 | I32: 468 | J32: 282 | K32: 274 | L32: 150 | M32: 132 | N32: 97 | O32: 53 | P32: 53 | Q32: 72 | R32: 73 | S32: 1126 | T32: 1546 | U32: 16867
B33: 19 | E33: 43 | F33: 39 | G33: 32691 | H33: 14659 | I33: 822 | J33: 624 | K33: 284 | L33: 199 | M33: 158 | N33: 136 | O33: 86 | P33: 61 | Q33: 41 | R33: 39 | S33: 170 | T33: 253 | U33: 50305
B34: 20 | E34: 44 | F34: 72 | G34: 50260 | H34: 21341 | I34: 1196 | J34: 945 | K34: 516 | L34: 418 | M34: 194 | N34: 149 | O34: 114 | P34: 99 | Q34: 71 | R34: 82 | S34: 177 | T34: 290 | U34: 75968
B35: 21 | E35: 119 | F35: 100 | G35: 59022 | H35: 22766 | I35: 1594 | J35: 1114 | K35: 762 | L35: 612 | M35: 405 | N35: 368 | O35: 125 | P35: 118 | Q35: 93 | R35: 73 | S35: 193 | T35: 263 | U35: 87727
B36: 22 | E36: 107 | F36: 136 | G36: 64481 | H36: 25682 | I36: 2248 | J36: 1506 | K36: 943 | L36: 675 | M36: 714 | N36: 601 | O36: 340 | P36: 316 | Q36: 100 | R36: 83 | S36: 179 | T36: 215 | U36: 98326
B37: 23 | E37: 135 | F37: 143 | G37: 68671 | H37: 29376 | I37: 2786 | J37: 2226 | K37: 1308 | L37: 926 | M37: 887 | N37: 677 | O37: 566 | P37: 518 | Q37: 236 | R37: 251 | S37: 214 | T37: 167 | U37: 109087
B38: 24 | E38: 153 | F38: 185 | G38: 74103 | H38: 32412 | I38: 3785 | J38: 3488 | K38: 1786 | L38: 1470 | M38: 1167 | N38: 856 | O38: 627 | P38: 552 | Q38: 359 | R38: 362 | S38: 305 | T38: 293 | U38: 121903
B39: 25 | E39: 118 | F39: 136 | G39: 80760 | H39: 37505 | I39: 4871 | J39: 5027 | K39: 2380 | L39: 2866 | M39: 1569 | N39: 1329 | O39: 912 | P39: 733 | Q39: 478 | R39: 416 | S39: 578 | T39: 564 | U39: 140242
B40: 26 | E40: 115 | F40: 169 | G40: 85599 | H40: 41043 | I40: 5856 | J40: 6776 | K40: 3241 | L40: 4367 | M40: 2206 | N40: 2908 | O40: 1224 | P40: 1179 | Q40: 610 | R40: 517 | S40: 919 | T40: 817 | U40: 157546
B41: 27 | E41: 154 | F41: 168 | G41: 88407 | H41: 43292 | I41: 6831 | J41: 7668 | K41: 3823 | L41: 5411 | M41: 2973 | N41: 4088 | O41: 1845 | P41: 2568 | Q41: 893 | R41: 923 | S41: 1273 | T41: 1145 | U41: 171462
B42: 28 | E42: 178 | F42: 235 | G42: 91634 | H42: 45798 | I42: 7331 | J42: 8322 | K42: 4444 | L42: 6044 | M42: 3418 | N42: 4822 | O42: 2514 | P42: 3496 | Q42: 1341 | R42: 1907 | S42: 1898 | T42: 1849 | U42: 185231
B43: 29 | E43: 218 | F43: 285 | G43: 91838 | H43: 46658 | I43: 7882 | J43: 8853 | K43: 4844 | L43: 6291 | M43: 4005 | N43: 5278 | O43: 2988 | P43: 4166 | Q43: 1678 | R43: 2796 | S43: 2839 | T43: 3331 | U43: 193950
B44: 30 | E44: 270 | F44: 357 | G44: 97093 | H44: 48863 | I44: 8443 | J44: 9370 | K44: 5221 | L44: 6823 | M44: 4402 | N44: 5939 | O44: 3465 | P44: 4766 | Q44: 2156 | R44: 3574 | S44: 4166 | T44: 5499 | U44: 210407
B45: 31 | E45: 302 | F45: 437 | G45: 94494 | H45: 48793 | I45: 8839 | J45: 9865 | K45: 5591 | L45: 7286 | M45: 4577 | N45: 6278 | O45: 3723 | P45: 5034 | Q45: 2532 | R45: 3789 | S45: 5632 | T45: 8280 | U45: 215452
B46: 32 | E46: 422 | F46: 554 | G46: 94824 | H46: 49911 | I46: 9188 | J46: 10385 | K46: 5928 | L46: 7787 | M46: 5118 | N46: 6777 | O46: 4037 | P46: 5699 | Q46: 2695 | R46: 4256 | S46: 7250 | T46: 10929 | U46: 225760
B47: 33 | E47: 453 | F47: 686 | G47: 93977 | H47: 50364 | I47: 9628 | J47: 10673 | K47: 6293 | L47: 8164 | M47: 5313 | N47: 6964 | O47: 4318 | P47: 5828 | Q47: 2968 | R47: 4499 | S47: 8865 | T47: 13493 | U47: 232486
B48: 34 | E48: 621 | F48: 761 | G48: 96425 | H48: 50998 | I48: 10056 | J48: 10822 | K48: 6674 | L48: 8502 | M48: 5958 | N48: 7181 | O48: 4839 | P48: 6192 | Q48: 3393 | R48: 4736 | S48: 10820 | T48: 16156 | U48: 244134
B49: 35 | E49: 738 | F49: 924 | G49: 94491 | H49: 50647 | I49: 10258 | J49: 10910 | K49: 7173 | L49: 8519 | M49: 6307 | N49: 7537 | O49: 5144 | P49: 6422 | Q49: 3607 | R49: 5090 | S49: 12395 | T49: 18931 | U49: 249093
B50: 36 | E50: 836 | F50: 1103 | G50: 95234 | H50: 51744 | I50: 10221 | J50: 10998 | K50: 7277 | L50: 8938 | M50: 6523 | N50: 7621 | O50: 5407 | P50: 6735 | Q50: 3840 | R50: 5489 | S50: 14057 | T50: 21476 | U50: 257499
B51: 37 | E51: 927 | F51: 1216 | G51: 94355 | H51: 51639 | I51: 10310 | J51: 11097 | K51: 7390 | L51: 9068 | M51: 6662 | N51: 7569 | O51: 5806 | P51: 6885 | Q51: 4141 | R51: 5577 | S51: 16006 | T51: 23561 | U51: 262209
B52: 38 | E52: 1080 | F52: 1389 | G52: 93365 | H52: 51210 | I52: 10187 | J52: 10524 | K52: 7396 | L52: 8706 | M52: 6761 | N52: 7461 | O52: 5831 | P52: 7005 | Q52: 4203 | R52: 5409 | S52: 17494 | T52: 25481 | U52: 263502
B53: 39 | E53: 1232 | F53: 1421 | G53: 93719 | H53: 51917 | I53: 9810 | J53: 10373 | K53: 7271 | L53: 8559 | M53: 6556 | N53: 7301 | O53: 5858 | P53: 6772 | Q53: 4157 | R53: 5336 | S53: 19023 | T53: 26760 | U53: 266065
B54: 40 | E54: 1429 | F54: 1684 | G54: 91558 | H54: 51384 | I54: 9864 | J54: 10000 | K54: 7363 | L54: 8620 | M54: 6826 | N54: 7235 | O54: 5863 | P54: 6697 | Q54: 4159 | R54: 5408 | S54: 21172 | T54: 28822 | U54: 268084
B55: 41 | E55: 1448 | F55: 1665 | G55: 87467 | H55: 49780 | I55: 9361 | J55: 9444 | K55: 7014 | L55: 8000 | M55: 6318 | N55: 6763 | O55: 5566 | P55: 6385 | Q55: 4144 | R55: 5035 | S55: 22228 | T55: 29280 | U55: 259898
B56: 42 | E56: 1603 | F56: 1835 | G56: 86896 | H56: 49315 | I56: 9096 | J56: 9436 | K56: 6887 | L56: 7934 | M56: 6144 | N56: 6625 | O56: 5605 | P56: 6092 | Q56: 4065 | R56: 5063 | S56: 23857 | T56: 31054 | U56: 261507
B57: 43 | E57: 1755 | F57: 1923 | G57: 87366 | H57: 49680 | I57: 9212 | J57: 8931 | K57: 6778 | L57: 7701 | M57: 6239 | N57: 6425 | O57: 5545 | P57: 6013 | Q57: 4101 | R57: 4848 | S57: 25155 | T57: 32151 | U57: 263823
B58: 44 | E58: 1809 | F58: 1927 | G58: 86018 | H58: 49031 | I58: 8911 | J58: 8694 | K58: 6553 | L58: 7258 | M58: 6052 | N58: 6447 | O58: 5569 | P58: 5919 | Q58: 3889 | R58: 4729 | S58: 26453 | T58: 33015 | U58: 262274
B59: 45 | E59: 2055 | F59: 2169 | G59: 87733 | H59: 50118 | I59: 8536 | J59: 8613 | K59: 6669 | L59: 7204 | M59: 5874 | N59: 6004 | O59: 5401 | P59: 5847 | Q59: 3929 | R59: 4670 | S59: 28175 | T59: 34728 | U59: 267725
B60: 46 | E60: 2219 | F60: 2229 | G60: 88087 | H60: 51002 | I60: 8714 | J60: 8638 | K60: 6375 | L60: 7393 | M60: 5801 | N60: 5908 | O60: 5415 | P60: 5843 | Q60: 3807 | R60: 4514 | S60: 30356 | T60: 37015 | U60: 273316
B61: 47 | E61: 2300 | F61: 2300 | G61: 87005 | H61: 50653 | I61: 8570 | J61: 8347 | K61: 6087 | L61: 7004 | M61: 5735 | N61: 5941 | O61: 5120 | P61: 5551 | Q61: 3767 | R61: 4276 | S61: 30517 | T61: 37544 | U61: 270717
B62: 48 | E62: 2315 | F62: 2522 | G62: 84477 | H62: 50412 | I62: 8234 | J62: 7679 | K62: 5895 | L62: 6917 | M62: 5611 | N62: 5670 | O62: 4863 | P62: 5562 | Q62: 3483 | R62: 4139 | S62: 30017 | T62: 37639 | U62: 265435
B63: 49 | E63: 2419 | F63: 2560 | G63: 81430 | H63: 48768 | I63: 7951 | J63: 7588 | K63: 5890 | L63: 6662 | M63: 5294 | N63: 5276 | O63: 4635 | P63: 5214 | Q63: 3268 | R63: 4061 | S63: 30245 | T63: 37623 | U63: 258884
B64: 50 | E64: 2419 | F64: 2431 | G64: 79667 | H64: 48882 | I64: 7435 | J64: 7243 | K64: 5405 | L64: 6301 | M64: 5200 | N64: 5063 | O64: 4460 | P64: 4870 | Q64: 3153 | R64: 3807 | S64: 29226 | T64: 36523 | U64: 252085
B65: 51 | E65: 2305 | F65: 2547 | G65: 72801 | H65: 45096 | I65: 6943 | J65: 7131 | K65: 5154 | L65: 6184 | M65: 4643 | N65: 4799 | O65: 4218 | P65: 4888 | Q65: 2944 | R65: 3728 | S65: 28199 | T65: 36979 | U65: 238559
B66: 52 | E66: 2477 | F66: 2646 | G66: 68118 | H66: 42733 | I66: 6579 | J66: 6880 | K66: 4897 | L66: 6114 | M66: 4338 | N66: 4984 | O66: 3928 | P66: 4838 | Q66: 2686 | R66: 3737 | S66: 27506 | T66: 38032 | U66: 230493
B67: 53 | E67: 2424 | F67: 2818 | G67: 64620 | H67: 41029 | I67: 6121 | J67: 6750 | K67: 4794 | L67: 6275 | M67: 4232 | N67: 4938 | O67: 3842 | P67: 4779 | Q67: 2569 | R67: 3625 | S67: 26516 | T67: 38425 | U67: 223757
B68: 54 | E68: 2557 | F68: 2983 | G68: 62407 | H68: 40570 | I68: 5915 | J68: 5981 | K68: 4426 | L68: 5491 | M68: 4080 | N68: 4555 | O68: 3729 | P68: 4391 | Q68: 2607 | R68: 3418 | S68: 26839 | T68: 36619 | U68: 216568
B69: 55 | E69: 2672 | F69: 2888 | G69: 60240 | H69: 39869 | I69: 5850 | J69: 6007 | K69: 4388 | L69: 5516 | M69: 3864 | N69: 4094 | O69: 3700 | P69: 4033 | Q69: 2477 | R69: 3143 | S69: 26603 | T69: 35014 | U69: 210358
B70: 56 | E70: 2598 | F70: 2502 | G70: 56814 | H70: 37870 | I70: 5467 | J70: 5539 | K70: 4100 | L70: 4804 | M70: 3553 | N70: 4239 | O70: 3391 | P70: 4108 | Q70: 2261 | R70: 3006 | S70: 25383 | T70: 34526 | U70: 200161
B71: 57 | E71: 2528 | F71: 2339 | G71: 53893 | H71: 36207 | I71: 5362 | J71: 5160 | K71: 3980 | L71: 4388 | M71: 3318 | N71: 3935 | O71: 3126 | P71: 3941 | Q71: 2050 | R71: 2917 | S71: 24282 | T71: 33689 | U71: 191115
B72: 58 | E72: 2292 | F72: 2278 | G72: 51255 | H72: 34853 | I72: 5073 | J72: 4873 | K72: 3424 | L72: 3807 | M72: 3314 | N72: 3506 | O72: 3073 | P72: 3562 | Q72: 1941 | R72: 2858 | S72: 22589 | T72: 32919 | U72: 181617
B73: 59 | E73: 2075 | F73: 2004 | G73: 48184 | H73: 33136 | I73: 4683 | J73: 4418 | K73: 3241 | L73: 3609 | M73: 2983 | N73: 3073 | O73: 2746 | P73: 3095 | Q73: 2007 | R73: 2569 | S73: 21221 | T73: 31231 | U73: 170275
B74: 60 | E74: 1990 | F74: 1821 | G74: 45199 | H74: 32827 | I74: 4385 | J74: 3994 | K74: 2986 | L74: 3222 | M74: 2790 | N74: 2766 | O74: 2471 | P74: 2678 | Q74: 1869 | R74: 2252 | S74: 20343 | T74: 29169 | U74: 160762
B75: 61 | E75: 1813 | F75: 1673 | G75: 40598 | H75: 29816 | I75: 4176 | J75: 3692 | K75: 2758 | L75: 2872 | M75: 2457 | N75: 2465 | O75: 2280 | P75: 2424 | Q75: 1705 | R75: 1982 | S75: 19062 | T75: 27091 | U75: 146864
B76: 62 | E76: 1585 | F76: 1507 | G76: 36857 | H76: 26505 | I76: 3663 | J76: 3012 | K76: 2543 | L76: 2467 | M76: 2207 | N76: 2163 | O76: 1917 | P76: 2101 | Q76: 1525 | R76: 1770 | S76: 17379 | T76: 24328 | U76: 131529
B77: 63 | E77: 1450 | F77: 1404 | G77: 34867 | H77: 25168 | I77: 3113 | J77: 2493 | K77: 2120 | L77: 1948 | M77: 2087 | N77: 2008 | O77: 1871 | P77: 1887 | Q77: 1309 | R77: 1550 | S77: 16829 | T77: 22556 | U77: 122660
B78: 64 | E78: 1275 | F78: 1271 | G78: 31824 | H78: 23061 | I78: 2839 | J78: 2218 | K78: 1773 | L78: 1549 | M78: 1754 | N78: 1547 | O78: 1554 | P78: 1608 | Q78: 1286 | R78: 1382 | S78: 15278 | T78: 19698 | U78: 109917
B79: 65 | E79: 1118 | F79: 1127 | G79: 30898 | H79: 21686 | I79: 2577 | J79: 2044 | K79: 1510 | L79: 1403 | M79: 1369 | N79: 1217 | O79: 1341 | P79: 1356 | Q79: 1114 | R79: 1215 | S79: 13781 | T79: 17865 | U79: =SUM(E79:T79) -> 101621
B80: 66 | E80: 1036 | F80: 1040 | G80: 24571 | H80: 16667 | I80: 2482 | J80: 1799 | K80: 1341 | L80: 1132 | M80: 1237 | N80: 1169 | O80: 1108 | P80: 1108 | Q80: 809 | R80: 942 | S80: 12185 | T80: 15981 | U80: 84607
B81: 67 | E81: 930 | F81: 896 | G81: 19625 | H81: 12091 | I81: 2193 | J81: 1644 | K81: 1240 | L81: 1040 | M81: 1068 | N81: 976 | O81: 946 | P81: 884 | Q81: 721 | R81: 723 | S81: 10743 | T81: 13723 | U81: 69443
B82: 68 | E82: 845 | F82: 849 | G82: 16945 | H82: 10982 | I82: 1780 | J82: 1377 | K82: 1078 | L82: 954 | M82: 999 | N82: 822 | O82: 893 | P82: 767 | Q82: 584 | R82: 626 | S82: 9460 | T82: 12296 | U82: 61257
B83: 69 | E83: 886 | F83: 786 | G83: 14941 | H83: 9398 | I83: 1579 | J83: 1194 | K83: 929 | L83: 733 | M83: 927 | N83: 716 | O83: 758 | P83: 737 | Q83: 537 | R83: 572 | S83: 8525 | T83: 10805 | U83: 54023
B84: 70 | E84: 885 | F84: 815 | G84: 11838 | H84: 8232 | I84: 1447 | J84: 1066 | K84: 787 | L84: 704 | M84: 695 | N84: 624 | O84: 727 | P84: 637 | Q84: 463 | R84: 512 | S84: 7644 | T84: 9374 | U84: 46450
B85: 71 | E85: 779 | F85: 682 | G85: 7715 | H85: 6191 | I85: 1177 | J85: 878 | K85: 701 | L85: 598 | M85: 657 | N85: 529 | O85: 586 | P85: 507 | Q85: 424 | R85: 403 | S85: 6811 | T85: 8348 | U85: 36986
B86: 72 | E86: 759 | F86: 706 | G86: 5790 | H86: 4807 | I86: 603 | J86: 466 | K86: 540 | L86: 496 | M86: 508 | N86: 474 | O86: 503 | P86: 425 | Q86: 350 | R86: 395 | S86: 6045 | T86: 7351 | U86: 30218
B87: 73 | E87: 729 | F87: 625 | G87: 5275 | H87: 4491 | I87: 371 | J87: 246 | K87: 271 | L87: 256 | M87: 462 | N87: 424 | O87: 461 | P87: 413 | Q87: 305 | R87: 341 | S87: 5546 | T87: 6737 | U87: 26953
B88: 74 | E88: 664 | F88: 535 | G88: 4677 | H88: 3842 | I88: 331 | J88: 233 | K88: 105 | L88: 78 | M88: 186 | N88: 205 | O88: 318 | P88: 336 | Q88: 266 | R88: 309 | S88: 4876 | T88: 5705 | U88: 22666
B89: 75 | E89: 648 | F89: 525 | G89: 4154 | H89: 3536 | I89: 265 | J89: 173 | K89: 79 | L89: 79 | M89: 89 | N89: 61 | O89: 174 | P89: 139 | Q89: 245 | R89: 271 | S89: 4381 | T89: 5150 | U89: 19969
B90: 76 | E90: 589 | F90: 440 | G90: 3627 | H90: 3118 | I90: 183 | J90: 123 | K90: 82 | L90: 81 | M90: 78 | N90: 57 | O90: 60 | P90: 60 | Q90: 118 | R90: 122 | S90: 3764 | T90: 4341 | U90: 16843
B91: 77 | E91: 628 | F91: 380 | G91: 3126 | H91: 2761 | I91: 130 | J91: 111 | K91: 52 | L91: 54 | M91: 59 | N91: 63 | O91: 60 | P91: 41 | Q91: 43 | R91: 44 | S91: 3298 | T91: 3833 | U91: 14683
B92: 78 | E92: 541 | F92: 366 | G92: 2586 | H92: 2385 | I92: 118 | J92: 82 | K92: 48 | L92: 37 | M92: 47 | N92: 43 | O92: 50 | P92: 44 | Q92: 33 | R92: 41 | S92: 2832 | T92: 3064 | U92: 12317
B93: 79 | E93: 474 | F93: 262 | G93: 2217 | H93: 1998 | I93: 89 | J93: 74 | K93: 34 | L93: 47 | M93: 47 | N93: 29 | O93: 55 | P93: 26 | Q93: 20 | R93: 31 | S93: 2223 | T93: 2382 | U93: 10008
B94: 80 | E94: 414 | F94: 238 | G94: 1941 | H94: 1734 | I94: 95 | J94: 71 | K94: 36 | L94: 29 | M94: 35 | N94: 25 | O94: 37 | P94: 29 | Q94: 25 | R94: 34 | S94: 1726 | T94: 2004 | U94: 8473
B95: 81 | E95: 361 | F95: 201 | G95: 1493 | H95: 1485 | I95: 85 | J95: 66 | K95: 32 | L95: 37 | M95: 30 | N95: 28 | O95: 32 | P95: 24 | Q95: 11 | R95: 23 | S95: 1272 | T95: 1511 | U95: 6691
B96: 82 | E96: 298 | F96: 214 | G96: 987 | H96: 951 | I96: 58 | J96: 36 | K96: 32 | L96: 30 | M96: 33 | N96: 24 | O96: 30 | P96: 27 | Q96: 18 | R96: 18 | S96: 980 | T96: 1111 | U96: 4847
B97: 83 | E97: 264 | F97: 163 | G97: 767 | H97: 717 | I97: 43 | J97: 35 | K97: 31 | L97: 20 | M97: 23 | N97: 24 | O97: 32 | P97: 34 | Q97: 17 | R97: 21 | S97: 835 | T97: 951 | U97: 3977
B98: 84 | E98: 241 | F98: 126 | G98: 625 | H98: 552 | I98: 53 | J98: 31 | K98: 22 | L98: 30 | M98: 26 | N98: 33 | O98: 19 | P98: 18 | Q98: 13 | R98: 16 | S98: 649 | T98: 656 | U98: 3110
B99: 85 | E99: 251 | F99: 116 | G99: 491 | H99: 485 | I99: 45 | J99: 32 | K99: 20 | L99: 13 | M99: 22 | N99: 13 | O99: 21 | P99: 19 | Q99: 9 | R99: 6 | S99: 423 | T99: 518 | U99: 2484
B100: 86 | E100: 205 | F100: 87 | G100: 369 | H100: 357 | I100: 25 | J100: 23 | K100: 10 | L100: 13 | M100: 11 | N100: 15 | O100: 18 | P100: 14 | Q100: 5 | R100: 12 | S100: 287 | T100: 358 | U100: 1809
B101: 87 | E101: 196 | F101: 74 | G101: 305 | H101: 281 | I101: 20 | J101: 13 | K101: 12 | L101: 12 | M101: 15 | N101: 20 | O101: 17 | P101: 22 | Q101: 6 | R101: 13 | S101: 218 | T101: 330 | U101: 1554
B102: 88 | E102: 173 | F102: 65 | G102: 230 | H102: 237 | I102: 25 | J102: 8 | K102: 8 | L102: 8 | M102: 14 | N102: 12 | O102: 8 | P102: 12 | Q102: 5 | R102: 7 | S102: 177 | T102: 248 | U102: 1237
B103: 89 | E103: 137 | F103: 49 | G103: 221 | H103: 169 | I103: 18 | J103: 11 | K103: 14 | L103: 9 | M103: 12 | N103: 11 | O103: 1 | P103: 8 | Q103: 4 | R103: 5 | S103: 130 | T103: 210 | U103: 1009
B104: 90 | E104: 175 | F104: 57 | G104: 171 | H104: 183 | I104: 8 | J104: 9 | K104: 8 | L104: 2 | M104: 10 | N104: 9 | O104: 10 | P104: 6 | Q104: 6 | R104: 2 | S104: 116 | T104: 178 | U104: 950
B105: 91 | E105: 130 | F105: 40 | G105: 98 | H105: 88 | I105: 9 | J105: 9 | K105: 3 | L105: 1 | M105: 4 | N105: 11 | O105: 2 | P105: 6 | Q105: 1 | R105: 5 | S105: 90 | T105: 136 | U105: 633
B106: 92 | E106: 80 | F106: 30 | G106: 67 | H106: 62 | I106: 1 | J106: 1 | K106: 1 | L106: 2 | M106: 2 | N106: 2 | O106: 6 | P106: 7 | Q106: 2 | R106: 3 | S106: 74 | T106: 107 | U106: 447
B107: 93 | E107: 68 | F107: 18 | G107: 55 | H107: 65 | I107: 1 | J107: 0 | K107: 1 | L107: 0 | M107: 0 | N107: 1 | O107: 4 | P107: 4 | Q107: 2 | R107: 2 | S107: 67 | T107: 76 | U107: 364
B108: 94 | E108: 58 | F108: 18 | G108: 46 | H108: 36 | I108: 0 | J108: 1 | K108: 0 | L108: 0 | M108: 0 | N108: 2 | O108: 4 | P108: 2 | Q108: 3 | R108: 3 | S108: 51 | T108: 66 | U108: 290
B109: 95 | E109: 62 | F109: 18 | G109: 41 | H109: 37 | I109: 0 | J109: 1 | K109: 0 | L109: 0 | M109: 0 | N109: 0 | O109: 1 | P109: 2 | Q109: 0 | R109: 1 | S109: 45 | T109: 81 | U109: 289
B110: 96 | E110: 32 | F110: 12 | G110: 25 | H110: 32 | I110: 5 | J110: 0 | K110: 4 | L110: 0 | M110: 0 | N110: 0 | O110: 0 | P110: 1 | Q110: 1 | R110: 3 | S110: 40 | T110: 56 | U110: 211
B111: 97 | E111: 29 | F111: 4 | G111: 33 | H111: 19 | I111: 0 | J111: 0 | K111: 0 | L111: 1 | M111: 0 | N111: 0 | O111: 0 | P111: 0 | Q111: 0 | R111: 3 | S111: 30 | T111: 39 | U111: 158
B112: 98 | E112: 22 | F112: 6 | G112: 12 | H112: 13 | I112: 0 | J112: 0 | K112: 0 | L112: 0 | M112: 1 | N112: 0 | O112: 0 | P112: 0 | Q112: 2 | R112: 1 | S112: 18 | T112: 30 | U112: 105
B113: 99 | E113: 23 | F113: 5 | G113: 12 | H113: 15 | I113: 0 | J113: 0 | K113: 0 | L113: 0 | M113: 0 | N113: 0 | O113: 1 | P113: 0 | Q113: 0 | R113: 1 | S113: 20 | T113: 18 | U113: 95
A114: De | B114: 100 o mas | C114: años y más | E114: 11 | F114: 1 | G114: 43 | H114: 22 | I114: 24 | J114: 1 | K114: 15 | L114: 1 | M114: 3 | N114: 1 | O114: 0 | P114: 0 | Q114: 0 | R114: 0 | S114: 29 | T114: 39 | U114: 190
A115: TOTAL | E115: =SUM(E14:E114) -> 80563 | F115: =SUM(F14:F114) -> 81783 | G115: 3607784 | H115: 2044883 | I115: 338882 | J115: 334571 | K115: 231784 | L115: 264980 | M115: 201979 | N115: 221857 | O115: 172684 | P115: 199788 | Q115: 121045 | R115: =SUM(R14:R114) -> 154460 | S115: 872858 | T115: 1161537 | U115: =SUM(E115:T115) -> 10091438
A117: NOTA: ESTE FORMATO ES PARA PÓLIZAS DEL SEGURO INDIVIDUAL EMITIDAS A PARTIR DEL 1° DE ENERO DE 1994.

Sheet 2B (hidden)
A2: 2 b. EXPUESTOS EN LA OPERACIÓN DE VIDA POR TIPO DE SEGURO,
A3: AÑOS DE ANTIGÜEDAD Y EDAD ALCANZADA
A5: =#REF! -> 
A7: VIDA INDIVIDUAL
E10: 2 | F10: 3 | G10: 4 | H10: 5 | I10: 6 | J10: 7 | K10: 8 | L10: 9 | M10: 10 | N10: 11 | O10: 12 | P10: 13 | Q10: 14 | R10: 15 | S10: 16 | T10: 17
A11: EDAD | E11: SALDADO Y | G11: PÓLIZAS O CERTIFICADOS EN VIGOR CON ANTIGÜEDAD MENOR O IGUAL A:
A12: ALCANZADA | E12: PRORROGADO | G12: 1 año | I12: 2 años | K12: 3 años | M12: 4 años | O12: 5 años | Q12: 6 años | S12: más de 6 años | U12: TOTAL
E13: H | F13: M | G13: H | H13: M | I13: H | J13: M | K13: H | L13: M | M13: H | N13: M | O13: H | P13: M | Q13: H | R13: M | S13: H | T13: M
A14: De | B14: 0 | C14: años | E14: 0 | F14: 0 | G14: 0 | H14: 0 | I14: 0 | J14: 0 | K14: 0 | L14: 0 | M14: 0 | N14: 0 | O14: 0 | P14: 0 | Q14: 0 | R14: 0 | S14: 0 | T14: 0 | U14: =SUM(E14:T14) -> 0
B15: 1 | E15: 0 | F15: 0 | G15: 0 | H15: 0 | I15: 0 | J15: 0 | K15: 0 | L15: 0 | M15: 0 | N15: 0 | O15: 0 | P15: 0 | Q15: 0 | R15: 0 | S15: 0 | T15: 0 | U15: =SUM(E15:T15) -> 0
B16: 2 | E16: 0 | F16: 0 | G16: 0 | H16: 0 | I16: 0 | J16: 0 | K16: 0 | L16: 0 | M16: 0 | N16: 0 | O16: 0 | P16: 0 | Q16: 0 | R16: 0 | S16: 0 | T16: 0 | U16: 0
B17: 3 | E17: 0 | F17: 0 | G17: 0 | H17: 0 | I17: 0 | J17: 0 | K17: 0 | L17: 0 | M17: 0 | N17: 0 | O17: 0 | P17: 0 | Q17: 0 | R17: 0 | S17: 0 | T17: 0 | U17: 0
B18: 4 | E18: 0 | F18: 0 | G18: 0 | H18: 0 | I18: 0 | J18: 0 | K18: 0 | L18: 0 | M18: 0 | N18: 0 | O18: 0 | P18: 0 | Q18: 0 | R18: 0 | S18: 0 | T18: 0 | U18: 0
B19: 5 | E19: 0 | F19: 0 | G19: 0 | H19: 0 | I19: 0 | J19: 0 | K19: 0 | L19: 0 | M19: 0 | N19: 0 | O19: 0 | P19: 0 | Q19: 0 | R19: 0 | S19: 0 | T19: 0 | U19: 0
B20: 6 | E20: 0 | F20: 0 | G20: 0 | H20: 0 | I20: 0 | J20: 0 | K20: 0 | L20: 0 | M20: 0 | N20: 0 | O20: 0 | P20: 0 | Q20: 0 | R20: 0 | S20: 0 | T20: 0 | U20: 0
B21: 7 | E21: 0 | F21: 0 | G21: 0 | H21: 0 | I21: 0 | J21: 0 | K21: 0 | L21: 0 | M21: 0 | N21: 0 | O21: 0 | P21: 0 | Q21: 0 | R21: 0 | S21: 0 | T21: 0 | U21: 0
B22: 8 | E22: 0 | F22: 0 | G22: 0 | H22: 0 | I22: 0 | J22: 0 | K22: 0 | L22: 0 | M22: 0 | N22: 0 | O22: 0 | P22: 0 | Q22: 0 | R22: 0 | S22: 0 | T22: 0 | U22: 0
B23: 9 | E23: 0 | F23: 0 | G23: 0 | H23: 0 | I23: 0 | J23: 0 | K23: 0 | L23: 0 | M23: 0 | N23: 0 | O23: 0 | P23: 0 | Q23: 0 | R23: 0 | S23: 0 | T23: 0 | U23: 0
B24: 10 | E24: 0 | F24: 0 | G24: 0 | H24: 0 | I24: 0 | J24: 0 | K24: 0 | L24: 0 | M24: 0 | N24: 0 | O24: 0 | P24: 0 | Q24: 0 | R24: 0 | S24: 0 | T24: 0 | U24: 0
B25: 11 | E25: 0 | F25: 0 | G25: 0 | H25: 0 | I25: 0 | J25: 0 | K25: 0 | L25: 0 | M25: 0 | N25: 0 | O25: 0 | P25: 0 | Q25: 0 | R25: 0 | S25: 0 | T25: 0 | U25: 0
B26: 12 | E26: 0 | F26: 0 | G26: 0 | H26: 0 | I26: 0 | J26: 0 | K26: 0 | L26: 0 | M26: 0 | N26: 0 | O26: 0 | P26: 0 | Q26: 0 | R26: 0 | S26: 0 | T26: 0 | U26: 0
B27: 13 | E27: 0 | F27: 0 | G27: 0 | H27: 0 | I27: 0 | J27: 0 | K27: 0 | L27: 0 | M27: 0 | N27: 0 | O27: 0 | P27: 0 | Q27: 0 | R27: 0 | S27: 0 | T27: 0 | U27: 0
B28: 14 | E28: 0 | F28: 0 | G28: 0 | H28: 0 | I28: 0 | J28: 0 | K28: 0 | L28: 0 | M28: 0 | N28: 0 | O28: 0 | P28: 0 | Q28: 0 | R28: 0 | S28: 0 | T28: 0 | U28: 0
B29: 15 | E29: 0 | F29: 0 | G29: 0 | H29: 0 | I29: 0 | J29: 0 | K29: 0 | L29: 0 | M29: 0 | N29: 0 | O29: 0 | P29: 0 | Q29: 0 | R29: 0 | S29: 0 | T29: 0 | U29: 0
B30: 16 | E30: 0 | F30: 0 | G30: 0 | H30: 0 | I30: 0 | J30: 0 | K30: 0 | L30: 0 | M30: 0 | N30: 0 | O30: 0 | P30: 0 | Q30: 0 | R30: 0 | S30: 0 | T30: 0 | U30: 0
B31: 17 | E31: 0 | F31: 0 | G31: 0 | H31: 0 | I31: 0 | J31: 0 | K31: 0 | L31: 0 | M31: 0 | N31: 0 | O31: 0 | P31: 0 | Q31: 0 | R31: 0 | S31: 0 | T31: 0 | U31: 0
B32: 18 | E32: 0 | F32: 0 | G32: 0 | H32: 0 | I32: 0 | J32: 0 | K32: 0 | L32: 0 | M32: 0 | N32: 0 | O32: 0 | P32: 0 | Q32: 0 | R32: 0 | S32: 0 | T32: 0 | U32: 0
B33: 19 | E33: 0 | F33: 0 | G33: 0 | H33: 0 | I33: 0 | J33: 0 | K33: 0 | L33: 0 | M33: 0 | N33: 0 | O33: 0 | P33: 0 | Q33: 0 | R33: 0 | S33: 0 | T33: 0 | U33: 0
B34: 20 | E34: 0 | F34: 0 | G34: 0 | H34: 0 | I34: 0 | J34: 0 | K34: 0 | L34: 0 | M34: 0 | N34: 0 | O34: 0 | P34: 0 | Q34: 0 | R34: 0 | S34: 0 | T34: 0 | U34: 0
B35: 21 | E35: 0 | F35: 0 | G35: 0 | H35: 0 | I35: 0 | J35: 0 | K35: 0 | L35: 0 | M35: 0 | N35: 0 | O35: 0 | P35: 0 | Q35: 0 | R35: 0 | S35: 0 | T35: 0 | U35: 0
B36: 22 | E36: 0 | F36: 0 | G36: 0 | H36: 0 | I36: 0 | J36: 0 | K36: 0 | L36: 0 | M36: 0 | N36: 0 | O36: 0 | P36: 0 | Q36: 0 | R36: 0 | S36: 0 | T36: 0 | U36: 0
B37: 23 | E37: 0 | F37: 0 | G37: 0 | H37: 0 | I37: 0 | J37: 0 | K37: 0 | L37: 0 | M37: 0 | N37: 0 | O37: 0 | P37: 0 | Q37: 0 | R37: 0 | S37: 0 | T37: 0 | U37: 0
B38: 24 | E38: 0 | F38: 0 | G38: 0 | H38: 0 | I38: 0 | J38: 0 | K38: 0 | L38: 0 | M38: 0 | N38: 0 | O38: 0 | P38: 0 | Q38: 0 | R38: 0 | S38: 0 | T38: 0 | U38: 0
B39: 25 | E39: 0 | F39: 0 | G39: 0 | H39: 0 | I39: 0 | J39: 0 | K39: 0 | L39: 0 | M39: 0 | N39: 0 | O39: 0 | P39: 0 | Q39: 0 | R39: 0 | S39: 0 | T39: 0 | U39: 0
B40: 26 | E40: 0 | F40: 0 | G40: 0 | H40: 0 | I40: 0 | J40: 0 | K40: 0 | L40: 0 | M40: 0 | N40: 0 | O40: 0 | P40: 0 | Q40: 0 | R40: 0 | S40: 0 | T40: 0 | U40: 0
B41: 27 | E41: 0 | F41: 0 | G41: 0 | H41: 0 | I41: 0 | J41: 0 | K41: 0 | L41: 0 | M41: 0 | N41: 0 | O41: 0 | P41: 0 | Q41: 0 | R41: 0 | S41: 3 | T41: 0 | U41: 3
B42: 28 | E42: 1 | F42: 0 | G42: 0 | H42: 0 | I42: 0 | J42: 0 | K42: 0 | L42: 0 | M42: 0 | N42: 0 | O42: 0 | P42: 0 | Q42: 0 | R42: 0 | S42: 0 | T42: 4 | U42: 5
B43: 29 | E43: 1 | F43: 0 | G43: 0 | H43: 0 | I43: 0 | J43: 0 | K43: 0 | L43: 0 | M43: 0 | N43: 0 | O43: 0 | P43: 0 | Q43: 0 | R43: 0 | S43: 17 | T43: 19 | U43: 37
B44: 30 | E44: 2 | F44: 1 | G44: 0 | H44: 0 | I44: 0 | J44: 0 | K44: 0 | L44: 0 | M44: 0 | N44: 0 | O44: 0 | P44: 0 | Q44: 0 | R44: 0 | S44: 33 | T44: 35 | U44: 71
B45: 31 | E45: 5 | F45: 1 | G45: 0 | H45: 0 | I45: 0 | J45: 0 | K45: 0 | L45: 0 | M45: 0 | N45: 0 | O45: 0 | P45: 0 | Q45: 0 | R45: 0 | S45: 136 | T45: 108 | U45: 250
B46: 32 | E46: 18 | F46: 8 | G46: 0 | H46: 0 | I46: 0 | J46: 0 | K46: 0 | L46: 0 | M46: 0 | N46: 0 | O46: 0 | P46: 0 | Q46: 0 | R46: 0 | S46: 287 | T46: 238 | U46: 551
B47: 33 | E47: 32 | F47: 37 | G47: 0 | H47: 0 | I47: 0 | J47: 0 | K47: 0 | L47: 0 | M47: 0 | N47: 0 | O47: 0 | P47: 0 | Q47: 0 | R47: 0 | S47: 873 | T47: 815 | U47: 1757
B48: 34 | E48: 72 | F48: 69 | G48: 0 | H48: 0 | I48: 0 | J48: 0 | K48: 0 | L48: 0 | M48: 0 | N48: 0 | O48: 0 | P48: 0 | Q48: 0 | R48: 0 | S48: 1542 | T48: 1569 | U48: 3252
B49: 35 | E49: 95 | F49: 84 | G49: 0 | H49: 0 | I49: 0 | J49: 0 | K49: 0 | L49: 0 | M49: 0 | N49: 0 | O49: 0 | P49: 0 | Q49: 0 | R49: 0 | S49: 2068 | T49: 2084 | U49: 4331
B50: 36 | E50: 104 | F50: 97 | G50: 0 | H50: 0 | I50: 0 | J50: 0 | K50: 0 | L50: 0 | M50: 0 | N50: 0 | O50: 0 | P50: 0 | Q50: 0 | R50: 0 | S50: 2453 | T50: 2299 | U50: 4953
B51: 37 | E51: 81 | F51: 83 | G51: 0 | H51: 0 | I51: 0 | J51: 0 | K51: 0 | L51: 0 | M51: 0 | N51: 0 | O51: 0 | P51: 0 | Q51: 0 | R51: 0 | S51: 2578 | T51: 2374 | U51: 5116
B52: 38 | E52: 102 | F52: 85 | G52: 0 | H52: 0 | I52: 0 | J52: 0 | K52: 0 | L52: 0 | M52: 0 | N52: 0 | O52: 0 | P52: 0 | Q52: 0 | R52: 0 | S52: 2538 | T52: 2272 | U52: 4997
B53: 39 | E53: 103 | F53: 89 | G53: 0 | H53: 0 | I53: 0 | J53: 0 | K53: 0 | L53: 0 | M53: 0 | N53: 0 | O53: 0 | P53: 0 | Q53: 0 | R53: 0 | S53: 2536 | T53: 2345 | U53: 5073
B54: 40 | E54: 102 | F54: 93 | G54: 0 | H54: 0 | I54: 0 | J54: 0 | K54: 0 | L54: 0 | M54: 0 | N54: 0 | O54: 0 | P54: 0 | Q54: 0 | R54: 0 | S54: 2526 | T54: 2272 | U54: 4993
B55: 41 | E55: 79 | F55: 64 | G55: 0 | H55: 0 | I55: 0 | J55: 0 | K55: 0 | L55: 0 | M55: 0 | N55: 0 | O55: 0 | P55: 0 | Q55: 0 | R55: 0 | S55: 2354 | T55: 2047 | U55: 4544
B56: 42 | E56: 121 | F56: 68 | G56: 0 | H56: 0 | I56: 0 | J56: 0 | K56: 0 | L56: 0 | M56: 0 | N56: 0 | O56: 0 | P56: 0 | Q56: 0 | R56: 0 | S56: 2312 | T56: 2066 | U56: 4567
B57: 43 | E57: 113 | F57: 83 | G57: 0 | H57: 0 | I57: 0 | J57: 0 | K57: 0 | L57: 0 | M57: 0 | N57: 0 | O57: 0 | P57: 0 | Q57: 0 | R57: 0 | S57: 2267 | T57: 1959 | U57: 4422
B58: 44 | E58: 107 | F58: 69 | G58: 0 | H58: 0 | I58: 0 | J58: 0 | K58: 0 | L58: 0 | M58: 0 | N58: 0 | O58: 0 | P58: 0 | Q58: 0 | R58: 0 | S58: 2193 | T58: 1885 | U58: 4254
B59: 45 | E59: 87 | F59: 83 | G59: 0 | H59: 0 | I59: 0 | J59: 0 | K59: 0 | L59: 0 | M59: 0 | N59: 0 | O59: 0 | P59: 0 | Q59: 0 | R59: 0 | S59: 2229 | T59: 1859 | U59: 4258
B60: 46 | E60: 108 | F60: 85 | G60: 0 | H60: 0 | I60: 0 | J60: 0 | K60: 0 | L60: 0 | M60: 0 | N60: 0 | O60: 0 | P60: 0 | Q60: 0 | R60: 0 | S60: 1925 | T60: 1750 | U60: 3868
B61: 47 | E61: 136 | F61: 85 | G61: 0 | H61: 0 | I61: 0 | J61: 0 | K61: 0 | L61: 0 | M61: 0 | N61: 0 | O61: 0 | P61: 0 | Q61: 0 | R61: 0 | S61: 1830 | T61: 1768 | U61: 3819
B62: 48 | E62: 105 | F62: 105 | G62: 0 | H62: 0 | I62: 0 | J62: 0 | K62: 0 | L62: 0 | M62: 0 | N62: 0 | O62: 0 | P62: 0 | Q62: 0 | R62: 0 | S62: 1703 | T62: 1751 | U62: 3664
B63: 49 | E63: 146 | F63: 88 | G63: 0 | H63: 0 | I63: 0 | J63: 0 | K63: 0 | L63: 0 | M63: 0 | N63: 0 | O63: 0 | P63: 0 | Q63: 0 | R63: 0 | S63: 1529 | T63: 1667 | U63: 3430
B64: 50 | E64: 156 | F64: 104 | G64: 0 | H64: 0 | I64: 0 | J64: 0 | K64: 0 | L64: 0 | M64: 0 | N64: 0 | O64: 0 | P64: 0 | Q64: 0 | R64: 0 | S64: 1650 | T64: 1643 | U64: 3553
B65: 51 | E65: 203 | F65: 108 | G65: 0 | H65: 0 | I65: 0 | J65: 0 | K65: 0 | L65: 0 | M65: 0 | N65: 0 | O65: 0 | P65: 0 | Q65: 0 | R65: 0 | S65: 1655 | T65: 1797 | U65: 3763
B66: 52 | E66: 197 | F66: 103 | G66: 0 | H66: 0 | I66: 0 | J66: 0 | K66: 0 | L66: 0 | M66: 0 | N66: 0 | O66: 0 | P66: 0 | Q66: 0 | R66: 0 | S66: 1838 | T66: 2345 | U66: 4483
B67: 53 | E67: 191 | F67: 112 | G67: 0 | H67: 0 | I67: 0 | J67: 0 | K67: 0 | L67: 0 | M67: 0 | N67: 0 | O67: 0 | P67: 0 | Q67: 0 | R67: 0 | S67: 2063 | T67: 2847 | U67: 5213
B68: 54 | E68: 203 | F68: 120 | G68: 0 | H68: 0 | I68: 0 | J68: 0 | K68: 0 | L68: 0 | M68: 0 | N68: 0 | O68: 0 | P68: 0 | Q68: 0 | R68: 0 | S68: 2453 | T68: 3343 | U68: 6119
B69: 55 | E69: 274 | F69: 155 | G69: 0 | H69: 0 | I69: 0 | J69: 0 | K69: 0 | L69: 0 | M69: 0 | N69: 0 | O69: 0 | P69: 0 | Q69: 0 | R69: 0 | S69: 3085 | T69: 4061 | U69: 7575
B70: 56 | E70: 356 | F70: 242 | G70: 0 | H70: 0 | I70: 0 | J70: 0 | K70: 0 | L70: 0 | M70: 0 | N70: 0 | O70: 0 | P70: 0 | Q70: 0 | R70: 0 | S70: 3486 | T70: 4814 | U70: 8898
B71: 57 | E71: 434 | F71: 326 | G71: 0 | H71: 0 | I71: 0 | J71: 0 | K71: 0 | L71: 0 | M71: 0 | N71: 0 | O71: 0 | P71: 0 | Q71: 0 | R71: 0 | S71: 4068 | T71: 5404 | U71: 10232
B72: 58 | E72: 519 | F72: 559 | G72: 0 | H72: 0 | I72: 0 | J72: 0 | K72: 0 | L72: 0 | M72: 0 | N72: 0 | O72: 0 | P72: 0 | Q72: 0 | R72: 0 | S72: 4651 | T72: 5943 | U72: 11672
B73: 59 | E73: 705 | F73: 695 | G73: 0 | H73: 0 | I73: 0 | J73: 0 | K73: 0 | L73: 0 | M73: 0 | N73: 0 | O73: 0 | P73: 0 | Q73: 0 | R73: 0 | S73: 4930 | T73: 5999 | U73: 12329
B74: 60 | E74: 848 | F74: 887 | G74: 0 | H74: 0 | I74: 0 | J74: 0 | K74: 0 | L74: 0 | M74: 0 | N74: 0 | O74: 0 | P74: 0 | Q74: 0 | R74: 0 | S74: 5780 | T74: 6451 | U74: 13966
B75: 61 | E75: 1006 | F75: 894 | G75: 0 | H75: 0 | I75: 0 | J75: 0 | K75: 0 | L75: 0 | M75: 0 | N75: 0 | O75: 0 | P75: 0 | Q75: 0 | R75: 0 | S75: 5961 | T75: 6089 | U75: 13950
B76: 62 | E76: 1161 | F76: 956 | G76: 0 | H76: 0 | I76: 0 | J76: 0 | K76: 0 | L76: 0 | M76: 0 | N76: 0 | O76: 0 | P76: 0 | Q76: 0 | R76: 0 | S76: 6226 | T76: 5995 | U76: 14338
B77: 63 | E77: 1295 | F77: 932 | G77: 0 | H77: 0 | I77: 0 | J77: 0 | K77: 0 | L77: 0 | M77: 0 | N77: 0 | O77: 0 | P77: 0 | Q77: 0 | R77: 0 | S77: 6328 | T77: 5917 | U77: 14472
B78: 64 | E78: 1389 | F78: 934 | G78: 0 | H78: 0 | I78: 0 | J78: 0 | K78: 0 | L78: 0 | M78: 0 | N78: 0 | O78: 0 | P78: 0 | Q78: 0 | R78: 0 | S78: 6355 | T78: 5656 | U78: 14334
B79: 65 | E79: 1416 | F79: 865 | G79: 0 | H79: 0 | I79: 0 | J79: 0 | K79: 0 | L79: 0 | M79: 0 | N79: 0 | O79: 0 | P79: 0 | Q79: 0 | R79: 0 | S79: 6316 | T79: 5422 | U79: =SUM(E79:T79) -> 14019
B80: 66 | E80: 1502 | F80: 913 | G80: 0 | H80: 0 | I80: 0 | J80: 0 | K80: 0 | L80: 0 | M80: 0 | N80: 0 | O80: 0 | P80: 0 | Q80: 0 | R80: 0 | S80: 6169 | T80: 5167 | U80: 13751
B81: 67 | E81: 1591 | F81: 799 | G81: 0 | H81: 0 | I81: 0 | J81: 0 | K81: 0 | L81: 0 | M81: 0 | N81: 0 | O81: 0 | P81: 0 | Q81: 0 | R81: 0 | S81: 5706 | T81: 4863 | U81: 12959
B82: 68 | E82: 1552 | F82: 777 | G82: 0 | H82: 0 | I82: 0 | J82: 0 | K82: 0 | L82: 0 | M82: 0 | N82: 0 | O82: 0 | P82: 0 | Q82: 0 | R82: 0 | S82: 5358 | T82: 4493 | U82: 12180
B83: 69 | E83: 1645 | F83: 801 | G83: 0 | H83: 0 | I83: 0 | J83: 0 | K83: 0 | L83: 0 | M83: 0 | N83: 0 | O83: 0 | P83: 0 | Q83: 0 | R83: 0 | S83: 5214 | T83: 4157 | U83: 11817
B84: 70 | E84: 8561 | F84: 742 | G84: 0 | H84: 0 | I84: 0 | J84: 0 | K84: 0 | L84: 0 | M84: 0 | N84: 0 | O84: 0 | P84: 0 | Q84: 0 | R84: 0 | S84: 4924 | T84: 3868 | U84: 18095
B85: 71 | E85: 1626 | F85: 659 | G85: 0 | H85: 0 | I85: 0 | J85: 0 | K85: 0 | L85: 0 | M85: 0 | N85: 0 | O85: 0 | P85: 0 | Q85: 0 | R85: 0 | S85: 4824 | T85: 3658 | U85: 10767
B86: 72 | E86: 1588 | F86: 650 | G86: 0 | H86: 0 | I86: 0 | J86: 0 | K86: 0 | L86: 0 | M86: 0 | N86: 0 | O86: 0 | P86: 0 | Q86: 0 | R86: 0 | S86: 4122 | T86: 3221 | U86: 9581
B87: 73 | E87: 1712 | F87: 548 | G87: 0 | H87: 0 | I87: 0 | J87: 0 | K87: 0 | L87: 0 | M87: 0 | N87: 0 | O87: 0 | P87: 0 | Q87: 0 | R87: 0 | S87: 3881 | T87: 2888 | U87: 9029
B88: 74 | E88: 1652 | F88: 547 | G88: 0 | H88: 0 | I88: 0 | J88: 0 | K88: 0 | L88: 0 | M88: 0 | N88: 0 | O88: 0 | P88: 0 | Q88: 0 | R88: 0 | S88: 3523 | T88: 2559 | U88: 8281
B89: 75 | E89: 1595 | F89: 493 | G89: 0 | H89: 0 | I89: 0 | J89: 0 | K89: 0 | L89: 0 | M89: 0 | N89: 0 | O89: 0 | P89: 0 | Q89: 0 | R89: 0 | S89: 3392 | T89: 2229 | U89: 7709
B90: 76 | E90: 1687 | F90: 448 | G90: 0 | H90: 0 | I90: 0 | J90: 0 | K90: 0 | L90: 0 | M90: 0 | N90: 0 | O90: 0 | P90: 0 | Q90: 0 | R90: 0 | S90: 3060 | T90: 1937 | U90: 7132
B91: 77 | E91: 1603 | F91: 431 | G91: 0 | H91: 0 | I91: 0 | J91: 0 | K91: 0 | L91: 0 | M91: 0 | N91: 0 | O91: 0 | P91: 0 | Q91: 0 | R91: 0 | S91: 2737 | T91: 1803 | U91: 6574
B92: 78 | E92: 1559 | F92: 424 | G92: 0 | H92: 0 | I92: 0 | J92: 0 | K92: 0 | L92: 0 | M92: 0 | N92: 0 | O92: 0 | P92: 0 | Q92: 0 | R92: 0 | S92: 2413 | T92: 1798 | U92: 6194
B93: 79 | E93: 1451 | F93: 356 | G93: 0 | H93: 0 | I93: 0 | J93: 0 | K93: 0 | L93: 0 | M93: 0 | N93: 0 | O93: 0 | P93: 0 | Q93: 0 | R93: 0 | S93: 2171 | T93: 1499 | U93: 5477
B94: 80 | E94: 1524 | F94: 283 | G94: 0 | H94: 0 | I94: 0 | J94: 0 | K94: 0 | L94: 0 | M94: 0 | N94: 0 | O94: 0 | P94: 0 | Q94: 0 | R94: 0 | S94: 1895 | T94: 1326 | U94: 5028
B95: 81 | E95: 1476 | F95: 282 | G95: 0 | H95: 0 | I95: 0 | J95: 0 | K95: 0 | L95: 0 | M95: 0 | N95: 0 | O95: 0 | P95: 0 | Q95: 0 | R95: 0 | S95: 1722 | T95: 1209 | U95: 4689
B96: 82 | E96: 1472 | F96: 264 | G96: 0 | H96: 0 | I96: 0 | J96: 0 | K96: 0 | L96: 0 | M96: 0 | N96: 0 | O96: 0 | P96: 0 | Q96: 0 | R96: 0 | S96: 1494 | T96: 1106 | U96: 4336
B97: 83 | E97: 1427 | F97: 252 | G97: 0 | H97: 0 | I97: 0 | J97: 0 | K97: 0 | L97: 0 | M97: 0 | N97: 0 | O97: 0 | P97: 0 | Q97: 0 | R97: 0 | S97: 1334 | T97: 959 | U97: 3972
B98: 84 | E98: 1361 | F98: 209 | G98: 0 | H98: 0 | I98: 0 | J98: 0 | K98: 0 | L98: 0 | M98: 0 | N98: 0 | O98: 0 | P98: 0 | Q98: 0 | R98: 0 | S98: 1245 | T98: 972 | U98: 3787
B99: 85 | E99: 1379 | F99: 212 | G99: 0 | H99: 0 | I99: 0 | J99: 0 | K99: 0 | L99: 0 | M99: 0 | N99: 0 | O99: 0 | P99: 0 | Q99: 0 | R99: 0 | S99: 1070 | T99: 792 | U99: 3453
B100: 86 | E100: 1163 | F100: 157 | G100: 0 | H100: 0 | I100: 0 | J100: 0 | K100: 0 | L100: 0 | M100: 0 | N100: 0 | O100: 0 | P100: 0 | Q100: 0 | R100: 0 | S100: 870 | T100: 671 | U100: 2861
B101: 87 | E101: 1255 | F101: 168 | G101: 0 | H101: 0 | I101: 0 | J101: 0 | K101: 0 | L101: 0 | M101: 0 | N101: 0 | O101: 0 | P101: 0 | Q101: 0 | R101: 0 | S101: 742 | T101: 567 | U101: 2732
B102: 88 | E102: 1237 | F102: 147 | G102: 0 | H102: 0 | I102: 0 | J102: 0 | K102: 0 | L102: 0 | M102: 0 | N102: 0 | O102: 0 | P102: 0 | Q102: 0 | R102: 0 | S102: 689 | T102: 500 | U102: 2573
B103: 89 | E103: 1267 | F103: 131 | G103: 0 | H103: 0 | I103: 0 | J103: 0 | K103: 0 | L103: 0 | M103: 0 | N103: 0 | O103: 0 | P103: 0 | Q103: 0 | R103: 0 | S103: 622 | T103: 443 | U103: 2463
B104: 90 | E104: 1225 | F104: 143 | G104: 0 | H104: 0 | I104: 0 | J104: 0 | K104: 0 | L104: 0 | M104: 0 | N104: 0 | O104: 0 | P104: 0 | Q104: 0 | R104: 0 | S104: 506 | T104: 430 | U104: 2304
B105: 91 | E105: 1040 | F105: 93 | G105: 0 | H105: 0 | I105: 0 | J105: 0 | K105: 0 | L105: 0 | M105: 0 | N105: 0 | O105: 0 | P105: 0 | Q105: 0 | R105: 0 | S105: 469 | T105: 376 | U105: 1978
B106: 92 | E106: 1061 | F106: 87 | G106: 0 | H106: 0 | I106: 0 | J106: 0 | K106: 0 | L106: 0 | M106: 0 | N106: 0 | O106: 0 | P106: 0 | Q106: 0 | R106: 0 | S106: 392 | T106: 317 | U106: 1857
B107: 93 | E107: 988 | F107: 74 | G107: 0 | H107: 0 | I107: 0 | J107: 0 | K107: 0 | L107: 0 | M107: 0 | N107: 0 | O107: 0 | P107: 0 | Q107: 0 | R107: 0 | S107: 342 | T107: 286 | U107: 1690
B108: 94 | E108: 1033 | F108: 73 | G108: 0 | H108: 0 | I108: 0 | J108: 0 | K108: 0 | L108: 0 | M108: 0 | N108: 0 | O108: 0 | P108: 0 | Q108: 0 | R108: 0 | S108: 329 | T108: 218 | U108: 1653
B109: 95 | E109: 890 | F109: 60 | G109: 0 | H109: 0 | I109: 0 | J109: 0 | K109: 0 | L109: 0 | M109: 0 | N109: 0 | O109: 0 | P109: 0 | Q109: 0 | R109: 0 | S109: 270 | T109: 219 | U109: 1439
B110: 96 | E110: 528 | F110: 46 | G110: 0 | H110: 0 | I110: 0 | J110: 0 | K110: 0 | L110: 0 | M110: 0 | N110: 0 | O110: 0 | P110: 0 | Q110: 0 | R110: 0 | S110: 209 | T110: 180 | U110: 963
B111: 97 | E111: 469 | F111: 42 | G111: 0 | H111: 0 | I111: 0 | J111: 0 | K111: 0 | L111: 0 | M111: 0 | N111: 0 | O111: 0 | P111: 0 | Q111: 0 | R111: 0 | S111: 172 | T111: 148 | U111: 831
B112: 98 | E112: 415 | F112: 44 | G112: 0 | H112: 0 | I112: 0 | J112: 0 | K112: 0 | L112: 0 | M112: 0 | N112: 0 | O112: 0 | P112: 0 | Q112: 0 | R112: 0 | S112: 152 | T112: 172 | U112: 783
B113: 99 | E113: 212 | F113: 4 | G113: 0 | H113: 0 | I113: 0 | J113: 0 | K113: 0 | L113: 0 | M113: 0 | N113: 0 | O113: 0 | P113: 0 | Q113: 0 | R113: 0 | S113: 74 | T113: 76 | U113: 366
A114: De | B114: 100 o mas | C114: años y más | E114: 30 | F114: 10 | G114: 0 | H114: 0 | I114: 0 | J114: 0 | K114: 0 | L114: 0 | M114: 0 | N114: 0 | O114: 0 | P114: 0 | Q114: 0 | R114: 0 | S114: 214 | T114: 316 | U114: 570
A115: TOTAL | E115: =SUM(E14:E114) -> 62849 | F115: =SUM(F14:F114) -> 20738 | G115: 0 | H115: 0 | I115: 0 | J115: 0 | K115: 0 | L115: 0 | M115: 0 | N115: 0 | O115: 0 | P115: 0 | Q115: 0 | R115: =SUM(R14:R114) -> 0 | S115: 175083 | T115: 162335 | U115: 421005
A117: NOTA: ESTE FORMATO ES PARA PÓLIZAS DEL SEGURO INDIVIDUAL EMITIDAS ANTES DEL 1° DE ENERO DE 1994

Sheet 2 Grupo
A2: 2. EXPUESTOS EN LA OPERACIÓN DE VIDA POR TIPO DE SEGURO,
A3: AÑOS DE ANTIGÜEDAD Y EDAD ALCANZADA
A5: ='2 Ind'!A5 -> DICIEMBRE DE 2021
A7: VIDA GRUPO
E10: 2 | F10: 3 | G10: 4 | H10: 5 | I10: 6 | J10: 7 | K10: 8 | L10: 9 | M10: 10 | N10: 11 | O10: 12 | P10: 13 | Q10: 14 | R10: 15 | S10: 16 | T10: 17
A11: EDAD | E11: SALDADO Y | G11: PÓLIZAS O CERTIFICADOS EN VIGOR CON ANTIGÜEDAD MENOR O IGUAL A:
A12: ALCANZADA | E12: PRORROGADO | G12: 1 año | I12: 2 años | K12: 3 años | M12: 4 años | O12: 5 años | Q12: 6 años | S12: más de 6 años | U12: TOTAL
E13: H | F13: M | G13: H | H13: M | I13: H | J13: M | K13: H | L13: M | M13: H | N13: M | O13: H | P13: M | Q13: H | R13: M | S13: H | T13: M
B14: 0 a 15 | E14: =+'2A (G)'!E14+'2B (G)'!E14 -> 0 | F14: =+'2A (G)'!F14+'2B (G)'!F14 -> 0 | G14: 122592 | H14: 115575 | K14: 1 | U14: 238168
B15: 16 | E15: =+'2A (G)'!E15+'2B (G)'!E15 -> 0 | F15: =+'2A (G)'!F15+'2B (G)'!F15 -> 0 | G15: 21531 | H15: 17539 | T15: 1 | U15: 39071
B16: 17 | E16: =+'2A (G)'!E16+'2B (G)'!E16 -> 0 | F16: =+'2A (G)'!F16+'2B (G)'!F16 -> 0 | G16: 26543 | H16: 21670 | K16: 1 | L16: 1 | T16: 1 | U16: 48216
B17: 18 | E17: =+'2A (G)'!E17+'2B (G)'!E17 -> 0 | F17: =+'2A (G)'!F17+'2B (G)'!F17 -> 0 | G17: 72908 | H17: 40427 | I17: 295 | J17: 2 | M17: 93567 | S17: 1 | T17: 1 | U17: 207201
B18: 19 | E18: =+'2A (G)'!E18+'2B (G)'!E18 -> 0 | F18: =+'2A (G)'!F18+'2B (G)'!F18 -> 0 | G18: 124385 | H18: 106108 | I18: 7716 | J18: 3797 | M18: 251288 | T18: 1 | U18: 493295
B19: 20 | E19: =+'2A (G)'!E19+'2B (G)'!E19 -> 0 | F19: =+'2A (G)'!F19+'2B (G)'!F19 -> 0 | G19: 170814 | H19: 146707 | I19: 14811 | J19: 9943 | K19: 2692 | L19: 329 | M19: 223142 | N19: 2 | T19: 1 | U19: 568441
B20: 21 | E20: =+'2A (G)'!E20+'2B (G)'!E20 -> 0 | F20: =+'2A (G)'!F20+'2B (G)'!F20 -> 0 | G20: 215397 | H20: 187177 | I20: 19815 | J20: 14866 | K20: 2629 | L20: 698 | M20: 191401 | N20: 5 | S20: 2 | T20: 2 | U20: 631992
B21: 22 | E21: =+'2A (G)'!E21+'2B (G)'!E21 -> 0 | F21: =+'2A (G)'!F21+'2B (G)'!F21 -> 0 | G21: 241833 | H21: 213030 | I21: 23563 | J21: 17206 | K21: 3840 | L21: 1446 | M21: 159819 | N21: 90 | O21: 6 | P21: 2 | S21: 2 | T21: 1 | U21: 660838
B22: 23 | E22: =+'2A (G)'!E22+'2B (G)'!E22 -> 0 | F22: =+'2A (G)'!F22+'2B (G)'!F22 -> 0 | G22: 279899 | H22: 248526 | I22: 28190 | J22: 19525 | K22: 6007 | L22: 2305 | M22: 143592 | N22: 233 | O22: 79 | P22: 43 | Q22: 2 | S22: 1 | T22: 1 | U22: 728403
B23: 24 | E23: =+'2A (G)'!E23+'2B (G)'!E23 -> 0 | F23: =+'2A (G)'!F23+'2B (G)'!F23 -> 0 | G23: 305262 | H23: 276501 | I23: 30320 | J23: 21008 | K23: 8400 | L23: 3003 | M23: 127041 | N23: 477 | O23: 225 | P23: 110 | Q23: 8 | R23: 11 | U23: 772366
B24: 25 | E24: =+'2A (G)'!E24+'2B (G)'!E24 -> 0 | F24: =+'2A (G)'!F24+'2B (G)'!F24 -> 0 | G24: 346582 | H24: 314464 | I24: 33445 | J24: 23146 | K24: 9813 | L24: 3899 | M24: 113257 | N24: 787 | O24: 784 | P24: 515 | Q24: 28 | R24: 30 | S24: 5 | T24: 8 | U24: 846763
B25: 26 | E25: =+'2A (G)'!E25+'2B (G)'!E25 -> 0 | F25: =+'2A (G)'!F25+'2B (G)'!F25 -> 0 | G25: 385919 | H25: 350603 | I25: 38300 | J25: 26861 | K25: 12551 | L25: 5702 | M25: 109027 | N25: 1277 | O25: 1189 | P25: 858 | Q25: 67 | R25: 53 | S25: 5 | T25: 4 | U25: 932416
B26: 27 | E26: =+'2A (G)'!E26+'2B (G)'!E26 -> 0 | F26: =+'2A (G)'!F26+'2B (G)'!F26 -> 0 | G26: 423008 | H26: 380902 | I26: 41656 | J26: 28935 | K26: 15534 | L26: 7164 | M26: 103955 | N26: 1923 | O26: 1492 | P26: 1272 | Q26: 84 | R26: 68 | S26: 7 | T26: 38 | U26: 1006038
B27: 28 | E27: =+'2A (G)'!E27+'2B (G)'!E27 -> 0 | F27: =+'2A (G)'!F27+'2B (G)'!F27 -> 0 | G27: 441750 | H27: 403856 | I27: 43277 | J27: 30374 | K27: 17918 | L27: 8568 | M27: 99184 | N27: 2734 | O27: 1781 | P27: 1582 | Q27: 125 | R27: 127 | S27: 14 | T27: 253 | U27: 1051543
B28: 29 | E28: =+'2A (G)'!E28+'2B (G)'!E28 -> 0 | F28: =+'2A (G)'!F28+'2B (G)'!F28 -> 0 | G28: 461017 | H28: 420589 | I28: 45568 | J28: 31778 | K28: 19617 | L28: 9448 | M28: 95182 | N28: 3261 | O28: 2297 | P28: 1939 | Q28: 191 | R28: 168 | S28: 28 | T28: 101 | U28: 1091184
B29: 30 | E29: =+'2A (G)'!E29+'2B (G)'!E29 -> 0 | F29: =+'2A (G)'!F29+'2B (G)'!F29 -> 0 | G29: 465272 | H29: 423675 | I29: 45469 | J29: 32019 | K29: 20542 | L29: 9954 | M29: 91430 | N29: 3689 | O29: 2762 | P29: 2220 | Q29: 227 | R29: 205 | S29: 30 | T29: 18 | U29: 1097512
B30: 31 | E30: =+'2A (G)'!E30+'2B (G)'!E30 -> 0 | F30: =+'2A (G)'!F30+'2B (G)'!F30 -> 0 | G30: 515352 | H30: 467751 | I30: 47617 | J30: 33600 | K30: 21340 | L30: 10469 | M30: 90855 | N30: 4177 | O30: 2888 | P30: 2463 | Q30: 279 | R30: 266 | S30: 32 | T30: 42 | U30: 1197131
B31: 32 | E31: =+'2A (G)'!E31+'2B (G)'!E31 -> 0 | F31: =+'2A (G)'!F31+'2B (G)'!F31 -> 0 | G31: 483284 | H31: 448568 | I31: 46477 | J31: 33707 | K31: 21214 | L31: 10722 | M31: 85927 | N31: 4417 | O31: 3200 | P31: 2722 | Q31: 339 | R31: 311 | S31: 64 | T31: 57 | U31: 1141009
B32: 33 | E32: =+'2A (G)'!E32+'2B (G)'!E32 -> 0 | F32: =+'2A (G)'!F32+'2B (G)'!F32 -> 0 | G32: 478524 | H32: 449061 | I32: 46061 | J32: 33557 | K32: 21205 | L32: 10974 | M32: 84008 | N32: 4568 | O32: 3370 | P32: 2698 | Q32: 357 | R32: 296 | S32: 141 | T32: 190 | U32: 1135010
B33: 34 | E33: =+'2A (G)'!E33+'2B (G)'!E33 -> 0 | F33: =+'2A (G)'!F33+'2B (G)'!F33 -> 0 | G33: 474251 | H33: 451464 | I33: 45591 | J33: 33967 | K33: 21016 | L33: 10896 | M33: 81307 | N33: 4687 | O33: 3336 | P33: 2818 | Q33: 345 | R33: 318 | S33: 304 | T33: 282 | U33: 1130582
B34: 35 | E34: =+'2A (G)'!E34+'2B (G)'!E34 -> 0 | F34: =+'2A (G)'!F34+'2B (G)'!F34 -> 0 | G34: 474848 | H34: 458426 | I34: 45678 | J34: 34229 | K34: 21062 | L34: 11272 | M34: 80161 | N34: 4628 | O34: 3603 | P34: 3015 | Q34: 371 | R34: 351 | S34: 523 | T34: 739 | U34: 1138906
B35: 36 | E35: =+'2A (G)'!E35+'2B (G)'!E35 -> 0 | F35: =+'2A (G)'!F35+'2B (G)'!F35 -> 0 | G35: 471593 | H35: 456143 | I35: 44995 | J35: 34092 | K35: 20838 | L35: 11187 | M35: 77599 | N35: 4918 | O35: 3583 | P35: 2884 | Q35: 403 | R35: 335 | S35: 553 | T35: 558 | U35: 1129681
B36: 37 | E36: =+'2A (G)'!E36+'2B (G)'!E36 -> 0 | F36: =+'2A (G)'!F36+'2B (G)'!F36 -> 0 | G36: 474566 | H36: 464922 | I36: 45450 | J36: 34626 | K36: 21259 | L36: 11260 | M36: 77044 | N36: 4857 | O36: 3789 | P36: 3050 | Q36: 383 | R36: 341 | S36: 601 | T36: 871 | U36: 1143019
B37: 38 | E37: =+'2A (G)'!E37+'2B (G)'!E37 -> 0 | F37: =+'2A (G)'!F37+'2B (G)'!F37 -> 0 | G37: 474133 | H37: 467077 | I37: 45246 | J37: 35134 | K37: 20922 | L37: 11310 | M37: 74943 | N37: 4877 | O37: 3917 | P37: 2948 | Q37: 420 | R37: 346 | S37: 658 | T37: 760 | U37: 1142691
B38: 39 | E38: =+'2A (G)'!E38+'2B (G)'!E38 -> 0 | F38: =+'2A (G)'!F38+'2B (G)'!F38 -> 0 | G38: 473102 | H38: 462322 | I38: 44647 | J38: 34310 | K38: 20720 | L38: 10990 | M38: 74676 | N38: 4881 | O38: 3794 | P38: 2940 | Q38: 405 | R38: 321 | S38: 588 | T38: 644 | U38: 1134340
B39: 40 | E39: =+'2A (G)'!E39+'2B (G)'!E39 -> 0 | F39: =+'2A (G)'!F39+'2B (G)'!F39 -> 0 | G39: 646944 | H39: 524717 | I39: 43557 | J39: 33576 | K39: 19917 | L39: 10877 | M39: 70979 | N39: 4532 | O39: 3723 | P39: 3033 | Q39: 377 | R39: 313 | S39: 696 | T39: 1024 | U39: 1364265
B40: 41 | E40: =+'2A (G)'!E40+'2B (G)'!E40 -> 0 | F40: =+'2A (G)'!F40+'2B (G)'!F40 -> 0 | G40: 476679 | H40: 465424 | I40: 43449 | J40: 34092 | K40: 19885 | L40: 10828 | M40: 70708 | N40: 4659 | O40: 3781 | P40: 2908 | Q40: 460 | R40: 341 | S40: 657 | T40: 941 | U40: 1134812
B41: 42 | E41: =+'2A (G)'!E41+'2B (G)'!E41 -> 0 | F41: =+'2A (G)'!F41+'2B (G)'!F41 -> 0 | G41: 445650 | H41: 439994 | I41: 42537 | J41: 33414 | K41: 20606 | L41: 11784 | M41: 68469 | N41: 4445 | O41: 3970 | P41: 3283 | Q41: 49023 | R41: 31787 | S41: 10868 | T41: 11310 | U41: 1177140
B42: 43 | E42: =+'2A (G)'!E42+'2B (G)'!E42 -> 0 | F42: =+'2A (G)'!F42+'2B (G)'!F42 -> 0 | G42: 443654 | H42: 441669 | I42: 42292 | J42: 33429 | K42: 18541 | L42: 10468 | M42: 67068 | N42: 4421 | O42: 3544 | P42: 2955 | Q42: 413 | R42: 293 | S42: 502 | T42: 592 | U42: 1069841
B43: 44 | E43: =+'2A (G)'!E43+'2B (G)'!E43 -> 0 | F43: =+'2A (G)'!F43+'2B (G)'!F43 -> 0 | G43: 444372 | H43: 440810 | I43: 46440 | J43: 33672 | K43: 18951 | L43: 10659 | M43: 66571 | N43: 5310 | O43: 3668 | P43: 2997 | Q43: 373 | R43: 265 | S43: 406 | T43: 807 | U43: 1075301
B44: 45 | E44: =+'2A (G)'!E44+'2B (G)'!E44 -> 0 | F44: =+'2A (G)'!F44+'2B (G)'!F44 -> 0 | G44: 438438 | H44: 437331 | I44: 42289 | J44: 33216 | K44: 18332 | L44: 10462 | M44: 64478 | N44: 4312 | O44: 3666 | P44: 2994 | Q44: 318 | R44: 275 | S44: 368 | T44: 487 | U44: 1056966
B45: 46 | E45: =+'2A (G)'!E45+'2B (G)'!E45 -> 0 | F45: =+'2A (G)'!F45+'2B (G)'!F45 -> 0 | G45: 440110 | H45: 440191 | I45: 42109 | J45: 33631 | K45: 18606 | L45: 10425 | M45: 61945 | N45: 4264 | O45: 3668 | P45: 3059 | Q45: 354 | R45: 265 | S45: 332 | T45: 485 | U45: 1059444
B46: 47 | E46: =+'2A (G)'!E46+'2B (G)'!E46 -> 0 | F46: =+'2A (G)'!F46+'2B (G)'!F46 -> 0 | G46: 447596 | H46: 451021 | I46: 42648 | J46: 34087 | K46: 18539 | L46: 10860 | M46: 59526 | N46: 4345 | O46: 3774 | P46: 3017 | Q46: 368 | R46: 298 | S46: 362 | T46: 516 | U46: 1076957
B47: 48 | E47: =+'2A (G)'!E47+'2B (G)'!E47 -> 0 | F47: =+'2A (G)'!F47+'2B (G)'!F47 -> 0 | G47: 444975 | H47: 450717 | I47: 42594 | J47: 34027 | K47: 18447 | L47: 10569 | M47: 56497 | N47: 4390 | O47: 3657 | P47: 2960 | Q47: 317 | R47: 235 | S47: 368 | T47: 526 | U47: 1070279
B48: 49 | E48: =+'2A (G)'!E48+'2B (G)'!E48 -> 0 | F48: =+'2A (G)'!F48+'2B (G)'!F48 -> 0 | G48: 431262 | H48: 439798 | I48: 41275 | J48: 33626 | K48: 17946 | L48: 10532 | M48: 54987 | N48: 4155 | O48: 3605 | P48: 2861 | Q48: 319 | R48: 303 | S48: 342 | T48: 496 | U48: 1041507
B49: 50 | E49: =+'2A (G)'!E49+'2B (G)'!E49 -> 0 | F49: =+'2A (G)'!F49+'2B (G)'!F49 -> 0 | G49: 411394 | H49: 418886 | I49: 39385 | J49: 39600 | K49: 17403 | L49: 10158 | M49: 50871 | N49: 4143 | O49: 3355 | P49: 2849 | Q49: 324 | R49: 273 | S49: 326 | T49: 466 | U49: 999433
B50: 51 | E50: =+'2A (G)'!E50+'2B (G)'!E50 -> 0 | F50: =+'2A (G)'!F50+'2B (G)'!F50 -> 0 | G50: 397247 | H50: 401926 | I50: 39495 | J50: 32732 | K50: 16742 | L50: 9966 | M50: 47608 | N50: 3873 | O50: 3294 | P50: 2699 | Q50: 263 | R50: 270 | S50: 268 | T50: 471 | U50: 956854
B51: 52 | E51: =+'2A (G)'!E51+'2B (G)'!E51 -> 0 | F51: =+'2A (G)'!F51+'2B (G)'!F51 -> 0 | G51: 387032 | H51: 395949 | I51: 37050 | J51: 31100 | K51: 15827 | L51: 9593 | M51: 44959 | N51: 3843 | O51: 3274 | P51: 2635 | Q51: 269 | R51: 211 | S51: 1243 | T51: 2516 | U51: 935501
B52: 53 | E52: =+'2A (G)'!E52+'2B (G)'!E52 -> 0 | F52: =+'2A (G)'!F52+'2B (G)'!F52 -> 0 | G52: 366145 | H52: 384930 | I52: 35530 | J52: 30183 | K52: 15000 | L52: 9295 | M52: 42217 | N52: 3827 | O52: 3016 | P52: 2595 | Q52: 263 | R52: 220 | S52: 364 | T52: 446 | U52: 894031
B53: 54 | E53: =+'2A (G)'!E53+'2B (G)'!E53 -> 0 | F53: =+'2A (G)'!F53+'2B (G)'!F53 -> 0 | G53: 353964 | H53: 376777 | I53: 34256 | J53: 29345 | K53: 14370 | L53: 8958 | M53: 39502 | N53: 3554 | O53: 2905 | P53: 2436 | Q53: 233 | R53: 224 | S53: 398 | T53: 502 | U53: 867424
B54: 55 | E54: =+'2A (G)'!E54+'2B (G)'!E54 -> 0 | F54: =+'2A (G)'!F54+'2B (G)'!F54 -> 0 | G54: 340905 | H54: 352498 | I54: 32862 | J54: 27989 | K54: 13864 | L54: 8585 | M54: 35983 | N54: 3476 | O54: 2829 | P54: 2272 | Q54: 216 | R54: 212 | S54: 387 | T54: 449 | U54: 822527
B55: 56 | E55: =+'2A (G)'!E55+'2B (G)'!E55 -> 0 | F55: =+'2A (G)'!F55+'2B (G)'!F55 -> 0 | G55: 329300 | H55: 338886 | I55: 32033 | J55: 27851 | K55: 13556 | L55: 8554 | M55: 31967 | N55: 3472 | O55: 2763 | P55: 2340 | Q55: 249 | R55: 187 | S55: 459 | T55: 518 | U55: 792135
B56: 57 | E56: =+'2A (G)'!E56+'2B (G)'!E56 -> 0 | F56: =+'2A (G)'!F56+'2B (G)'!F56 -> 0 | G56: 312578 | H56: 323230 | I56: 30867 | J56: 26409 | K56: 13398 | L56: 8348 | M56: 29595 | N56: 3474 | O56: 2737 | P56: 2289 | Q56: 206 | R56: 204 | S56: 483 | T56: 500 | U56: 754318
B57: 58 | E57: =+'2A (G)'!E57+'2B (G)'!E57 -> 0 | F57: =+'2A (G)'!F57+'2B (G)'!F57 -> 0 | G57: 307420 | H57: 325203 | I57: 29581 | J57: 25163 | K57: 12900 | L57: 8087 | M57: 27072 | N57: 3446 | O57: 2611 | P57: 2261 | Q57: 222 | R57: 191 | S57: 502 | T57: 548 | U57: 745207
B58: 59 | E58: =+'2A (G)'!E58+'2B (G)'!E58 -> 0 | F58: =+'2A (G)'!F58+'2B (G)'!F58 -> 0 | G58: 290513 | H58: 303015 | I58: 28169 | J58: 23864 | K58: 12444 | L58: 7819 | M58: 24960 | N58: 3255 | O58: 2583 | P58: 2209 | Q58: 186 | R58: 212 | S58: 510 | T58: 591 | U58: 700330
B59: 60 | E59: =+'2A (G)'!E59+'2B (G)'!E59 -> 0 | F59: =+'2A (G)'!F59+'2B (G)'!F59 -> 0 | G59: 267825 | H59: 275705 | I59: 26713 | J59: 21896 | K59: 11361 | L59: 7315 | M59: 24632 | N59: 3162 | O59: 2353 | P59: 2113 | Q59: 190 | R59: 178 | S59: 542 | T59: 583 | U59: 644568
B60: 61 | E60: =+'2A (G)'!E60+'2B (G)'!E60 -> 0 | F60: =+'2A (G)'!F60+'2B (G)'!F60 -> 0 | G60: 277535 | H60: 271720 | I60: 27318 | J60: 21362 | K60: 10988 | L60: 7138 | M60: 22361 | N60: 3028 | O60: 2224 | P60: 2012 | Q60: 196 | R60: 189 | S60: 571 | T60: 608 | U60: 647250
B61: 62 | E61: =+'2A (G)'!E61+'2B (G)'!E61 -> 0 | F61: =+'2A (G)'!F61+'2B (G)'!F61 -> 0 | G61: 262677 | H61: 250371 | I61: 25292 | J61: 19751 | K61: 10917 | L61: 6925 | M61: 17258 | N61: 2851 | O61: 2096 | P61: 1836 | Q61: 179 | R61: 158 | S61: 523 | T61: 561 | U61: 601395
B62: 63 | E62: =+'2A (G)'!E62+'2B (G)'!E62 -> 0 | F62: =+'2A (G)'!F62+'2B (G)'!F62 -> 0 | G62: 253926 | H62: 230758 | I62: 23601 | J62: 17467 | K62: 11080 | L62: 6412 | M62: 14684 | N62: 2604 | O62: 1956 | P62: 1708 | Q62: 169 | R62: 150 | S62: 512 | T62: 562 | U62: 565589
B63: 64 | E63: =+'2A (G)'!E63+'2B (G)'!E63 -> 0 | F63: =+'2A (G)'!F63+'2B (G)'!F63 -> 0 | G63: 245816 | H63: 217740 | I63: 22591 | J63: 16650 | K63: 10755 | L63: 6421 | M63: 14210 | N63: 2769 | O63: 2153 | P63: 1616 | Q63: 156 | R63: 141 | S63: 531 | T63: 610 | U63: 542159
B64: 65 | E64: =+'2A (G)'!E64+'2B (G)'!E64 -> 0 | F64: =+'2A (G)'!F64+'2B (G)'!F64 -> 0 | G64: 233928 | H64: 194613 | I64: 20298 | J64: 14741 | K64: 10091 | L64: 5810 | M64: 13104 | N64: 2689 | O64: 2127 | P64: 1599 | Q64: 225 | R64: 126 | S64: 538 | T64: 558 | U64: 500447
B65: 66 | E65: =+'2A (G)'!E65+'2B (G)'!E65 -> 0 | F65: =+'2A (G)'!F65+'2B (G)'!F65 -> 0 | G65: 223510 | H65: 184658 | I65: 19242 | J65: 13727 | K65: 9429 | L65: 5573 | M65: 9757 | N65: 2527 | O65: 1977 | P65: 1523 | Q65: 225 | R65: 119 | S65: 528 | T65: 643 | U65: 473438
B66: 67 | E66: =+'2A (G)'!E66+'2B (G)'!E66 -> 0 | F66: =+'2A (G)'!F66+'2B (G)'!F66 -> 0 | G66: 213416 | H66: 172712 | I66: 17210 | J66: 12334 | K66: 8722 | L66: 5057 | M66: 5132 | N66: 2348 | O66: 1731 | P66: 1283 | Q66: 134 | R66: 118 | S66: 581 | T66: 562 | U66: 441340
B67: 68 | E67: =+'2A (G)'!E67+'2B (G)'!E67 -> 0 | F67: =+'2A (G)'!F67+'2B (G)'!F67 -> 0 | G67: 192737 | H67: 153040 | I67: 15552 | J67: 10429 | K67: 7868 | L67: 4555 | M67: 3952 | N67: 2157 | O67: 1595 | P67: 1227 | Q67: 107 | R67: 107 | S67: 515 | T67: 546 | U67: 394387
B68: 69 | E68: =+'2A (G)'!E68+'2B (G)'!E68 -> 0 | F68: =+'2A (G)'!F68+'2B (G)'!F68 -> 0 | G68: 175910 | H68: 139083 | I68: 14184 | J68: 9506 | K68: 7376 | L68: 4189 | M68: 3374 | N68: 1988 | O68: 1588 | P68: 1020 | Q68: 109 | R68: 89 | S68: 529 | T68: 505 | U68: 359450
B69: 70 | E69: =+'2A (G)'!E69+'2B (G)'!E69 -> 0 | F69: =+'2A (G)'!F69+'2B (G)'!F69 -> 0 | G69: 160081 | H69: 127830 | I69: 12935 | J69: 8514 | K69: 7257 | L69: 3783 | M69: 2986 | N69: 1844 | O69: 1405 | P69: 988 | Q69: 103 | R69: 74 | S69: 496 | T69: 544 | U69: 328840
B70: 71 | E70: =+'2A (G)'!E70+'2B (G)'!E70 -> 0 | F70: =+'2A (G)'!F70+'2B (G)'!F70 -> 0 | G70: 142175 | H70: 114165 | I70: 11433 | J70: 7506 | K70: 6682 | L70: 3648 | M70: 3026 | N70: 1835 | O70: 1410 | P70: 923 | Q70: 78 | R70: 58 | S70: 446 | T70: 540 | U70: 293925
B71: 72 | E71: =+'2A (G)'!E71+'2B (G)'!E71 -> 0 | F71: =+'2A (G)'!F71+'2B (G)'!F71 -> 0 | G71: 123214 | H71: 97685 | I71: 9614 | J71: 5936 | K71: 6394 | L71: 3520 | M71: 2869 | N71: 1634 | O71: 1312 | P71: 849 | Q71: 66 | R71: 73 | S71: 402 | T71: 464 | U71: 254032
B72: 73 | E72: =+'2A (G)'!E72+'2B (G)'!E72 -> 0 | F72: =+'2A (G)'!F72+'2B (G)'!F72 -> 0 | G72: 108133 | H72: 86853 | I72: 7494 | J72: 4674 | K72: 5285 | L72: 2669 | M72: 2133 | N72: 1323 | O72: 1034 | P72: 715 | Q72: 71 | R72: 55 | S72: 448 | T72: 466 | U72: 221353
B73: 74 | E73: =+'2A (G)'!E73+'2B (G)'!E73 -> 0 | F73: =+'2A (G)'!F73+'2B (G)'!F73 -> 0 | G73: 98775 | H73: 78647 | I73: 6137 | J73: 3860 | K73: 3389 | L73: 1665 | M73: 1317 | N73: 766 | O73: 700 | P73: 506 | Q73: 57 | R73: 49 | S73: 464 | T73: 477 | U73: 196809
B74: 75 | E74: =+'2A (G)'!E74+'2B (G)'!E74 -> 0 | F74: =+'2A (G)'!F74+'2B (G)'!F74 -> 0 | G74: 82444 | H74: 65138 | I74: 4706 | J74: 3266 | K74: 1960 | L74: 891 | M74: 598 | N74: 348 | O74: 299 | P74: 161 | Q74: 49 | R74: 41 | S74: 454 | T74: 433 | U74: 160788
B75: 76 | E75: =+'2A (G)'!E75+'2B (G)'!E75 -> 0 | F75: =+'2A (G)'!F75+'2B (G)'!F75 -> 0 | G75: 62590 | H75: 48853 | I75: 3878 | J75: 2665 | K75: 1398 | L75: 747 | M75: 392 | N75: 170 | O75: 42 | P75: 21 | Q75: 49 | R75: 42 | S75: 392 | T75: 384 | U75: 121623
B76: 77 | E76: =+'2A (G)'!E76+'2B (G)'!E76 -> 0 | F76: =+'2A (G)'!F76+'2B (G)'!F76 -> 0 | G76: 51475 | H76: 39989 | I76: 2016 | J76: 1252 | K76: 1173 | L76: 693 | M76: 359 | N76: 184 | O76: 46 | P76: 13 | Q76: 47 | R76: 17 | S76: 416 | T76: 414 | U76: 98094
B77: 78 | E77: =+'2A (G)'!E77+'2B (G)'!E77 -> 0 | F77: =+'2A (G)'!F77+'2B (G)'!F77 -> 0 | G77: 43110 | H77: 35022 | I77: 873 | J77: 359 | K77: 711 | L77: 366 | M77: 322 | N77: 173 | O77: 31 | P77: 10 | Q77: 11 | R77: 10 | S77: 443 | T77: 410 | U77: 81851
B78: 79 | E78: =+'2A (G)'!E78+'2B (G)'!E78 -> 0 | F78: =+'2A (G)'!F78+'2B (G)'!F78 -> 0 | G78: 36307 | H78: 29556 | I78: 688 | J78: 315 | K78: 542 | L78: 244 | M78: 331 | N78: 137 | O78: 30 | P78: 11 | Q78: 9 | R78: 9 | S78: 438 | T78: 380 | U78: 68997
B79: 80 | E79: =+'2A (G)'!E79+'2B (G)'!E79 -> 0 | F79: =+'2A (G)'!F79+'2B (G)'!F79 -> 0 | G79: 26252 | H79: 23181 | I79: 590 | J79: 313 | K79: 450 | L79: 217 | M79: 245 | N79: 121 | O79: 27 | P79: 10 | Q79: 6 | R79: 8 | S79: 361 | T79: 321 | U79: 52102
B80: 81 | E80: =+'2A (G)'!E80+'2B (G)'!E80 -> 0 | F80: =+'2A (G)'!F80+'2B (G)'!F80 -> 0 | G80: 18471 | H80: 18239 | I80: 484 | J80: 273 | K80: 391 | L80: 216 | M80: 253 | N80: 106 | O80: 22 | P80: 8 | R80: 4 | S80: 311 | T80: 263 | U80: 39041
B81: 82 | E81: =+'2A (G)'!E81+'2B (G)'!E81 -> 0 | F81: =+'2A (G)'!F81+'2B (G)'!F81 -> 0 | G81: 12955 | H81: 13245 | I81: 313 | J81: 134 | K81: 302 | L81: 200 | M81: 253 | N81: 156 | O81: 22 | P81: 3 | Q81: 4 | R81: 2 | S81: 299 | T81: 252 | U81: 28140
B82: 83 | E82: =+'2A (G)'!E82+'2B (G)'!E82 -> 0 | F82: =+'2A (G)'!F82+'2B (G)'!F82 -> 0 | G82: 11382 | H82: 11546 | I82: 132 | J82: 56 | K82: 221 | L82: 147 | M82: 222 | N82: 144 | O82: 23 | P82: 13 | Q82: 6 | R82: 3 | S82: 144 | T82: 149 | U82: 24188
B83: 84 | E83: =+'2A (G)'!E83+'2B (G)'!E83 -> 0 | F83: =+'2A (G)'!F83+'2B (G)'!F83 -> 0 | G83: 9378 | H83: 9748 | I83: 64 | J83: 13 | K83: 55 | L83: 31 | M83: 176 | N83: 105 | O83: 21 | P83: 11 | Q83: 5 | R83: 2 | S83: 140 | T83: 145 | U83: 19894
B84: 85 | E84: =+'2A (G)'!E84+'2B (G)'!E84 -> 0 | F84: =+'2A (G)'!F84+'2B (G)'!F84 -> 0 | G84: 8492 | H84: 8819 | I84: 53 | J84: 8 | K84: 2 | M84: 23 | N84: 17 | O84: 11 | P84: 7 | Q84: 3 | R84: 1 | S84: 142 | T84: 118 | U84: 17696
B85: 86 | E85: =+'2A (G)'!E85+'2B (G)'!E85 -> 0 | F85: =+'2A (G)'!F85+'2B (G)'!F85 -> 0 | G85: 7229 | H85: 7436 | I85: 55 | J85: 9 | M85: 3 | N85: 1 | O85: 1 | R85: 1 | S85: 127 | T85: 107 | U85: 14969
B86: 87 | E86: =+'2A (G)'!E86+'2B (G)'!E86 -> 0 | F86: =+'2A (G)'!F86+'2B (G)'!F86 -> 0 | G86: 5793 | H86: 5976 | I86: 33 | J86: 4 | K86: 1 | M86: 1 | Q86: 2 | R86: 1 | S86: 103 | T86: 83 | U86: 11997
B87: 88 | E87: =+'2A (G)'!E87+'2B (G)'!E87 -> 0 | F87: =+'2A (G)'!F87+'2B (G)'!F87 -> 0 | G87: 4656 | H87: 5144 | I87: 22 | J87: 1 | S87: 82 | T87: 91 | U87: 9996
B88: 89 | E88: =+'2A (G)'!E88+'2B (G)'!E88 -> 0 | F88: =+'2A (G)'!F88+'2B (G)'!F88 -> 0 | G88: 3887 | H88: 4199 | I88: 18 | J88: 1 | P88: 1 | Q88: 3 | S88: 83 | T88: 62 | U88: 8254
B89: 90 | E89: =+'2A (G)'!E89+'2B (G)'!E89 -> 0 | F89: =+'2A (G)'!F89+'2B (G)'!F89 -> 0 | G89: 3357 | H89: 3310 | I89: 16 | J89: 1 | K89: 1 | Q89: 3 | R89: 1 | S89: 63 | T89: 55 | U89: 6807
B90: 91 | E90: =+'2A (G)'!E90+'2B (G)'!E90 -> 0 | F90: =+'2A (G)'!F90+'2B (G)'!F90 -> 0 | G90: 2918 | H90: 3022 | I90: 18 | J90: 1 | M90: 1 | S90: 63 | T90: 54 | U90: 6077
B91: 92 | E91: =+'2A (G)'!E91+'2B (G)'!E91 -> 0 | F91: =+'2A (G)'!F91+'2B (G)'!F91 -> 0 | G91: 2030 | H91: 2132 | I91: 8 | J91: 1 | R91: 1 | S91: 52 | T91: 58 | U91: 4282
B92: 93 | E92: =+'2A (G)'!E92+'2B (G)'!E92 -> 0 | F92: =+'2A (G)'!F92+'2B (G)'!F92 -> 0 | G92: 1522 | H92: 1657 | I92: 8 | R92: 1 | S92: 52 | T92: 41 | U92: 3281
B93: 94 | E93: =+'2A (G)'!E93+'2B (G)'!E93 -> 0 | F93: =+'2A (G)'!F93+'2B (G)'!F93 -> 0 | G93: 1334 | H93: 1404 | I93: 5 | S93: 33 | T93: 29 | U93: 2805
B94: 95 | E94: =+'2A (G)'!E94+'2B (G)'!E94 -> 0 | F94: =+'2A (G)'!F94+'2B (G)'!F94 -> 0 | G94: 1044 | H94: 1142 | I94: 4 | J94: 1 | M94: 1 | Q94: 1 | S94: 39 | T94: 30 | U94: 2262
B95: 96 | E95: =+'2A (G)'!E95+'2B (G)'!E95 -> 0 | F95: =+'2A (G)'!F95+'2B (G)'!F95 -> 0 | G95: 1048 | H95: 823 | I95: 4 | S95: 38 | T95: 24 | U95: 1937
B96: 97 | E96: =+'2A (G)'!E96+'2B (G)'!E96 -> 0 | F96: =+'2A (G)'!F96+'2B (G)'!F96 -> 0 | G96: 513 | H96: 518 | I96: 1 | Q96: 1 | S96: 22 | T96: 24 | U96: 1079
B97: 98 | E97: =+'2A (G)'!E97+'2B (G)'!E97 -> 0 | F97: =+'2A (G)'!F97+'2B (G)'!F97 -> 0 | G97: 516 | H97: 332 | I97: 2 | S97: 22 | T97: 22 | U97: 894
B98: 99 | E98: =+'2A (G)'!E98+'2B (G)'!E98 -> 0 | F98: =+'2A (G)'!F98+'2B (G)'!F98 -> 0 | G98: 567 | H98: 598 | S98: 19 | T98: 18 | U98: 1202
A99: De | B99: 100 o mas | C99: años y más | E99: =+'2A (G)'!E99+'2B (G)'!E99 -> 0 | F99: =+'2A (G)'!F99+'2B (G)'!F99 -> 0 | G99: 439 | H99: 326 | S99: 35 | T99: 41 | U99: 841
A100: PÓLIZA CONCENTRADA* | E100: =+'2A (G)'!E100+'2B (G)'!E100 -> 0 | F100: =+'2A (G)'!F100+'2B (G)'!F100 -> 0 | G100: 25604942 | H100: 16216236 | U100: 41821178
C101: TOTAL | E101: =SUM(E14:E99) -> 0 | F101: 0 | G101: =SUM(G14:G100) -> 45564852 | H101: =SUM(H14:H100) -> 35099226 | I101: =SUM(I14:I100) -> 1826210 | J101: 1394714 | K101: 779196 | L101: 426856 | M101: 3688342 | N101: 172871 | O101: 134754 | P101: 108918 | Q101: 61051 | R101: 41954 | S101: 35399 | T101: 41002 | U101: 89375345
A102: * PARA AQUELLAS PÓLIZAS QUE POR RAZONES ADMINISTRATIVAS, COMERCIALES O DE CUALQUIER OTRA ÍNDOLE, PERO QUE SE ENCUENTRE DOCUMENTADA EN SUS NOTAS TÉCNICAS CORRESPONDIENTES, Y LA INSTITUCIÓN NO TENGA A SU DISPOSICIÓN EL DETALLE DE LA INFORMACION DE CADA ASEGURADO, SE REPORTARÉ EN ESTE APARTADO LA INFORMACIÓN. CABE MENCIONAR QUE LAS PÓLIZAS AUTO-ADMINISTRADAS NO DEBERÁN SER CONSIDERADAS EN ESTE CAMPO.
A104: PÓLIZA NO CONCENTRADA | E104: =E101-E100 -> 0 | F104: =F101-F100 -> 0 | G104: 19959910 | H104: 18882990 | I104: 1826210 | J104: 1394714 | K104: 779196 | L104: 426856 | M104: 3688342 | N104: 172871 | O104: 134754 | P104: 108918 | Q104: 61051 | R104: 41954 | S104: 35399 | T104: 41002 | U104: 47554167

Sheet 2A (G) (hidden)
A2: 2 a. EXPUESTOS EN LA OPERACIÓN DE VIDA POR TIPO DE SEGURO,
A3: AÑOS DE ANTIGÜEDAD Y EDAD ALCANZADA
A5: DICIEMBRE DE 2017
A7: VIDA INDIVIDUAL
E10: 2 | F10: 3 | G10: 4 | H10: 5 | I10: 6 | J10: 7 | K10: 8 | L10: 9 | M10: 10 | N10: 11 | O10: 12 | P10: 13 | Q10: 14 | R10: 15 | S10: 16 | T10: 17
A11: EDAD | E11: SALDADO Y | G11: PÓLIZAS O CERTIFICADOS EN VIGOR CON ANTIGÜEDAD MENOR O IGUAL A:
A12: ALCANZADA | E12: PRORROGADO | G12: 1 año | I12: 2 años | K12: 3 años | M12: 4 años | O12: 5 años | Q12: 6 años | S12: más de 6 años | U12: TOTAL
E13: H | F13: M | G13: H | H13: M | I13: H | J13: M | K13: H | L13: M | M13: H | N13: M | O13: H | P13: M | Q13: H | R13: M | S13: H | T13: M
B14: 0 a 15 | E14: 0 | F14: 0 | G14: 29817 | H14: 28265 | I14: 57 | J14: 37 | K14: 0 | L14: 0 | M14: 130 | N14: 0 | O14: 0 | P14: 0 | Q14: 0 | R14: 0 | S14: 0 | T14: 0 | U14: =SUM(E14:T14) -> 58306
B15: 16 | E15: 0 | F15: 0 | G15: 11050 | H15: 10406 | I15: 457 | J15: 2 | K15: 0 | L15: 0 | M15: 0 | N15: 0 | O15: 0 | P15: 0 | Q15: 0 | R15: 0 | S15: 0 | T15: 0 | U15: =SUM(E15:T15) -> 21915
B16: 17 | E16: 0 | F16: 0 | G16: 19478 | H16: 16640 | I16: 24 | J16: 5 | K16: 0 | L16: 0 | M16: 0 | N16: 0 | O16: 0 | P16: 0 | Q16: 0 | R16: 0 | S16: 0 | T16: 0 | U16: 36147
B17: 18 | E17: 0 | F17: 0 | G17: 52395 | H17: 29668 | I17: 50165 | J17: 34 | K17: 0 | L17: 0 | M17: 0 | N17: 0 | O17: 0 | P17: 0 | Q17: 0 | R17: 0 | S17: 0 | T17: 1 | U17: 132263
B18: 19 | E18: 0 | F18: 0 | G18: 110653 | H18: 94406 | I18: 201725 | J18: 5439 | K18: 3 | L18: 3 | M18: 0 | N18: 0 | O18: 0 | P18: 0 | Q18: 0 | R18: 0 | S18: 11 | T18: 6 | U18: 412246
B19: 20 | E19: 0 | F19: 0 | G19: 174622 | H19: 150983 | I19: 213422 | J19: 10118 | K19: 59 | L19: 27 | M19: 0 | N19: 0 | O19: 0 | P19: 0 | Q19: 0 | R19: 0 | S19: 32 | T19: 23 | U19: 549286
B20: 21 | E20: 0 | F20: 0 | G20: 199287 | H20: 167028 | I20: 198212 | J20: 12655 | K20: 748 | L20: 436 | M20: 16 | N20: 11 | O20: 0 | P20: 0 | Q20: 0 | R20: 0 | S20: 90 | T20: 42 | U20: 578525
B21: 22 | E21: 0 | F21: 0 | G21: 242162 | H21: 201205 | I21: 193710 | J21: 14273 | K21: 2132 | L21: 1213 | M21: 238 | N21: 125 | O21: 13 | P21: 6 | Q21: 0 | R21: 0 | S21: 142 | T21: 90 | U21: 655309
B22: 23 | E22: 0 | F22: 0 | G22: 254325 | H22: 211421 | I22: 195547 | J22: 15841 | K22: 3684 | L22: 2022 | M22: 708 | N22: 352 | O22: 153 | P22: 86 | Q22: 0 | R22: 1 | S22: 249 | T22: 179 | U22: 684568
B23: 24 | E23: 0 | F23: 0 | G23: 286246 | H23: 240424 | I23: 208177 | J23: 17972 | K23: 4899 | L23: 2702 | M23: 1766 | N23: 964 | O23: 458 | P23: 246 | Q23: 3 | R23: 7 | S23: 488 | T23: 280 | U23: 764632
B24: 25 | E24: 0 | F24: 0 | G24: 327496 | H24: 278307 | I24: 210510 | J24: 21277 | K24: 6626 | L24: 3853 | M24: 2799 | N24: 1535 | O24: 836 | P24: 412 | Q24: 22 | R24: 19 | S24: 722 | T24: 419 | U24: 854833
B25: 26 | E25: 0 | F25: 0 | G25: 359622 | H25: 307787 | I25: 220364 | J25: 23973 | K25: 8253 | L25: 5084 | M25: 3714 | N25: 2383 | O25: 1283 | P25: 623 | Q25: 25 | R25: 23 | S25: 872 | T25: 639 | U25: 934645
B26: 27 | E26: 0 | F26: 0 | G26: 379712 | H26: 327422 | I26: 227124 | J26: 26173 | K26: 9830 | L26: 6486 | M26: 4804 | N26: 3338 | O26: 1827 | P26: 950 | Q26: 50 | R26: 57 | S26: 1340 | T26: 1087 | U26: 990200
B27: 28 | E27: 0 | F27: 0 | G27: 403568 | H27: 347133 | I27: 234421 | J27: 27715 | K27: 11106 | L27: 7393 | M27: 6154 | N27: 4220 | O27: 2275 | P27: 1399 | Q27: 63 | R27: 73 | S27: 1369 | T27: 1080 | U27: 1047969
B28: 29 | E28: 0 | F28: 0 | G28: 409205 | H28: 352459 | I28: 236099 | J28: 28530 | K28: 12049 | L28: 8121 | M28: 7483 | N28: 5064 | O28: 2825 | P28: 1810 | Q28: 99 | R28: 104 | S28: 1415 | T28: 1016 | U28: 1066279
B29: 30 | E29: 0 | F29: 0 | G29: 424907 | H29: 369016 | I29: 248420 | J29: 29310 | K29: 12931 | L29: 8841 | M29: 8446 | N29: 5926 | O29: 3393 | P29: 2276 | Q29: 107 | R29: 124 | S29: 1645 | T29: 1088 | U29: 1116430
B30: 31 | E30: 0 | F30: 0 | G30: 423903 | H30: 373493 | I30: 240807 | J30: 29548 | K30: 13152 | L30: 9283 | M30: 9369 | N30: 6571 | O30: 3580 | P30: 2618 | Q30: 137 | R30: 154 | S30: 1795 | T30: 1156 | U30: 1115566
B31: 32 | E31: 0 | F31: 0 | G31: 425859 | H31: 379788 | I31: 241195 | J31: 29491 | K31: 13376 | L31: 9172 | M31: 9850 | N31: 6788 | O31: 3900 | P31: 2709 | Q31: 135 | R31: 190 | S31: 1812 | T31: 1329 | U31: 1125594
B32: 33 | E32: 0 | F32: 0 | G32: 422002 | H32: 381309 | I32: 238084 | J32: 29299 | K32: 13279 | L32: 9445 | M32: 10057 | N32: 7138 | O32: 4078 | P32: 2783 | Q32: 142 | R32: 185 | S32: 1845 | T32: 1180 | U32: 1120826
B33: 34 | E33: 0 | F33: 0 | G33: 429141 | H33: 390295 | I33: 239383 | J33: 29976 | K33: 13466 | L33: 9381 | M33: 10464 | N33: 7592 | O33: 4356 | P33: 2948 | Q33: 160 | R33: 205 | S33: 2102 | T33: 1602 | U33: 1141071
B34: 35 | E34: 0 | F34: 0 | G34: 428864 | H34: 390828 | I34: 240277 | J34: 29484 | K34: 13661 | L34: 9564 | M34: 10719 | N34: 7449 | O34: 4573 | P34: 2943 | Q34: 189 | R34: 209 | S34: 2055 | T34: 1311 | U34: 1142126
B35: 36 | E35: 0 | F35: 0 | G35: 431644 | H35: 396088 | I35: 236879 | J35: 29590 | K35: 13895 | L35: 9530 | M35: 11105 | N35: 7530 | O35: 4561 | P35: 3061 | Q35: 212 | R35: 204 | S35: 2174 | T35: 1677 | U35: 1148150
B36: 37 | E36: 0 | F36: 0 | G36: 433239 | H36: 400301 | I36: 234667 | J36: 29846 | K36: 13655 | L36: 9653 | M36: 11232 | N36: 7465 | O36: 4728 | P36: 3090 | Q36: 220 | R36: 227 | S36: 2107 | T36: 1339 | U36: 1151769
B37: 38 | E37: 0 | F37: 0 | G37: 433876 | H37: 395986 | I37: 231275 | J37: 29605 | K37: 13766 | L37: 9588 | M37: 11265 | N37: 7388 | O37: 4720 | P37: 3039 | Q37: 183 | R37: 197 | S37: 2060 | T37: 1386 | U37: 1144334
B38: 39 | E38: 0 | F38: 0 | G38: 431425 | H38: 393505 | I38: 224612 | J38: 28885 | K38: 12923 | L38: 9252 | M38: 10947 | N38: 7373 | O38: 4576 | P38: 2995 | Q38: 180 | R38: 193 | S38: 2162 | T38: 1568 | U38: 1130596
B39: 40 | E39: 0 | F39: 0 | G39: 626919 | H39: 1496441 | I39: 228339 | J39: 28904 | K39: 12964 | L39: 9325 | M39: 11073 | N39: 7143 | O39: 4640 | P39: 2912 | Q39: 278 | R39: 214 | S39: 2041 | T39: 1660 | U39: 2432853
B40: 41 | E40: 0 | F40: 0 | G40: 411575 | H40: 375249 | I40: 218339 | J40: 30415 | K40: 12682 | L40: 8787 | M40: 10633 | N40: 7280 | O40: 4485 | P40: 2876 | Q40: 52773 | R40: 34099 | S40: 13012 | T40: 13236 | U40: 1195441
B41: 42 | E41: 0 | F41: 0 | G41: 409641 | H41: 374955 | I41: 213863 | J41: 28344 | K41: 12321 | L41: 8832 | M41: 9903 | N41: 6827 | O41: 4277 | P41: 2822 | Q41: 207 | R41: 191 | S41: 2076 | T41: 1292 | U41: 1075551
B42: 43 | E42: 0 | F42: 0 | G42: 413926 | H42: 375920 | I42: 214869 | J42: 28462 | K42: 11993 | L42: 9681 | M42: 10094 | N42: 6877 | O42: 4307 | P42: 2717 | Q42: 175 | R42: 144 | S42: 2035 | T42: 1537 | U42: 1082737
B43: 44 | E43: 0 | F43: 0 | G43: 408697 | H43: 370587 | I43: 210054 | J43: 28059 | K43: 12276 | L43: 8622 | M43: 10030 | N43: 6683 | O43: 4039 | P43: 2717 | Q43: 164 | R43: 164 | S43: 1945 | T43: 1270 | U43: 1065307
B44: 45 | E44: 0 | F44: 0 | G44: 411842 | H44: 376037 | I44: 211479 | J44: 28171 | K44: 11845 | L44: 8586 | M44: 10286 | N44: 6792 | O44: 4319 | P44: 2708 | Q44: 116 | R44: 115 | S44: 2064 | T44: 1362 | U44: 1075722
B45: 46 | E45: 0 | F45: 0 | G45: 420588 | H45: 382360 | I45: 212880 | J45: 28689 | K45: 11982 | L45: 8601 | M45: 10287 | N45: 6756 | O45: 4267 | P45: 2840 | Q45: 172 | R45: 145 | S45: 2189 | T45: 1498 | U45: 1093254
B46: 47 | E46: 0 | F46: 0 | G46: 414812 | H46: 375131 | I46: 207137 | J46: 28225 | K46: 11866 | L46: 8785 | M46: 9929 | N46: 6711 | O46: 4182 | P46: 2577 | Q46: 139 | R46: 125 | S46: 2198 | T46: 1446 | U46: 1073263
B47: 48 | E47: 0 | F47: 0 | G47: 408604 | H47: 370256 | I47: 206235 | J47: 28172 | K47: 11698 | L47: 8522 | M47: 9616 | N47: 6330 | O47: 3861 | P47: 2689 | Q47: 143 | R47: 163 | S47: 2013 | T47: 1371 | U47: 1059673
B48: 49 | E48: 0 | F48: 0 | G48: 391258 | H48: 394543 | I48: 194324 | J48: 26852 | K48: 11074 | L48: 8313 | M48: 9088 | N48: 6276 | O48: 3896 | P48: 2686 | Q48: 142 | R48: 124 | S48: 2134 | T48: 1317 | U48: 1052027
B49: 50 | E49: 0 | F49: 0 | G49: 377622 | H49: 342661 | I49: 191052 | J49: 26554 | K49: 10740 | L49: 8034 | M49: 8745 | N49: 6049 | O49: 3535 | P49: 2493 | Q49: 134 | R49: 134 | S49: 1971 | T49: 1411 | U49: 981135
B50: 51 | E50: 0 | F50: 0 | G50: 363856 | H50: 333820 | I50: 177654 | J50: 25128 | K50: 10020 | L50: 7777 | M50: 8412 | N50: 5890 | O50: 3432 | P50: 2428 | Q50: 127 | R50: 119 | S50: 1839 | T50: 1298 | U50: 941800
B51: 52 | E51: 0 | F51: 0 | G51: 346473 | H51: 327465 | I51: 169405 | J51: 24250 | K51: 9643 | L51: 7658 | M51: 7889 | N51: 5594 | O51: 3416 | P51: 2176 | Q51: 123 | R51: 129 | S51: 1911 | T51: 1281 | U51: 907413
B52: 53 | E52: 0 | F52: 0 | G52: 331752 | H52: 321221 | I52: 162395 | J52: 23293 | K52: 8982 | L52: 7184 | M52: 7483 | N52: 5388 | O52: 3146 | P52: 2297 | Q52: 117 | R52: 120 | S52: 1728 | T52: 1312 | U52: 876418
B53: 54 | E53: 0 | F53: 0 | G53: 326090 | H53: 308952 | I53: 156724 | J53: 22621 | K53: 8636 | L53: 7062 | M53: 7289 | N53: 5066 | O53: 3075 | P53: 2228 | Q53: 106 | R53: 95 | S53: 1730 | T53: 1198 | U53: 850872
B54: 55 | E54: 0 | F54: 0 | G54: 320881 | H54: 296168 | I54: 151097 | J54: 22187 | K54: 8658 | L54: 6924 | M54: 7170 | N54: 5171 | O54: 2966 | P54: 2093 | Q54: 114 | R54: 119 | S54: 1764 | T54: 1214 | U54: 826526
B55: 56 | E55: 0 | F55: 0 | G55: 302730 | H55: 285047 | I55: 145093 | J55: 21416 | K55: 8158 | L55: 7006 | M55: 7067 | N55: 4999 | O55: 2921 | P55: 2017 | Q55: 100 | R55: 102 | S55: 1765 | T55: 1241 | U55: 789662
B56: 57 | E56: 0 | F56: 0 | G56: 291145 | H56: 274802 | I56: 137749 | J56: 20405 | K56: 8198 | L56: 6900 | M56: 6771 | N56: 4903 | O56: 2737 | P56: 1948 | Q56: 93 | R56: 102 | S56: 1722 | T56: 1234 | U56: 758709
B57: 58 | E57: 0 | F57: 0 | G57: 276261 | H57: 257496 | I57: 131365 | J57: 19464 | K57: 7658 | L57: 6343 | M57: 6498 | N57: 4655 | O57: 2748 | P57: 1932 | Q57: 88 | R57: 90 | S57: 1598 | T57: 1252 | U57: 717448
B58: 59 | E58: 0 | F58: 0 | G58: 260225 | H58: 240189 | I58: 124067 | J58: 18571 | K58: 7471 | L58: 6074 | M58: 5934 | N58: 4477 | O58: 2602 | P58: 1879 | Q58: 87 | R58: 102 | S58: 1582 | T58: 1244 | U58: 674504
B59: 60 | E59: 0 | F59: 0 | G59: 249903 | H59: 227907 | I59: 119716 | J59: 17577 | K59: 7082 | L59: 6050 | M59: 5756 | N59: 4263 | O59: 2401 | P59: 1897 | Q59: 77 | R59: 104 | S59: 1617 | T59: 1102 | U59: 645452
B60: 61 | E60: 0 | F60: 0 | G60: 271505 | H60: 275637 | I60: 110814 | J60: 16389 | K60: 6707 | L60: 5543 | M60: 5485 | N60: 3746 | O60: 2366 | P60: 1788 | Q60: 90 | R60: 72 | S60: 1565 | T60: 1108 | U60: 702815
B61: 62 | E61: 0 | F61: 0 | G61: 212172 | H61: 183731 | I61: 100662 | J61: 15030 | K61: 6645 | L61: 5154 | M61: 5012 | N61: 3565 | O61: 1991 | P61: 1557 | Q61: 90 | R61: 74 | S61: 1519 | T61: 1031 | U61: 538233
B62: 63 | E62: 0 | F62: 0 | G62: 202877 | H62: 172270 | I62: 95788 | J62: 14802 | K62: 7074 | L62: 5332 | M62: 5114 | N62: 3392 | O62: 2007 | P62: 1454 | Q62: 88 | R62: 71 | S62: 1545 | T62: 1012 | U62: 512826
B63: 64 | E63: 0 | F63: 0 | G63: 185699 | H63: 152085 | I63: 88219 | J63: 13111 | K63: 7045 | L63: 4921 | M63: 4823 | N63: 3163 | O63: 1975 | P63: 1341 | Q63: 78 | R63: 74 | S63: 1416 | T63: 866 | U63: 464816
B64: 65 | E64: 0 | F64: 0 | G64: 176339 | H64: 140751 | I64: 91229 | J64: 12524 | K64: 6708 | L64: 4754 | M64: 4484 | N64: 3027 | O64: 1670 | P64: 1262 | Q64: 124 | R64: 64 | S64: 1334 | T64: 921 | U64: =SUM(E64:T64) -> 445191
B65: 66 | E65: 0 | F65: 0 | G65: 161387 | H65: 126068 | I65: 73619 | J65: 11364 | K65: 6385 | L65: 4281 | M65: 3933 | N65: 2579 | O65: 1591 | P65: 1189 | Q65: 67 | R65: 64 | S65: 1407 | T65: 867 | U65: 394801
B66: 67 | E66: 0 | F66: 0 | G66: 143886 | H66: 110461 | I66: 63339 | J66: 10207 | K66: 5835 | L66: 3957 | M66: 3631 | N66: 2389 | O66: 1549 | P66: 1050 | Q66: 46 | R66: 52 | S66: 1190 | T66: 803 | U66: 348395
B67: 68 | E67: 0 | F67: 0 | G67: 128939 | H67: 98294 | I67: 57583 | J67: 9333 | K67: 5377 | L67: 3663 | M67: 3442 | N67: 2098 | O67: 1395 | P67: 951 | Q67: 52 | R67: 29 | S67: 1090 | T67: 733 | U67: 312979
B68: 69 | E68: 0 | F68: 0 | G68: 116847 | H68: 87209 | I68: 52009 | J68: 8348 | K68: 5023 | L68: 3415 | M68: 3105 | N68: 1962 | O68: 1313 | P68: 896 | Q68: 45 | R68: 38 | S68: 955 | T68: 697 | U68: 281862
B69: 70 | E69: 0 | F69: 0 | G69: 105692 | H69: 76349 | I69: 46901 | J69: 7756 | K69: 4894 | L69: 3234 | M69: 2901 | N69: 1787 | O69: 1207 | P69: 801 | Q69: 31 | R69: 31 | S69: 905 | T69: 642 | U69: 253131
B70: 71 | E70: 0 | F70: 0 | G70: 87100 | H70: 60816 | I70: 37972 | J70: 6922 | K70: 4678 | L70: 2831 | M70: 2654 | N70: 1616 | O70: 1042 | P70: 740 | Q70: 28 | R70: 28 | S70: 734 | T70: 554 | U70: 207715
B71: 72 | E71: 0 | F71: 0 | G71: 74083 | H71: 51675 | I71: 31351 | J71: 5528 | K71: 4020 | L71: 2540 | M71: 2293 | N71: 1351 | O71: 1120 | P71: 740 | Q71: 31 | R71: 24 | S71: 666 | T71: 508 | U71: 175930
B72: 73 | E72: 0 | F72: 0 | G72: 66267 | H72: 45559 | I72: 26062 | J72: 4365 | K72: 2640 | L72: 1638 | M72: 1922 | N72: 1183 | O72: 1083 | P72: 741 | Q72: 27 | R72: 15 | S72: 542 | T72: 438 | U72: 152482
B73: 74 | E73: 0 | F73: 0 | G73: 54686 | H73: 38275 | I73: 20234 | J73: 3016 | K73: 1674 | L73: 1096 | M73: 1197 | N73: 679 | O73: 698 | P73: 422 | Q73: 18 | R73: 11 | S73: 453 | T73: 365 | U73: 122824
B74: 75 | E74: 0 | F74: 0 | G74: 46627 | H74: 33146 | I74: 15689 | J74: 2224 | K74: 1082 | L74: 691 | M74: 546 | N74: 293 | O74: 229 | P74: 160 | Q74: 49 | R74: 31 | S74: 322 | T74: 283 | U74: 101372
B75: 76 | E75: 0 | F75: 0 | G75: 36676 | H75: 26068 | I75: 12867 | J75: 1816 | K75: 721 | L75: 458 | M75: 320 | N75: 134 | O75: 18 | P75: 9 | Q75: 45 | R75: 20 | S75: 322 | T75: 261 | U75: 79735
B76: 77 | E76: 0 | F76: 0 | G76: 30711 | H76: 22147 | I76: 9708 | J76: 960 | K76: 752 | L76: 494 | M76: 279 | N76: 136 | O76: 13 | P76: 7 | Q76: 10 | R76: 8 | S76: 328 | T76: 251 | U76: 65804
B77: 78 | E77: 0 | F77: 0 | G77: 25861 | H77: 19215 | I77: 6984 | J77: 356 | K77: 492 | L77: 238 | M77: 239 | N77: 106 | O77: 14 | P77: 8 | Q77: 7 | R77: 8 | S77: 346 | T77: 277 | U77: 54151
B78: 79 | E78: 0 | F78: 0 | G78: 21026 | H78: 15856 | I78: 5062 | J78: 295 | K78: 332 | L78: 158 | M78: 227 | N78: 72 | O78: 13 | P78: 3 | Q78: 6 | R78: 9 | S78: 237 | T78: 224 | U78: 43520
B79: 80 | E79: 0 | F79: 0 | G79: 17146 | H79: 13847 | I79: 4020 | J79: 284 | K79: 311 | L79: 141 | M79: 171 | N79: 72 | O79: 5 | P79: 3 | Q79: 0 | R79: 2 | S79: 196 | T79: 170 | U79: 36368
B80: 81 | E80: 0 | F80: 0 | G80: 13531 | H80: 11566 | I80: 3069 | J80: 264 | K80: 315 | L80: 185 | M80: 153 | N80: 65 | O80: 4 | P80: 6 | Q80: 4 | R80: 1 | S80: 171 | T80: 157 | U80: 29491
B81: 82 | E81: 0 | F81: 0 | G81: 11562 | H81: 9830 | I81: 2523 | J81: 189 | K81: 282 | L81: 180 | M81: 169 | N81: 99 | O81: 7 | P81: 4 | Q81: 2 | R81: 2 | S81: 129 | T81: 133 | U81: 25111
B82: 83 | E82: 0 | F82: 0 | G82: 9725 | H82: 8349 | I82: 1662 | J82: 59 | K82: 243 | L82: 155 | M82: 176 | N82: 114 | O82: 5 | P82: 4 | Q82: 4 | R82: 2 | S82: 119 | T82: 120 | U82: 20737
B83: 84 | E83: 0 | F83: 0 | G83: 8745 | H83: 7342 | I83: 1292 | J83: 12 | K83: 75 | L83: 41 | M83: 77 | N83: 46 | O83: 7 | P83: 4 | Q83: 2 | R83: 1 | S83: 115 | T83: 105 | U83: 17864
B84: 85 | E84: 0 | F84: 0 | G84: 7405 | H84: 6379 | I84: 1034 | J84: 11 | K84: 3 | L84: 1 | M84: 11 | N84: 5 | O84: 0 | P84: 0 | Q84: 0 | R84: 1 | S84: 102 | T84: 91 | U84: 15043
B85: 86 | E85: 0 | F85: 0 | G85: 6082 | H85: 5104 | I85: 790 | J85: 11 | K85: 1 | L85: 0 | M85: 1 | N85: 1 | O85: 0 | P85: 0 | Q85: 2 | R85: 1 | S85: 86 | T85: 77 | U85: 12156
B86: 87 | E86: 0 | F86: 0 | G86: 4995 | H86: 4176 | I86: 585 | J86: 10 | K86: 0 | L86: 0 | M86: 1 | N86: 0 | O86: 0 | P86: 0 | Q86: 0 | R86: 0 | S86: 71 | T86: 83 | U86: 9921
B87: 88 | E87: 0 | F87: 0 | G87: 4055 | H87: 3509 | I87: 478 | J87: 5 | K87: 0 | L87: 0 | M87: 1 | N87: 1 | O87: 0 | P87: 0 | Q87: 4 | R87: 0 | S87: 77 | T87: 55 | U87: 8185
B88: 89 | E88: 0 | F88: 0 | G88: 3485 | H88: 2891 | I88: 367 | J88: 3 | K88: 0 | L88: 0 | M88: 1 | N88: 0 | O88: 1 | P88: 1 | Q88: 1 | R88: 0 | S88: 59 | T88: 52 | U88: 6861
B89: 90 | E89: 0 | F89: 0 | G89: 2927 | H89: 2538 | I89: 325 | J89: 7 | K89: 1 | L89: 0 | M89: 0 | N89: 0 | O89: 0 | P89: 0 | Q89: 0 | R89: 0 | S89: 57 | T89: 45 | U89: 5900
B90: 91 | E90: 0 | F90: 0 | G90: 2120 | H90: 1835 | I90: 226 | J90: 4 | K90: 0 | L90: 0 | M90: 0 | N90: 0 | O90: 0 | P90: 0 | Q90: 0 | R90: 1 | S90: 42 | T90: 55 | U90: 4283
B91: 92 | E91: 0 | F91: 0 | G91: 1604 | H91: 1355 | I91: 170 | J91: 1 | K91: 0 | L91: 0 | M91: 0 | N91: 0 | O91: 0 | P91: 0 | Q91: 0 | R91: 1 | S91: 43 | T91: 37 | U91: 3211
B92: 93 | E92: 0 | F92: 0 | G92: 1273 | H92: 1157 | I92: 16 | J92: 0 | K92: 0 | L92: 0 | M92: 0 | N92: 0 | O92: 0 | P92: 0 | Q92: 0 | R92: 0 | S92: 26 | T92: 26 | U92: 2498
B93: 94 | E93: 0 | F93: 0 | G93: 1028 | H93: 910 | I93: 18 | J93: 1 | K93: 1 | L93: 0 | M93: 0 | N93: 0 | O93: 1 | P93: 0 | Q93: 0 | R93: 0 | S93: 32 | T93: 28 | U93: 2019
B94: 95 | E94: 0 | F94: 0 | G94: 818 | H94: 680 | I94: 12 | J94: 1 | K94: 0 | L94: 0 | M94: 0 | N94: 0 | O94: 0 | P94: 0 | Q94: 0 | R94: 0 | S94: 27 | T94: 20 | U94: 1558
B95: 96 | E95: 0 | F95: 0 | G95: 558 | H95: 528 | I95: 10 | J95: 1 | K95: 0 | L95: 0 | M95: 0 | N95: 0 | O95: 0 | P95: 0 | Q95: 1 | R95: 0 | S95: 17 | T95: 13 | U95: 1128
B96: 97 | E96: 0 | F96: 0 | G96: 551 | H96: 370 | I96: 5 | J96: 0 | K96: 0 | L96: 0 | M96: 0 | N96: 0 | O96: 0 | P96: 0 | Q96: 0 | R96: 0 | S96: 19 | T96: 22 | U96: 967
B97: 98 | E97: 0 | F97: 0 | G97: 471 | H97: 433 | I97: 7 | J97: 0 | K97: 0 | L97: 0 | M97: 0 | N97: 0 | O97: 0 | P97: 0 | Q97: 0 | R97: 0 | S97: 16 | T97: 18 | U97: 945
B98: 99 | E98: 0 | F98: 0 | G98: 476 | H98: 505 | I98: 2 | J98: 0 | K98: 0 | L98: 0 | M98: 0 | N98: 0 | O98: 0 | P98: 0 | Q98: 0 | R98: 0 | S98: 8 | T98: 5 | U98: 996
A99: De | B99: 100 o mas | C99: años y más | E99: 0 | F99: 0 | G99: 571 | H99: 427 | I99: 139 | J99: 3 | K99: 0 | L99: 0 | M99: 0 | N99: 0 | O99: 0 | P99: 0 | Q99: 0 | R99: 0 | S99: 24 | T99: 38 | U99: =SUM(E99:T99) -> 1202
A100: PÓLIZA CONCENTRADA | E100: 0 | F100: 0 | G100: 14168268 | H100: 2802679 | I100: 1514370 | J100: 231404 | K100: 627648 | L100: 0 | M100: 0 | N100: 0 | O100: 4252492 | P100: 8990018 | Q100: 0 | R100: 0 | S100: 0 | T100: 2 | U100: =SUM(E100:T100) -> 32586881
A101: TOTAL | E101: =SUM(E14:E99) -> 0 | F101: 0 | G101: =SUM(G14:G100) -> 31725074 | H101: =SUM(H14:H100) -> 19363392 | I101: =SUM(I14:I100) -> 11026661 | J101: 1401453 | K101: 1116404 | L101: 351216 | M101: 363587 | N101: 247023 | O101: 4401203 | P101: 9090085 | Q101: 58354 | R101: 39607 | S101: 95733 | T101: 71467 | U101: =SUM(E101:T101) -> 79351259
A103: NOTA: ESTE FORMATO ES PARA PÓLIZAS DEL SEGURO INDIVIDUAL EMITIDAS A PARTIR DEL 1° DE ENERO DE 1994.
A104: PÓLIZA NO CONCENTRADA | E104: =E101-E100 -> 0 | F104: =F101-F100 -> 0 | G104: 17556806 | H104: 16560713 | I104: 9512291 | J104: 1170049 | K104: 488756 | L104: 351216 | M104: 363587 | N104: 247023 | O104: 148711 | P104: 100067 | Q104: 58354 | R104: 39607 | S104: 95733 | T104: 71465 | U104: 46764378

Sheet 2B (G) (hidden)
A2: 2 a. EXPUESTOS EN LA OPERACIÓN DE VIDA POR TIPO DE SEGURO,
A3: AÑOS DE ANTIGÜEDAD Y EDAD ALCANZADA
A5: DICIEMBRE DE 2017
A7: VIDA INDIVIDUAL
E10: 2 | F10: 3 | G10: 4 | H10: 5 | I10: 6 | J10: 7 | K10: 8 | L10: 9 | M10: 10 | N10: 11 | O10: 12 | P10: 13 | Q10: 14 | R10: 15 | S10: 16 | T10: 17
A11: EDAD | E11: SALDADO Y | G11: PÓLIZAS O CERTIFICADOS EN VIGOR CON ANTIGÜEDAD MENOR O IGUAL A:
A12: ALCANZADA | E12: PRORROGADO | G12: 1 año | I12: 2 años | K12: 3 años | M12: 4 años | O12: 5 años | Q12: 6 años | S12: más de 6 años | U12: TOTAL
E13: H | F13: M | G13: H | H13: M | I13: H | J13: M | K13: H | L13: M | M13: H | N13: M | O13: H | P13: M | Q13: H | R13: M | S13: H | T13: M
B14: 0 a 15 | E14: 0 | F14: 0 | G14: 0 | H14: 0 | I14: 0 | J14: 0 | K14: 0 | L14: 0 | M14: 0 | N14: 0 | O14: 0 | P14: 0 | Q14: 0 | R14: 0 | S14: 0 | T14: 0 | U14: =SUM(E14:T14) -> 0
B15: 16 | E15: 0 | F15: 0 | G15: 0 | H15: 0 | I15: 0 | J15: 0 | K15: 0 | L15: 0 | M15: 0 | N15: 0 | O15: 0 | P15: 0 | Q15: 0 | R15: 0 | S15: 0 | T15: 0 | U15: =SUM(E15:T15) -> 0
B16: 17 | E16: 0 | F16: 0 | G16: 0 | H16: 0 | I16: 0 | J16: 0 | K16: 0 | L16: 0 | M16: 0 | N16: 0 | O16: 0 | P16: 0 | Q16: 0 | R16: 0 | S16: 0 | T16: 0 | U16: 0
B17: 18 | E17: 0 | F17: 0 | G17: 0 | H17: 0 | I17: 0 | J17: 0 | K17: 0 | L17: 0 | M17: 0 | N17: 0 | O17: 0 | P17: 0 | Q17: 0 | R17: 0 | S17: 0 | T17: 0 | U17: 0
B18: 19 | E18: 0 | F18: 0 | G18: 0 | H18: 0 | I18: 0 | J18: 0 | K18: 0 | L18: 0 | M18: 0 | N18: 0 | O18: 0 | P18: 0 | Q18: 0 | R18: 0 | S18: 0 | T18: 0 | U18: 0
B19: 20 | E19: 0 | F19: 0 | G19: 0 | H19: 0 | I19: 0 | J19: 0 | K19: 0 | L19: 0 | M19: 0 | N19: 0 | O19: 0 | P19: 0 | Q19: 0 | R19: 0 | S19: 0 | T19: 0 | U19: 0
B20: 21 | E20: 0 | F20: 0 | G20: 0 | H20: 0 | I20: 0 | J20: 0 | K20: 0 | L20: 0 | M20: 0 | N20: 0 | O20: 0 | P20: 0 | Q20: 0 | R20: 0 | S20: 0 | T20: 0 | U20: 0
B21: 22 | E21: 0 | F21: 0 | G21: 0 | H21: 0 | I21: 0 | J21: 0 | K21: 0 | L21: 0 | M21: 0 | N21: 0 | O21: 0 | P21: 0 | Q21: 0 | R21: 0 | S21: 0 | T21: 0 | U21: 0
B22: 23 | E22: 0 | F22: 0 | G22: 0 | H22: 0 | I22: 0 | J22: 0 | K22: 0 | L22: 0 | M22: 0 | N22: 0 | O22: 0 | P22: 0 | Q22: 0 | R22: 0 | S22: 0 | T22: 0 | U22: 0
B23: 24 | E23: 0 | F23: 0 | G23: 0 | H23: 0 | I23: 0 | J23: 0 | K23: 0 | L23: 0 | M23: 0 | N23: 0 | O23: 0 | P23: 0 | Q23: 0 | R23: 0 | S23: 0 | T23: 0 | U23: 0
B24: 25 | E24: 0 | F24: 0 | G24: 0 | H24: 0 | I24: 0 | J24: 0 | K24: 0 | L24: 0 | M24: 0 | N24: 0 | O24: 0 | P24: 0 | Q24: 0 | R24: 0 | S24: 0 | T24: 0 | U24: 0
B25: 26 | E25: 0 | F25: 0 | G25: 0 | H25: 0 | I25: 0 | J25: 0 | K25: 0 | L25: 0 | M25: 0 | N25: 0 | O25: 0 | P25: 0 | Q25: 0 | R25: 0 | S25: 0 | T25: 0 | U25: 0
B26: 27 | E26: 0 | F26: 0 | G26: 0 | H26: 0 | I26: 0 | J26: 0 | K26: 0 | L26: 0 | M26: 0 | N26: 0 | O26: 0 | P26: 0 | Q26: 0 | R26: 0 | S26: 0 | T26: 0 | U26: 0
B27: 28 | E27: 0 | F27: 0 | G27: 0 | H27: 0 | I27: 0 | J27: 0 | K27: 0 | L27: 0 | M27: 0 | N27: 0 | O27: 0 | P27: 0 | Q27: 0 | R27: 0 | S27: 0 | T27: 0 | U27: 0
B28: 29 | E28: 0 | F28: 0 | G28: 0 | H28: 0 | I28: 0 | J28: 0 | K28: 0 | L28: 0 | M28: 0 | N28: 0 | O28: 0 | P28: 0 | Q28: 0 | R28: 0 | S28: 0 | T28: 0 | U28: 0
B29: 30 | E29: 0 | F29: 0 | G29: 0 | H29: 0 | I29: 0 | J29: 0 | K29: 0 | L29: 0 | M29: 0 | N29: 0 | O29: 0 | P29: 0 | Q29: 0 | R29: 0 | S29: 0 | T29: 0 | U29: 0
B30: 31 | E30: 0 | F30: 0 | G30: 0 | H30: 0 | I30: 0 | J30: 0 | K30: 0 | L30: 0 | M30: 0 | N30: 0 | O30: 0 | P30: 0 | Q30: 0 | R30: 0 | S30: 23 | T30: 15 | U30: 38
B31: 32 | E31: 0 | F31: 0 | G31: 0 | H31: 0 | I31: 0 | J31: 0 | K31: 0 | L31: 0 | M31: 0 | N31: 0 | O31: 0 | P31: 0 | Q31: 0 | R31: 0 | S31: 87 | T31: 53 | U31: 140
B32: 33 | E32: 0 | F32: 0 | G32: 0 | H32: 0 | I32: 0 | J32: 0 | K32: 0 | L32: 0 | M32: 0 | N32: 0 | O32: 0 | P32: 0 | Q32: 0 | R32: 0 | S32: 272 | T32: 225 | U32: 497
B33: 34 | E33: 0 | F33: 0 | G33: 0 | H33: 0 | I33: 0 | J33: 0 | K33: 0 | L33: 0 | M33: 0 | N33: 0 | O33: 0 | P33: 0 | Q33: 0 | R33: 0 | S33: 459 | T33: 420 | U33: 879
B34: 35 | E34: 0 | F34: 0 | G34: 0 | H34: 0 | I34: 0 | J34: 0 | K34: 0 | L34: 0 | M34: 0 | N34: 0 | O34: 0 | P34: 0 | Q34: 0 | R34: 0 | S34: 488 | T34: 440 | U34: 928
B35: 36 | E35: 0 | F35: 0 | G35: 0 | H35: 0 | I35: 0 | J35: 0 | K35: 0 | L35: 0 | M35: 0 | N35: 0 | O35: 0 | P35: 0 | Q35: 0 | R35: 0 | S35: 523 | T35: 491 | U35: 1014
B36: 37 | E36: 0 | F36: 0 | G36: 0 | H36: 0 | I36: 0 | J36: 0 | K36: 0 | L36: 0 | M36: 0 | N36: 0 | O36: 0 | P36: 0 | Q36: 0 | R36: 0 | S36: 557 | T36: 619 | U36: 1176
B37: 38 | E37: 0 | F37: 0 | G37: 0 | H37: 0 | I37: 0 | J37: 0 | K37: 0 | L37: 0 | M37: 0 | N37: 0 | O37: 0 | P37: 0 | Q37: 0 | R37: 0 | S37: 513 | T37: 489 | U37: 1002
B38: 39 | E38: 0 | F38: 0 | G38: 0 | H38: 0 | I38: 0 | J38: 0 | K38: 0 | L38: 0 | M38: 0 | N38: 0 | O38: 0 | P38: 0 | Q38: 0 | R38: 0 | S38: 558 | T38: 644 | U38: 1202
B39: 40 | E39: 0 | F39: 0 | G39: 0 | H39: 0 | I39: 0 | J39: 0 | K39: 0 | L39: 0 | M39: 0 | N39: 0 | O39: 0 | P39: 0 | Q39: 0 | R39: 0 | S39: 533 | T39: 460 | U39: 993
B40: 41 | E40: 0 | F40: 0 | G40: 0 | H40: 0 | I40: 0 | J40: 0 | K40: 0 | L40: 0 | M40: 0 | N40: 0 | O40: 0 | P40: 0 | Q40: 0 | R40: 0 | S40: 448 | T40: 438 | U40: 886
B41: 42 | E41: 0 | F41: 0 | G41: 0 | H41: 0 | I41: 0 | J41: 0 | K41: 0 | L41: 0 | M41: 0 | N41: 0 | O41: 0 | P41: 0 | Q41: 0 | R41: 0 | S41: 383 | T41: 361 | U41: 744
B42: 43 | E42: 0 | F42: 0 | G42: 0 | H42: 0 | I42: 0 | J42: 0 | K42: 0 | L42: 0 | M42: 0 | N42: 0 | O42: 0 | P42: 0 | Q42: 0 | R42: 0 | S42: 250 | T42: 346 | U42: 596
B43: 44 | E43: 0 | F43: 0 | G43: 0 | H43: 0 | I43: 0 | J43: 0 | K43: 0 | L43: 0 | M43: 0 | N43: 0 | O43: 0 | P43: 0 | Q43: 0 | R43: 0 | S43: 227 | T43: 181 | U43: 408
B44: 45 | E44: 0 | F44: 0 | G44: 0 | H44: 0 | I44: 0 | J44: 0 | K44: 0 | L44: 0 | M44: 0 | N44: 0 | O44: 0 | P44: 0 | Q44: 0 | R44: 0 | S44: 170 | T44: 196 | U44: 366
B45: 46 | E45: 0 | F45: 0 | G45: 0 | H45: 0 | I45: 0 | J45: 0 | K45: 0 | L45: 0 | M45: 0 | N45: 0 | O45: 0 | P45: 0 | Q45: 0 | R45: 0 | S45: 185 | T45: 179 | U45: 364
B46: 47 | E46: 0 | F46: 0 | G46: 0 | H46: 0 | I46: 0 | J46: 0 | K46: 0 | L46: 0 | M46: 0 | N46: 0 | O46: 0 | P46: 0 | Q46: 0 | R46: 0 | S46: 173 | T46: 146 | U46: 319
B47: 48 | E47: 0 | F47: 0 | G47: 0 | H47: 0 | I47: 0 | J47: 0 | K47: 0 | L47: 0 | M47: 0 | N47: 0 | O47: 0 | P47: 0 | Q47: 0 | R47: 0 | S47: 157 | T47: 141 | U47: 298
B48: 49 | E48: 0 | F48: 0 | G48: 0 | H48: 0 | I48: 0 | J48: 0 | K48: 0 | L48: 0 | M48: 0 | N48: 0 | O48: 0 | P48: 0 | Q48: 0 | R48: 0 | S48: 136 | T48: 118 | U48: 254
B49: 50 | E49: 0 | F49: 0 | G49: 0 | H49: 0 | I49: 0 | J49: 0 | K49: 0 | L49: 0 | M49: 0 | N49: 0 | O49: 0 | P49: 0 | Q49: 0 | R49: 0 | S49: 96 | T49: 92 | U49: 188
B50: 51 | E50: 0 | F50: 0 | G50: 0 | H50: 0 | I50: 0 | J50: 0 | K50: 0 | L50: 0 | M50: 0 | N50: 0 | O50: 0 | P50: 0 | Q50: 0 | R50: 0 | S50: 1054 | T50: 2166 | U50: 3220
B51: 52 | E51: 0 | F51: 0 | G51: 0 | H51: 0 | I51: 0 | J51: 0 | K51: 0 | L51: 0 | M51: 0 | N51: 0 | O51: 0 | P51: 0 | Q51: 0 | R51: 0 | S51: 187 | T51: 114 | U51: 301
B52: 53 | E52: 0 | F52: 0 | G52: 0 | H52: 0 | I52: 0 | J52: 0 | K52: 0 | L52: 0 | M52: 0 | N52: 0 | O52: 0 | P52: 0 | Q52: 0 | R52: 0 | S52: 221 | T52: 159 | U52: 380
B53: 54 | E53: 0 | F53: 0 | G53: 0 | H53: 0 | I53: 0 | J53: 0 | K53: 0 | L53: 0 | M53: 0 | N53: 0 | O53: 0 | P53: 0 | Q53: 0 | R53: 0 | S53: 230 | T53: 151 | U53: 381
B54: 55 | E54: 0 | F54: 0 | G54: 0 | H54: 0 | I54: 0 | J54: 0 | K54: 0 | L54: 0 | M54: 0 | N54: 0 | O54: 0 | P54: 0 | Q54: 0 | R54: 0 | S54: 268 | T54: 208 | U54: 476
B55: 56 | E55: 0 | F55: 0 | G55: 0 | H55: 0 | I55: 0 | J55: 0 | K55: 0 | L55: 0 | M55: 0 | N55: 0 | O55: 0 | P55: 0 | Q55: 0 | R55: 0 | S55: 297 | T55: 168 | U55: 465
B56: 57 | E56: 0 | F56: 0 | G56: 0 | H56: 0 | I56: 0 | J56: 0 | K56: 0 | L56: 0 | M56: 0 | N56: 0 | O56: 0 | P56: 0 | Q56: 0 | R56: 0 | S56: 342 | T56: 225 | U56: 567
B57: 58 | E57: 0 | F57: 0 | G57: 0 | H57: 0 | I57: 0 | J57: 0 | K57: 0 | L57: 0 | M57: 0 | N57: 0 | O57: 0 | P57: 0 | Q57: 0 | R57: 0 | S57: 351 | T57: 211 | U57: 562
B58: 59 | E58: 0 | F58: 0 | G58: 0 | H58: 0 | I58: 0 | J58: 0 | K58: 0 | L58: 0 | M58: 0 | N58: 0 | O58: 0 | P58: 0 | Q58: 0 | R58: 0 | S58: 350 | T58: 203 | U58: 553
B59: 60 | E59: 0 | F59: 0 | G59: 0 | H59: 0 | I59: 0 | J59: 0 | K59: 0 | L59: 0 | M59: 0 | N59: 0 | O59: 0 | P59: 0 | Q59: 0 | R59: 0 | S59: 381 | T59: 265 | U59: 646
B60: 61 | E60: 0 | F60: 0 | G60: 0 | H60: 0 | I60: 0 | J60: 0 | K60: 0 | L60: 0 | M60: 0 | N60: 0 | O60: 0 | P60: 0 | Q60: 0 | R60: 0 | S60: 348 | T60: 191 | U60: 539
B61: 62 | E61: 0 | F61: 0 | G61: 0 | H61: 0 | I61: 0 | J61: 0 | K61: 0 | L61: 0 | M61: 0 | N61: 0 | O61: 0 | P61: 0 | Q61: 0 | R61: 0 | S61: 344 | T61: 187 | U61: 531
B62: 63 | E62: 0 | F62: 0 | G62: 0 | H62: 0 | I62: 0 | J62: 0 | K62: 0 | L62: 0 | M62: 0 | N62: 0 | O62: 0 | P62: 0 | Q62: 0 | R62: 0 | S62: 348 | T62: 223 | U62: 571
B63: 64 | E63: 0 | F63: 0 | G63: 0 | H63: 0 | I63: 0 | J63: 0 | K63: 0 | L63: 0 | M63: 0 | N63: 0 | O63: 0 | P63: 0 | Q63: 0 | R63: 0 | S63: 329 | T63: 217 | U63: 546
B64: 65 | E64: 0 | F64: 0 | G64: 0 | H64: 0 | I64: 0 | J64: 0 | K64: 0 | L64: 0 | M64: 0 | N64: 0 | O64: 0 | P64: 0 | Q64: 0 | R64: 0 | S64: 325 | T64: 256 | U64: =SUM(E64:T64) -> 581
B65: 66 | E65: 0 | F65: 0 | G65: 0 | H65: 0 | I65: 0 | J65: 0 | K65: 0 | L65: 0 | M65: 0 | N65: 0 | O65: 0 | P65: 0 | Q65: 0 | R65: 0 | S65: 298 | T65: 167 | U65: 465
B66: 67 | E66: 0 | F66: 0 | G66: 0 | H66: 0 | I66: 0 | J66: 0 | K66: 0 | L66: 0 | M66: 0 | N66: 0 | O66: 0 | P66: 0 | Q66: 0 | R66: 0 | S66: 249 | T66: 153 | U66: 402
B67: 68 | E67: 0 | F67: 0 | G67: 0 | H67: 0 | I67: 0 | J67: 0 | K67: 0 | L67: 0 | M67: 0 | N67: 0 | O67: 0 | P67: 0 | Q67: 0 | R67: 0 | S67: 291 | T67: 150 | U67: 441
B68: 69 | E68: 0 | F68: 0 | G68: 0 | H68: 0 | I68: 0 | J68: 0 | K68: 0 | L68: 0 | M68: 0 | N68: 0 | O68: 0 | P68: 0 | Q68: 0 | R68: 0 | S68: 287 | T68: 190 | U68: 477
B69: 70 | E69: 0 | F69: 0 | G69: 0 | H69: 0 | I69: 0 | J69: 0 | K69: 0 | L69: 0 | M69: 0 | N69: 0 | O69: 0 | P69: 0 | Q69: 0 | R69: 0 | S69: 214 | T69: 163 | U69: 377
B70: 71 | E70: 0 | F70: 0 | G70: 0 | H70: 0 | I70: 0 | J70: 0 | K70: 0 | L70: 0 | M70: 0 | N70: 0 | O70: 0 | P70: 0 | Q70: 0 | R70: 0 | S70: 194 | T70: 120 | U70: 314
B71: 72 | E71: 0 | F71: 0 | G71: 0 | H71: 0 | I71: 0 | J71: 0 | K71: 0 | L71: 0 | M71: 0 | N71: 0 | O71: 0 | P71: 0 | Q71: 0 | R71: 0 | S71: 210 | T71: 116 | U71: 326
B72: 73 | E72: 0 | F72: 0 | G72: 0 | H72: 0 | I72: 0 | J72: 0 | K72: 0 | L72: 0 | M72: 0 | N72: 0 | O72: 0 | P72: 0 | Q72: 0 | R72: 0 | S72: 233 | T72: 164 | U72: 397
B73: 74 | E73: 0 | F73: 0 | G73: 0 | H73: 0 | I73: 0 | J73: 0 | K73: 0 | L73: 0 | M73: 0 | N73: 0 | O73: 0 | P73: 0 | Q73: 0 | R73: 0 | S73: 201 | T73: 113 | U73: 314
B74: 75 | E74: 0 | F74: 0 | G74: 0 | H74: 0 | I74: 0 | J74: 0 | K74: 0 | L74: 0 | M74: 0 | N74: 0 | O74: 0 | P74: 0 | Q74: 0 | R74: 0 | S74: 189 | T74: 110 | U74: 299
B75: 76 | E75: 0 | F75: 0 | G75: 0 | H75: 0 | I75: 0 | J75: 0 | K75: 0 | L75: 0 | M75: 0 | N75: 0 | O75: 0 | P75: 0 | Q75: 0 | R75: 0 | S75: 179 | T75: 155 | U75: 334
B76: 77 | E76: 0 | F76: 0 | G76: 0 | H76: 0 | I76: 0 | J76: 0 | K76: 0 | L76: 0 | M76: 0 | N76: 0 | O76: 0 | P76: 0 | Q76: 0 | R76: 0 | S76: 193 | T76: 161 | U76: 354
B77: 78 | E77: 0 | F77: 0 | G77: 0 | H77: 0 | I77: 0 | J77: 0 | K77: 0 | L77: 0 | M77: 0 | N77: 0 | O77: 0 | P77: 0 | Q77: 0 | R77: 0 | S77: 180 | T77: 106 | U77: 286
B78: 79 | E78: 0 | F78: 0 | G78: 0 | H78: 0 | I78: 0 | J78: 0 | K78: 0 | L78: 0 | M78: 0 | N78: 0 | O78: 0 | P78: 0 | Q78: 0 | R78: 0 | S78: 153 | T78: 100 | U78: 253
B79: 80 | E79: 0 | F79: 0 | G79: 0 | H79: 0 | I79: 0 | J79: 0 | K79: 0 | L79: 0 | M79: 0 | N79: 0 | O79: 0 | P79: 0 | Q79: 0 | R79: 0 | S79: 137 | T79: 89 | U79: 226
B80: 81 | E80: 0 | F80: 0 | G80: 0 | H80: 0 | I80: 0 | J80: 0 | K80: 0 | L80: 0 | M80: 0 | N80: 0 | O80: 0 | P80: 0 | Q80: 0 | R80: 0 | S80: 143 | T80: 96 | U80: 239
B81: 82 | E81: 0 | F81: 0 | G81: 0 | H81: 0 | I81: 0 | J81: 0 | K81: 0 | L81: 0 | M81: 0 | N81: 0 | O81: 0 | P81: 0 | Q81: 0 | R81: 0 | S81: 24 | T81: 16 | U81: 40
B82: 83 | E82: 0 | F82: 0 | G82: 0 | H82: 0 | I82: 0 | J82: 0 | K82: 0 | L82: 0 | M82: 0 | N82: 0 | O82: 0 | P82: 0 | Q82: 0 | R82: 0 | S82: 20 | T82: 28 | U82: 48
B83: 84 | E83: 0 | F83: 0 | G83: 0 | H83: 0 | I83: 0 | J83: 0 | K83: 0 | L83: 0 | M83: 0 | N83: 0 | O83: 0 | P83: 0 | Q83: 0 | R83: 0 | S83: 33 | T83: 13 | U83: 46
B84: 85 | E84: 0 | F84: 0 | G84: 0 | H84: 0 | I84: 0 | J84: 0 | K84: 0 | L84: 0 | M84: 0 | N84: 0 | O84: 0 | P84: 0 | Q84: 0 | R84: 0 | S84: 21 | T84: 17 | U84: 38
B85: 86 | E85: 0 | F85: 0 | G85: 0 | H85: 0 | I85: 0 | J85: 0 | K85: 0 | L85: 0 | M85: 0 | N85: 0 | O85: 0 | P85: 0 | Q85: 0 | R85: 0 | S85: 25 | T85: 8 | U85: 33
B86: 87 | E86: 0 | F86: 0 | G86: 0 | H86: 0 | I86: 0 | J86: 0 | K86: 0 | L86: 0 | M86: 0 | N86: 0 | O86: 0 | P86: 0 | Q86: 0 | R86: 0 | S86: 12 | T86: 10 | U86: 22
B87: 88 | E87: 0 | F87: 0 | G87: 0 | H87: 0 | I87: 0 | J87: 0 | K87: 0 | L87: 0 | M87: 0 | N87: 0 | O87: 0 | P87: 0 | Q87: 0 | R87: 0 | S87: 9 | T87: 7 | U87: 16
B88: 89 | E88: 0 | F88: 0 | G88: 0 | H88: 0 | I88: 0 | J88: 0 | K88: 0 | L88: 0 | M88: 0 | N88: 0 | O88: 0 | P88: 0 | Q88: 0 | R88: 0 | S88: 7 | T88: 3 | U88: 10
B89: 90 | E89: 0 | F89: 0 | G89: 0 | H89: 0 | I89: 0 | J89: 0 | K89: 0 | L89: 0 | M89: 0 | N89: 0 | O89: 0 | P89: 0 | Q89: 0 | R89: 0 | S89: 9 | T89: 8 | U89: 17
B90: 91 | E90: 0 | F90: 0 | G90: 0 | H90: 0 | I90: 0 | J90: 0 | K90: 0 | L90: 0 | M90: 0 | N90: 0 | O90: 0 | P90: 0 | Q90: 0 | R90: 0 | S90: 11 | T90: 2 | U90: 13
B91: 92 | E91: 0 | F91: 0 | G91: 0 | H91: 0 | I91: 0 | J91: 0 | K91: 0 | L91: 0 | M91: 0 | N91: 0 | O91: 0 | P91: 0 | Q91: 0 | R91: 0 | S91: 9 | T91: 4 | U91: 13
B92: 93 | E92: 0 | F92: 0 | G92: 0 | H92: 0 | I92: 0 | J92: 0 | K92: 0 | L92: 0 | M92: 0 | N92: 0 | O92: 0 | P92: 0 | Q92: 0 | R92: 0 | S92: 8 | T92: 4 | U92: 12
B93: 94 | E93: 0 | F93: 0 | G93: 0 | H93: 0 | I93: 0 | J93: 0 | K93: 0 | L93: 0 | M93: 0 | N93: 0 | O93: 0 | P93: 0 | Q93: 0 | R93: 0 | S93: 10 | T93: 2 | U93: 12
B94: 95 | E94: 0 | F94: 0 | G94: 0 | H94: 0 | I94: 0 | J94: 0 | K94: 0 | L94: 0 | M94: 0 | N94: 0 | O94: 0 | P94: 0 | Q94: 0 | R94: 0 | S94: 10 | T94: 4 | U94: 14
B95: 96 | E95: 0 | F95: 0 | G95: 0 | H95: 0 | I95: 0 | J95: 0 | K95: 0 | L95: 0 | M95: 0 | N95: 0 | O95: 0 | P95: 0 | Q95: 0 | R95: 0 | S95: 7 | T95: 10 | U95: 17
B96: 97 | E96: 0 | F96: 0 | G96: 0 | H96: 0 | I96: 0 | J96: 0 | K96: 0 | L96: 0 | M96: 0 | N96: 0 | O96: 0 | P96: 0 | Q96: 0 | R96: 0 | S96: 5 | T96: 0 | U96: 5
B97: 98 | E97: 0 | F97: 0 | G97: 0 | H97: 0 | I97: 0 | J97: 0 | K97: 0 | L97: 0 | M97: 0 | N97: 0 | O97: 0 | P97: 0 | Q97: 0 | R97: 0 | S97: 3 | T97: 1 | U97: 4
B98: 99 | E98: 0 | F98: 0 | G98: 0 | H98: 0 | I98: 0 | J98: 0 | K98: 0 | L98: 0 | M98: 0 | N98: 0 | O98: 0 | P98: 0 | Q98: 0 | R98: 0 | S98: 4 | T98: 0 | U98: 4
A99: De | B99: 100 o mas | C99: años y más | E99: 0 | F99: 0 | G99: 0 | H99: 0 | I99: 0 | J99: 0 | K99: 0 | L99: 0 | M99: 0 | N99: 0 | O99: 0 | P99: 0 | Q99: 0 | R99: 0 | S99: 8 | T99: 2 | U99: =SUM(E99:T99) -> 10
A100: PÓLIZA CONCENTRADA | E100: 0 | F100: 0 | G100: 0 | H100: 0 | I100: 0 | J100: 0 | K100: 0 | L100: 0 | M100: 0 | N100: 0 | O100: 0 | P100: 0 | Q100: 0 | R100: 0 | S100: 21745 | T100: 0 | U100: =SUM(E100:T100) -> 21745
A101: TOTAL | E101: =SUM(E14:E99) -> 0 | F101: 0 | G101: =SUM(G14:G100) -> 0 | H101: =SUM(H14:H100) -> 0 | I101: =SUM(I14:I100) -> 0 | J101: 0 | K101: 0 | L101: 0 | M101: 0 | N101: 0 | O101: 0 | P101: 0 | Q101: 0 | R101: 0 | S101: 36944 | T101: =SUM(T14:T100) -> 13290 | U101: =SUM(U14:U100) -> 50234
A103: NOTA: ESTE FORMATO ES PARA PÓLIZAS DEL SEGURO INDIVIDUAL EMITIDAS A PARTIR DEL 1° DE ENERO DE 1994.
A104: PÓLIZA NO CONCENTRADA | E104: =E101-E100 -> 0 | F104: =F101-F100 -> 0 | G104: 0 | H104: 0 | I104: 0 | J104: 0 | K104: 0 | L104: 0 | M104: 0 | N104: 0 | O104: 0 | P104: 0 | Q104: 0 | R104: 0 | S104: 15199 | T104: 13290 | U104: 28489

Sheet 3 Ind
A2: 3. SINIESTROS PROCEDENTES POR MUERTE EN LA OPERACIÓN DE VIDA POR TIPO DE SEGURO,
A3: AÑOS DE ANTIGÜEDAD Y EDAD ALCANZADA
A5: ='1 Total'!B3 -> DICIEMBRE DE 2021
A7: VIDA INDIVIDUAL
A9: TOTAL
A11: EDAD | E11: SINIESTROS PROCEDENTES POR MUERTE DE LAS PÓLIZAS CON ANTIGÜEDAD MENOR O IGUAL A:
A12: ALCANZADA | E12: 1 año | G12: 2 años | I12: 3 años | K12: 4 años | M12: 5 años | O12: 6 años | Q12: más de 6 años | S12: TOTAL
E13: H | F13: M | G13: H | H13: M | I13: H | J13: M | K13: H | L13: M | M13: H | N13: M | O13: H | P13: M | Q13: H | R13: M
A14: De | B14: 0 | C14: años | E14: ='3A'!E14+'3B'!E14 -> 0 | F14: ='3A'!F14+'3B'!F14 -> 0 | G14: ='3A'!G14+'3B'!G14 -> 0 | H14: ='3A'!H14+'3B'!H14 -> 0 | I14: ='3A'!I14+'3B'!I14 -> 0 | J14: ='3A'!J14+'3B'!J14 -> 0 | K14: ='3A'!K14+'3B'!K14 -> 0 | L14: ='3A'!L14+'3B'!L14 -> 0 | M14: ='3A'!M14+'3B'!M14 -> 0 | N14: ='3A'!N14+'3B'!N14 -> 0 | O14: ='3A'!O14+'3B'!O14 -> 0 | P14: ='3A'!P14+'3B'!P14 -> 0 | Q14: ='3A'!Q14+'3B'!Q14 -> 0 | R14: ='3A'!R14+'3B'!R14 -> 0 | S14: =SUM(E14:R14) -> 0
B15: 1 | E15: 2 | F15: 0 | G15: 0 | H15: 1 | S15: =SUM(E15:R15) -> 3
B16: 2 | G16: 0 | H16: 0 | S16: 0
B17: 3 | G17: 0 | H17: 0 | I17: 0 | J17: 1 | K17: 1 | L17: 0 | S17: 2
B18: 4 | G18: 2 | H18: 1 | I18: 0 | J18: 2 | K18: 0 | L18: 0 | M18: 0 | N18: 0 | S18: 5
B19: 5 | E19: 1 | F19: 0 | G19: 0 | H19: 1 | I19: 1 | J19: 0 | K19: 0 | L19: 0 | M19: 0 | N19: 0 | S19: 3
B20: 6 | E20: 1 | F20: 1 | G20: 0 | H20: 1 | K20: 0 | L20: 0 | M20: 0 | N20: 0 | O20: 3 | P20: 2 | S20: 8
B21: 7 | E21: 0 | F21: 1 | G21: 5 | H21: 2 | I21: 0 | J21: 1 | K21: 0 | L21: 0 | O21: 0 | P21: 1 | Q21: 1 | R21: 1 | S21: 12
B22: 8 | E22: 0 | F22: 1 | G22: 0 | H22: 1 | I22: 1 | J22: 0 | K22: 0 | L22: 0 | M22: 0 | N22: 0 | O22: 0 | P22: 0 | Q22: 1 | R22: 1 | S22: 5
B23: 9 | E23: 0 | F23: 2 | G23: 0 | H23: 1 | I23: 2 | J23: 0 | K23: 0 | L23: 0 | O23: 0 | P23: 0 | Q23: 0 | R23: 1 | S23: 6
B24: 10 | E24: 1 | F24: 0 | G24: 2 | H24: 0 | I24: 2 | J24: 0 | K24: 0 | L24: 0 | O24: 0 | P24: 0 | Q24: 2 | R24: 0 | S24: 7
B25: 11 | E25: 1 | F25: 0 | G25: 3 | H25: 0 | I25: 1 | J25: 3 | K25: 0 | L25: 0 | M25: 0 | N25: 0 | O25: 0 | P25: 0 | Q25: 0 | R25: 1 | S25: 9
B26: 12 | E26: 1 | F26: 0 | G26: 3 | H26: 1 | I26: 5 | J26: 0 | K26: 0 | L26: 0 | M26: 0 | N26: 0 | O26: 0 | P26: 0 | Q26: 1 | R26: 1 | S26: 12
B27: 13 | E27: 0 | F27: 0 | G27: 4 | H27: 2 | I27: 5 | J27: 0 | O27: 0 | P27: 0 | Q27: 1 | R27: 0 | S27: 12
B28: 14 | E28: 1 | F28: 0 | G28: 5 | H28: 0 | I28: 1 | J28: 0 | K28: 0 | L28: 0 | M28: 0 | N28: 0 | O28: 0 | P28: 0 | Q28: 2 | R28: 0 | S28: 9
B29: 15 | E29: 373 | F29: 325 | G29: 2 | H29: 0 | I29: 1 | J29: 0 | K29: 0 | L29: 0 | M29: 0 | N29: 0 | O29: 0 | P29: 1 | Q29: 1 | R29: 0 | S29: 703
B30: 16 | E30: 3 | F30: 0 | G30: 2 | H30: 0 | I30: 1 | J30: 0 | K30: 0 | L30: 0 | O30: 0 | P30: 0 | Q30: 1 | R30: 1 | S30: 8
B31: 17 | E31: 0 | F31: 1 | G31: 0 | H31: 1 | I31: 0 | J31: 0 | K31: 0 | L31: 0 | M31: 0 | N31: 0 | O31: 0 | P31: 0 | Q31: 0 | R31: 4 | S31: 6
B32: 18 | E32: 0 | F32: 2 | G32: 1 | H32: 0 | I32: 1 | J32: 0 | K32: 0 | L32: 0 | M32: 0 | N32: 0 | O32: 0 | P32: 0 | Q32: 0 | R32: 0 | S32: 4
B33: 19 | E33: 7 | F33: 6 | G33: 1 | H33: 0 | I33: 1 | J33: 0 | K33: 0 | L33: 0 | M33: 0 | N33: 0 | O33: 0 | P33: 0 | Q33: 3 | R33: 1 | S33: 19
B34: 20 | E34: 9 | F34: 5 | G34: 7 | H34: 2 | I34: 1 | J34: 0 | K34: 0 | L34: 0 | M34: 0 | N34: 0 | O34: 0 | P34: 0 | Q34: 0 | R34: 1 | S34: 25
B35: 21 | E35: 12 | F35: 14 | G35: 9 | H35: 2 | I35: 0 | J35: 1 | K35: 0 | L35: 0 | M35: 0 | N35: 1 | O35: 0 | P35: 1 | Q35: 0 | R35: 1 | S35: 41
B36: 22 | E36: 16 | F36: 6 | G36: 11 | H36: 1 | I36: 5 | J36: 0 | K36: 1 | L36: 0 | M36: 0 | N36: 0 | O36: 0 | P36: 0 | Q36: 1 | R36: 0 | S36: 41
B37: 23 | E37: 10 | F37: 8 | G37: 8 | H37: 1 | I37: 2 | J37: 1 | K37: 0 | L37: 1 | M37: 0 | N37: 0 | O37: 0 | P37: 0 | Q37: 0 | R37: 1 | S37: 32
B38: 24 | E38: 16 | F38: 9 | G38: 10 | H38: 5 | I38: 1 | J38: 1 | K38: 1 | L38: 1 | M38: 0 | N38: 1 | O38: 0 | P38: 0 | Q38: 2 | R38: 2 | S38: 49
B39: 25 | E39: 15 | F39: 11 | G39: 10 | H39: 9 | I39: 2 | J39: 2 | K39: 4 | L39: 0 | M39: 1 | N39: 0 | O39: 2 | P39: 0 | Q39: 0 | R39: 0 | S39: 56
B40: 26 | E40: 21 | F40: 12 | G40: 17 | H40: 5 | I40: 3 | J40: 1 | K40: 0 | L40: 2 | M40: 2 | N40: 0 | O40: 1 | P40: 0 | Q40: 0 | R40: 0 | S40: 64
B41: 27 | E41: 18 | F41: 12 | G41: 16 | H41: 7 | I41: 8 | J41: 2 | K41: 0 | L41: 3 | M41: 1 | N41: 1 | O41: 5 | P41: 1 | Q41: 1 | R41: 1 | S41: 76
B42: 28 | E42: 26 | F42: 7 | G42: 24 | H42: 8 | I42: 6 | J42: 3 | K42: 1 | L42: 2 | M42: 1 | N42: 1 | O42: 2 | P42: 2 | Q42: 2 | R42: 2 | S42: 87
B43: 29 | E43: 23 | F43: 14 | G43: 29 | H43: 9 | I43: 3 | J43: 0 | K43: 2 | L43: 3 | M43: 2 | N43: 2 | O43: 6 | P43: 2 | Q43: 2 | R43: 2 | S43: 99
B44: 30 | E44: 37 | F44: 16 | G44: 21 | H44: 8 | I44: 5 | J44: 2 | K44: 1 | L44: 1 | M44: 2 | N44: 2 | O44: 4 | P44: 1 | Q44: 5 | R44: 2 | S44: 107
B45: 31 | E45: 17 | F45: 13 | G45: 31 | H45: 4 | I45: 6 | J45: 0 | K45: 9 | L45: 4 | M45: 5 | N45: 0 | O45: 4 | P45: 3 | Q45: 4 | R45: 2 | S45: 102
B46: 32 | E46: 26 | F46: 16 | G46: 30 | H46: 14 | I46: 10 | J46: 4 | K46: 14 | L46: 1 | M46: 3 | N46: 5 | O46: 6 | P46: 7 | Q46: 6 | R46: 3 | S46: 145
B47: 33 | E47: 42 | F47: 7 | G47: 32 | H47: 14 | I47: 12 | J47: 1 | K47: 7 | L47: 1 | M47: 5 | N47: 4 | O47: 8 | P47: 3 | Q47: 16 | R47: 6 | S47: 158
B48: 34 | E48: 32 | F48: 7 | G48: 34 | H48: 10 | I48: 6 | J48: 0 | K48: 11 | L48: 0 | M48: 5 | N48: 3 | O48: 12 | P48: 7 | Q48: 22 | R48: 8 | S48: 157
B49: 35 | E49: 31 | F49: 23 | G49: 49 | H49: 15 | I49: 12 | J49: 4 | K49: 7 | L49: 10 | M49: 10 | N49: 4 | O49: 12 | P49: 10 | Q49: 28 | R49: 14 | S49: 229
B50: 36 | E50: 48 | F50: 19 | G50: 38 | H50: 12 | I50: 13 | J50: 3 | K50: 10 | L50: 7 | M50: 11 | N50: 5 | O50: 12 | P50: 12 | Q50: 29 | R50: 15 | S50: 234
B51: 37 | E51: 31 | F51: 16 | G51: 43 | H51: 7 | I51: 23 | J51: 2 | K51: 5 | L51: 5 | M51: 6 | N51: 6 | O51: 19 | P51: 6 | Q51: 34 | R51: 21 | S51: 224
B52: 38 | E52: 31 | F52: 27 | G52: 56 | H52: 13 | I52: 16 | J52: 7 | K52: 13 | L52: 11 | M52: 17 | N52: 7 | O52: 13 | P52: 14 | Q52: 37 | R52: 18 | S52: 280
B53: 39 | E53: 20 | F53: 19 | G53: 49 | H53: 19 | I53: 21 | J53: 2 | K53: 14 | L53: 6 | M53: 11 | N53: 5 | O53: 25 | P53: 13 | Q53: 52 | R53: 21 | S53: 277
B54: 40 | E54: 41 | F54: 23 | G54: 55 | H54: 17 | I54: 14 | J54: 10 | K54: 11 | L54: 9 | M54: 12 | N54: 6 | O54: 18 | P54: 18 | Q54: 53 | R54: 34 | S54: 321
B55: 41 | E55: 42 | F55: 19 | G55: 57 | H55: 17 | I55: 14 | J55: 2 | K55: 24 | L55: 2 | M55: 19 | N55: 5 | O55: 17 | P55: 4 | Q55: 64 | R55: 26 | S55: 312
B56: 42 | E56: 39 | F56: 15 | G56: 81 | H56: 22 | I56: 28 | J56: 9 | K56: 12 | L56: 3 | M56: 10 | N56: 8 | O56: 20 | P56: 17 | Q56: 60 | R56: 43 | S56: 367
B57: 43 | E57: 45 | F57: 11 | G57: 67 | H57: 17 | I57: 12 | J57: 7 | K57: 20 | L57: 9 | M57: 15 | N57: 11 | O57: 30 | P57: 13 | Q57: 81 | R57: 53 | S57: 391
B58: 44 | E58: 50 | F58: 29 | G58: 92 | H58: 29 | I58: 20 | J58: 5 | K58: 13 | L58: 7 | M58: 20 | N58: 4 | O58: 33 | P58: 12 | Q58: 95 | R58: 75 | S58: 484
B59: 45 | E59: 43 | F59: 26 | G59: 85 | H59: 19 | I59: 28 | J59: 9 | K59: 22 | L59: 13 | M59: 19 | N59: 4 | O59: 25 | P59: 15 | Q59: 114 | R59: 65 | S59: 487
B60: 46 | E60: 53 | F60: 31 | G60: 331 | H60: 704 | I60: 23 | J60: 7 | K60: 18 | L60: 16 | M60: 23 | N60: 9 | O60: 23 | P60: 19 | Q60: 123 | R60: 81 | S60: 1461
B61: 47 | E61: 58 | F61: 33 | G61: 370 | H61: 650 | I61: 19 | J61: 6 | K61: 19 | L61: 10 | M61: 21 | N61: 10 | O61: 42 | P61: 20 | Q61: 144 | R61: 70 | S61: 1472
B62: 48 | E62: 51 | F62: 35 | G62: 343 | H62: 663 | I62: 23 | J62: 11 | K62: 30 | L62: 19 | M62: 14 | N62: 13 | O62: 42 | P62: 14 | Q62: 177 | R62: 128 | S62: 1563
B63: 49 | E63: 50 | F63: 46 | G63: 95 | H63: 42 | I63: 30 | J63: 9 | K63: 23 | L63: 18 | M63: 22 | N63: 14 | O63: 32 | P63: 21 | Q63: 171 | R63: 111 | S63: 684
B64: 50 | E64: 48 | F64: 21 | G64: 159 | H64: 39 | I64: 34 | J64: 12 | K64: 43 | L64: 15 | M64: 24 | N64: 3 | O64: 40 | P64: 22 | Q64: 207 | R64: 128 | S64: 795
B65: 51 | E65: 42 | F65: 21 | G65: 147 | H65: 55 | I65: 28 | J65: 12 | K65: 32 | L65: 17 | M65: 37 | N65: 8 | O65: 38 | P65: 20 | Q65: 190 | R65: 133 | S65: 780
B66: 52 | E66: 42 | F66: 38 | G66: 118 | H66: 54 | I66: 26 | J66: 21 | K66: 34 | L66: 10 | M66: 20 | N66: 14 | O66: 45 | P66: 20 | Q66: 173 | R66: 123 | S66: 738
B67: 53 | E67: 48 | F67: 19 | G67: 123 | H67: 36 | I67: 21 | J67: 15 | K67: 20 | L67: 10 | M67: 20 | N67: 13 | O67: 45 | P67: 12 | Q67: 236 | R67: 154 | S67: 772
B68: 54 | E68: 54 | F68: 21 | G68: 156 | H68: 47 | I68: 38 | J68: 10 | K68: 32 | L68: 11 | M68: 41 | N68: 15 | O68: 45 | P68: 31 | Q68: 218 | R68: 176 | S68: 895
B69: 55 | E69: 46 | F69: 22 | G69: 172 | H69: 57 | I69: 35 | J69: 18 | K69: 44 | L69: 21 | M69: 48 | N69: 18 | O69: 50 | P69: 26 | Q69: 334 | R69: 215 | S69: 1106
B70: 56 | E70: 57 | F70: 36 | G70: 167 | H70: 64 | I70: 24 | J70: 12 | K70: 25 | L70: 19 | M70: 29 | N70: 12 | O70: 60 | P70: 25 | Q70: 315 | R70: 214 | S70: 1059
B71: 57 | E71: 58 | F71: 27 | G71: 170 | H71: 73 | I71: 38 | J71: 20 | K71: 34 | L71: 14 | M71: 33 | N71: 27 | O71: 69 | P71: 32 | Q71: 296 | R71: 228 | S71: 1119
B72: 58 | E72: 72 | F72: 31 | G72: 168 | H72: 67 | I72: 35 | J72: 23 | K72: 57 | L72: 28 | M72: 48 | N72: 22 | O72: 60 | P72: 34 | Q72: 375 | R72: 237 | S72: 1257
B73: 59 | E73: 69 | F73: 32 | G73: 155 | H73: 78 | I73: 46 | J73: 22 | K73: 41 | L73: 25 | M73: 23 | N73: 24 | O73: 50 | P73: 40 | Q73: 341 | R73: 310 | S73: 1256
B74: 60 | E74: 67 | F74: 15 | G74: 177 | H74: 81 | I74: 45 | J74: 16 | K74: 42 | L74: 22 | M74: 41 | N74: 29 | O74: 78 | P74: 45 | Q74: 381 | R74: 295 | S74: 1334
B75: 61 | E75: 62 | F75: 33 | G75: 186 | H75: 85 | I75: 36 | J75: 21 | K75: 51 | L75: 15 | M75: 37 | N75: 31 | O75: 62 | P75: 40 | Q75: 410 | R75: 300 | S75: 1369
B76: 62 | E76: 60 | F76: 21 | G76: 199 | H76: 82 | I76: 35 | J76: 13 | K76: 43 | L76: 16 | M76: 33 | N76: 16 | O76: 67 | P76: 40 | Q76: 380 | R76: 294 | S76: 1299
B77: 63 | E77: 59 | F77: 27 | G77: 174 | H77: 59 | I77: 31 | J77: 17 | K77: 41 | L77: 14 | M77: 34 | N77: 15 | O77: 78 | P77: 31 | Q77: 370 | R77: 294 | S77: 1244
B78: 64 | E78: 66 | F78: 31 | G78: 193 | H78: 86 | I78: 28 | J78: 9 | K78: 31 | L78: 14 | M78: 26 | N78: 16 | O78: 54 | P78: 29 | Q78: 387 | R78: 301 | S78: 1271
B79: 65 | E79: 47 | F79: 35 | G79: 160 | H79: 60 | I79: 31 | J79: 8 | K79: 40 | L79: 12 | M79: 25 | N79: 14 | O79: 65 | P79: 30 | Q79: 434 | R79: 261 | S79: =SUM(E79:R79) -> 1222
B80: 66 | E80: 65 | F80: 27 | G80: 194 | H80: 49 | I80: 25 | J80: 12 | K80: 25 | L80: 12 | M80: 22 | N80: 9 | O80: 56 | P80: 29 | Q80: 422 | R80: 260 | S80: 1207
B81: 67 | E81: 40 | F81: 24 | G81: 165 | H81: 54 | I81: 39 | J81: 6 | K81: 17 | L81: 12 | M81: 28 | N81: 17 | O81: 41 | P81: 36 | Q81: 434 | R81: 256 | S81: 1169
B82: 68 | E82: 47 | F82: 19 | G82: 143 | H82: 39 | I82: 23 | J82: 9 | K82: 18 | L82: 10 | M82: 29 | N82: 15 | O82: 33 | P82: 25 | Q82: 365 | R82: 252 | S82: 1027
B83: 69 | E83: 48 | F83: 17 | G83: 125 | H83: 61 | I83: 26 | J83: 9 | K83: 26 | L83: 11 | M83: 34 | N83: 11 | O83: 37 | P83: 23 | Q83: 407 | R83: 234 | S83: 1069
B84: 70 | E84: 53 | F84: 17 | G84: 119 | H84: 30 | I84: 34 | J84: 14 | K84: 38 | L84: 8 | M84: 31 | N84: 8 | O84: 24 | P84: 21 | Q84: 352 | R84: 247 | S84: 996
B85: 71 | E85: 201 | F85: 154 | G85: 99 | H85: 41 | I85: 16 | J85: 11 | K85: 9 | L85: 5 | M85: 20 | N85: 4 | O85: 33 | P85: 18 | Q85: 328 | R85: 248 | S85: 1187
B86: 72 | E86: 26 | F86: 10 | G86: 60 | H86: 29 | I86: 14 | J86: 7 | K86: 9 | L86: 8 | M86: 19 | N86: 12 | O86: 39 | P86: 17 | Q86: 318 | R86: 195 | S86: 763
B87: 73 | E87: 16 | F87: 17 | G87: 41 | H87: 15 | I87: 13 | J87: 6 | K87: 17 | L87: 10 | M87: 21 | N87: 6 | O87: 31 | P87: 19 | Q87: 300 | R87: 231 | S87: 743
B88: 74 | E88: 20 | F88: 14 | G88: 33 | H88: 16 | I88: 5 | J88: 0 | K88: 2 | L88: 3 | M88: 15 | N88: 6 | O88: 37 | P88: 15 | Q88: 330 | R88: 189 | S88: 685
B89: 75 | E89: 22 | F89: 14 | G89: 23 | H89: 15 | I89: 6 | J89: 2 | K89: 3 | L89: 1 | M89: 8 | N89: 3 | O89: 23 | P89: 11 | Q89: 323 | R89: 162 | S89: 616
B90: 76 | E90: 20 | F90: 13 | G90: 45 | H90: 12 | I90: 5 | J90: 3 | K90: 2 | L90: 0 | M90: 1 | N90: 0 | O90: 20 | P90: 9 | Q90: 285 | R90: 209 | S90: 624
B91: 77 | E91: 11 | F91: 9 | G91: 32 | H91: 14 | I91: 5 | J91: 1 | K91: 1 | L91: 2 | M91: 3 | N91: 0 | O91: 9 | P91: 2 | Q91: 234 | R91: 150 | S91: 473
B92: 78 | E92: 12 | F92: 12 | G92: 13 | H92: 7 | I92: 3 | J92: 2 | K92: 0 | L92: 1 | M92: 0 | N92: 2 | O92: 3 | P92: 0 | Q92: 205 | R92: 146 | S92: 406
B93: 79 | E93: 16 | F93: 6 | G93: 26 | H93: 11 | I93: 4 | J93: 1 | K93: 2 | L93: 1 | M93: 0 | N93: 1 | O93: 3 | P93: 3 | Q93: 181 | R93: 138 | S93: 393
B94: 80 | E94: 11 | F94: 16 | G94: 17 | H94: 19 | I94: 2 | J94: 3 | K94: 2 | L94: 0 | M94: 0 | N94: 0 | O94: 4 | P94: 1 | Q94: 193 | R94: 95 | S94: 363
B95: 81 | E95: 14 | F95: 10 | G95: 20 | H95: 11 | I95: 3 | J95: 1 | K95: 3 | L95: 0 | M95: 1 | N95: 1 | O95: 0 | P95: 3 | Q95: 153 | R95: 100 | S95: 320
B96: 82 | E96: 18 | F96: 9 | G96: 18 | H96: 12 | I96: 3 | J96: 2 | K96: 2 | L96: 0 | M96: 3 | N96: 2 | O96: 3 | P96: 4 | Q96: 134 | R96: 83 | S96: 293
B97: 83 | E97: 12 | F97: 11 | G97: 21 | H97: 6 | I97: 1 | J97: 0 | K97: 1 | L97: 1 | M97: 2 | N97: 1 | O97: 1 | P97: 0 | Q97: 115 | R97: 45 | S97: 217
B98: 84 | E98: 11 | F98: 9 | G98: 23 | H98: 10 | I98: 2 | J98: 1 | K98: 0 | L98: 0 | M98: 0 | N98: 0 | O98: 1 | P98: 1 | Q98: 69 | R98: 52 | S98: 179
B99: 85 | E99: 10 | F99: 8 | G99: 10 | H99: 5 | I99: 2 | J99: 0 | K99: 2 | L99: 0 | M99: 0 | N99: 1 | O99: 3 | P99: 0 | Q99: 78 | R99: 30 | S99: 149
B100: 86 | E100: 9 | F100: 13 | G100: 12 | H100: 3 | I100: 2 | J100: 0 | K100: 1 | L100: 1 | M100: 0 | N100: 0 | O100: 1 | P100: 0 | Q100: 40 | R100: 45 | S100: 127
B101: 87 | E101: 16 | F101: 6 | G101: 9 | H101: 5 | I101: 0 | J101: 1 | K101: 0 | L101: 1 | M101: 1 | N101: 0 | O101: 0 | P101: 1 | Q101: 30 | R101: 14 | S101: 84
B102: 88 | E102: 16 | F102: 7 | G102: 19 | H102: 6 | I102: 1 | J102: 2 | K102: 1 | L102: 0 | M102: 1 | N102: 2 | O102: 5 | P102: 1 | Q102: 19 | R102: 19 | S102: 99
B103: 89 | E103: 11 | F103: 13 | G103: 9 | H103: 5 | I103: 1 | J103: 2 | K103: 0 | L103: 0 | M103: 0 | N103: 1 | O103: 2 | P103: 2 | Q103: 8 | R103: 9 | S103: 63
B104: 90 | E104: 7 | F104: 10 | G104: 3 | H104: 6 | I104: 2 | J104: 0 | K104: 1 | L104: 0 | M104: 0 | N104: 0 | O104: 0 | P104: 0 | Q104: 12 | R104: 13 | S104: 54
B105: 91 | E105: 10 | F105: 6 | G105: 3 | H105: 3 | K105: 1 | L105: 0 | M105: 0 | N105: 1 | O105: 1 | P105: 0 | Q105: 7 | R105: 11 | S105: 43
B106: 92 | E106: 16 | F106: 17 | G106: 5 | H106: 4 | I106: 0 | J106: 0 | O106: 1 | P106: 1 | Q106: 6 | R106: 7 | S106: 57
B107: 93 | E107: 10 | F107: 10 | G107: 7 | H107: 0 | I107: 1 | J107: 1 | O107: 1 | P107: 1 | Q107: 5 | R107: 2 | S107: 38
B108: 94 | E108: 9 | F108: 9 | G108: 3 | H108: 4 | M108: 0 | N108: 0 | O108: 1 | P108: 2 | Q108: 2 | R108: 1 | S108: 31
B109: 95 | E109: 8 | F109: 6 | G109: 2 | H109: 2 | O109: 0 | P109: 0 | Q109: 5 | R109: 0 | S109: 23
B110: 96 | E110: 6 | F110: 7 | G110: 6 | H110: 0 | I110: 0 | J110: 0 | O110: 0 | P110: 0 | Q110: 1 | R110: 0 | S110: 20
B111: 97 | E111: 7 | F111: 12 | G111: 2 | H111: 0 | I111: 0 | J111: 1 | O111: 0 | P111: 0 | Q111: 2 | R111: 3 | S111: 27
B112: 98 | E112: 9 | F112: 10 | G112: 0 | H112: 3 | Q112: 0 | R112: 1 | S112: 23
B113: 99 | G113: 1 | H113: 0 | Q113: 1 | R113: 0 | S113: 2
A114: De | B114: 100 | C114: años y más | E114: 0 | F114: 0 | G114: 0 | H114: 2 | I114: 1 | J114: 0 | K114: 0 | L114: 0 | M114: 0 | N114: 0 | O114: 0 | P114: 0 | Q114: 0 | R114: 0 | S114: 3
A115: No especificado | S115: 2382
B116: TOTAL | E116: =SUM(E14:E114) -> 3048 | F116: =SUM(F14:F114) -> 1840 | G116: 6062 | H116: 3879 | I116: 1158 | J116: 464 | K116: 1086 | L116: 514 | M116: 1015 | N116: 511 | O116: 1735 | P116: 961 | Q116: 11747 | R116: 7927 | S116: =SUM(E116:R116)+S115 -> 44329
A118: CIFRAS EN PESOS, ESTIMADAS AL 100%.

Sheet 3A (hidden)
A2: 3 a. SINIESTROS PROCEDENTES POR MUERTE EN LA OPERACIÓN DE VIDA POR TIPO DE SEGURO,
A3: AÑOS DE ANTIGÜEDAD Y EDAD ALCANZADA
A5: DICIEMBRE DE 2017
A7: VIDA INDIVIDUAL
E10: 2 | F10: 3 | G10: 4 | H10: 5 | I10: 6 | J10: 7 | K10: 8 | L10: 9 | M10: 10 | N10: 11 | O10: 12 | P10: 13 | Q10: 14 | R10: 15
A11: EDAD | E11: SINIESTROS PROCEDENTES POR MUERTE DE LAS PÓLIZAS CON ANTIGÜEDAD MENOR O IGUAL A:
A12: ALCANZADA | E12: 1 año | G12: 2 años | I12: 3 años | K12: 4 años | M12: 5 años | O12: 6 años | Q12: más de 6 años | S12: TOTAL
E13: H | F13: M | G13: H | H13: M | I13: H | J13: M | K13: H | L13: M | M13: H | N13: M | O13: H | P13: M | Q13: H | R13: M
A14: De | B14: 0 | C14: años | E14: 0 | F14: 0 | G14: 0 | H14: 0 | I14: 0 | J14: 0 | K14: 0 | L14: 0 | M14: 0 | N14: 0 | O14: 0 | P14: 0 | Q14: 0 | R14: 0 | S14: =SUM(E14:R14) -> 0
B15: 1 | E15: 0 | F15: 1 | G15: 0 | H15: 0 | I15: 0 | J15: 0 | K15: 0 | L15: 0 | M15: 0 | N15: 0 | O15: 0 | P15: 0 | Q15: 0 | R15: 0 | S15: 1
B16: 2 | E16: 0 | F16: 0 | G16: 0 | H16: 0 | I16: 0 | J16: 0 | K16: 0 | L16: 0 | M16: 0 | N16: 0 | O16: 0 | P16: 0 | Q16: 0 | R16: 0 | S16: 0
B17: 3 | E17: 1 | F17: 1 | G17: 0 | H17: 1 | I17: 0 | J17: 1 | K17: 0 | L17: 0 | M17: 0 | N17: 0 | O17: 0 | P17: 0 | Q17: 0 | R17: 0 | S17: 4
B18: 4 | E18: 1 | F18: 1 | G18: 0 | H18: 1 | I18: 0 | J18: 0 | K18: 0 | L18: 0 | M18: 1 | N18: 0 | O18: 0 | P18: 0 | Q18: 0 | R18: 0 | S18: 4
B19: 5 | E19: 0 | F19: 2 | G19: 0 | H19: 1 | I19: 0 | J19: 0 | K19: 0 | L19: 0 | M19: 0 | N19: 0 | O19: 0 | P19: 1 | Q19: 0 | R19: 0 | S19: 4
B20: 6 | E20: 0 | F20: 0 | G20: 1 | H20: 0 | I20: 0 | J20: 0 | K20: 0 | L20: 0 | M20: 0 | N20: 0 | O20: 0 | P20: 0 | Q20: 0 | R20: 0 | S20: 1
B21: 7 | E21: 1 | F21: 0 | G21: 2 | H21: 0 | I21: 0 | J21: 0 | K21: 0 | L21: 0 | M21: 0 | N21: 0 | O21: 0 | P21: 1 | Q21: 0 | R21: 0 | S21: 4
B22: 8 | E22: 0 | F22: 0 | G22: 0 | H22: 0 | I22: 0 | J22: 0 | K22: 0 | L22: 0 | M22: 0 | N22: 0 | O22: 0 | P22: 0 | Q22: 0 | R22: 1 | S22: 1
B23: 9 | E23: 2 | F23: 1 | G23: 0 | H23: 0 | I23: 0 | J23: 0 | K23: 0 | L23: 0 | M23: 0 | N23: 0 | O23: 0 | P23: 0 | Q23: 0 | R23: 1 | S23: 4
B24: 10 | E24: 2 | F24: 0 | G24: 0 | H24: 1 | I24: 0 | J24: 0 | K24: 0 | L24: 0 | M24: 0 | N24: 0 | O24: 0 | P24: 0 | Q24: 0 | R24: 0 | S24: 3
B25: 11 | E25: 0 | F25: 1 | G25: 0 | H25: 1 | I25: 0 | J25: 0 | K25: 0 | L25: 0 | M25: 0 | N25: 0 | O25: 0 | P25: 0 | Q25: 0 | R25: 0 | S25: 2
B26: 12 | E26: 0 | F26: 1 | G26: 0 | H26: 1 | I26: 0 | J26: 0 | K26: 0 | L26: 1 | M26: 0 | N26: 0 | O26: 0 | P26: 0 | Q26: 0 | R26: 0 | S26: 3
B27: 13 | E27: 0 | F27: 1 | G27: 1 | H27: 0 | I27: 0 | J27: 0 | K27: 0 | L27: 0 | M27: 0 | N27: 0 | O27: 0 | P27: 0 | Q27: 0 | R27: 1 | S27: 3
B28: 14 | E28: 0 | F28: 0 | G28: 0 | H28: 0 | I28: 0 | J28: 0 | K28: 0 | L28: 0 | M28: 0 | N28: 0 | O28: 0 | P28: 0 | Q28: 0 | R28: 2 | S28: 2
B29: 15 | E29: 0 | F29: 0 | G29: 0 | H29: 2 | I29: 0 | J29: 0 | K29: 0 | L29: 0 | M29: 0 | N29: 0 | O29: 0 | P29: 0 | Q29: 0 | R29: 1 | S29: 3
B30: 16 | E30: 0 | F30: 0 | G30: 1 | H30: 0 | I30: 0 | J30: 0 | K30: 0 | L30: 0 | M30: 0 | N30: 0 | O30: 0 | P30: 0 | Q30: 0 | R30: 1 | S30: 2
B31: 17 | E31: 2 | F31: 0 | G31: 0 | H31: 1 | I31: 0 | J31: 0 | K31: 0 | L31: 0 | M31: 0 | N31: 0 | O31: 0 | P31: 0 | Q31: 0 | R31: 1 | S31: 4
B32: 18 | E32: 5 | F32: 0 | G32: 0 | H32: 6 | I32: 1 | J32: 0 | K32: 0 | L32: 0 | M32: 0 | N32: 0 | O32: 0 | P32: 0 | Q32: 0 | R32: 0 | S32: 12
B33: 19 | E33: 6 | F33: 2 | G33: 8 | H33: 6 | I33: 0 | J33: 0 | K33: 0 | L33: 0 | M33: 0 | N33: 0 | O33: 0 | P33: 0 | Q33: 1 | R33: 0 | S33: 23
B34: 20 | E34: 14 | F34: 3 | G34: 19 | H34: 1 | I34: 0 | J34: 1 | K34: 1 | L34: 0 | M34: 0 | N34: 0 | O34: 0 | P34: 0 | Q34: 0 | R34: 1 | S34: 40
B35: 21 | E35: 9 | F35: 12 | G35: 19 | H35: 11 | I35: 0 | J35: 0 | K35: 2 | L35: 0 | M35: 0 | N35: 0 | O35: 0 | P35: 0 | Q35: 0 | R35: 2 | S35: 55
B36: 22 | E36: 5 | F36: 8 | G36: 25 | H36: 7 | I36: 3 | J36: 0 | K36: 0 | L36: 1 | M36: 0 | N36: 0 | O36: 0 | P36: 0 | Q36: 0 | R36: 0 | S36: 49
B37: 23 | E37: 14 | F37: 12 | G37: 25 | H37: 15 | I37: 3 | J37: 0 | K37: 3 | L37: 0 | M37: 1 | N37: 1 | O37: 0 | P37: 0 | Q37: 0 | R37: 0 | S37: 74
B38: 24 | E38: 28 | F38: 13 | G38: 38 | H38: 9 | I38: 1 | J38: 2 | K38: 3 | L38: 1 | M38: 2 | N38: 0 | O38: 0 | P38: 0 | Q38: 0 | R38: 0 | S38: 97
B39: 25 | E39: 25 | F39: 13 | G39: 44 | H39: 15 | I39: 2 | J39: 2 | K39: 0 | L39: 0 | M39: 2 | N39: 1 | O39: 0 | P39: 0 | Q39: 0 | R39: 1 | S39: 105
B40: 26 | E40: 31 | F40: 26 | G40: 36 | H40: 18 | I40: 3 | J40: 1 | K40: 4 | L40: 3 | M40: 4 | N40: 0 | O40: 2 | P40: 0 | Q40: 1 | R40: 0 | S40: 129
B41: 27 | E41: 40 | F41: 22 | G41: 49 | H41: 25 | I41: 5 | J41: 1 | K41: 0 | L41: 2 | M41: 1 | N41: 0 | O41: 4 | P41: 1 | Q41: 4 | R41: 0 | S41: 154
B42: 28 | E42: 49 | F42: 24 | G42: 50 | H42: 19 | I42: 4 | J42: 2 | K42: 7 | L42: 4 | M42: 4 | N42: 1 | O42: 3 | P42: 1 | Q42: 10 | R42: 1 | S42: 179
B43: 29 | E43: 45 | F43: 27 | G43: 38 | H43: 22 | I43: 5 | J43: 5 | K43: 10 | L43: 1 | M43: 8 | N43: 0 | O43: 4 | P43: 0 | Q43: 9 | R43: 3 | S43: 177
B44: 30 | E44: 39 | F44: 28 | G44: 56 | H44: 19 | I44: 9 | J44: 1 | K44: 4 | L44: 1 | M44: 2 | N44: 3 | O44: 3 | P44: 2 | Q44: 5 | R44: 5 | S44: 177
B45: 31 | E45: 46 | F45: 21 | G45: 54 | H45: 33 | I45: 1 | J45: 4 | K45: 7 | L45: 5 | M45: 4 | N45: 3 | O45: 5 | P45: 3 | Q45: 12 | R45: 9 | S45: 207
B46: 32 | E46: 43 | F46: 43 | G46: 49 | H46: 27 | I46: 8 | J46: 3 | K46: 7 | L46: 4 | M46: 3 | N46: 5 | O46: 5 | P46: 4 | Q46: 13 | R46: 11 | S46: =SUM(E46:R46) -> 225
B47: 33 | E47: 52 | F47: 34 | G47: 52 | H47: 34 | I47: 7 | J47: 7 | K47: 9 | L47: 4 | M47: 10 | N47: 3 | O47: 4 | P47: 3 | Q47: 13 | R47: 18 | S47: 250
B48: 34 | E48: 48 | F48: 33 | G48: 69 | H48: 31 | I48: 8 | J48: 1 | K48: 4 | L48: 2 | M48: 13 | N48: 1 | O48: 4 | P48: 4 | Q48: 29 | R48: 14 | S48: 261
B49: 35 | E49: 43 | F49: 27 | G49: 58 | H49: 29 | I49: 6 | J49: 5 | K49: 8 | L49: 4 | M49: 8 | N49: 2 | O49: 9 | P49: 6 | Q49: 13 | R49: 15 | S49: 233
B50: 36 | E50: 67 | F50: 25 | G50: 65 | H50: 45 | I50: 11 | J50: 7 | K50: 11 | L50: 6 | M50: 10 | N50: 5 | O50: 3 | P50: 1 | Q50: 35 | R50: 13 | S50: 304
B51: 37 | E51: 53 | F51: 19 | G51: 79 | H51: 50 | I51: 17 | J51: 2 | K51: 12 | L51: 3 | M51: 9 | N51: 5 | O51: 10 | P51: 4 | Q51: 44 | R51: 14 | S51: 321
B52: 38 | E52: 53 | F52: 29 | G52: 81 | H52: 48 | I52: 9 | J52: 10 | K52: 9 | L52: 6 | M52: 12 | N52: 6 | O52: 11 | P52: 2 | Q52: 44 | R52: 15 | S52: 335
B53: 39 | E53: 56 | F53: 47 | G53: 96 | H53: 43 | I53: 14 | J53: 2 | K53: 12 | L53: 6 | M53: 7 | N53: 8 | O53: 7 | P53: 3 | Q53: 50 | R53: 21 | S53: 372
B54: 40 | E54: 48 | F54: 25 | G54: 82 | H54: 59 | I54: 13 | J54: 5 | K54: 8 | L54: 9 | M54: 19 | N54: 9 | O54: 8 | P54: 6 | Q54: 56 | R54: 16 | S54: 363
B55: 41 | E55: 65 | F55: 32 | G55: 78 | H55: 49 | I55: 12 | J55: 6 | K55: 12 | L55: 9 | M55: 14 | N55: 4 | O55: 13 | P55: 5 | Q55: 69 | R55: 21 | S55: 389
B56: 42 | E56: 68 | F56: 35 | G56: 88 | H56: 50 | I56: 18 | J56: 8 | K56: 29 | L56: 8 | M56: 13 | N56: 3 | O56: 7 | P56: 2 | Q56: 82 | R56: 36 | S56: 447
B57: 43 | E57: 79 | F57: 41 | G57: 107 | H57: 43 | I57: 17 | J57: 7 | K57: 14 | L57: 4 | M57: 21 | N57: 10 | O57: 11 | P57: 6 | Q57: 81 | R57: 60 | S57: 501
B58: 44 | E58: 80 | F58: 41 | G58: 122 | H58: 53 | I58: 26 | J58: 9 | K58: 22 | L58: 14 | M58: 9 | N58: 5 | O58: 11 | P58: 5 | Q58: 95 | R58: 63 | S58: 555
B59: 45 | E59: 102 | F59: 43 | G59: 138 | H59: 55 | I59: 17 | J59: 6 | K59: 13 | L59: 6 | M59: 10 | N59: 6 | O59: 14 | P59: 6 | Q59: 114 | R59: 59 | S59: 589
B60: 46 | E60: 124 | F60: 36 | G60: 133 | H60: 85 | I60: 19 | J60: 9 | K60: 25 | L60: 11 | M60: 21 | N60: 8 | O60: 17 | P60: 9 | Q60: 130 | R60: 63 | S60: 690
B61: 47 | E61: 80 | F61: 42 | G61: 147 | H61: 83 | I61: 21 | J61: 13 | K61: 22 | L61: 11 | M61: 8 | N61: 8 | O61: 12 | P61: 6 | Q61: 134 | R61: 77 | S61: 664
B62: 48 | E62: 103 | F62: 31 | G62: 156 | H62: 95 | I62: 23 | J62: 8 | K62: 33 | L62: 7 | M62: 31 | N62: 8 | O62: 18 | P62: 7 | Q62: 161 | R62: 108 | S62: 789
B63: 49 | E63: 96 | F63: 55 | G63: 143 | H63: 78 | I63: 30 | J63: 11 | K63: 25 | L63: 15 | M63: 18 | N63: 8 | O63: 23 | P63: 9 | Q63: 167 | R63: 79 | S63: 757
B64: 50 | E64: 103 | F64: 59 | G64: 162 | H64: 94 | I64: 26 | J64: 7 | K64: 29 | L64: 18 | M64: 21 | N64: 10 | O64: 19 | P64: 5 | Q64: 169 | R64: 136 | S64: 858
B65: 51 | E65: 136 | F65: 67 | G65: 167 | H65: 106 | I65: 35 | J65: 20 | K65: 29 | L65: 10 | M65: 23 | N65: 10 | O65: 26 | P65: 9 | Q65: 211 | R65: 135 | S65: 984
B66: 52 | E66: 118 | F66: 58 | G66: 151 | H66: 89 | I66: 37 | J66: 14 | K66: 27 | L66: 11 | M66: 29 | N66: 14 | O66: 16 | P66: 7 | Q66: 218 | R66: 144 | S66: 933
B67: 53 | E67: 115 | F67: 95 | G67: 189 | H67: 116 | I67: 29 | J67: 9 | K67: 35 | L67: 11 | M67: 41 | N67: 18 | O67: 18 | P67: 8 | Q67: 234 | R67: 165 | S67: 1083
B68: 54 | E68: 118 | F68: 86 | G68: 179 | H68: 106 | I68: 33 | J68: 17 | K68: 30 | L68: 10 | M68: 18 | N68: 7 | O68: 21 | P68: 8 | Q68: 237 | R68: 177 | S68: 1047
B69: 55 | E69: 120 | F69: 72 | G69: 155 | H69: 105 | I69: 36 | J69: 17 | K69: 35 | L69: 21 | M69: 21 | N69: 19 | O69: 26 | P69: 11 | Q69: 275 | R69: 188 | S69: 1101
B70: 56 | E70: 138 | F70: 68 | G70: 176 | H70: 105 | I70: 37 | J70: 12 | K70: 31 | L70: 13 | M70: 30 | N70: 12 | O70: 34 | P70: 20 | Q70: 291 | R70: 178 | S70: 1145
B71: 57 | E71: 151 | F71: 74 | G71: 183 | H71: 110 | I71: 24 | J71: 18 | K71: 31 | L71: 17 | M71: 37 | N71: 15 | O71: 26 | P71: 16 | Q71: 270 | R71: 205 | S71: 1177
B72: 58 | E72: 158 | F72: 70 | G72: 197 | H72: 104 | I72: 31 | J72: 15 | K72: 43 | L72: 21 | M72: 28 | N72: 21 | O72: 35 | P72: 15 | Q72: 308 | R72: 224 | S72: 1270
B73: 59 | E73: 172 | F73: 84 | G73: 177 | H73: 127 | I73: 43 | J73: 14 | K73: 31 | L73: 20 | M73: 28 | N73: 12 | O73: 27 | P73: 16 | Q73: 359 | R73: 209 | S73: 1319
B74: 60 | E74: 148 | F74: 79 | G74: 209 | H74: 120 | I74: 33 | J74: 14 | K74: 42 | L74: 13 | M74: 33 | N74: 16 | O74: 31 | P74: 12 | Q74: 337 | R74: 242 | S74: 1329
B75: 61 | E75: 119 | F75: 74 | G75: 179 | H75: 101 | I75: 41 | J75: 25 | K75: 32 | L75: 11 | M75: 36 | N75: 25 | O75: 24 | P75: 20 | Q75: 297 | R75: 229 | S75: 1213
B76: 62 | E76: 151 | F76: 86 | G76: 197 | H76: 106 | I76: 31 | J76: 14 | K76: 42 | L76: 9 | M76: 43 | N76: 11 | O76: 32 | P76: 7 | Q76: 318 | R76: 204 | S76: 1251
B77: 63 | E77: 152 | F77: 74 | G77: 176 | H77: 114 | I77: 30 | J77: 10 | K77: 35 | L77: 16 | M77: 26 | N77: 13 | O77: 28 | P77: 17 | Q77: 317 | R77: 193 | S77: 1201
B78: 64 | E78: 157 | F78: 65 | G78: 179 | H78: 118 | I78: 37 | J78: 10 | K78: 28 | L78: 16 | M78: 31 | N78: 11 | O78: 35 | P78: 16 | Q78: 382 | R78: 229 | S78: =SUM(E78:R78) -> 1314
B79: 65 | E79: 110 | F79: 71 | G79: 153 | H79: 102 | I79: 26 | J79: 8 | K79: 21 | L79: 7 | M79: 27 | N79: 16 | O79: 20 | P79: 15 | Q79: 295 | R79: 191 | S79: 1062
B80: 66 | E80: 103 | F80: 37 | G80: 124 | H80: 72 | I80: 23 | J80: 10 | K80: 26 | L80: 10 | M80: 22 | N80: 10 | O80: 19 | P80: 9 | Q80: 299 | R80: 182 | S80: 946
B81: 67 | E81: 80 | F81: 41 | G81: 108 | H81: 65 | I81: 19 | J81: 9 | K81: 21 | L81: 14 | M81: 18 | N81: 16 | O81: 27 | P81: 16 | Q81: 239 | R81: 165 | S81: 838
B82: 68 | E82: 66 | F82: 30 | G82: 100 | H82: 41 | I82: 16 | J82: 6 | K82: 21 | L82: 8 | M82: 19 | N82: 14 | O82: 16 | P82: 9 | Q82: 244 | R82: 147 | S82: 737
B83: 69 | E83: 60 | F83: 22 | G83: 73 | H83: 42 | I83: 20 | J83: 8 | K83: 26 | L83: 4 | M83: 16 | N83: 8 | O83: 21 | P83: 8 | Q83: 254 | R83: 151 | S83: 713
B84: 70 | E84: 33 | F84: 26 | G84: 67 | H84: 29 | I84: 17 | J84: 5 | K84: 12 | L84: 8 | M84: 19 | N84: 7 | O84: 15 | P84: 9 | Q84: 224 | R84: 122 | S84: 593
B85: 71 | E85: 32 | F85: 10 | G85: 51 | H85: 19 | I85: 12 | J85: 7 | K85: 19 | L85: 10 | M85: 12 | N85: 10 | O85: 17 | P85: 19 | Q85: 263 | R85: 144 | S85: 625
B86: 72 | E86: 15 | F86: 8 | G86: 32 | H86: 11 | I86: 6 | J86: 8 | K86: 17 | L86: 12 | M86: 17 | N86: 13 | O86: 11 | P86: 7 | Q86: 197 | R86: 141 | S86: 495
B87: 73 | E87: 19 | F87: 15 | G87: 21 | H87: 13 | I87: 1 | J87: 0 | K87: 3 | L87: 4 | M87: 7 | N87: 3 | O87: 14 | P87: 7 | Q87: 178 | R87: 113 | S87: 398
B88: 74 | E88: 15 | F88: 4 | G88: 32 | H88: 10 | I88: 3 | J88: 1 | K88: 2 | L88: 2 | M88: 4 | N88: 0 | O88: 7 | P88: 10 | Q88: 185 | R88: 108 | S88: 383
B89: 75 | E89: 22 | F89: 2 | G89: 23 | H89: 12 | I89: 2 | J89: 2 | K89: 1 | L89: 0 | M89: 3 | N89: 1 | O89: 2 | P89: 4 | Q89: 175 | R89: 99 | S89: 348
B90: 76 | E90: 10 | F90: 7 | G90: 20 | H90: 12 | I90: 0 | J90: 1 | K90: 0 | L90: 1 | M90: 0 | N90: 1 | O90: 0 | P90: 2 | Q90: 197 | R90: 83 | S90: 334
B91: 77 | E91: 12 | F91: 4 | G91: 18 | H91: 8 | I91: 0 | J91: 0 | K91: 1 | L91: 1 | M91: 0 | N91: 0 | O91: 1 | P91: 1 | Q91: 164 | R91: 74 | S91: 284
B92: 78 | E92: 12 | F92: 6 | G92: 19 | H92: 10 | I92: 3 | J92: 0 | K92: 1 | L92: 1 | M92: 1 | N92: 1 | O92: 1 | P92: 1 | Q92: 124 | R92: 71 | S92: 251
B93: 79 | E93: 10 | F93: 6 | G93: 13 | H93: 8 | I93: 0 | J93: 0 | K93: 0 | L93: 0 | M93: 1 | N93: 1 | O93: 0 | P93: 0 | Q93: 87 | R93: 56 | S93: 182
B94: 80 | E94: 5 | F94: 2 | G94: 12 | H94: 9 | I94: 0 | J94: 0 | K94: 0 | L94: 1 | M94: 1 | N94: 3 | O94: 0 | P94: 0 | Q94: 74 | R94: 45 | S94: 152
B95: 81 | E95: 5 | F95: 4 | G95: 6 | H95: 9 | I95: 0 | J95: 0 | K95: 1 | L95: 0 | M95: 1 | N95: 0 | O95: 0 | P95: 1 | Q95: 61 | R95: 42 | S95: 130
B96: 82 | E96: 7 | F96: 4 | G96: 5 | H96: 5 | I96: 0 | J96: 0 | K96: 3 | L96: 1 | M96: 0 | N96: 1 | O96: 0 | P96: 0 | Q96: 42 | R96: 34 | S96: 102
B97: 83 | E97: 5 | F97: 3 | G97: 11 | H97: 5 | I97: 0 | J97: 0 | K97: 1 | L97: 3 | M97: 2 | N97: 0 | O97: 0 | P97: 0 | Q97: 54 | R97: 24 | S97: 108
B98: 84 | E98: 4 | F98: 4 | G98: 8 | H98: 2 | I98: 0 | J98: 0 | K98: 1 | L98: 1 | M98: 0 | N98: 0 | O98: 0 | P98: 1 | Q98: 22 | R98: 21 | S98: 64
B99: 85 | E99: 5 | F99: 3 | G99: 8 | H99: 5 | I99: 1 | J99: 0 | K99: 1 | L99: 0 | M99: 0 | N99: 0 | O99: 2 | P99: 0 | Q99: 21 | R99: 18 | S99: 64
B100: 86 | E100: 5 | F100: 5 | G100: 4 | H100: 7 | I100: 2 | J100: 1 | K100: 1 | L100: 0 | M100: 0 | N100: 0 | O100: 0 | P100: 0 | Q100: 14 | R100: 14 | S100: 53
B101: 87 | E101: 3 | F101: 5 | G101: 10 | H101: 5 | I101: 0 | J101: 0 | K101: 0 | L101: 0 | M101: 0 | N101: 1 | O101: 1 | P101: 2 | Q101: 8 | R101: 6 | S101: 41
B102: 88 | E102: 4 | F102: 1 | G102: 9 | H102: 5 | I102: 0 | J102: 0 | K102: 0 | L102: 0 | M102: 1 | N102: 0 | O102: 1 | P102: 0 | Q102: 10 | R102: 6 | S102: 37
B103: 89 | E103: 1 | F103: 1 | G103: 6 | H103: 3 | I103: 1 | J103: 0 | K103: 0 | L103: 1 | M103: 2 | N103: 1 | O103: 0 | P103: 0 | Q103: 5 | R103: 12 | S103: 33
B104: 90 | E104: 2 | F104: 3 | G104: 1 | H104: 1 | I104: 0 | J104: 1 | K104: 0 | L104: 0 | M104: 1 | N104: 0 | O104: 1 | P104: 0 | Q104: 7 | R104: 7 | S104: 24
B105: 91 | E105: 0 | F105: 0 | G105: 1 | H105: 3 | I105: 0 | J105: 1 | K105: 0 | L105: 0 | M105: 0 | N105: 0 | O105: 0 | P105: 0 | Q105: 4 | R105: 2 | S105: 11
B106: 92 | E106: 1 | F106: 4 | G106: 2 | H106: 0 | I106: 0 | J106: 0 | K106: 0 | L106: 0 | M106: 0 | N106: 0 | O106: 0 | P106: 1 | Q106: 1 | R106: 3 | S106: 12
B107: 93 | E107: 0 | F107: 2 | G107: 5 | H107: 4 | I107: 0 | J107: 0 | K107: 1 | L107: 1 | M107: 0 | N107: 0 | O107: 2 | P107: 0 | Q107: 0 | R107: 0 | S107: 15
B108: 94 | E108: 1 | F108: 6 | G108: 2 | H108: 6 | I108: 0 | J108: 0 | K108: 0 | L108: 0 | M108: 0 | N108: 0 | O108: 0 | P108: 0 | Q108: 3 | R108: 2 | S108: 20
B109: 95 | E109: 1 | F109: 0 | G109: 2 | H109: 0 | I109: 0 | J109: 0 | K109: 0 | L109: 0 | M109: 0 | N109: 0 | O109: 0 | P109: 0 | Q109: 0 | R109: 1 | S109: 4
B110: 96 | E110: 0 | F110: 1 | G110: 3 | H110: 4 | I110: 0 | J110: 0 | K110: 0 | L110: 0 | M110: 0 | N110: 0 | O110: 0 | P110: 0 | Q110: 2 | R110: 0 | S110: 10
B111: 97 | E111: 0 | F111: 0 | G111: 0 | H111: 1 | I111: 0 | J111: 0 | K111: 0 | L111: 0 | M111: 0 | N111: 0 | O111: 1 | P111: 0 | Q111: 0 | R111: 1 | S111: 3
B112: 98 | E112: 2 | F112: 0 | G112: 0 | H112: 0 | I112: 0 | J112: 0 | K112: 0 | L112: 0 | M112: 0 | N112: 0 | O112: 1 | P112: 0 | Q112: 0 | R112: 0 | S112: 3
B113: 99 | E113: 0 | F113: 0 | G113: 0 | H113: 0 | I113: 0 | J113: 0 | K113: 0 | L113: 0 | M113: 0 | N113: 0 | O113: 0 | P113: 0 | Q113: 1 | R113: 0 | S113: 1
A114: De | B114: 100 o mas | C114: años y más | E114: 0 | F114: 0 | G114: 0 | H114: 1 | I114: 0 | J114: 0 | K114: 0 | L114: 0 | M114: 0 | N114: 0 | O114: 0 | P114: 0 | Q114: 0 | R114: 0 | S114: 1
A115: TOTAL | E115: =SUM(E14:E114) -> 4331 | F115: =SUM(F14:F114) -> 2306 | G115: 5834 | H115: 3322 | I115: 968 | J115: 423 | K115: 996 | L115: 455 | M115: 884 | N115: 434 | O115: 786 | P115: 406 | Q115: 9049 | R115: 5676 | S115: 35870
A117: NOTA: ESTE FORMATO ES PARA PÓLIZAS DEL SEGURO INDIVIDUAL EMITIDAS A PARTIR DEL 1° DE ENERO DE 1994.

Sheet 3B (hidden)
A2: 3 b. SINIESTROS PROCEDENTES POR MUERTE EN LA OPERACIÓN DE VIDA POR TIPO DE SEGURO,
A3: AÑOS DE ANTIGÜEDAD Y EDAD ALCANZADA
A5: DICIEMBRE DE 2017
A8: VIDA INDIVIDUAL
E10: 2 | F10: 3 | G10: 4 | H10: 5 | I10: 6 | J10: 7 | K10: 8 | L10: 9 | M10: 10 | N10: 11 | O10: 12 | P10: 13 | Q10: 14 | R10: 15
A11: EDAD | E11: SINIESTROS PROCEDENTES POR MUERTE DE LAS PÓLIZAS CON ANTIGÜEDAD MENOR O IGUAL A:
A12: ALCANZADA | E12: 1 año | G12: 2 años | I12: 3 años | K12: 4 años | M12: 5 años | O12: 6 años | Q12: más de 6 años | S12: TOTAL
E13: H | F13: M | G13: H | H13: M | I13: H | J13: M | K13: H | L13: M | M13: H | N13: M | O13: H | P13: M | Q13: H | R13: M
A14: De | B14: 0 | C14: años | E14: 0 | F14: 0 | G14: 0 | H14: 0 | I14: 0 | J14: 0 | K14: 0 | L14: 0 | M14: 0 | N14: 0 | O14: 0 | P14: 0 | Q14: 0 | R14: 0 | S14: =SUM(E14:R14) -> 0
B15: 1 | E15: 0 | F15: 0 | G15: 0 | H15: 0 | I15: 0 | J15: 0 | K15: 0 | L15: 0 | M15: 0 | N15: 0 | O15: 0 | P15: 0 | Q15: 0 | R15: 0 | S15: 0
B16: 2 | E16: 0 | F16: 0 | G16: 0 | H16: 0 | I16: 0 | J16: 0 | K16: 0 | L16: 0 | M16: 0 | N16: 0 | O16: 0 | P16: 0 | Q16: 0 | R16: 0 | S16: 0
B17: 3 | E17: 0 | F17: 0 | G17: 0 | H17: 0 | I17: 0 | J17: 0 | K17: 0 | L17: 0 | M17: 0 | N17: 0 | O17: 0 | P17: 0 | Q17: 1 | R17: 0 | S17: 1
B18: 4 | E18: 0 | F18: 0 | G18: 0 | H18: 0 | I18: 0 | J18: 0 | K18: 0 | L18: 0 | M18: 0 | N18: 0 | O18: 0 | P18: 0 | Q18: 0 | R18: 0 | S18: 0
B19: 5 | E19: 0 | F19: 0 | G19: 0 | H19: 0 | I19: 0 | J19: 0 | K19: 0 | L19: 0 | M19: 0 | N19: 0 | O19: 0 | P19: 0 | Q19: 0 | R19: 0 | S19: 0
B20: 6 | E20: 0 | F20: 0 | G20: 0 | H20: 0 | I20: 0 | J20: 0 | K20: 0 | L20: 0 | M20: 0 | N20: 0 | O20: 0 | P20: 0 | Q20: 0 | R20: 0 | S20: 0
B21: 7 | E21: 0 | F21: 0 | G21: 0 | H21: 0 | I21: 0 | J21: 0 | K21: 0 | L21: 0 | M21: 0 | N21: 0 | O21: 0 | P21: 0 | Q21: 0 | R21: 0 | S21: 0
B22: 8 | E22: 0 | F22: 0 | G22: 0 | H22: 0 | I22: 0 | J22: 0 | K22: 0 | L22: 0 | M22: 0 | N22: 0 | O22: 0 | P22: 0 | Q22: 0 | R22: 0 | S22: 0
B23: 9 | E23: 0 | F23: 0 | G23: 0 | H23: 0 | I23: 0 | J23: 0 | K23: 0 | L23: 0 | M23: 0 | N23: 0 | O23: 0 | P23: 0 | Q23: 0 | R23: 0 | S23: 0
B24: 10 | E24: 0 | F24: 0 | G24: 0 | H24: 0 | I24: 0 | J24: 0 | K24: 0 | L24: 0 | M24: 0 | N24: 0 | O24: 0 | P24: 0 | Q24: 0 | R24: 0 | S24: 0
B25: 11 | E25: 0 | F25: 0 | G25: 0 | H25: 0 | I25: 0 | J25: 0 | K25: 0 | L25: 0 | M25: 0 | N25: 0 | O25: 0 | P25: 0 | Q25: 0 | R25: 0 | S25: 0
B26: 12 | E26: 0 | F26: 0 | G26: 0 | H26: 0 | I26: 0 | J26: 0 | K26: 0 | L26: 0 | M26: 0 | N26: 0 | O26: 0 | P26: 0 | Q26: 0 | R26: 0 | S26: 0
B27: 13 | E27: 0 | F27: 0 | G27: 0 | H27: 0 | I27: 0 | J27: 0 | K27: 0 | L27: 0 | M27: 0 | N27: 0 | O27: 0 | P27: 0 | Q27: 0 | R27: 0 | S27: 0
B28: 14 | E28: 0 | F28: 0 | G28: 0 | H28: 0 | I28: 0 | J28: 0 | K28: 0 | L28: 0 | M28: 0 | N28: 0 | O28: 0 | P28: 0 | Q28: 0 | R28: 0 | S28: 0
B29: 15 | E29: 0 | F29: 0 | G29: 0 | H29: 0 | I29: 0 | J29: 0 | K29: 0 | L29: 0 | M29: 0 | N29: 0 | O29: 0 | P29: 0 | Q29: 0 | R29: 0 | S29: 0
B30: 16 | E30: 0 | F30: 0 | G30: 0 | H30: 0 | I30: 0 | J30: 0 | K30: 0 | L30: 0 | M30: 0 | N30: 0 | O30: 0 | P30: 0 | Q30: 0 | R30: 0 | S30: 0
B31: 17 | E31: 0 | F31: 0 | G31: 0 | H31: 0 | I31: 0 | J31: 0 | K31: 0 | L31: 0 | M31: 0 | N31: 0 | O31: 0 | P31: 0 | Q31: 0 | R31: 0 | S31: 0
B32: 18 | E32: 0 | F32: 0 | G32: 0 | H32: 0 | I32: 0 | J32: 0 | K32: 0 | L32: 0 | M32: 0 | N32: 0 | O32: 0 | P32: 0 | Q32: 0 | R32: 0 | S32: 0
B33: 19 | E33: 0 | F33: 0 | G33: 0 | H33: 0 | I33: 0 | J33: 0 | K33: 0 | L33: 0 | M33: 0 | N33: 0 | O33: 0 | P33: 0 | Q33: 5 | R33: 1 | S33: 6
B34: 20 | E34: 0 | F34: 0 | G34: 0 | H34: 0 | I34: 0 | J34: 0 | K34: 0 | L34: 0 | M34: 0 | N34: 0 | O34: 0 | P34: 0 | Q34: 1 | R34: 1 | S34: 2
B35: 21 | E35: 0 | F35: 0 | G35: 0 | H35: 0 | I35: 0 | J35: 0 | K35: 0 | L35: 0 | M35: 0 | N35: 0 | O35: 0 | P35: 0 | Q35: 3 | R35: 1 | S35: 4
B36: 22 | E36: 0 | F36: 0 | G36: 0 | H36: 0 | I36: 0 | J36: 0 | K36: 0 | L36: 0 | M36: 0 | N36: 0 | O36: 0 | P36: 0 | Q36: 3 | R36: 0 | S36: 3
B37: 23 | E37: 0 | F37: 0 | G37: 0 | H37: 0 | I37: 0 | J37: 0 | K37: 0 | L37: 0 | M37: 0 | N37: 0 | O37: 0 | P37: 0 | Q37: 8 | R37: 5 | S37: 13
B38: 24 | E38: 0 | F38: 0 | G38: 0 | H38: 0 | I38: 0 | J38: 0 | K38: 0 | L38: 0 | M38: 0 | N38: 0 | O38: 0 | P38: 0 | Q38: 5 | R38: 1 | S38: 6
B39: 25 | E39: 0 | F39: 0 | G39: 0 | H39: 0 | I39: 0 | J39: 0 | K39: 0 | L39: 0 | M39: 0 | N39: 0 | O39: 0 | P39: 0 | Q39: 12 | R39: 3 | S39: 15
B40: 26 | E40: 0 | F40: 0 | G40: 0 | H40: 0 | I40: 0 | J40: 0 | K40: 0 | L40: 0 | M40: 0 | N40: 0 | O40: 0 | P40: 0 | Q40: 9 | R40: 4 | S40: 13
B41: 27 | E41: 0 | F41: 0 | G41: 0 | H41: 0 | I41: 0 | J41: 0 | K41: 0 | L41: 0 | M41: 0 | N41: 0 | O41: 0 | P41: 0 | Q41: 6 | R41: 1 | S41: 7
B42: 28 | E42: 0 | F42: 0 | G42: 0 | H42: 0 | I42: 0 | J42: 0 | K42: 0 | L42: 0 | M42: 0 | N42: 0 | O42: 0 | P42: 0 | Q42: 10 | R42: 3 | S42: 13
B43: 29 | E43: 0 | F43: 0 | G43: 0 | H43: 0 | I43: 0 | J43: 0 | K43: 0 | L43: 0 | M43: 0 | N43: 0 | O43: 0 | P43: 0 | Q43: 20 | R43: 5 | S43: 25
B44: 30 | E44: 0 | F44: 0 | G44: 0 | H44: 0 | I44: 0 | J44: 0 | K44: 0 | L44: 0 | M44: 0 | N44: 0 | O44: 0 | P44: 0 | Q44: 23 | R44: 2 | S44: 25
B45: 31 | E45: 0 | F45: 0 | G45: 0 | H45: 0 | I45: 0 | J45: 0 | K45: 0 | L45: 0 | M45: 0 | N45: 0 | O45: 0 | P45: 0 | Q45: 18 | R45: 5 | S45: 23
B46: 32 | E46: 0 | F46: 0 | G46: 0 | H46: 0 | I46: 0 | J46: 0 | K46: 0 | L46: 0 | M46: 0 | N46: 0 | O46: 0 | P46: 0 | Q46: 11 | R46: 4 | S46: =SUM(E46:R46) -> 15
B47: 33 | E47: 0 | F47: 0 | G47: 0 | H47: 0 | I47: 0 | J47: 0 | K47: 0 | L47: 0 | M47: 0 | N47: 0 | O47: 0 | P47: 0 | Q47: 29 | R47: 1 | S47: 30
B48: 34 | E48: 0 | F48: 0 | G48: 0 | H48: 0 | I48: 0 | J48: 0 | K48: 0 | L48: 0 | M48: 0 | N48: 0 | O48: 0 | P48: 0 | Q48: 22 | R48: 2 | S48: 24
B49: 35 | E49: 0 | F49: 0 | G49: 0 | H49: 0 | I49: 0 | J49: 0 | K49: 0 | L49: 0 | M49: 0 | N49: 0 | O49: 0 | P49: 0 | Q49: 13 | R49: 4 | S49: 17
B50: 36 | E50: 0 | F50: 0 | G50: 0 | H50: 0 | I50: 0 | J50: 0 | K50: 0 | L50: 0 | M50: 0 | N50: 0 | O50: 0 | P50: 0 | Q50: 25 | R50: 2 | S50: 27
B51: 37 | E51: 0 | F51: 0 | G51: 0 | H51: 0 | I51: 0 | J51: 0 | K51: 0 | L51: 0 | M51: 0 | N51: 0 | O51: 0 | P51: 0 | Q51: 19 | R51: 6 | S51: 25
B52: 38 | E52: 0 | F52: 0 | G52: 0 | H52: 0 | I52: 0 | J52: 0 | K52: 0 | L52: 0 | M52: 0 | N52: 0 | O52: 0 | P52: 0 | Q52: 13 | R52: 7 | S52: 20
B53: 39 | E53: 0 | F53: 0 | G53: 0 | H53: 0 | I53: 0 | J53: 0 | K53: 0 | L53: 0 | M53: 0 | N53: 0 | O53: 0 | P53: 0 | Q53: 16 | R53: 5 | S53: 21
B54: 40 | E54: 0 | F54: 0 | G54: 0 | H54: 0 | I54: 0 | J54: 0 | K54: 0 | L54: 0 | M54: 0 | N54: 0 | O54: 0 | P54: 0 | Q54: 13 | R54: 3 | S54: 16
B55: 41 | E55: 0 | F55: 0 | G55: 0 | H55: 0 | I55: 0 | J55: 0 | K55: 0 | L55: 0 | M55: 0 | N55: 0 | O55: 0 | P55: 0 | Q55: 20 | R55: 4 | S55: 24
B56: 42 | E56: 0 | F56: 0 | G56: 0 | H56: 0 | I56: 0 | J56: 0 | K56: 0 | L56: 0 | M56: 0 | N56: 0 | O56: 0 | P56: 0 | Q56: 12 | R56: 4 | S56: 16
B57: 43 | E57: 0 | F57: 0 | G57: 0 | H57: 0 | I57: 0 | J57: 0 | K57: 0 | L57: 0 | M57: 0 | N57: 0 | O57: 0 | P57: 0 | Q57: 25 | R57: 3 | S57: 28
B58: 44 | E58: 0 | F58: 0 | G58: 0 | H58: 0 | I58: 0 | J58: 0 | K58: 0 | L58: 0 | M58: 0 | N58: 0 | O58: 0 | P58: 0 | Q58: 12 | R58: 3 | S58: 15
B59: 45 | E59: 0 | F59: 0 | G59: 0 | H59: 0 | I59: 0 | J59: 0 | K59: 0 | L59: 0 | M59: 0 | N59: 0 | O59: 0 | P59: 0 | Q59: 27 | R59: 10 | S59: 37
B60: 46 | E60: 0 | F60: 0 | G60: 0 | H60: 0 | I60: 0 | J60: 0 | K60: 0 | L60: 0 | M60: 0 | N60: 0 | O60: 0 | P60: 0 | Q60: 30 | R60: 6 | S60: 36
B61: 47 | E61: 0 | F61: 0 | G61: 0 | H61: 0 | I61: 0 | J61: 0 | K61: 0 | L61: 0 | M61: 0 | N61: 0 | O61: 0 | P61: 0 | Q61: 25 | R61: 7 | S61: 32
B62: 48 | E62: 0 | F62: 0 | G62: 0 | H62: 0 | I62: 0 | J62: 0 | K62: 0 | L62: 0 | M62: 0 | N62: 0 | O62: 0 | P62: 0 | Q62: 19 | R62: 9 | S62: 28
B63: 49 | E63: 0 | F63: 0 | G63: 0 | H63: 0 | I63: 0 | J63: 0 | K63: 0 | L63: 0 | M63: 0 | N63: 0 | O63: 0 | P63: 0 | Q63: 27 | R63: 7 | S63: 34
B64: 50 | E64: 0 | F64: 0 | G64: 0 | H64: 0 | I64: 0 | J64: 0 | K64: 0 | L64: 0 | M64: 0 | N64: 0 | O64: 0 | P64: 0 | Q64: 31 | R64: 13 | S64: 44
B65: 51 | E65: 0 | F65: 0 | G65: 0 | H65: 0 | I65: 0 | J65: 0 | K65: 0 | L65: 0 | M65: 0 | N65: 0 | O65: 0 | P65: 0 | Q65: 26 | R65: 13 | S65: 39
B66: 52 | E66: 0 | F66: 0 | G66: 0 | H66: 0 | I66: 0 | J66: 0 | K66: 0 | L66: 0 | M66: 0 | N66: 0 | O66: 0 | P66: 0 | Q66: 29 | R66: 9 | S66: 38
B67: 53 | E67: 0 | F67: 0 | G67: 0 | H67: 0 | I67: 0 | J67: 0 | K67: 0 | L67: 0 | M67: 0 | N67: 0 | O67: 0 | P67: 0 | Q67: 38 | R67: 15 | S67: 53
B68: 54 | E68: 0 | F68: 0 | G68: 0 | H68: 0 | I68: 0 | J68: 0 | K68: 0 | L68: 0 | M68: 0 | N68: 0 | O68: 0 | P68: 0 | Q68: 40 | R68: 22 | S68: 62
B69: 55 | E69: 0 | F69: 0 | G69: 0 | H69: 0 | I69: 0 | J69: 0 | K69: 0 | L69: 0 | M69: 0 | N69: 0 | O69: 0 | P69: 0 | Q69: 36 | R69: 26 | S69: 62
B70: 56 | E70: 0 | F70: 0 | G70: 0 | H70: 0 | I70: 0 | J70: 0 | K70: 0 | L70: 0 | M70: 0 | N70: 0 | O70: 0 | P70: 0 | Q70: 60 | R70: 27 | S70: 87
B71: 57 | E71: 0 | F71: 0 | G71: 0 | H71: 0 | I71: 0 | J71: 0 | K71: 0 | L71: 0 | M71: 0 | N71: 0 | O71: 0 | P71: 0 | Q71: 66 | R71: 45 | S71: 111
B72: 58 | E72: 0 | F72: 0 | G72: 0 | H72: 0 | I72: 0 | J72: 0 | K72: 0 | L72: 0 | M72: 0 | N72: 0 | O72: 0 | P72: 0 | Q72: 65 | R72: 31 | S72: 96
B73: 59 | E73: 0 | F73: 0 | G73: 0 | H73: 0 | I73: 0 | J73: 0 | K73: 0 | L73: 0 | M73: 0 | N73: 0 | O73: 0 | P73: 0 | Q73: 43 | R73: 26 | S73: 69
B74: 60 | E74: 0 | F74: 0 | G74: 0 | H74: 0 | I74: 0 | J74: 0 | K74: 0 | L74: 0 | M74: 0 | N74: 0 | O74: 0 | P74: 0 | Q74: 72 | R74: 38 | S74: 110
B75: 61 | E75: 0 | F75: 0 | G75: 0 | H75: 0 | I75: 0 | J75: 0 | K75: 0 | L75: 0 | M75: 0 | N75: 0 | O75: 0 | P75: 0 | Q75: 86 | R75: 56 | S75: 142
B76: 62 | E76: 0 | F76: 0 | G76: 0 | H76: 0 | I76: 0 | J76: 0 | K76: 0 | L76: 0 | M76: 0 | N76: 0 | O76: 0 | P76: 0 | Q76: 86 | R76: 43 | S76: 129
B77: 63 | E77: 0 | F77: 0 | G77: 0 | H77: 0 | I77: 0 | J77: 0 | K77: 0 | L77: 0 | M77: 0 | N77: 0 | O77: 0 | P77: 0 | Q77: 108 | R77: 38 | S77: 146
B78: 64 | E78: 0 | F78: 0 | G78: 0 | H78: 0 | I78: 0 | J78: 0 | K78: 0 | L78: 0 | M78: 0 | N78: 0 | O78: 0 | P78: 0 | Q78: 84 | R78: 58 | S78: =SUM(E78:R78) -> 142
B79: 65 | E79: 0 | F79: 0 | G79: 0 | H79: 0 | I79: 0 | J79: 0 | K79: 0 | L79: 0 | M79: 0 | N79: 0 | O79: 0 | P79: 0 | Q79: 84 | R79: 41 | S79: 125
B80: 66 | E80: 0 | F80: 0 | G80: 0 | H80: 0 | I80: 0 | J80: 0 | K80: 0 | L80: 0 | M80: 0 | N80: 0 | O80: 0 | P80: 0 | Q80: 98 | R80: 51 | S80: 149
B81: 67 | E81: 0 | F81: 0 | G81: 0 | H81: 0 | I81: 0 | J81: 0 | K81: 0 | L81: 0 | M81: 0 | N81: 0 | O81: 0 | P81: 0 | Q81: 83 | R81: 64 | S81: 147
B82: 68 | E82: 0 | F82: 0 | G82: 0 | H82: 0 | I82: 0 | J82: 0 | K82: 0 | L82: 0 | M82: 0 | N82: 0 | O82: 0 | P82: 0 | Q82: 83 | R82: 54 | S82: 137
B83: 69 | E83: 0 | F83: 0 | G83: 0 | H83: 0 | I83: 0 | J83: 0 | K83: 0 | L83: 0 | M83: 0 | N83: 0 | O83: 0 | P83: 0 | Q83: 78 | R83: 43 | S83: 121
B84: 70 | E84: 0 | F84: 0 | G84: 0 | H84: 0 | I84: 0 | J84: 0 | K84: 0 | L84: 0 | M84: 0 | N84: 0 | O84: 0 | P84: 0 | Q84: 66 | R84: 38 | S84: 104
B85: 71 | E85: 0 | F85: 0 | G85: 0 | H85: 0 | I85: 0 | J85: 0 | K85: 0 | L85: 0 | M85: 0 | N85: 0 | O85: 0 | P85: 0 | Q85: 58 | R85: 44 | S85: 102
B86: 72 | E86: 0 | F86: 0 | G86: 0 | H86: 0 | I86: 0 | J86: 0 | K86: 0 | L86: 0 | M86: 0 | N86: 0 | O86: 0 | P86: 0 | Q86: 53 | R86: 24 | S86: 77
B87: 73 | E87: 0 | F87: 0 | G87: 0 | H87: 0 | I87: 0 | J87: 0 | K87: 0 | L87: 0 | M87: 0 | N87: 0 | O87: 0 | P87: 0 | Q87: 52 | R87: 34 | S87: 86
B88: 74 | E88: 0 | F88: 0 | G88: 0 | H88: 0 | I88: 0 | J88: 0 | K88: 0 | L88: 0 | M88: 0 | N88: 0 | O88: 0 | P88: 0 | Q88: 50 | R88: 24 | S88: 74
B89: 75 | E89: 0 | F89: 0 | G89: 0 | H89: 0 | I89: 0 | J89: 0 | K89: 0 | L89: 0 | M89: 0 | N89: 0 | O89: 0 | P89: 0 | Q89: 41 | R89: 16 | S89: 57
B90: 76 | E90: 0 | F90: 0 | G90: 0 | H90: 0 | I90: 0 | J90: 0 | K90: 0 | L90: 0 | M90: 0 | N90: 0 | O90: 0 | P90: 0 | Q90: 32 | R90: 26 | S90: 58
B91: 77 | E91: 0 | F91: 0 | G91: 0 | H91: 0 | I91: 0 | J91: 0 | K91: 0 | L91: 0 | M91: 0 | N91: 0 | O91: 0 | P91: 0 | Q91: 41 | R91: 17 | S91: 58
B92: 78 | E92: 0 | F92: 0 | G92: 0 | H92: 0 | I92: 0 | J92: 0 | K92: 0 | L92: 0 | M92: 0 | N92: 0 | O92: 0 | P92: 0 | Q92: 27 | R92: 15 | S92: 42
B93: 79 | E93: 0 | F93: 0 | G93: 0 | H93: 0 | I93: 0 | J93: 0 | K93: 0 | L93: 0 | M93: 0 | N93: 0 | O93: 0 | P93: 0 | Q93: 19 | R93: 18 | S93: 37
B94: 80 | E94: 0 | F94: 0 | G94: 0 | H94: 0 | I94: 0 | J94: 0 | K94: 0 | L94: 0 | M94: 0 | N94: 0 | O94: 0 | P94: 0 | Q94: 12 | R94: 14 | S94: 26
B95: 81 | E95: 0 | F95: 0 | G95: 0 | H95: 0 | I95: 0 | J95: 0 | K95: 0 | L95: 0 | M95: 0 | N95: 0 | O95: 0 | P95: 0 | Q95: 18 | R95: 10 | S95: 28
B96: 82 | E96: 0 | F96: 0 | G96: 0 | H96: 0 | I96: 0 | J96: 0 | K96: 0 | L96: 0 | M96: 0 | N96: 0 | O96: 0 | P96: 0 | Q96: 11 | R96: 6 | S96: 17
B97: 83 | E97: 0 | F97: 0 | G97: 0 | H97: 0 | I97: 0 | J97: 0 | K97: 0 | L97: 0 | M97: 0 | N97: 0 | O97: 0 | P97: 0 | Q97: 22 | R97: 12 | S97: 34
B98: 84 | E98: 0 | F98: 0 | G98: 0 | H98: 0 | I98: 0 | J98: 0 | K98: 0 | L98: 0 | M98: 0 | N98: 0 | O98: 0 | P98: 0 | Q98: 10 | R98: 5 | S98: 15
B99: 85 | E99: 0 | F99: 0 | G99: 0 | H99: 0 | I99: 0 | J99: 0 | K99: 0 | L99: 0 | M99: 0 | N99: 0 | O99: 0 | P99: 0 | Q99: 7 | R99: 4 | S99: 11
B100: 86 | E100: 0 | F100: 0 | G100: 0 | H100: 0 | I100: 0 | J100: 0 | K100: 0 | L100: 0 | M100: 0 | N100: 0 | O100: 0 | P100: 0 | Q100: 6 | R100: 5 | S100: 11
B101: 87 | E101: 0 | F101: 0 | G101: 0 | H101: 0 | I101: 0 | J101: 0 | K101: 0 | L101: 0 | M101: 0 | N101: 0 | O101: 0 | P101: 0 | Q101: 8 | R101: 2 | S101: 10
B102: 88 | E102: 0 | F102: 0 | G102: 0 | H102: 0 | I102: 0 | J102: 0 | K102: 0 | L102: 0 | M102: 0 | N102: 0 | O102: 0 | P102: 0 | Q102: 3 | R102: 2 | S102: 5
B103: 89 | E103: 0 | F103: 0 | G103: 0 | H103: 0 | I103: 0 | J103: 0 | K103: 0 | L103: 0 | M103: 0 | N103: 0 | O103: 0 | P103: 0 | Q103: 7 | R103: 7 | S103: 14
B104: 90 | E104: 0 | F104: 0 | G104: 0 | H104: 0 | I104: 0 | J104: 0 | K104: 0 | L104: 0 | M104: 0 | N104: 0 | O104: 0 | P104: 0 | Q104: 5 | R104: 2 | S104: 7
B105: 91 | E105: 0 | F105: 0 | G105: 0 | H105: 0 | I105: 0 | J105: 0 | K105: 0 | L105: 0 | M105: 0 | N105: 0 | O105: 0 | P105: 0 | Q105: 0 | R105: 3 | S105: 3
B106: 92 | E106: 0 | F106: 0 | G106: 0 | H106: 0 | I106: 0 | J106: 0 | K106: 0 | L106: 0 | M106: 0 | N106: 0 | O106: 0 | P106: 0 | Q106: 7 | R106: 1 | S106: 8
B107: 93 | E107: 0 | F107: 0 | G107: 0 | H107: 0 | I107: 0 | J107: 0 | K107: 0 | L107: 0 | M107: 0 | N107: 0 | O107: 0 | P107: 0 | Q107: 5 | R107: 0 | S107: 5
B108: 94 | E108: 0 | F108: 0 | G108: 0 | H108: 0 | I108: 0 | J108: 0 | K108: 0 | L108: 0 | M108: 0 | N108: 0 | O108: 0 | P108: 0 | Q108: 6 | R108: 2 | S108: 8
B109: 95 | E109: 0 | F109: 0 | G109: 0 | H109: 0 | I109: 0 | J109: 0 | K109: 0 | L109: 0 | M109: 0 | N109: 0 | O109: 0 | P109: 0 | Q109: 0 | R109: 0 | S109: 0
B110: 96 | E110: 0 | F110: 0 | G110: 0 | H110: 0 | I110: 0 | J110: 0 | K110: 0 | L110: 0 | M110: 0 | N110: 0 | O110: 0 | P110: 0 | Q110: 0 | R110: 0 | S110: 0
B111: 97 | E111: 0 | F111: 0 | G111: 0 | H111: 0 | I111: 0 | J111: 0 | K111: 0 | L111: 0 | M111: 0 | N111: 0 | O111: 0 | P111: 0 | Q111: 1 | R111: 1 | S111: 2
B112: 98 | E112: 0 | F112: 0 | G112: 0 | H112: 0 | I112: 0 | J112: 0 | K112: 0 | L112: 0 | M112: 0 | N112: 0 | O112: 0 | P112: 0 | Q112: 0 | R112: 0 | S112: 0
B113: 99 | E113: 0 | F113: 0 | G113: 0 | H113: 0 | I113: 0 | J113: 0 | K113: 0 | L113: 0 | M113: 0 | N113: 0 | O113: 0 | P113: 0 | Q113: 0 | R113: 0 | S113: 0
A114: De | B114: 100 o mas | C114: años y más | E114: 0 | F114: 0 | G114: 0 | H114: 0 | I114: 0 | J114: 0 | K114: 0 | L114: 0 | M114: 0 | N114: 0 | O114: 0 | P114: 0 | Q114: 1 | R114: 0 | S114: 1
A115: TOTAL | E115: =SUM(E14:E114) -> 0 | F115: =SUM(F14:F114) -> 0 | G115: 0 | H115: 0 | I115: 0 | J115: 0 | K115: 0 | L115: 0 | M115: 0 | N115: 0 | O115: 0 | P115: 0 | Q115: 2346 | R115: 1164 | S115: 3510
A117: NOTA: ESTE FORMATO ES PARA PÓLIZAS DEL SEGURO INDIVIDUAL EMITIDAS ANTES DEL 1° DE ENERO DE 1994

Sheet 3 Grupo
A2: 3. SINIESTROS PROCEDENTES POR MUERTE EN LA OPERACIÓN DE VIDA POR TIPO DE SEGURO,
A3: AÑOS DE ANTIGÜEDAD Y EDAD ALCANZADA
A5: ='1 Total'!B3 -> DICIEMBRE DE 2021
A7: VIDA GRUPO
E10: 2 | F10: 3 | G10: 4 | H10: 5 | I10: 6 | J10: 7 | K10: 8 | L10: 9 | M10: 10 | N10: 11 | O10: 12 | P10: 13 | Q10: 14 | R10: 15
A11: EDAD | E11: SINIESTROS PROCEDENTES POR MUERTE DE LAS PÓLIZAS CON ANTIGÜEDAD MENOR O IGUAL A:
A12: ALCANZADA | E12: 1 año | G12: 2 años | I12: 3 años | K12: 4 años | M12: 5 años | O12: 6 años | Q12: más de 6 años | S12: TOTAL
E13: H | F13: M | G13: H | H13: M | I13: H | J13: M | K13: H | L13: M | M13: H | N13: M | O13: H | P13: M | Q13: H | R13: M
B14: 0 a 15 | E14: 95 | F14: 58 | G14: 86 | H14: 29 | I14: 2 | J14: 0 | S14: =SUM(E14:R14) -> 270
B15: 16 | E15: 12 | F15: 6 | G15: 3 | H15: 5 | I15: 0 | J15: 1 | O15: 0 | P15: 0 | S15: =SUM(E15:R15) -> 27
B16: 17 | E16: 9 | F16: 11 | G16: 18 | H16: 10 | I16: 3 | J16: 0 | S16: 51
B17: 18 | E17: 13 | F17: 8 | G17: 7 | H17: 1 | I17: 0 | J17: 1 | K17: 0 | L17: 1 | O17: 0 | P17: 1 | S17: 32
B18: 19 | E18: 57 | F18: 43 | G18: 33 | H18: 9 | I18: 5 | J18: 1 | K18: 2 | L18: 0 | O18: 0 | P18: 29 | S18: 179
B19: 20 | E19: 96 | F19: 52 | G19: 91 | H19: 48 | I19: 10 | J19: 1 | K19: 2 | L19: 0 | M19: 0 | N19: 0 | O19: 4 | P19: 45 | Q19: 0 | R19: 0 | S19: 349
B20: 21 | E20: 831 | F20: 332 | G20: 137 | H20: 62 | I20: 12 | J20: 3 | K20: 1 | L20: 0 | O20: 6 | P20: 96 | Q20: 0 | R20: 0 | S20: 1480
B21: 22 | E21: 144 | F21: 71 | G21: 100 | H21: 59 | I21: 12 | J21: 7 | K21: 1 | L21: 0 | O21: 20 | P21: 67 | Q21: 0 | R21: 0 | S21: 481
B22: 23 | E22: 171 | F22: 93 | G22: 156 | H22: 76 | I22: 11 | J22: 5 | K22: 1 | L22: 2 | O22: 11 | P22: 73 | S22: 599
B23: 24 | E23: 166 | F23: 102 | G23: 291 | H23: 95 | I23: 12 | J23: 11 | K23: 1 | L23: 1 | M23: 0 | N23: 0 | O23: 13 | P23: 93 | Q23: 0 | R23: 0 | S23: 785
B24: 25 | E24: 182 | F24: 99 | G24: 360 | H24: 100 | I24: 25 | J24: 8 | K24: 1 | L24: 0 | M24: 0 | N24: 0 | O24: 15 | P24: 114 | Q24: 0 | R24: 0 | S24: 904
B25: 26 | E25: 365 | F25: 141 | G25: 242 | H25: 132 | I25: 18 | J25: 11 | K25: 7 | L25: 1 | M25: 0 | N25: 0 | O25: 16 | P25: 110 | S25: 1043
B26: 27 | E26: 323 | F26: 158 | G26: 259 | H26: 152 | I26: 26 | J26: 8 | K26: 1 | L26: 1 | M26: 0 | N26: 0 | O26: 25 | P26: 133 | Q26: 0 | R26: 0 | S26: 1086
B27: 28 | E27: 321 | F27: 180 | G27: 252 | H27: 185 | I27: 17 | J27: 10 | K27: 3 | L27: 3 | M27: 0 | N27: 0 | O27: 21 | P27: 142 | Q27: 0 | R27: 0 | S27: 1134
B28: 29 | E28: 430 | F28: 301 | G28: 10357 | H28: 1216 | I28: 21 | J28: 9 | K28: 9 | L28: 1 | M28: 2 | N28: 1 | O28: 35 | P28: 164 | Q28: 0 | R28: 0 | S28: 12546
B29: 30 | E29: 469 | F29: 209 | G29: 294 | H29: 208 | I29: 32 | J29: 16 | K29: 7 | L29: 0 | M29: 2 | N29: 0 | O29: 27 | P29: 161 | Q29: 0 | R29: 0 | S29: 1425
B30: 31 | E30: 511 | F30: 212 | G30: 377 | H30: 198 | I30: 37 | J30: 21 | K30: 2 | L30: 6 | M30: 4 | N30: 2 | O30: 43 | P30: 163 | Q30: 0 | R30: 0 | S30: 1576
B31: 32 | E31: 491 | F31: 217 | G31: 420 | H31: 228 | I31: 34 | J31: 11 | K31: 10 | L31: 2 | M31: 2 | N31: 0 | O31: 30 | P31: 156 | Q31: 0 | R31: 0 | S31: 1601
B32: 33 | E32: 586 | F32: 289 | G32: 432 | H32: 247 | I32: 38 | J32: 13 | K32: 10 | L32: 4 | M32: 1 | N32: 2 | O32: 36 | P32: 181 | Q32: 0 | R32: 0 | S32: 1839
B33: 34 | E33: 502 | F33: 273 | G33: 362 | H33: 229 | I33: 33 | J33: 13 | K33: 14 | L33: 5 | M33: 7 | N33: 4 | O33: 48 | P33: 179 | Q33: 0 | R33: 0 | S33: 1669
B34: 35 | E34: 821 | F34: 380 | G34: 485 | H34: 245 | I34: 34 | J34: 14 | K34: 7 | L34: 2 | M34: 5 | N34: 1 | O34: 38 | P34: 206 | Q34: 1 | R34: 0 | S34: 2239
B35: 36 | E35: 677 | F35: 345 | G35: 494 | H35: 333 | I35: 44 | J35: 17 | K35: 7 | L35: 5 | M35: 8 | N35: 2 | O35: 21 | P35: 227 | Q35: 1 | R35: 0 | S35: 2181
B36: 37 | E36: 970 | F36: 353 | G36: 635 | H36: 329 | I36: 45 | J36: 23 | K36: 10 | L36: 4 | M36: 10 | N36: 1 | O36: 45 | P36: 265 | Q36: 0 | R36: 0 | S36: 2690
B37: 38 | E37: 856 | F37: 380 | G37: 699 | H37: 344 | I37: 67 | J37: 18 | K37: 12 | L37: 6 | M37: 6 | N37: 1 | O37: 53 | P37: 262 | Q37: 1 | R37: 0 | S37: 2705
B38: 39 | E38: 848 | F38: 408 | G38: 591 | H38: 355 | I38: 51 | J38: 21 | K38: 20 | L38: 4 | M38: 6 | N38: 1 | O38: 55 | P38: 261 | Q38: 3 | R38: 0 | S38: 2624
B39: 40 | E39: 855 | F39: 415 | G39: 632 | H39: 315 | I39: 55 | J39: 23 | K39: 18 | L39: 3 | M39: 10 | N39: 3 | O39: 57 | P39: 248 | Q39: 0 | R39: 0 | S39: 2634
B40: 41 | E40: 1110 | F40: 873 | G40: 1932 | H40: 1675 | I40: 51 | J40: 26 | K40: 12 | L40: 8 | M40: 7 | N40: 3 | O40: 46 | P40: 299 | Q40: 0 | R40: 0 | S40: 6042
B41: 42 | E41: 972 | F41: 500 | G41: 694 | H41: 350 | I41: 60 | J41: 35 | K41: 10 | L41: 4 | M41: 13 | N41: 4 | O41: 55 | P41: 355 | Q41: 1 | R41: 0 | S41: 3053
B42: 43 | E42: 14485 | F42: 3802 | G42: 703 | H42: 358 | I42: 69 | J42: 33 | K42: 12 | L42: 4 | M42: 7 | N42: 5 | O42: 59 | P42: 333 | Q42: 0 | R42: 1 | S42: 19871
B43: 44 | E43: 1384 | F43: 607 | G43: 918 | H43: 419 | I43: 84 | J43: 39 | K43: 14 | L43: 3 | M43: 16 | N43: 4 | O43: 78 | P43: 416 | Q43: 2 | R43: 0 | S43: 3984
B44: 45 | E44: 1344 | F44: 622 | G44: 844 | H44: 429 | I44: 121 | J44: 39 | K44: 21 | L44: 5 | M44: 8 | N44: 5 | O44: 94 | P44: 410 | Q44: 2 | R44: 0 | S44: 3944
B45: 46 | E45: 1442 | F45: 682 | G45: 969 | H45: 470 | I45: 114 | J45: 54 | K45: 27 | L45: 6 | M45: 18 | N45: 8 | O45: 104 | P45: 540 | Q45: 0 | R45: 0 | S45: 4434
B46: 47 | E46: 1656 | F46: 778 | G46: 1162 | H46: 516 | I46: 115 | J46: 63 | K46: 31 | L46: 12 | M46: 22 | N46: 7 | O46: 122 | P46: 517 | Q46: 1 | R46: 0 | S46: 5002
B47: 48 | E47: 1671 | F47: 811 | G47: 1002 | H47: 556 | I47: 125 | J47: 34 | K47: 23 | L47: 15 | M47: 10 | N47: 6 | O47: 99 | P47: 596 | Q47: 0 | R47: 2 | S47: 4950
B48: 49 | E48: 1695 | F48: 874 | G48: 1118 | H48: 563 | I48: 116 | J48: 59 | K48: 20 | L48: 20 | M48: 19 | N48: 5 | O48: 115 | P48: 605 | Q48: 1 | R48: 1 | S48: 5211
B49: 50 | E49: 1781 | F49: 902 | G49: 1229 | H49: 543 | I49: 121 | J49: 71 | K49: 24 | L49: 13 | M49: 12 | N49: 4 | O49: 115 | P49: 574 | Q49: 1 | R49: 1 | S49: 5391
B50: 51 | E50: 2097 | F50: 913 | G50: 2106 | H50: 618 | I50: 169 | J50: 74 | K50: 34 | L50: 18 | M50: 31 | N50: 8 | O50: 143 | P50: 614 | Q50: 0 | R50: 1 | S50: 6826
B51: 52 | E51: 2047 | F51: 1016 | G51: 1193 | H51: 601 | I51: 154 | J51: 62 | K51: 39 | L51: 13 | M51: 28 | N51: 9 | O51: 123 | P51: 636 | Q51: 1 | R51: 0 | S51: 5922
B52: 53 | E52: 2222 | F52: 1065 | G52: 1331 | H52: 618 | I52: 164 | J52: 77 | K52: 43 | L52: 15 | M52: 33 | N52: 1 | O52: 133 | P52: 674 | Q52: 1 | R52: 0 | S52: 6377
B53: 54 | E53: 2254 | F53: 1100 | G53: 1335 | H53: 637 | I53: 165 | J53: 70 | K53: 43 | L53: 18 | M53: 23 | N53: 10 | O53: 149 | P53: 793 | Q53: 0 | R53: 0 | S53: 6597
B54: 55 | E54: 2317 | F54: 1244 | G54: 1410 | H54: 658 | I54: 168 | J54: 84 | K54: 46 | L54: 23 | M54: 35 | N54: 9 | O54: 144 | P54: 810 | Q54: 2 | R54: 2 | S54: 6952
B55: 56 | E55: 2444 | F55: 1295 | G55: 1449 | H55: 691 | I55: 199 | J55: 83 | K55: 55 | L55: 7 | M55: 27 | N55: 16 | O55: 174 | P55: 947 | Q55: 1 | R55: 1 | S55: 7389
B56: 57 | E56: 2754 | F56: 1449 | G56: 1660 | H56: 802 | I56: 176 | J56: 135 | K56: 42 | L56: 25 | M56: 26 | N56: 12 | O56: 157 | P56: 906 | Q56: 2 | R56: 1 | S56: 8147
B57: 58 | E57: 2868 | F57: 1413 | G57: 1687 | H57: 799 | I57: 233 | J57: 93 | K57: 62 | L57: 19 | M57: 30 | N57: 8 | O57: 142 | P57: 972 | Q57: 1 | R57: 0 | S57: 8327
B58: 59 | E58: 2767 | F58: 1616 | G58: 1659 | H58: 837 | I58: 213 | J58: 125 | K58: 46 | L58: 29 | M58: 30 | N58: 10 | O58: 197 | P58: 961 | Q58: 1 | R58: 1 | S58: 8492
B59: 60 | E59: 3131 | F59: 1516 | G59: 1746 | H59: 801 | I59: 242 | J59: 123 | K59: 52 | L59: 23 | M59: 30 | N59: 12 | O59: 170 | P59: 977 | Q59: 1 | R59: 2 | S59: 8826
B60: 61 | E60: 3987 | F60: 1792 | G60: 1806 | H60: 847 | I60: 262 | J60: 148 | K60: 57 | L60: 30 | M60: 38 | N60: 9 | O60: 184 | P60: 1019 | Q60: 2 | R60: 2 | S60: 10183
B61: 62 | E61: 3496 | F61: 1763 | G61: 1744 | H61: 820 | I61: 260 | J61: 147 | K61: 53 | L61: 28 | M61: 27 | N61: 13 | O61: 160 | P61: 1029 | Q61: 1 | R61: 6 | S61: 9547
B62: 63 | E62: 3348 | F62: 1481 | G62: 1648 | H62: 676 | I62: 241 | J62: 127 | K62: 44 | L62: 35 | M62: 32 | N62: 13 | O62: 134 | P62: 988 | Q62: 6 | R62: 1 | S62: 8774
B63: 64 | E63: 3780 | F63: 1607 | G63: 1792 | H63: 797 | I63: 250 | J63: 136 | K63: 77 | L63: 32 | M63: 49 | N63: 16 | O63: 146 | P63: 957 | Q63: 2 | R63: 3 | S63: 9644
B64: 65 | E64: 3651 | F64: 1705 | G64: 1740 | H64: 810 | I64: 274 | J64: 152 | K64: 100 | L64: 40 | M64: 67 | N64: 7 | O64: 172 | P64: 908 | Q64: 1 | R64: 1 | S64: 9628
B65: 66 | E65: 3878 | F65: 1698 | G65: 1805 | H65: 741 | I65: 289 | J65: 159 | K65: 89 | L65: 41 | M65: 53 | N65: 10 | O65: 134 | P65: 867 | Q65: 1 | R65: 1 | S65: 9766
B66: 67 | E66: 3949 | F66: 1545 | G66: 1815 | H66: 701 | I66: 305 | J66: 164 | K66: 112 | L66: 32 | M66: 53 | N66: 22 | O66: 147 | P66: 891 | Q66: 0 | R66: 2 | S66: 9738
B67: 68 | E67: 3712 | F67: 1584 | G67: 1653 | H67: 725 | I67: 271 | J67: 137 | K67: 93 | L67: 41 | M67: 50 | N67: 18 | O67: 144 | P67: 886 | Q67: 5 | R67: 3 | S67: 9322
B68: 69 | E68: 3606 | F68: 1418 | G68: 1603 | H68: 664 | I68: 292 | J68: 143 | K68: 110 | L68: 39 | M68: 46 | N68: 32 | O68: 146 | P68: 794 | Q68: 3 | R68: 3 | S68: 8899
B69: 70 | E69: 3528 | F69: 1364 | G69: 1548 | H69: 603 | I69: 304 | J69: 127 | K69: 95 | L69: 27 | M69: 45 | N69: 25 | O69: 124 | P69: 612 | Q69: 3 | R69: 5 | S69: 8410
B70: 71 | E70: 3357 | F70: 1257 | G70: 1327 | H70: 597 | I70: 295 | J70: 142 | K70: 113 | L70: 41 | M70: 33 | N70: 18 | O70: 104 | P70: 450 | Q70: 3 | R70: 5 | S70: 7742
B71: 72 | E71: 3138 | F71: 1084 | G71: 1318 | H71: 475 | I71: 298 | J71: 112 | K71: 99 | L71: 28 | M71: 47 | N71: 14 | O71: 73 | P71: 364 | Q71: 4 | R71: 2 | S71: 7056
B72: 73 | E72: 2937 | F72: 1170 | G72: 1189 | H72: 487 | I72: 223 | J72: 110 | K72: 83 | L72: 28 | M72: 34 | N72: 23 | O72: 103 | P72: 352 | Q72: 5 | R72: 1 | S72: 6745
B73: 74 | E73: 2744 | F73: 1052 | G73: 1043 | H73: 378 | I73: 220 | J73: 79 | K73: 74 | L73: 28 | M73: 29 | N73: 8 | O73: 93 | P73: 324 | Q73: 6 | R73: 4 | S73: 6082
B74: 75 | E74: 2500 | F74: 951 | G74: 1021 | H74: 375 | I74: 162 | J74: 48 | K74: 46 | L74: 12 | M74: 16 | N74: 11 | O74: 57 | P74: 286 | Q74: 4 | R74: 3 | S74: 5492
B75: 76 | E75: 2400 | F75: 877 | G75: 854 | H75: 359 | I75: 106 | J75: 55 | K75: 8 | L75: 6 | M75: 8 | N75: 1 | O75: 43 | P75: 299 | Q75: 6 | R75: 8 | S75: 5030
B76: 77 | E76: 2009 | F76: 836 | G76: 726 | H76: 265 | I76: 110 | J76: 45 | K76: 9 | L76: 6 | M76: 1 | N76: 0 | O76: 49 | P76: 214 | Q76: 3 | R76: 2 | S76: 4275
B77: 78 | E77: 1934 | F77: 761 | G77: 657 | H77: 223 | I77: 89 | J77: 33 | K77: 12 | L77: 7 | M77: 0 | N77: 0 | O77: 36 | P77: 206 | Q77: 3 | R77: 2 | S77: 3963
B78: 79 | E78: 1718 | F78: 683 | G78: 629 | H78: 198 | I78: 54 | J78: 27 | K78: 5 | L78: 1 | M78: 0 | N78: 4 | O78: 24 | P78: 199 | Q78: 4 | R78: 4 | S78: =SUM(E78:R78) -> 3550
B79: 80 | E79: 1501 | F79: 627 | G79: 513 | H79: 185 | I79: 46 | J79: 17 | K79: 6 | L79: 1 | M79: 1 | N79: 0 | O79: 29 | P79: 147 | Q79: 2 | R79: 2 | S79: 3077
B80: 81 | E80: 1375 | F80: 579 | G80: 475 | H80: 146 | I80: 54 | J80: 22 | K80: 5 | L80: 1 | M80: 2 | N80: 0 | O80: 10 | P80: 193 | Q80: 3 | R80: 1 | S80: 2866
B81: 82 | E81: 1173 | F81: 485 | G81: 430 | H81: 147 | I81: 56 | J81: 19 | K81: 5 | L81: 0 | M81: 0 | N81: 1 | O81: 9 | P81: 131 | Q81: 4 | R81: 2 | S81: 2462
B82: 83 | E82: 985 | F82: 476 | G82: 402 | H82: 146 | I82: 45 | J82: 24 | K82: 5 | L82: 3 | M82: 3 | N82: 1 | O82: 11 | P82: 122 | Q82: 2 | R82: 1 | S82: 2226
B83: 84 | E83: 841 | F83: 361 | G83: 367 | H83: 144 | I83: 39 | J83: 19 | K83: 2 | L83: 0 | M83: 1 | N83: 2 | O83: 6 | P83: 114 | Q83: 1 | R83: 0 | S83: 1897
B84: 85 | E84: 803 | F84: 307 | G84: 339 | H84: 126 | I84: 43 | J84: 18 | K84: 1 | L84: 0 | M84: 2 | N84: 0 | O84: 10 | P84: 110 | Q84: 3 | R84: 1 | S84: 1763
B85: 86 | E85: 779 | F85: 289 | G85: 296 | H85: 109 | I85: 25 | J85: 16 | K85: 1 | L85: 1 | M85: 0 | N85: 1 | O85: 3 | P85: 79 | Q85: 0 | R85: 1 | S85: 1600
B86: 87 | E86: 618 | F86: 241 | G86: 287 | H86: 98 | I86: 26 | J86: 16 | K86: 2 | L86: 0 | M86: 0 | N86: 0 | O86: 6 | P86: 79 | Q86: 1 | R86: 1 | S86: 1375
B87: 88 | E87: 464 | F87: 187 | G87: 232 | H87: 95 | I87: 25 | J87: 21 | K87: 0 | L87: 0 | M87: 2 | N87: 0 | O87: 2 | P87: 62 | Q87: 1 | R87: 2 | S87: 1093
B88: 89 | E88: 432 | F88: 189 | G88: 206 | H88: 51 | I88: 30 | J88: 3 | K88: 0 | L88: 1 | M88: 0 | N88: 0 | O88: 1 | P88: 73 | Q88: 1 | R88: 1 | S88: 988
B89: 90 | E89: 390 | F89: 158 | G89: 178 | H89: 49 | I89: 15 | J89: 13 | K89: 1 | L89: 0 | O89: 4 | P89: 53 | Q89: 1 | R89: 0 | S89: 862
B90: 91 | E90: 318 | F90: 171 | G90: 163 | H90: 66 | I90: 29 | J90: 13 | K90: 1 | L90: 1 | M90: 1 | N90: 0 | O90: 5 | P90: 64 | Q90: 0 | R90: 2 | S90: 834
B91: 92 | E91: 250 | F91: 120 | G91: 130 | H91: 48 | I91: 14 | J91: 6 | K91: 1 | L91: 0 | O91: 1 | P91: 31 | Q91: 1 | R91: 1 | S91: 603
B92: 93 | E92: 180 | F92: 96 | G92: 120 | H92: 33 | I92: 16 | J92: 3 | K92: 1 | L92: 0 | M92: 0 | N92: 1 | O92: 2 | P92: 20 | Q92: 1 | R92: 0 | S92: 473
B93: 94 | E93: 166 | F93: 92 | G93: 82 | H93: 35 | I93: 10 | J93: 15 | K93: 1 | L93: 0 | O93: 0 | P93: 25 | Q93: 1 | R93: 1 | S93: 428
B94: 95 | E94: 148 | F94: 70 | G94: 53 | H94: 36 | I94: 9 | J94: 7 | K94: 1 | L94: 2 | O94: 0 | P94: 10 | Q94: 0 | R94: 0 | S94: 336
B95: 96 | E95: 128 | F95: 48 | G95: 59 | H95: 23 | I95: 10 | J95: 8 | O95: 0 | P95: 17 | Q95: 0 | R95: 0 | S95: 293
B96: 97 | E96: 67 | F96: 43 | G96: 37 | H96: 12 | I96: 4 | J96: 0 | K96: 1 | L96: 0 | O96: 2 | P96: 14 | Q96: 0 | R96: 0 | S96: 180
B97: 98 | E97: 81 | F97: 34 | G97: 33 | H97: 12 | I97: 5 | J97: 4 | O97: 0 | P97: 4 | Q97: 0 | R97: 0 | S97: 173
B98: 99 | E98: 66 | F98: 39 | G98: 26 | H98: 9 | I98: 5 | J98: 2 | O98: 0 | P98: 2 | Q98: 0 | R98: 0 | S98: 149
A99: De | B99: 100 o mas | C99: años y más | E99: 103 | F99: 46 | G99: 123 | H99: 16 | I99: 15 | J99: 5 | O99: 0 | P99: 1 | Q99: 0 | R99: 0 | S99: 309
C100: TOTAL | E100: =SUM(E14:E99) -> 133782 | F100: =SUM(F14:F99) -> 57500 | G100: 74429 | H100: 30478 | I100: 8329 | J100: 3987 | K100: 2115 | L100: 843 | M100: 1128 | N100: 414 | O100: 5212 | P100: 29307 | Q100: 108 | R100: 87 | S100: =SUM(E100:R100) -> 347719
A101: CIFRAS EN PESOS, ESTIMADAS AL 100%.

Sheet 3A (G) (hidden)
A2: 3 a. SINIESTROS PROCEDENTES POR MUERTE EN LA OPERACIÓN DE VIDA POR TIPO DE SEGURO,
A3: AÑOS DE ANTIGÜEDAD Y EDAD ALCANZADA
A5: DICIEMBRE DE 2017
A7: VIDA GRUPO
E10: 2 | F10: 3 | G10: 4 | H10: 5 | I10: 6 | J10: 7 | K10: 8 | L10: 9 | M10: 10 | N10: 11 | O10: 12 | P10: 13 | Q10: 14 | R10: 15
A11: EDAD | E11: SINIESTROS PROCEDENTES POR MUERTE DE LAS PÓLIZAS CON ANTIGÜEDAD MENOR O IGUAL A:
A12: ALCANZADA | E12: 1 año | G12: 2 años | I12: 3 años | K12: 4 años | M12: 5 años | O12: 6 años | Q12: más de 6 años | S12: TOTAL
E13: H | F13: M | G13: H | H13: M | I13: H | J13: M | K13: H | L13: M | M13: H | N13: M | O13: H | P13: M | Q13: H | R13: M
B14: 0 a 15 | E14: 30 | F14: 15 | G14: 27 | H14: 17 | I14: 1 | J14: 2 | K14: 0 | L14: 0 | M14: 0 | N14: 0 | O14: 0 | P14: 0 | Q14: 0 | R14: 0 | S14: =SUM(E14:R14) -> 92
B15: 16 | E15: 6 | F15: 2 | G15: 10 | H15: 0 | I15: 0 | J15: 0 | K15: 0 | L15: 0 | M15: 0 | N15: 0 | O15: 0 | P15: 0 | Q15: 0 | R15: 0 | S15: 18
B16: 17 | E16: 4 | F16: 3 | G16: 4 | H16: 0 | I16: 3 | J16: 0 | K16: 0 | L16: 0 | M16: 0 | N16: 0 | O16: 0 | P16: 0 | Q16: 0 | R16: 0 | S16: 14
B17: 18 | E17: 4 | F17: 1 | G17: 6 | H17: 3 | I17: 0 | J17: 1 | K17: 0 | L17: 0 | M17: 0 | N17: 0 | O17: 0 | P17: 0 | Q17: 0 | R17: 0 | S17: 15
B18: 19 | E18: 37 | F18: 10 | G18: 53 | H18: 9 | I18: 3 | J18: 0 | K18: 0 | L18: 0 | M18: 1 | N18: 0 | O18: 0 | P18: 0 | Q18: 0 | R18: 0 | S18: 113
B19: 20 | E19: 58 | F19: 17 | G19: 85 | H19: 19 | I19: 3 | J19: 0 | K19: 0 | L19: 0 | M19: 0 | N19: 0 | O19: 0 | P19: 0 | Q19: 0 | R19: 0 | S19: 182
B20: 21 | E20: 49 | F20: 15 | G20: 105 | H20: 37 | I20: 5 | J20: 1 | K20: 0 | L20: 0 | M20: 0 | N20: 0 | O20: 0 | P20: 0 | Q20: 0 | R20: 0 | S20: 212
B21: 22 | E21: 72 | F21: 31 | G21: 125 | H21: 42 | I21: 7 | J21: 1 | K21: 1 | L21: 0 | M21: 0 | N21: 0 | O21: 0 | P21: 0 | Q21: 0 | R21: 0 | S21: 279
B22: 23 | E22: 91 | F22: 33 | G22: 130 | H22: 56 | I22: 12 | J22: 4 | K22: 0 | L22: 0 | M22: 0 | N22: 0 | O22: 0 | P22: 0 | Q22: 0 | R22: 0 | S22: 326
B23: 24 | E23: 108 | F23: 42 | G23: 154 | H23: 54 | I23: 8 | J23: 3 | K23: 1 | L23: 0 | M23: 1 | N23: 0 | O23: 0 | P23: 0 | Q23: 0 | R23: 0 | S23: 371
B24: 25 | E24: 125 | F24: 60 | G24: 173 | H24: 70 | I24: 15 | J24: 11 | K24: 1 | L24: 0 | M24: 0 | N24: 0 | O24: 0 | P24: 0 | Q24: 0 | R24: 0 | S24: 455
B25: 26 | E25: 163 | F25: 78 | G25: 198 | H25: 87 | I25: 26 | J25: 8 | K25: 1 | L25: 0 | M25: 2 | N25: 0 | O25: 1 | P25: 0 | Q25: 0 | R25: 0 | S25: 564
B26: 27 | E26: 160 | F26: 90 | G26: 178 | H26: 92 | I26: 26 | J26: 5 | K26: 1 | L26: 0 | M26: 0 | N26: 1 | O26: 0 | P26: 0 | Q26: 0 | R26: 0 | S26: 553
B27: 28 | E27: 187 | F27: 105 | G27: 208 | H27: 5847 | I27: 25 | J27: 4 | K27: 3 | L27: 1 | M27: 3 | N27: 0 | O27: 1 | P27: 0 | Q27: 1 | R27: 1 | S27: 6386
B28: 29 | E28: 210 | F28: 120 | G28: 265 | H28: 84 | I28: 17 | J28: 4 | K28: 7 | L28: 0 | M28: 4 | N28: 1 | O28: 0 | P28: 1 | Q28: 2 | R28: 2 | S28: 717
B29: 30 | E29: 406 | F29: 158 | G29: 731 | H29: 107 | I29: 17 | J29: 9 | K29: 5 | L29: 5 | M29: 4 | N29: 1 | O29: 1 | P29: 0 | Q29: 2 | R29: 1 | S29: 1447
B30: 31 | E30: 283 | F30: 171 | G30: 292 | H30: 102 | I30: 25 | J30: 9 | K30: 8 | L30: 2 | M30: 4 | N30: 1 | O30: 2 | P30: 0 | Q30: 0 | R30: 0 | S30: 899
B31: 32 | E31: 268 | F31: 169 | G31: 239 | H31: 122 | I31: 28 | J31: 8 | K31: 7 | L31: 1 | M31: 4 | N31: 0 | O31: 1 | P31: 0 | Q31: 1 | R31: 0 | S31: =SUM(E31:R31) -> 848
B32: 33 | E32: 321 | F32: 164 | G32: 287 | H32: 131 | I32: 25 | J32: 10 | K32: 6 | L32: 2 | M32: 2 | N32: 1 | O32: 0 | P32: 0 | Q32: 1 | R32: 0 | S32: 950
B33: 34 | E33: 330 | F33: 190 | G33: 337 | H33: 133 | I33: 29 | J33: 17 | K33: 10 | L33: 2 | M33: 5 | N33: 1 | O33: 3 | P33: 0 | Q33: 1 | R33: 0 | S33: 1058
B34: 35 | E34: 357 | F34: 12393 | G34: 335 | H34: 131 | I34: 34 | J34: 11 | K34: 5 | L34: 5 | M34: 6 | N34: 2 | O34: 0 | P34: 0 | Q34: 4 | R34: 1 | S34: 13284
B35: 36 | E35: 407 | F35: 204 | G35: 375 | H35: 164 | I35: 28 | J35: 19 | K35: 6 | L35: 2 | M35: 3 | N35: 0 | O35: 1 | P35: 0 | Q35: 3 | R35: 1 | S35: 1213
B36: 37 | E36: 462 | F36: 280 | G36: 412 | H36: 149 | I36: 34 | J36: 10 | K36: 10 | L36: 3 | M36: 5 | N36: 1 | O36: 2 | P36: 0 | Q36: 2 | R36: 0 | S36: 1370
B37: 38 | E37: 457 | F37: 235 | G37: 407 | H37: 179 | I37: 35 | J37: 8 | K37: 13 | L37: 3 | M37: 6 | N37: 2 | O37: 2 | P37: 0 | Q37: 3 | R37: 1 | S37: 1351
B38: 39 | E38: 504 | F38: 226 | G38: 425 | H38: 206 | I38: 56 | J38: 12 | K38: 5 | L38: 1 | M38: 4 | N38: 1 | O38: 2 | P38: 1 | Q38: 2 | R38: 3 | S38: 1448
B39: 40 | E39: 699 | F39: 2373 | G39: 532 | H39: 179 | I39: 28 | J39: 29 | K39: 11 | L39: 6 | M39: 0 | N39: 3 | O39: 0 | P39: 0 | Q39: 5 | R39: 1 | S39: 3866
B40: 41 | E40: 505 | F40: 259 | G40: 732 | H40: 399 | I40: 49 | J40: 15 | K40: 15 | L40: 6 | M40: 4 | N40: 3 | O40: 1 | P40: 1 | Q40: 6 | R40: 0 | S40: 1995
B41: 42 | E41: 568 | F41: 830 | G41: 535 | H41: 194 | I41: 42 | J41: 28 | K41: 9 | L41: 5 | M41: 6 | N41: 1 | O41: 2 | P41: 0 | Q41: 3 | R41: 0 | S41: 2223
B42: 43 | E42: 2332 | F42: 500 | G42: 928 | H42: 218 | I42: 37 | J42: 23 | K42: 10 | L42: 9 | M42: 7 | N42: 1 | O42: 3 | P42: 0 | Q42: 9 | R42: 3 | S42: 4080
B43: 44 | E43: 646 | F43: 262 | G43: 624 | H43: 272 | I43: 49 | J43: 36 | K43: 14 | L43: 0 | M43: 5 | N43: 0 | O43: 0 | P43: 0 | Q43: 1 | R43: 2 | S43: 1911
B44: 45 | E44: 696 | F44: 332 | G44: 589 | H44: 279 | I44: 62 | J44: 27 | K44: 14 | L44: 5 | M44: 5 | N44: 1 | O44: 0 | P44: 1 | Q44: 1 | R44: 3 | S44: 2015
B45: 46 | E45: 886 | F45: 373 | G45: 657 | H45: 451 | I45: 78 | J45: 31 | K45: 22 | L45: 10 | M45: 8 | N45: 1 | O45: 3 | P45: 0 | Q45: 4 | R45: 1 | S45: 2525
B46: 47 | E46: 879 | F46: 345 | G46: 770 | H46: 301 | I46: 68 | J46: 38 | K46: 23 | L46: 8 | M46: 8 | N46: 2 | O46: 0 | P46: 0 | Q46: 7 | R46: 3 | S46: 2452
B47: 48 | E47: 921 | F47: 370 | G47: 791 | H47: 306 | I47: 88 | J47: 43 | K47: 21 | L47: 9 | M47: 10 | N47: 1 | O47: 6 | P47: 0 | Q47: 17 | R47: 3 | S47: 2586
B48: 49 | E48: 960 | F48: 401 | G48: 796 | H48: 326 | I48: 79 | J48: 35 | K48: 19 | L48: 15 | M48: 6 | N48: 3 | O48: 1 | P48: 0 | Q48: 8 | R48: 2 | S48: 2651
B49: 50 | E49: 1290 | F49: 3128 | G49: 1210 | H49: 511 | I49: 122 | J49: 56 | K49: 22 | L49: 8 | M49: 6 | N49: 6 | O49: 8 | P49: 1 | Q49: 4 | R49: 3 | S49: 6375
B50: 51 | E50: 1145 | F50: 407 | G50: 825 | H50: 369 | I50: 79 | J50: 43 | K50: 24 | L50: 4 | M50: 10 | N50: 5 | O50: 7 | P50: 1 | Q50: 6 | R50: 4 | S50: 2929
B51: 52 | E51: 1272 | F51: 457 | G51: 930 | H51: 362 | I51: 91 | J51: 54 | K51: 26 | L51: 18 | M51: 8 | N51: 5 | O51: 1 | P51: 0 | Q51: 4 | R51: 2 | S51: 3230
B52: 53 | E52: 1211 | F52: 466 | G52: 876 | H52: 438 | I52: 108 | J52: 61 | K52: 31 | L52: 14 | M52: 12 | N52: 2 | O52: 2 | P52: 1 | Q52: 8 | R52: 4 | S52: 3234
B53: 54 | E53: 1243 | F53: 513 | G53: 1003 | H53: 434 | I53: 106 | J53: 50 | K53: 38 | L53: 11 | M53: 14 | N53: 5 | O53: 2 | P53: 5 | Q53: 8 | R53: 6 | S53: 3438
B54: 55 | E54: 1403 | F54: 640 | G54: 1017 | H54: 475 | I54: 102 | J54: 62 | K54: 36 | L54: 17 | M54: 18 | N54: 5 | O54: 2 | P54: 2 | Q54: 9 | R54: 3 | S54: 3791
B55: 56 | E55: 1490 | F55: 659 | G55: 1196 | H55: 519 | I55: 145 | J55: 67 | K55: 37 | L55: 8 | M55: 12 | N55: 7 | O55: 6 | P55: 5 | Q55: 12 | R55: 4 | S55: 4167
B56: 57 | E56: 1495 | F56: 654 | G56: 1086 | H56: 479 | I56: 120 | J56: 70 | K56: 33 | L56: 15 | M56: 21 | N56: 8 | O56: 3 | P56: 3 | Q56: 8 | R56: 5 | S56: 4000
B57: 58 | E57: 1507 | F57: 701 | G57: 1111 | H57: 528 | I57: 132 | J57: 65 | K57: 38 | L57: 17 | M57: 22 | N57: 15 | O57: 6 | P57: 1 | Q57: 9 | R57: 2 | S57: 4154
B58: 59 | E58: 1689 | F58: 707 | G58: 1238 | H58: 554 | I58: 148 | J58: 73 | K58: 42 | L58: 10 | M58: 24 | N58: 11 | O58: 5 | P58: 2 | Q58: 10 | R58: 6 | S58: 4519
B59: 60 | E59: 3363 | F59: 723 | G59: 1575 | H59: 577 | I59: 197 | J59: 85 | K59: 72 | L59: 16 | M59: 42 | N59: 8 | O59: 10 | P59: 4 | Q59: 18 | R59: 6 | S59: 6696
B60: 61 | E60: 1732 | F60: 775 | G60: 1182 | H60: 597 | I60: 126 | J60: 76 | K60: 44 | L60: 21 | M60: 27 | N60: 6 | O60: 4 | P60: 2 | Q60: 11 | R60: 5 | S60: 4608
B61: 62 | E61: 1594 | F61: 883 | G61: 1249 | H61: 584 | I61: 137 | J61: 73 | K61: 38 | L61: 25 | M61: 14 | N61: 3 | O61: 6 | P61: 5 | Q61: 22 | R61: 5 | S61: 4638
B62: 63 | E62: 5984 | F62: 1155 | G62: 1317 | H62: 549 | I62: 212 | J62: 78 | K62: 49 | L62: 9 | M62: 22 | N62: 6 | O62: 11 | P62: 1 | Q62: 19 | R62: 6 | S62: 9418
B63: 64 | E63: 1789 | F63: 697 | G63: 1317 | H63: 627 | I63: 200 | J63: 90 | K63: 56 | L63: 23 | M63: 19 | N63: 10 | O63: 2 | P63: 1 | Q63: 21 | R63: 8 | S63: =SUM(E63:R63) -> 4860
B64: 65 | E64: 1885 | F64: 641 | G64: 1401 | H64: 554 | I64: 192 | J64: 82 | K64: 61 | L64: 26 | M64: 23 | N64: 16 | O64: 4 | P64: 3 | Q64: 13 | R64: 4 | S64: 4905
B65: 66 | E65: 1758 | F65: 680 | G65: 1373 | H65: 621 | I65: 206 | J65: 79 | K65: 48 | L65: 21 | M65: 18 | N65: 11 | O65: 8 | P65: 3 | Q65: 18 | R65: 5 | S65: 4849
B66: 67 | E66: 1714 | F66: 603 | G66: 1452 | H66: 559 | I66: 211 | J66: 77 | K66: 63 | L66: 16 | M66: 21 | N66: 6 | O66: 3 | P66: 1 | Q66: 15 | R66: 3 | S66: 4744
B67: 68 | E67: 1666 | F67: 618 | G67: 1309 | H67: 549 | I67: 191 | J67: 84 | K67: 49 | L67: 19 | M67: 19 | N67: 8 | O67: 5 | P67: 3 | Q67: 18 | R67: 5 | S67: 4543
B68: 69 | E68: 1616 | F68: 668 | G68: 1371 | H68: 521 | I68: 156 | J68: 87 | K68: 38 | L68: 20 | M68: 20 | N68: 6 | O68: 2 | P68: 2 | Q68: 15 | R68: 5 | S68: 4527
B69: 70 | E69: 1666 | F69: 508 | G69: 1310 | H69: 499 | I69: 172 | J69: 73 | K69: 66 | L69: 24 | M69: 11 | N69: 12 | O69: 8 | P69: 5 | Q69: 7 | R69: 6 | S69: 4367
B70: 71 | E70: 1460 | F70: 531 | G70: 1212 | H70: 439 | I70: 169 | J70: 68 | K70: 47 | L70: 22 | M70: 29 | N70: 8 | O70: 4 | P70: 2 | Q70: 16 | R70: 2 | S70: 4009
B71: 72 | E71: 1398 | F71: 500 | G71: 1104 | H71: 483 | I71: 167 | J71: 67 | K71: 51 | L71: 19 | M71: 15 | N71: 13 | O71: 4 | P71: 1 | Q71: 6 | R71: 9 | S71: 3837
B72: 73 | E72: 1263 | F72: 510 | G72: 1040 | H72: 454 | I72: 130 | J72: 39 | K72: 56 | L72: 18 | M72: 31 | N72: 13 | O72: 7 | P72: 3 | Q72: 10 | R72: 3 | S72: 3577
B73: 74 | E73: 1223 | F73: 401 | G73: 911 | H73: 373 | I73: 105 | J73: 47 | K73: 23 | L73: 19 | M73: 26 | N73: 6 | O73: 5 | P73: 3 | Q73: 9 | R73: 5 | S73: 3156
B74: 75 | E74: 1108 | F74: 386 | G74: 873 | H74: 328 | I74: 99 | J74: 32 | K74: 25 | L74: 20 | M74: 5 | N74: 8 | O74: 4 | P74: 3 | Q74: 2 | R74: 3 | S74: 2896
B75: 76 | E75: 961 | F75: 280 | G75: 751 | H75: 283 | I75: 77 | J75: 31 | K75: 6 | L75: 2 | M75: 5 | N75: 2 | O75: 1 | P75: 0 | Q75: 11 | R75: 3 | S75: 2413
B76: 77 | E76: 799 | F76: 285 | G76: 694 | H76: 236 | I76: 71 | J76: 24 | K76: 9 | L76: 5 | M76: 1 | N76: 2 | O76: 1 | P76: 0 | Q76: 6 | R76: 2 | S76: 2135
B77: 78 | E77: 787 | F77: 213 | G77: 602 | H77: 229 | I77: 63 | J77: 22 | K77: 8 | L77: 5 | M77: 2 | N77: 1 | O77: 0 | P77: 1 | Q77: 6 | R77: 1 | S77: 1940
B78: 79 | E78: 641 | F78: 229 | G78: 452 | H78: 209 | I78: 34 | J78: 13 | K78: 5 | L78: 1 | M78: 1 | N78: 0 | O78: 2 | P78: 0 | Q78: 3 | R78: 4 | S78: 1594
B79: 80 | E79: 595 | F79: 211 | G79: 527 | H79: 206 | I79: 42 | J79: 12 | K79: 2 | L79: 2 | M79: 1 | N79: 1 | O79: 1 | P79: 0 | Q79: 5 | R79: 1 | S79: 1606
B80: 81 | E80: 490 | F80: 178 | G80: 428 | H80: 172 | I80: 23 | J80: 9 | K80: 5 | L80: 2 | M80: 770 | N80: 0 | O80: 0 | P80: 0 | Q80: 3 | R80: 2 | S80: 2082
B81: 82 | E81: 499 | F81: 176 | G81: 375 | H81: 153 | I81: 29 | J81: 12 | K81: 3 | L81: 1 | M81: 1245 | N81: 1 | O81: 1 | P81: 0 | Q81: 5 | R81: 2 | S81: 2502
B82: 83 | E82: 401 | F82: 142 | G82: 319 | H82: 159 | I82: 35 | J82: 13 | K82: 5 | L82: 4 | M82: 2 | N82: 0 | O82: 1 | P82: 0 | Q82: 4 | R82: 1 | S82: 1086
B83: 84 | E83: 410 | F83: 144 | G83: 295 | H83: 115 | I83: 14 | J83: 4 | K83: 2 | L83: 2 | M83: 1 | N83: 3 | O83: 0 | P83: 1 | Q83: 5 | R83: 2 | S83: 998
B84: 85 | E84: 407 | F84: 115 | G84: 269 | H84: 108 | I84: 18 | J84: 8 | K84: 3 | L84: 3 | M84: 1 | N84: 0 | O84: 0 | P84: 0 | Q84: 4 | R84: 2 | S84: 938
B85: 86 | E85: 272 | F85: 115 | G85: 230 | H85: 114 | I85: 20 | J85: 6 | K85: 0 | L85: 1 | M85: 1 | N85: 0 | O85: 1 | P85: 0 | Q85: 2 | R85: 1 | S85: 763
B86: 87 | E86: 249 | F86: 92 | G86: 157 | H86: 96 | I86: 14 | J86: 11 | K86: 0 | L86: 1 | M86: 0 | N86: 0 | O86: 1 | P86: 0 | Q86: 6 | R86: 0 | S86: 627
B87: 88 | E87: 250 | F87: 98 | G87: 161 | H87: 82 | I87: 12 | J87: 8 | K87: 2 | L87: 0 | M87: 2 | N87: 0 | O87: 0 | P87: 1 | Q87: 2 | R87: 2 | S87: 620
B88: 89 | E88: 197 | F88: 70 | G88: 149 | H88: 78 | I88: 16 | J88: 6 | K88: 0 | L88: 2 | M88: 0 | N88: 0 | O88: 0 | P88: 0 | Q88: 2 | R88: 1 | S88: 521
B89: 90 | E89: 205 | F89: 95 | G89: 114 | H89: 61 | I89: 14 | J89: 2 | K89: 0 | L89: 0 | M89: 0 | N89: 0 | O89: 2 | P89: 0 | Q89: 5 | R89: 1 | S89: 499
B90: 91 | E90: 149 | F90: 59 | G90: 111 | H90: 52 | I90: 11 | J90: 0 | K90: 1 | L90: 1 | M90: 0 | N90: 4 | O90: 0 | P90: 1 | Q90: 4 | R90: 2 | S90: 395
B91: 92 | E91: 122 | F91: 48 | G91: 96 | H91: 48 | I91: 5 | J91: 4 | K91: 1 | L91: 0 | M91: 1 | N91: 1 | O91: 0 | P91: 1 | Q91: 3 | R91: 0 | S91: 330
B92: 93 | E92: 118 | F92: 46 | G92: 83 | H92: 55 | I92: 8 | J92: 3 | K92: 0 | L92: 1 | M92: 0 | N92: 2 | O92: 0 | P92: 0 | Q92: 4 | R92: 0 | S92: 320
B93: 94 | E93: 80 | F93: 27 | G93: 84 | H93: 35 | I93: 9 | J93: 7 | K93: 1 | L93: 1 | M93: 0 | N93: 0 | O93: 0 | P93: 0 | Q93: 2 | R93: 0 | S93: 246
B94: 95 | E94: 66 | F94: 20 | G94: 59 | H94: 40 | I94: 1 | J94: 2 | K94: 1 | L94: 0 | M94: 0 | N94: 0 | O94: 2 | P94: 0 | Q94: 2 | R94: 0 | S94: 193
B95: 96 | E95: 52 | F95: 26 | G95: 37 | H95: 28 | I95: 0 | J95: 2 | K95: 0 | L95: 0 | M95: 0 | N95: 0 | O95: 0 | P95: 0 | Q95: 3 | R95: 0 | S95: 148
B96: 97 | E96: 37 | F96: 14 | G96: 34 | H96: 19 | I96: 3 | J96: 2 | K96: 1 | L96: 0 | M96: 0 | N96: 0 | O96: 2 | P96: 1 | Q96: 0 | R96: 1 | S96: 114
B97: 98 | E97: 37 | F97: 23 | G97: 29 | H97: 26 | I97: 6 | J97: 0 | K97: 1 | L97: 0 | M97: 3180 | N97: 0 | O97: 0 | P97: 0 | Q97: 0 | R97: 0 | S97: 3302
B98: 99 | E98: 18 | F98: 8 | G98: 19 | H98: 8 | I98: 4 | J98: 0 | K98: 0 | L98: 0 | M98: 4680 | N98: 0 | O98: 0 | P98: 0 | Q98: 0 | R98: 0 | S98: 4737
A99: De | B99: 100 o mas | C99: años y más | E99: 20 | F99: 4 | G99: 35 | H99: 18 | I99: 2 | J99: 3 | K99: 0 | L99: 0 | M99: 0 | N99: 16753 | O99: 0 | P99: 1 | Q99: 3 | R99: 0 | S99: 16839
A100: TOTAL | E100: =SUM(E14:E99) -> 67017 | F100: =SUM(F14:F99) -> 42186 | G100: 49113 | H100: 26379 | I100: 5396 | J100: 2404 | K100: 1417 | L100: 574 | M100: 10495 | N100: 17007 | O100: 176 | P100: 74 | Q100: 471 | R100: 175 | S100: =SUM(E100:R100) -> 222884
A102: NOTA: ESTE FORMATO ES PARA PÓLIZAS DEL SEGURO INDIVIDUAL EMITIDAS A PARTIR DEL 1° DE ENERO DE 1994.

Sheet 3B (G) (hidden)
A2: 3 b. SINIESTROS PROCEDENTES POR MUERTE EN LA OPERACIÓN DE VIDA POR TIPO DE SEGURO,
A3: AÑOS DE ANTIGÜEDAD Y EDAD ALCANZADA
A5: DICIEMBRE DE 2017
A8: VIDA INDIVIDUAL
E10: 2 | F10: 3 | G10: 4 | H10: 5 | I10: 6 | J10: 7 | K10: 8 | L10: 9 | M10: 10 | N10: 11 | O10: 12 | P10: 13 | Q10: 14 | R10: 15
A11: EDAD | E11: SINIESTROS PROCEDENTES POR MUERTE DE LAS PÓLIZAS CON ANTIGÜEDAD MENOR O IGUAL A:
A12: ALCANZADA | E12: 1 año | G12: 2 años | I12: 3 años | K12: 4 años | M12: 5 años | O12: 6 años | Q12: más de 6 años | S12: TOTAL
E13: H | F13: M | G13: H | H13: M | I13: H | J13: M | K13: H | L13: M | M13: H | N13: M | O13: H | P13: M | Q13: H | R13: M
B14: 0 a 15 | E14: 0 | F14: 0 | G14: 0 | H14: 0 | I14: 0 | J14: 0 | K14: 0 | L14: 0 | M14: 0 | N14: 0 | O14: 0 | P14: 0 | Q14: 47 | R14: 16 | S14: =SUM(E14:R14) -> 63
B15: 16 | E15: 0 | F15: 0 | G15: 0 | H15: 0 | I15: 0 | J15: 0 | K15: 0 | L15: 0 | M15: 0 | N15: 0 | O15: 0 | P15: 0 | Q15: 2 | R15: 2 | S15: 4
B16: 17 | E16: 0 | F16: 0 | G16: 0 | H16: 0 | I16: 0 | J16: 0 | K16: 0 | L16: 0 | M16: 0 | N16: 0 | O16: 0 | P16: 0 | Q16: 7 | R16: 1 | S16: 8
B17: 18 | E17: 0 | F17: 0 | G17: 0 | H17: 0 | I17: 0 | J17: 0 | K17: 0 | L17: 0 | M17: 0 | N17: 0 | O17: 0 | P17: 0 | Q17: 325 | R17: 2 | S17: 327
B18: 19 | E18: 0 | F18: 0 | G18: 0 | H18: 0 | I18: 0 | J18: 0 | K18: 0 | L18: 0 | M18: 0 | N18: 0 | O18: 0 | P18: 0 | Q18: 40 | R18: 4 | S18: 44
B19: 20 | E19: 0 | F19: 0 | G19: 0 | H19: 0 | I19: 0 | J19: 0 | K19: 0 | L19: 0 | M19: 0 | N19: 0 | O19: 0 | P19: 0 | Q19: 29 | R19: 8 | S19: 37
B20: 21 | E20: 0 | F20: 0 | G20: 0 | H20: 0 | I20: 0 | J20: 0 | K20: 0 | L20: 0 | M20: 0 | N20: 0 | O20: 0 | P20: 0 | Q20: 61 | R20: 6 | S20: 67
B21: 22 | E21: 0 | F21: 0 | G21: 0 | H21: 0 | I21: 0 | J21: 0 | K21: 0 | L21: 0 | M21: 0 | N21: 0 | O21: 0 | P21: 0 | Q21: 85 | R21: 12 | S21: 97
B22: 23 | E22: 0 | F22: 0 | G22: 0 | H22: 0 | I22: 0 | J22: 0 | K22: 0 | L22: 0 | M22: 0 | N22: 0 | O22: 0 | P22: 0 | Q22: 183 | R22: 13 | S22: 196
B23: 24 | E23: 0 | F23: 0 | G23: 0 | H23: 0 | I23: 0 | J23: 0 | K23: 0 | L23: 0 | M23: 0 | N23: 0 | O23: 0 | P23: 0 | Q23: 72 | R23: 17 | S23: 89
B24: 25 | E24: 0 | F24: 0 | G24: 0 | H24: 0 | I24: 0 | J24: 0 | K24: 0 | L24: 0 | M24: 0 | N24: 0 | O24: 0 | P24: 0 | Q24: 105 | R24: 37 | S24: 142
B25: 26 | E25: 0 | F25: 0 | G25: 0 | H25: 0 | I25: 0 | J25: 0 | K25: 0 | L25: 0 | M25: 0 | N25: 0 | O25: 0 | P25: 0 | Q25: 114 | R25: 28 | S25: 142
B26: 27 | E26: 0 | F26: 0 | G26: 0 | H26: 0 | I26: 0 | J26: 0 | K26: 0 | L26: 0 | M26: 0 | N26: 0 | O26: 0 | P26: 0 | Q26: 1329 | R26: 49 | S26: 1378
B27: 28 | E27: 0 | F27: 0 | G27: 0 | H27: 0 | I27: 0 | J27: 0 | K27: 0 | L27: 0 | M27: 0 | N27: 0 | O27: 0 | P27: 0 | Q27: 158 | R27: 52 | S27: 210
B28: 29 | E28: 0 | F28: 0 | G28: 0 | H28: 0 | I28: 0 | J28: 0 | K28: 0 | L28: 0 | M28: 0 | N28: 0 | O28: 0 | P28: 0 | Q28: 192 | R28: 69 | S28: 261
B29: 30 | E29: 0 | F29: 0 | G29: 0 | H29: 0 | I29: 0 | J29: 0 | K29: 0 | L29: 0 | M29: 0 | N29: 0 | O29: 0 | P29: 0 | Q29: 209 | R29: 63 | S29: 272
B30: 31 | E30: 0 | F30: 0 | G30: 0 | H30: 0 | I30: 0 | J30: 0 | K30: 0 | L30: 0 | M30: 0 | N30: 0 | O30: 0 | P30: 0 | Q30: 165 | R30: 65 | S30: 230
B31: 32 | E31: 0 | F31: 0 | G31: 0 | H31: 0 | I31: 0 | J31: 0 | K31: 0 | L31: 0 | M31: 0 | N31: 0 | O31: 0 | P31: 0 | Q31: 161 | R31: 91 | S31: =SUM(E31:R31) -> 252
B32: 33 | E32: 0 | F32: 0 | G32: 0 | H32: 0 | I32: 0 | J32: 0 | K32: 0 | L32: 0 | M32: 0 | N32: 0 | O32: 0 | P32: 0 | Q32: 184 | R32: 87 | S32: 271
B33: 34 | E33: 0 | F33: 0 | G33: 0 | H33: 0 | I33: 0 | J33: 0 | K33: 0 | L33: 0 | M33: 0 | N33: 0 | O33: 0 | P33: 0 | Q33: 192 | R33: 78 | S33: 270
B34: 35 | E34: 0 | F34: 0 | G34: 0 | H34: 0 | I34: 0 | J34: 0 | K34: 0 | L34: 0 | M34: 0 | N34: 0 | O34: 0 | P34: 0 | Q34: 370 | R34: 79 | S34: 449
B35: 36 | E35: 0 | F35: 0 | G35: 0 | H35: 0 | I35: 0 | J35: 0 | K35: 0 | L35: 0 | M35: 0 | N35: 0 | O35: 0 | P35: 0 | Q35: 249 | R35: 101 | S35: 350
B36: 37 | E36: 0 | F36: 0 | G36: 0 | H36: 0 | I36: 0 | J36: 0 | K36: 0 | L36: 0 | M36: 0 | N36: 0 | O36: 0 | P36: 0 | Q36: 234 | R36: 91 | S36: 325
B37: 38 | E37: 0 | F37: 0 | G37: 0 | H37: 0 | I37: 0 | J37: 0 | K37: 0 | L37: 0 | M37: 0 | N37: 0 | O37: 0 | P37: 0 | Q37: 237 | R37: 101 | S37: 338
B38: 39 | E38: 0 | F38: 0 | G38: 0 | H38: 0 | I38: 0 | J38: 0 | K38: 0 | L38: 0 | M38: 0 | N38: 0 | O38: 0 | P38: 0 | Q38: 223 | R38: 108 | S38: 331
B39: 40 | E39: 0 | F39: 0 | G39: 0 | H39: 0 | I39: 0 | J39: 0 | K39: 0 | L39: 0 | M39: 0 | N39: 0 | O39: 0 | P39: 0 | Q39: 230 | R39: 92 | S39: 322
B40: 41 | E40: 0 | F40: 0 | G40: 0 | H40: 0 | I40: 0 | J40: 0 | K40: 0 | L40: 0 | M40: 0 | N40: 0 | O40: 0 | P40: 0 | Q40: 291 | R40: 110 | S40: 401
B41: 42 | E41: 0 | F41: 0 | G41: 0 | H41: 0 | I41: 0 | J41: 0 | K41: 0 | L41: 0 | M41: 0 | N41: 0 | O41: 0 | P41: 0 | Q41: 294 | R41: 111 | S41: 405
B42: 43 | E42: 0 | F42: 0 | G42: 0 | H42: 0 | I42: 0 | J42: 0 | K42: 0 | L42: 0 | M42: 0 | N42: 0 | O42: 0 | P42: 0 | Q42: 309 | R42: 109 | S42: 418
B43: 44 | E43: 0 | F43: 0 | G43: 0 | H43: 0 | I43: 0 | J43: 0 | K43: 0 | L43: 0 | M43: 0 | N43: 0 | O43: 0 | P43: 0 | Q43: 327 | R43: 107 | S43: 434
B44: 45 | E44: 0 | F44: 0 | G44: 0 | H44: 0 | I44: 0 | J44: 0 | K44: 0 | L44: 0 | M44: 0 | N44: 0 | O44: 0 | P44: 0 | Q44: 357 | R44: 135 | S44: 492
B45: 46 | E45: 0 | F45: 0 | G45: 0 | H45: 0 | I45: 0 | J45: 0 | K45: 0 | L45: 0 | M45: 0 | N45: 0 | O45: 0 | P45: 0 | Q45: 433 | R45: 143 | S45: 576
B46: 47 | E46: 0 | F46: 0 | G46: 0 | H46: 0 | I46: 0 | J46: 0 | K46: 0 | L46: 0 | M46: 0 | N46: 0 | O46: 0 | P46: 0 | Q46: 425 | R46: 135 | S46: 560
B47: 48 | E47: 0 | F47: 0 | G47: 0 | H47: 0 | I47: 0 | J47: 0 | K47: 0 | L47: 0 | M47: 0 | N47: 0 | O47: 0 | P47: 0 | Q47: 431 | R47: 152 | S47: 583
B48: 49 | E48: 0 | F48: 0 | G48: 0 | H48: 0 | I48: 0 | J48: 0 | K48: 0 | L48: 0 | M48: 0 | N48: 0 | O48: 0 | P48: 0 | Q48: 596 | R48: 171 | S48: 767
B49: 50 | E49: 0 | F49: 0 | G49: 0 | H49: 0 | I49: 0 | J49: 0 | K49: 0 | L49: 0 | M49: 0 | N49: 0 | O49: 0 | P49: 0 | Q49: 443 | R49: 161 | S49: 604
B50: 51 | E50: 0 | F50: 0 | G50: 0 | H50: 0 | I50: 0 | J50: 0 | K50: 0 | L50: 0 | M50: 0 | N50: 0 | O50: 0 | P50: 0 | Q50: 495 | R50: 157 | S50: 652
B51: 52 | E51: 0 | F51: 0 | G51: 0 | H51: 0 | I51: 0 | J51: 0 | K51: 0 | L51: 0 | M51: 0 | N51: 0 | O51: 0 | P51: 0 | Q51: 555 | R51: 188 | S51: 743
B52: 53 | E52: 0 | F52: 0 | G52: 0 | H52: 0 | I52: 0 | J52: 0 | K52: 0 | L52: 0 | M52: 0 | N52: 0 | O52: 0 | P52: 0 | Q52: 610 | R52: 204 | S52: 814
B53: 54 | E53: 0 | F53: 0 | G53: 0 | H53: 0 | I53: 0 | J53: 0 | K53: 0 | L53: 0 | M53: 0 | N53: 0 | O53: 0 | P53: 0 | Q53: 606 | R53: 186 | S53: 792
B54: 55 | E54: 0 | F54: 0 | G54: 0 | H54: 0 | I54: 0 | J54: 0 | K54: 0 | L54: 0 | M54: 0 | N54: 0 | O54: 0 | P54: 0 | Q54: 677 | R54: 208 | S54: 885
B55: 56 | E55: 0 | F55: 0 | G55: 0 | H55: 0 | I55: 0 | J55: 0 | K55: 0 | L55: 0 | M55: 0 | N55: 0 | O55: 0 | P55: 0 | Q55: 654 | R55: 187 | S55: 841
B56: 57 | E56: 0 | F56: 0 | G56: 0 | H56: 0 | I56: 0 | J56: 0 | K56: 0 | L56: 0 | M56: 0 | N56: 0 | O56: 0 | P56: 0 | Q56: 693 | R56: 237 | S56: 930
B57: 58 | E57: 0 | F57: 0 | G57: 0 | H57: 0 | I57: 0 | J57: 0 | K57: 0 | L57: 0 | M57: 0 | N57: 0 | O57: 0 | P57: 0 | Q57: 661 | R57: 199 | S57: 860
B58: 59 | E58: 0 | F58: 0 | G58: 0 | H58: 0 | I58: 0 | J58: 0 | K58: 0 | L58: 0 | M58: 0 | N58: 0 | O58: 0 | P58: 0 | Q58: 779 | R58: 223 | S58: 1002
B59: 60 | E59: 0 | F59: 0 | G59: 0 | H59: 0 | I59: 0 | J59: 0 | K59: 0 | L59: 0 | M59: 0 | N59: 0 | O59: 0 | P59: 0 | Q59: 715 | R59: 218 | S59: 933
B60: 61 | E60: 0 | F60: 0 | G60: 0 | H60: 0 | I60: 0 | J60: 0 | K60: 0 | L60: 0 | M60: 0 | N60: 0 | O60: 0 | P60: 0 | Q60: 757 | R60: 232 | S60: 989
B61: 62 | E61: 0 | F61: 0 | G61: 0 | H61: 0 | I61: 0 | J61: 0 | K61: 0 | L61: 0 | M61: 0 | N61: 0 | O61: 0 | P61: 0 | Q61: 1375 | R61: 240 | S61: 1615
B62: 63 | E62: 0 | F62: 0 | G62: 0 | H62: 0 | I62: 0 | J62: 0 | K62: 0 | L62: 0 | M62: 0 | N62: 0 | O62: 0 | P62: 0 | Q62: 722 | R62: 188 | S62: 910
B63: 64 | E63: 0 | F63: 0 | G63: 0 | H63: 0 | I63: 0 | J63: 0 | K63: 0 | L63: 0 | M63: 0 | N63: 0 | O63: 0 | P63: 0 | Q63: 759 | R63: 187 | S63: =SUM(E63:R63) -> 946
B64: 65 | E64: 0 | F64: 0 | G64: 0 | H64: 0 | I64: 0 | J64: 0 | K64: 0 | L64: 0 | M64: 0 | N64: 0 | O64: 0 | P64: 0 | Q64: 788 | R64: 182 | S64: 970
B65: 66 | E65: 0 | F65: 0 | G65: 0 | H65: 0 | I65: 0 | J65: 0 | K65: 0 | L65: 0 | M65: 0 | N65: 0 | O65: 0 | P65: 0 | Q65: 697 | R65: 185 | S65: 882
B66: 67 | E66: 0 | F66: 0 | G66: 0 | H66: 0 | I66: 0 | J66: 0 | K66: 0 | L66: 0 | M66: 0 | N66: 0 | O66: 0 | P66: 0 | Q66: 690 | R66: 204 | S66: 894
B67: 68 | E67: 0 | F67: 0 | G67: 0 | H67: 0 | I67: 0 | J67: 0 | K67: 0 | L67: 0 | M67: 0 | N67: 0 | O67: 0 | P67: 0 | Q67: 721 | R67: 166 | S67: 887
B68: 69 | E68: 0 | F68: 0 | G68: 0 | H68: 0 | I68: 0 | J68: 0 | K68: 0 | L68: 0 | M68: 0 | N68: 0 | O68: 0 | P68: 0 | Q68: 664 | R68: 140 | S68: 804
B69: 70 | E69: 0 | F69: 0 | G69: 0 | H69: 0 | I69: 0 | J69: 0 | K69: 0 | L69: 0 | M69: 0 | N69: 0 | O69: 0 | P69: 0 | Q69: 594 | R69: 149 | S69: 743
B70: 71 | E70: 0 | F70: 0 | G70: 0 | H70: 0 | I70: 0 | J70: 0 | K70: 0 | L70: 0 | M70: 0 | N70: 0 | O70: 0 | P70: 0 | Q70: 543 | R70: 130 | S70: 673
B71: 72 | E71: 0 | F71: 0 | G71: 0 | H71: 0 | I71: 0 | J71: 0 | K71: 0 | L71: 0 | M71: 0 | N71: 0 | O71: 0 | P71: 0 | Q71: 485 | R71: 158 | S71: 643
B72: 73 | E72: 0 | F72: 0 | G72: 0 | H72: 0 | I72: 0 | J72: 0 | K72: 0 | L72: 0 | M72: 0 | N72: 0 | O72: 0 | P72: 0 | Q72: 405 | R72: 106 | S72: 511
B73: 74 | E73: 0 | F73: 0 | G73: 0 | H73: 0 | I73: 0 | J73: 0 | K73: 0 | L73: 0 | M73: 0 | N73: 0 | O73: 0 | P73: 0 | Q73: 420 | R73: 122 | S73: 542
B74: 75 | E74: 0 | F74: 0 | G74: 0 | H74: 0 | I74: 0 | J74: 0 | K74: 0 | L74: 0 | M74: 0 | N74: 0 | O74: 0 | P74: 0 | Q74: 384 | R74: 95 | S74: 479
B75: 76 | E75: 0 | F75: 0 | G75: 0 | H75: 0 | I75: 0 | J75: 0 | K75: 0 | L75: 0 | M75: 0 | N75: 0 | O75: 0 | P75: 0 | Q75: 305 | R75: 84 | S75: 389
B76: 77 | E76: 0 | F76: 0 | G76: 0 | H76: 0 | I76: 0 | J76: 0 | K76: 0 | L76: 0 | M76: 0 | N76: 0 | O76: 0 | P76: 0 | Q76: 293 | R76: 91 | S76: 384
B77: 78 | E77: 0 | F77: 0 | G77: 0 | H77: 0 | I77: 0 | J77: 0 | K77: 0 | L77: 0 | M77: 0 | N77: 0 | O77: 0 | P77: 0 | Q77: 217 | R77: 70 | S77: 287
B78: 79 | E78: 0 | F78: 0 | G78: 0 | H78: 0 | I78: 0 | J78: 0 | K78: 0 | L78: 0 | M78: 0 | N78: 0 | O78: 0 | P78: 0 | Q78: 196 | R78: 60 | S78: 256
B79: 80 | E79: 0 | F79: 0 | G79: 0 | H79: 0 | I79: 0 | J79: 0 | K79: 0 | L79: 0 | M79: 0 | N79: 0 | O79: 0 | P79: 0 | Q79: 171 | R79: 71 | S79: 242
B80: 81 | E80: 0 | F80: 0 | G80: 0 | H80: 0 | I80: 0 | J80: 0 | K80: 0 | L80: 0 | M80: 0 | N80: 0 | O80: 0 | P80: 0 | Q80: 135 | R80: 60 | S80: 195
B81: 82 | E81: 0 | F81: 0 | G81: 0 | H81: 0 | I81: 0 | J81: 0 | K81: 0 | L81: 0 | M81: 0 | N81: 0 | O81: 0 | P81: 0 | Q81: 119 | R81: 54 | S81: 173
B82: 83 | E82: 0 | F82: 0 | G82: 0 | H82: 0 | I82: 0 | J82: 0 | K82: 0 | L82: 0 | M82: 0 | N82: 0 | O82: 0 | P82: 0 | Q82: 108 | R82: 40 | S82: 148
B83: 84 | E83: 0 | F83: 0 | G83: 0 | H83: 0 | I83: 0 | J83: 0 | K83: 0 | L83: 0 | M83: 0 | N83: 0 | O83: 0 | P83: 0 | Q83: 94 | R83: 44 | S83: 138
B84: 85 | E84: 0 | F84: 0 | G84: 0 | H84: 0 | I84: 0 | J84: 0 | K84: 0 | L84: 0 | M84: 0 | N84: 0 | O84: 0 | P84: 0 | Q84: 80 | R84: 38 | S84: 118
B85: 86 | E85: 0 | F85: 0 | G85: 0 | H85: 0 | I85: 0 | J85: 0 | K85: 0 | L85: 0 | M85: 0 | N85: 0 | O85: 0 | P85: 0 | Q85: 71 | R85: 41 | S85: 112
B86: 87 | E86: 0 | F86: 0 | G86: 0 | H86: 0 | I86: 0 | J86: 0 | K86: 0 | L86: 0 | M86: 0 | N86: 0 | O86: 0 | P86: 0 | Q86: 51 | R86: 17 | S86: 68
B87: 88 | E87: 0 | F87: 0 | G87: 0 | H87: 0 | I87: 0 | J87: 0 | K87: 0 | L87: 0 | M87: 0 | N87: 0 | O87: 0 | P87: 0 | Q87: 56 | R87: 20 | S87: 76
B88: 89 | E88: 0 | F88: 0 | G88: 0 | H88: 0 | I88: 0 | J88: 0 | K88: 0 | L88: 0 | M88: 0 | N88: 0 | O88: 0 | P88: 0 | Q88: 46 | R88: 35 | S88: 81
B89: 90 | E89: 0 | F89: 0 | G89: 0 | H89: 0 | I89: 0 | J89: 0 | K89: 0 | L89: 0 | M89: 0 | N89: 0 | O89: 0 | P89: 0 | Q89: 45 | R89: 19 | S89: 64
B90: 91 | E90: 0 | F90: 0 | G90: 0 | H90: 0 | I90: 0 | J90: 0 | K90: 0 | L90: 0 | M90: 0 | N90: 0 | O90: 0 | P90: 0 | Q90: 33 | R90: 15 | S90: 48
B91: 92 | E91: 0 | F91: 0 | G91: 0 | H91: 0 | I91: 0 | J91: 0 | K91: 0 | L91: 0 | M91: 0 | N91: 0 | O91: 0 | P91: 0 | Q91: 19 | R91: 16 | S91: 35
B92: 93 | E92: 0 | F92: 0 | G92: 0 | H92: 0 | I92: 0 | J92: 0 | K92: 0 | L92: 0 | M92: 0 | N92: 0 | O92: 0 | P92: 0 | Q92: 24 | R92: 9 | S92: 33
B93: 94 | E93: 0 | F93: 0 | G93: 0 | H93: 0 | I93: 0 | J93: 0 | K93: 0 | L93: 0 | M93: 0 | N93: 0 | O93: 0 | P93: 0 | Q93: 15 | R93: 12 | S93: 27
B94: 95 | E94: 0 | F94: 0 | G94: 0 | H94: 0 | I94: 0 | J94: 0 | K94: 0 | L94: 0 | M94: 0 | N94: 0 | O94: 0 | P94: 0 | Q94: 21 | R94: 6 | S94: 27
B95: 96 | E95: 0 | F95: 0 | G95: 0 | H95: 0 | I95: 0 | J95: 0 | K95: 0 | L95: 0 | M95: 0 | N95: 0 | O95: 0 | P95: 0 | Q95: 16 | R95: 1 | S95: 17
B96: 97 | E96: 0 | F96: 0 | G96: 0 | H96: 0 | I96: 0 | J96: 0 | K96: 0 | L96: 0 | M96: 0 | N96: 0 | O96: 0 | P96: 0 | Q96: 13 | R96: 3 | S96: 16
B97: 98 | E97: 0 | F97: 0 | G97: 0 | H97: 0 | I97: 0 | J97: 0 | K97: 0 | L97: 0 | M97: 0 | N97: 0 | O97: 0 | P97: 0 | Q97: 4 | R97: 6 | S97: 10
B98: 99 | E98: 0 | F98: 0 | G98: 0 | H98: 0 | I98: 0 | J98: 0 | K98: 0 | L98: 0 | M98: 0 | N98: 0 | O98: 0 | P98: 0 | Q98: 1 | R98: 2 | S98: 3
A99: De | B99: 100 o mas | C99: años y más | E99: 0 | F99: 0 | G99: 0 | H99: 0 | I99: 0 | J99: 0 | K99: 0 | L99: 0 | M99: 0 | N99: 0 | O99: 0 | P99: 0 | Q99: 54 | R99: 8 | S99: 62
A100: TOTAL | E100: =SUM(E14:E99) -> 0 | F100: =SUM(F14:F99) -> 0 | G100: 0 | H100: 0 | I100: 0 | J100: 0 | K100: 0 | L100: 0 | M100: 0 | N100: 0 | O100: 0 | P100: 0 | Q100: 27745 | R100: 7919 | S100: 35664
A102: NOTA: ESTE FORMATO ES PARA PÓLIZAS DEL SEGURO INDIVIDUAL EMITIDAS ANTES DEL 1° DE ENERO DE 1994
U110: b

Sheet 4Total Ind EPP
A3: 4. INVALIDEZ TOTAL Y PERMANENTE EN LA OPERACION DE VIDA POR TIPO
A4: DE SEGURO CONTRATADO, EDAD ALCANZADA Y PERIODOS DE ESPERA
A6: ='1 Total'!B3 -> DICIEMBRE DE 2021
A8: VIDA INDIVIDUAL
A10: EXENCION DE PAGO DE PRIMAS POR INVALIDEZ
C12: TOTAL
A14: EDAD | B14: PÓLIZAS O CERTIFICADOS AL FINAL DEL EJERCICIO | D14: INVALIDADOS EN EL EJERCICIO
A15: ALCANZADA | B15: Hombres | C15: Mujeres | D15: Hombres | E15: Mujeres
A16: Hasta15 años | B16: ='4VI 4_1 EPP.3'!B16+'4VI 4_1 EPP.6'!B16+'4VI 4_1 EPP.9'!B16 -> 6237 | C16: ='4VI 4_1 EPP.3'!C16+'4VI 4_1 EPP.6'!C16+'4VI 4_1 EPP.9'!C16 -> 6030 | D16: ='4VI 4_1 EPP.3'!D16+'4VI 4_1 EPP.6'!D16+'4VI 4_1 EPP.9'!D16 -> 4 | E16: ='4VI 4_1 EPP.3'!E16+'4VI 4_1 EPP.6'!E16+'4VI 4_1 EPP.9'!E16 -> 0
A17: 16 | B17: ='4VI 4_1 EPP.3'!B17+'4VI 4_1 EPP.6'!B17+'4VI 4_1 EPP.9'!B17 -> 809 | C17: ='4VI 4_1 EPP.3'!C17+'4VI 4_1 EPP.6'!C17+'4VI 4_1 EPP.9'!C17 -> 744 | D17: ='4VI 4_1 EPP.3'!D17+'4VI 4_1 EPP.6'!D17+'4VI 4_1 EPP.9'!D17 -> 0 | E17: ='4VI 4_1 EPP.3'!E17+'4VI 4_1 EPP.6'!E17+'4VI 4_1 EPP.9'!E17 -> 0
A18: 17 | B18: ='4VI 4_1 EPP.3'!B18+'4VI 4_1 EPP.6'!B18+'4VI 4_1 EPP.9'!B18 -> 817 | C18: ='4VI 4_1 EPP.3'!C18+'4VI 4_1 EPP.6'!C18+'4VI 4_1 EPP.9'!C18 -> 829 | D18: ='4VI 4_1 EPP.3'!D18+'4VI 4_1 EPP.6'!D18+'4VI 4_1 EPP.9'!D18 -> 0 | E18: ='4VI 4_1 EPP.3'!E18+'4VI 4_1 EPP.6'!E18+'4VI 4_1 EPP.9'!E18 -> 0
A19: 18 | B19: ='4VI 4_1 EPP.3'!B19+'4VI 4_1 EPP.6'!B19+'4VI 4_1 EPP.9'!B19 -> 864 | C19: ='4VI 4_1 EPP.3'!C19+'4VI 4_1 EPP.6'!C19+'4VI 4_1 EPP.9'!C19 -> 845 | D19: ='4VI 4_1 EPP.3'!D19+'4VI 4_1 EPP.6'!D19+'4VI 4_1 EPP.9'!D19 -> 0 | E19: ='4VI 4_1 EPP.3'!E19+'4VI 4_1 EPP.6'!E19+'4VI 4_1 EPP.9'!E19 -> 0
A20: 19 | B20: ='4VI 4_1 EPP.3'!B20+'4VI 4_1 EPP.6'!B20+'4VI 4_1 EPP.9'!B20 -> 1128 | C20: ='4VI 4_1 EPP.3'!C20+'4VI 4_1 EPP.6'!C20+'4VI 4_1 EPP.9'!C20 -> 987 | D20: ='4VI 4_1 EPP.3'!D20+'4VI 4_1 EPP.6'!D20+'4VI 4_1 EPP.9'!D20 -> 0 | E20: ='4VI 4_1 EPP.3'!E20+'4VI 4_1 EPP.6'!E20+'4VI 4_1 EPP.9'!E20 -> 0
A21: 20 | B21: ='4VI 4_1 EPP.3'!B21+'4VI 4_1 EPP.6'!B21+'4VI 4_1 EPP.9'!B21 -> 2260 | C21: ='4VI 4_1 EPP.3'!C21+'4VI 4_1 EPP.6'!C21+'4VI 4_1 EPP.9'!C21 -> 1635 | D21: ='4VI 4_1 EPP.3'!D21+'4VI 4_1 EPP.6'!D21+'4VI 4_1 EPP.9'!D21 -> 0 | E21: ='4VI 4_1 EPP.3'!E21+'4VI 4_1 EPP.6'!E21+'4VI 4_1 EPP.9'!E21 -> 0
A22: 21 | B22: ='4VI 4_1 EPP.3'!B22+'4VI 4_1 EPP.6'!B22+'4VI 4_1 EPP.9'!B22 -> 3499 | C22: ='4VI 4_1 EPP.3'!C22+'4VI 4_1 EPP.6'!C22+'4VI 4_1 EPP.9'!C22 -> 2382 | D22: ='4VI 4_1 EPP.3'!D22+'4VI 4_1 EPP.6'!D22+'4VI 4_1 EPP.9'!D22 -> 0 | E22: ='4VI 4_1 EPP.3'!E22+'4VI 4_1 EPP.6'!E22+'4VI 4_1 EPP.9'!E22 -> 0
A23: 22 | B23: ='4VI 4_1 EPP.3'!B23+'4VI 4_1 EPP.6'!B23+'4VI 4_1 EPP.9'!B23 -> 4364 | C23: ='4VI 4_1 EPP.3'!C23+'4VI 4_1 EPP.6'!C23+'4VI 4_1 EPP.9'!C23 -> 3237 | D23: ='4VI 4_1 EPP.3'!D23+'4VI 4_1 EPP.6'!D23+'4VI 4_1 EPP.9'!D23 -> 0 | E23: ='4VI 4_1 EPP.3'!E23+'4VI 4_1 EPP.6'!E23+'4VI 4_1 EPP.9'!E23 -> 0
A24: 23 | B24: ='4VI 4_1 EPP.3'!B24+'4VI 4_1 EPP.6'!B24+'4VI 4_1 EPP.9'!B24 -> 5571 | C24: ='4VI 4_1 EPP.3'!C24+'4VI 4_1 EPP.6'!C24+'4VI 4_1 EPP.9'!C24 -> 4171 | D24: ='4VI 4_1 EPP.3'!D24+'4VI 4_1 EPP.6'!D24+'4VI 4_1 EPP.9'!D24 -> 2 | E24: ='4VI 4_1 EPP.3'!E24+'4VI 4_1 EPP.6'!E24+'4VI 4_1 EPP.9'!E24 -> 0
A25: 24 | B25: ='4VI 4_1 EPP.3'!B25+'4VI 4_1 EPP.6'!B25+'4VI 4_1 EPP.9'!B25 -> 6908 | C25: ='4VI 4_1 EPP.3'!C25+'4VI 4_1 EPP.6'!C25+'4VI 4_1 EPP.9'!C25 -> 6475 | D25: ='4VI 4_1 EPP.3'!D25+'4VI 4_1 EPP.6'!D25+'4VI 4_1 EPP.9'!D25 -> 0 | E25: ='4VI 4_1 EPP.3'!E25+'4VI 4_1 EPP.6'!E25+'4VI 4_1 EPP.9'!E25 -> 4
A26: 25 | B26: ='4VI 4_1 EPP.3'!B26+'4VI 4_1 EPP.6'!B26+'4VI 4_1 EPP.9'!B26 -> 9009 | C26: ='4VI 4_1 EPP.3'!C26+'4VI 4_1 EPP.6'!C26+'4VI 4_1 EPP.9'!C26 -> 9101 | D26: ='4VI 4_1 EPP.3'!D26+'4VI 4_1 EPP.6'!D26+'4VI 4_1 EPP.9'!D26 -> 0 | E26: ='4VI 4_1 EPP.3'!E26+'4VI 4_1 EPP.6'!E26+'4VI 4_1 EPP.9'!E26 -> 0
A27: 26 | B27: ='4VI 4_1 EPP.3'!B27+'4VI 4_1 EPP.6'!B27+'4VI 4_1 EPP.9'!B27 -> 11502 | C27: ='4VI 4_1 EPP.3'!C27+'4VI 4_1 EPP.6'!C27+'4VI 4_1 EPP.9'!C27 -> 13321 | D27: ='4VI 4_1 EPP.3'!D27+'4VI 4_1 EPP.6'!D27+'4VI 4_1 EPP.9'!D27 -> 0 | E27: ='4VI 4_1 EPP.3'!E27+'4VI 4_1 EPP.6'!E27+'4VI 4_1 EPP.9'!E27 -> 0
A28: 27 | B28: ='4VI 4_1 EPP.3'!B28+'4VI 4_1 EPP.6'!B28+'4VI 4_1 EPP.9'!B28 -> 14052 | C28: ='4VI 4_1 EPP.3'!C28+'4VI 4_1 EPP.6'!C28+'4VI 4_1 EPP.9'!C28 -> 18005 | D28: ='4VI 4_1 EPP.3'!D28+'4VI 4_1 EPP.6'!D28+'4VI 4_1 EPP.9'!D28 -> 4 | E28: ='4VI 4_1 EPP.3'!E28+'4VI 4_1 EPP.6'!E28+'4VI 4_1 EPP.9'!E28 -> 0
A29: 28 | B29: ='4VI 4_1 EPP.3'!B29+'4VI 4_1 EPP.6'!B29+'4VI 4_1 EPP.9'!B29 -> 16623 | C29: ='4VI 4_1 EPP.3'!C29+'4VI 4_1 EPP.6'!C29+'4VI 4_1 EPP.9'!C29 -> 22224 | D29: ='4VI 4_1 EPP.3'!D29+'4VI 4_1 EPP.6'!D29+'4VI 4_1 EPP.9'!D29 -> 10 | E29: ='4VI 4_1 EPP.3'!E29+'4VI 4_1 EPP.6'!E29+'4VI 4_1 EPP.9'!E29 -> 8
A30: 29 | B30: ='4VI 4_1 EPP.3'!B30+'4VI 4_1 EPP.6'!B30+'4VI 4_1 EPP.9'!B30 -> 18567 | C30: ='4VI 4_1 EPP.3'!C30+'4VI 4_1 EPP.6'!C30+'4VI 4_1 EPP.9'!C30 -> 25501 | D30: ='4VI 4_1 EPP.3'!D30+'4VI 4_1 EPP.6'!D30+'4VI 4_1 EPP.9'!D30 -> 6 | E30: ='4VI 4_1 EPP.3'!E30+'4VI 4_1 EPP.6'!E30+'4VI 4_1 EPP.9'!E30 -> 0
A31: 30 | B31: ='4VI 4_1 EPP.3'!B31+'4VI 4_1 EPP.6'!B31+'4VI 4_1 EPP.9'!B31 -> 20525 | C31: ='4VI 4_1 EPP.3'!C31+'4VI 4_1 EPP.6'!C31+'4VI 4_1 EPP.9'!C31 -> 28186 | D31: ='4VI 4_1 EPP.3'!D31+'4VI 4_1 EPP.6'!D31+'4VI 4_1 EPP.9'!D31 -> 0 | E31: ='4VI 4_1 EPP.3'!E31+'4VI 4_1 EPP.6'!E31+'4VI 4_1 EPP.9'!E31 -> 0
A32: 31 | B32: ='4VI 4_1 EPP.3'!B32+'4VI 4_1 EPP.6'!B32+'4VI 4_1 EPP.9'!B32 -> 23066 | C32: ='4VI 4_1 EPP.3'!C32+'4VI 4_1 EPP.6'!C32+'4VI 4_1 EPP.9'!C32 -> 32084 | D32: ='4VI 4_1 EPP.3'!D32+'4VI 4_1 EPP.6'!D32+'4VI 4_1 EPP.9'!D32 -> 14 | E32: ='4VI 4_1 EPP.3'!E32+'4VI 4_1 EPP.6'!E32+'4VI 4_1 EPP.9'!E32 -> 6
A33: 32 | B33: ='4VI 4_1 EPP.3'!B33+'4VI 4_1 EPP.6'!B33+'4VI 4_1 EPP.9'!B33 -> 25062 | C33: ='4VI 4_1 EPP.3'!C33+'4VI 4_1 EPP.6'!C33+'4VI 4_1 EPP.9'!C33 -> 35691 | D33: ='4VI 4_1 EPP.3'!D33+'4VI 4_1 EPP.6'!D33+'4VI 4_1 EPP.9'!D33 -> 6 | E33: ='4VI 4_1 EPP.3'!E33+'4VI 4_1 EPP.6'!E33+'4VI 4_1 EPP.9'!E33 -> 6
A34: 33 | B34: ='4VI 4_1 EPP.3'!B34+'4VI 4_1 EPP.6'!B34+'4VI 4_1 EPP.9'!B34 -> 27247 | C34: ='4VI 4_1 EPP.3'!C34+'4VI 4_1 EPP.6'!C34+'4VI 4_1 EPP.9'!C34 -> 38786 | D34: ='4VI 4_1 EPP.3'!D34+'4VI 4_1 EPP.6'!D34+'4VI 4_1 EPP.9'!D34 -> 14 | E34: ='4VI 4_1 EPP.3'!E34+'4VI 4_1 EPP.6'!E34+'4VI 4_1 EPP.9'!E34 -> 12
A35: 34 | B35: ='4VI 4_1 EPP.3'!B35+'4VI 4_1 EPP.6'!B35+'4VI 4_1 EPP.9'!B35 -> 29029 | C35: ='4VI 4_1 EPP.3'!C35+'4VI 4_1 EPP.6'!C35+'4VI 4_1 EPP.9'!C35 -> 41273 | D35: ='4VI 4_1 EPP.3'!D35+'4VI 4_1 EPP.6'!D35+'4VI 4_1 EPP.9'!D35 -> 30 | E35: ='4VI 4_1 EPP.3'!E35+'4VI 4_1 EPP.6'!E35+'4VI 4_1 EPP.9'!E35 -> 4
A36: 35 | B36: ='4VI 4_1 EPP.3'!B36+'4VI 4_1 EPP.6'!B36+'4VI 4_1 EPP.9'!B36 -> 31386 | C36: ='4VI 4_1 EPP.3'!C36+'4VI 4_1 EPP.6'!C36+'4VI 4_1 EPP.9'!C36 -> 44053 | D36: ='4VI 4_1 EPP.3'!D36+'4VI 4_1 EPP.6'!D36+'4VI 4_1 EPP.9'!D36 -> 24 | E36: ='4VI 4_1 EPP.3'!E36+'4VI 4_1 EPP.6'!E36+'4VI 4_1 EPP.9'!E36 -> 8
A37: 36 | B37: ='4VI 4_1 EPP.3'!B37+'4VI 4_1 EPP.6'!B37+'4VI 4_1 EPP.9'!B37 -> 33188 | C37: ='4VI 4_1 EPP.3'!C37+'4VI 4_1 EPP.6'!C37+'4VI 4_1 EPP.9'!C37 -> 46758 | D37: ='4VI 4_1 EPP.3'!D37+'4VI 4_1 EPP.6'!D37+'4VI 4_1 EPP.9'!D37 -> 28 | E37: ='4VI 4_1 EPP.3'!E37+'4VI 4_1 EPP.6'!E37+'4VI 4_1 EPP.9'!E37 -> 4
A38: 37 | B38: ='4VI 4_1 EPP.3'!B38+'4VI 4_1 EPP.6'!B38+'4VI 4_1 EPP.9'!B38 -> 34864 | C38: ='4VI 4_1 EPP.3'!C38+'4VI 4_1 EPP.6'!C38+'4VI 4_1 EPP.9'!C38 -> 49399 | D38: ='4VI 4_1 EPP.3'!D38+'4VI 4_1 EPP.6'!D38+'4VI 4_1 EPP.9'!D38 -> 34 | E38: ='4VI 4_1 EPP.3'!E38+'4VI 4_1 EPP.6'!E38+'4VI 4_1 EPP.9'!E38 -> 18
A39: 38 | B39: ='4VI 4_1 EPP.3'!B39+'4VI 4_1 EPP.6'!B39+'4VI 4_1 EPP.9'!B39 -> 36149 | C39: ='4VI 4_1 EPP.3'!C39+'4VI 4_1 EPP.6'!C39+'4VI 4_1 EPP.9'!C39 -> 50515 | D39: ='4VI 4_1 EPP.3'!D39+'4VI 4_1 EPP.6'!D39+'4VI 4_1 EPP.9'!D39 -> 58 | E39: ='4VI 4_1 EPP.3'!E39+'4VI 4_1 EPP.6'!E39+'4VI 4_1 EPP.9'!E39 -> 30
A40: 39 | B40: ='4VI 4_1 EPP.3'!B40+'4VI 4_1 EPP.6'!B40+'4VI 4_1 EPP.9'!B40 -> 36591 | C40: ='4VI 4_1 EPP.3'!C40+'4VI 4_1 EPP.6'!C40+'4VI 4_1 EPP.9'!C40 -> 50928 | D40: ='4VI 4_1 EPP.3'!D40+'4VI 4_1 EPP.6'!D40+'4VI 4_1 EPP.9'!D40 -> 56 | E40: ='4VI 4_1 EPP.3'!E40+'4VI 4_1 EPP.6'!E40+'4VI 4_1 EPP.9'!E40 -> 22
A41: 40 | B41: ='4VI 4_1 EPP.3'!B41+'4VI 4_1 EPP.6'!B41+'4VI 4_1 EPP.9'!B41 -> 36744 | C41: ='4VI 4_1 EPP.3'!C41+'4VI 4_1 EPP.6'!C41+'4VI 4_1 EPP.9'!C41 -> 50566 | D41: ='4VI 4_1 EPP.3'!D41+'4VI 4_1 EPP.6'!D41+'4VI 4_1 EPP.9'!D41 -> 78 | E41: ='4VI 4_1 EPP.3'!E41+'4VI 4_1 EPP.6'!E41+'4VI 4_1 EPP.9'!E41 -> 24
A42: 41 | B42: ='4VI 4_1 EPP.3'!B42+'4VI 4_1 EPP.6'!B42+'4VI 4_1 EPP.9'!B42 -> 37742 | C42: ='4VI 4_1 EPP.3'!C42+'4VI 4_1 EPP.6'!C42+'4VI 4_1 EPP.9'!C42 -> 51542 | D42: ='4VI 4_1 EPP.3'!D42+'4VI 4_1 EPP.6'!D42+'4VI 4_1 EPP.9'!D42 -> 104 | E42: ='4VI 4_1 EPP.3'!E42+'4VI 4_1 EPP.6'!E42+'4VI 4_1 EPP.9'!E42 -> 34
A43: 42 | B43: ='4VI 4_1 EPP.3'!B43+'4VI 4_1 EPP.6'!B43+'4VI 4_1 EPP.9'!B43 -> 37301 | C43: ='4VI 4_1 EPP.3'!C43+'4VI 4_1 EPP.6'!C43+'4VI 4_1 EPP.9'!C43 -> 49870 | D43: ='4VI 4_1 EPP.3'!D43+'4VI 4_1 EPP.6'!D43+'4VI 4_1 EPP.9'!D43 -> 86 | E43: ='4VI 4_1 EPP.3'!E43+'4VI 4_1 EPP.6'!E43+'4VI 4_1 EPP.9'!E43 -> 52
A44: 43 | B44: ='4VI 4_1 EPP.3'!B44+'4VI 4_1 EPP.6'!B44+'4VI 4_1 EPP.9'!B44 -> 37372 | C44: ='4VI 4_1 EPP.3'!C44+'4VI 4_1 EPP.6'!C44+'4VI 4_1 EPP.9'!C44 -> 50099 | D44: ='4VI 4_1 EPP.3'!D44+'4VI 4_1 EPP.6'!D44+'4VI 4_1 EPP.9'!D44 -> 126 | E44: ='4VI 4_1 EPP.3'!E44+'4VI 4_1 EPP.6'!E44+'4VI 4_1 EPP.9'!E44 -> 42
A45: 44 | B45: ='4VI 4_1 EPP.3'!B45+'4VI 4_1 EPP.6'!B45+'4VI 4_1 EPP.9'!B45 -> 38051 | C45: ='4VI 4_1 EPP.3'!C45+'4VI 4_1 EPP.6'!C45+'4VI 4_1 EPP.9'!C45 -> 49913 | D45: ='4VI 4_1 EPP.3'!D45+'4VI 4_1 EPP.6'!D45+'4VI 4_1 EPP.9'!D45 -> 106 | E45: ='4VI 4_1 EPP.3'!E45+'4VI 4_1 EPP.6'!E45+'4VI 4_1 EPP.9'!E45 -> 46
A46: 45 | B46: ='4VI 4_1 EPP.3'!B46+'4VI 4_1 EPP.6'!B46+'4VI 4_1 EPP.9'!B46 -> 37627 | C46: ='4VI 4_1 EPP.3'!C46+'4VI 4_1 EPP.6'!C46+'4VI 4_1 EPP.9'!C46 -> 49842 | D46: ='4VI 4_1 EPP.3'!D46+'4VI 4_1 EPP.6'!D46+'4VI 4_1 EPP.9'!D46 -> 154 | E46: ='4VI 4_1 EPP.3'!E46+'4VI 4_1 EPP.6'!E46+'4VI 4_1 EPP.9'!E46 -> 60
A47: 46 | B47: ='4VI 4_1 EPP.3'!B47+'4VI 4_1 EPP.6'!B47+'4VI 4_1 EPP.9'!B47 -> 38358 | C47: ='4VI 4_1 EPP.3'!C47+'4VI 4_1 EPP.6'!C47+'4VI 4_1 EPP.9'!C47 -> 50564 | D47: ='4VI 4_1 EPP.3'!D47+'4VI 4_1 EPP.6'!D47+'4VI 4_1 EPP.9'!D47 -> 114 | E47: ='4VI 4_1 EPP.3'!E47+'4VI 4_1 EPP.6'!E47+'4VI 4_1 EPP.9'!E47 -> 56
A48: 47 | B48: ='4VI 4_1 EPP.3'!B48+'4VI 4_1 EPP.6'!B48+'4VI 4_1 EPP.9'!B48 -> 39057 | C48: ='4VI 4_1 EPP.3'!C48+'4VI 4_1 EPP.6'!C48+'4VI 4_1 EPP.9'!C48 -> 52158 | D48: ='4VI 4_1 EPP.3'!D48+'4VI 4_1 EPP.6'!D48+'4VI 4_1 EPP.9'!D48 -> 194 | E48: ='4VI 4_1 EPP.3'!E48+'4VI 4_1 EPP.6'!E48+'4VI 4_1 EPP.9'!E48 -> 64
A49: 48 | B49: ='4VI 4_1 EPP.3'!B49+'4VI 4_1 EPP.6'!B49+'4VI 4_1 EPP.9'!B49 -> 38355 | C49: ='4VI 4_1 EPP.3'!C49+'4VI 4_1 EPP.6'!C49+'4VI 4_1 EPP.9'!C49 -> 51487 | D49: ='4VI 4_1 EPP.3'!D49+'4VI 4_1 EPP.6'!D49+'4VI 4_1 EPP.9'!D49 -> 142 | E49: ='4VI 4_1 EPP.3'!E49+'4VI 4_1 EPP.6'!E49+'4VI 4_1 EPP.9'!E49 -> 50
A50: 49 | B50: ='4VI 4_1 EPP.3'!B50+'4VI 4_1 EPP.6'!B50+'4VI 4_1 EPP.9'!B50 -> 37168 | C50: ='4VI 4_1 EPP.3'!C50+'4VI 4_1 EPP.6'!C50+'4VI 4_1 EPP.9'!C50 -> 51066 | D50: ='4VI 4_1 EPP.3'!D50+'4VI 4_1 EPP.6'!D50+'4VI 4_1 EPP.9'!D50 -> 174 | E50: ='4VI 4_1 EPP.3'!E50+'4VI 4_1 EPP.6'!E50+'4VI 4_1 EPP.9'!E50 -> 54
A51: 50 | B51: ='4VI 4_1 EPP.3'!B51+'4VI 4_1 EPP.6'!B51+'4VI 4_1 EPP.9'!B51 -> 36583 | C51: ='4VI 4_1 EPP.3'!C51+'4VI 4_1 EPP.6'!C51+'4VI 4_1 EPP.9'!C51 -> 49863 | D51: ='4VI 4_1 EPP.3'!D51+'4VI 4_1 EPP.6'!D51+'4VI 4_1 EPP.9'!D51 -> 300 | E51: ='4VI 4_1 EPP.3'!E51+'4VI 4_1 EPP.6'!E51+'4VI 4_1 EPP.9'!E51 -> 120
A52: 51 | B52: ='4VI 4_1 EPP.3'!B52+'4VI 4_1 EPP.6'!B52+'4VI 4_1 EPP.9'!B52 -> 34591 | C52: ='4VI 4_1 EPP.3'!C52+'4VI 4_1 EPP.6'!C52+'4VI 4_1 EPP.9'!C52 -> 47572 | D52: ='4VI 4_1 EPP.3'!D52+'4VI 4_1 EPP.6'!D52+'4VI 4_1 EPP.9'!D52 -> 174 | E52: ='4VI 4_1 EPP.3'!E52+'4VI 4_1 EPP.6'!E52+'4VI 4_1 EPP.9'!E52 -> 92
A53: 52 | B53: ='4VI 4_1 EPP.3'!B53+'4VI 4_1 EPP.6'!B53+'4VI 4_1 EPP.9'!B53 -> 33241 | C53: ='4VI 4_1 EPP.3'!C53+'4VI 4_1 EPP.6'!C53+'4VI 4_1 EPP.9'!C53 -> 47299 | D53: ='4VI 4_1 EPP.3'!D53+'4VI 4_1 EPP.6'!D53+'4VI 4_1 EPP.9'!D53 -> 152 | E53: ='4VI 4_1 EPP.3'!E53+'4VI 4_1 EPP.6'!E53+'4VI 4_1 EPP.9'!E53 -> 80
A54: 53 | B54: ='4VI 4_1 EPP.3'!B54+'4VI 4_1 EPP.6'!B54+'4VI 4_1 EPP.9'!B54 -> 32055 | C54: ='4VI 4_1 EPP.3'!C54+'4VI 4_1 EPP.6'!C54+'4VI 4_1 EPP.9'!C54 -> 48233 | D54: ='4VI 4_1 EPP.3'!D54+'4VI 4_1 EPP.6'!D54+'4VI 4_1 EPP.9'!D54 -> 184 | E54: ='4VI 4_1 EPP.3'!E54+'4VI 4_1 EPP.6'!E54+'4VI 4_1 EPP.9'!E54 -> 74
A55: 54 | B55: ='4VI 4_1 EPP.3'!B55+'4VI 4_1 EPP.6'!B55+'4VI 4_1 EPP.9'!B55 -> 30874 | C55: ='4VI 4_1 EPP.3'!C55+'4VI 4_1 EPP.6'!C55+'4VI 4_1 EPP.9'!C55 -> 48834 | D55: ='4VI 4_1 EPP.3'!D55+'4VI 4_1 EPP.6'!D55+'4VI 4_1 EPP.9'!D55 -> 164 | E55: ='4VI 4_1 EPP.3'!E55+'4VI 4_1 EPP.6'!E55+'4VI 4_1 EPP.9'!E55 -> 72
A56: 55 | B56: ='4VI 4_1 EPP.3'!B56+'4VI 4_1 EPP.6'!B56+'4VI 4_1 EPP.9'!B56 -> 30797 | C56: ='4VI 4_1 EPP.3'!C56+'4VI 4_1 EPP.6'!C56+'4VI 4_1 EPP.9'!C56 -> 43485 | D56: ='4VI 4_1 EPP.3'!D56+'4VI 4_1 EPP.6'!D56+'4VI 4_1 EPP.9'!D56 -> 126 | E56: ='4VI 4_1 EPP.3'!E56+'4VI 4_1 EPP.6'!E56+'4VI 4_1 EPP.9'!E56 -> 62
A57: 56 | B57: ='4VI 4_1 EPP.3'!B57+'4VI 4_1 EPP.6'!B57+'4VI 4_1 EPP.9'!B57 -> 29862 | C57: ='4VI 4_1 EPP.3'!C57+'4VI 4_1 EPP.6'!C57+'4VI 4_1 EPP.9'!C57 -> 39219 | D57: ='4VI 4_1 EPP.3'!D57+'4VI 4_1 EPP.6'!D57+'4VI 4_1 EPP.9'!D57 -> 276 | E57: ='4VI 4_1 EPP.3'!E57+'4VI 4_1 EPP.6'!E57+'4VI 4_1 EPP.9'!E57 -> 93
A58: 57 | B58: ='4VI 4_1 EPP.3'!B58+'4VI 4_1 EPP.6'!B58+'4VI 4_1 EPP.9'!B58 -> 26493 | C58: ='4VI 4_1 EPP.3'!C58+'4VI 4_1 EPP.6'!C58+'4VI 4_1 EPP.9'!C58 -> 36021 | D58: ='4VI 4_1 EPP.3'!D58+'4VI 4_1 EPP.6'!D58+'4VI 4_1 EPP.9'!D58 -> 124 | E58: ='4VI 4_1 EPP.3'!E58+'4VI 4_1 EPP.6'!E58+'4VI 4_1 EPP.9'!E58 -> 64
A59: 58 | B59: ='4VI 4_1 EPP.3'!B59+'4VI 4_1 EPP.6'!B59+'4VI 4_1 EPP.9'!B59 -> 23510 | C59: ='4VI 4_1 EPP.3'!C59+'4VI 4_1 EPP.6'!C59+'4VI 4_1 EPP.9'!C59 -> 32987 | D59: ='4VI 4_1 EPP.3'!D59+'4VI 4_1 EPP.6'!D59+'4VI 4_1 EPP.9'!D59 -> 200 | E59: ='4VI 4_1 EPP.3'!E59+'4VI 4_1 EPP.6'!E59+'4VI 4_1 EPP.9'!E59 -> 80
A60: 59 | B60: ='4VI 4_1 EPP.3'!B60+'4VI 4_1 EPP.6'!B60+'4VI 4_1 EPP.9'!B60 -> 20808 | C60: ='4VI 4_1 EPP.3'!C60+'4VI 4_1 EPP.6'!C60+'4VI 4_1 EPP.9'!C60 -> 30128 | D60: ='4VI 4_1 EPP.3'!D60+'4VI 4_1 EPP.6'!D60+'4VI 4_1 EPP.9'!D60 -> 138 | E60: ='4VI 4_1 EPP.3'!E60+'4VI 4_1 EPP.6'!E60+'4VI 4_1 EPP.9'!E60 -> 48
A61: 60 | B61: ='4VI 4_1 EPP.3'!B61+'4VI 4_1 EPP.6'!B61+'4VI 4_1 EPP.9'!B61 -> 17823 | C61: ='4VI 4_1 EPP.3'!C61+'4VI 4_1 EPP.6'!C61+'4VI 4_1 EPP.9'!C61 -> 25889 | D61: ='4VI 4_1 EPP.3'!D61+'4VI 4_1 EPP.6'!D61+'4VI 4_1 EPP.9'!D61 -> 166 | E61: ='4VI 4_1 EPP.3'!E61+'4VI 4_1 EPP.6'!E61+'4VI 4_1 EPP.9'!E61 -> 40
A62: 61 | B62: ='4VI 4_1 EPP.3'!B62+'4VI 4_1 EPP.6'!B62+'4VI 4_1 EPP.9'!B62 -> 11780 | C62: ='4VI 4_1 EPP.3'!C62+'4VI 4_1 EPP.6'!C62+'4VI 4_1 EPP.9'!C62 -> 16434 | D62: ='4VI 4_1 EPP.3'!D62+'4VI 4_1 EPP.6'!D62+'4VI 4_1 EPP.9'!D62 -> 174 | E62: ='4VI 4_1 EPP.3'!E62+'4VI 4_1 EPP.6'!E62+'4VI 4_1 EPP.9'!E62 -> 42
A63: 62 | B63: ='4VI 4_1 EPP.3'!B63+'4VI 4_1 EPP.6'!B63+'4VI 4_1 EPP.9'!B63 -> 4566 | C63: ='4VI 4_1 EPP.3'!C63+'4VI 4_1 EPP.6'!C63+'4VI 4_1 EPP.9'!C63 -> 5144 | D63: ='4VI 4_1 EPP.3'!D63+'4VI 4_1 EPP.6'!D63+'4VI 4_1 EPP.9'!D63 -> 202 | E63: ='4VI 4_1 EPP.3'!E63+'4VI 4_1 EPP.6'!E63+'4VI 4_1 EPP.9'!E63 -> 36
A64: 63 | B64: ='4VI 4_1 EPP.3'!B64+'4VI 4_1 EPP.6'!B64+'4VI 4_1 EPP.9'!B64 -> 2990 | C64: ='4VI 4_1 EPP.3'!C64+'4VI 4_1 EPP.6'!C64+'4VI 4_1 EPP.9'!C64 -> 3138 | D64: ='4VI 4_1 EPP.3'!D64+'4VI 4_1 EPP.6'!D64+'4VI 4_1 EPP.9'!D64 -> 150 | E64: ='4VI 4_1 EPP.3'!E64+'4VI 4_1 EPP.6'!E64+'4VI 4_1 EPP.9'!E64 -> 48
A65: 64 | B65: ='4VI 4_1 EPP.3'!B65+'4VI 4_1 EPP.6'!B65+'4VI 4_1 EPP.9'!B65 -> 2333 | C65: ='4VI 4_1 EPP.3'!C65+'4VI 4_1 EPP.6'!C65+'4VI 4_1 EPP.9'!C65 -> 2379 | D65: ='4VI 4_1 EPP.3'!D65+'4VI 4_1 EPP.6'!D65+'4VI 4_1 EPP.9'!D65 -> 128 | E65: ='4VI 4_1 EPP.3'!E65+'4VI 4_1 EPP.6'!E65+'4VI 4_1 EPP.9'!E65 -> 24
A66: 65 | B66: ='4VI 4_1 EPP.3'!B66+'4VI 4_1 EPP.6'!B66+'4VI 4_1 EPP.9'!B66 -> 1847 | C66: ='4VI 4_1 EPP.3'!C66+'4VI 4_1 EPP.6'!C66+'4VI 4_1 EPP.9'!C66 -> 1868 | D66: ='4VI 4_1 EPP.3'!D66+'4VI 4_1 EPP.6'!D66+'4VI 4_1 EPP.9'!D66 -> 118 | E66: ='4VI 4_1 EPP.3'!E66+'4VI 4_1 EPP.6'!E66+'4VI 4_1 EPP.9'!E66 -> 20
A67: 66 o más | B67: ='4VI 4_1 EPP.3'!B67+'4VI 4_1 EPP.6'!B67+'4VI 4_1 EPP.9'!B67 -> 6725 | C67: ='4VI 4_1 EPP.3'!C67+'4VI 4_1 EPP.6'!C67+'4VI 4_1 EPP.9'!C67 -> 6293 | D67: ='4VI 4_1 EPP.3'!D67+'4VI 4_1 EPP.6'!D67+'4VI 4_1 EPP.9'!D67 -> 830 | E67: ='4VI 4_1 EPP.3'!E67+'4VI 4_1 EPP.6'!E67+'4VI 4_1 EPP.9'!E67 -> 54
A68: Total | B68: =SUM(B16:B67) -> 1123970 | C68: =SUM(C16:C67) -> 1525053 | D68: 5174 | E68: 1653

Sheet 4VI 4_1 EPP.3
A3: 4. INVALIDEZ TOTAL Y PERMANENTE EN LA OPERACION DE VIDA POR TIPO
A4: DE SEGURO CONTRATADO, EDAD ALCANZADA Y PERIODOS DE ESPERA
A6: ='1 Total'!B3 -> DICIEMBRE DE 2021
A8: VIDA INDIVIDUAL
A10: EXENCION DE PAGO DE PRIMAS POR INVALIDEZ
C12: PERIODO DE ESPERA DE (0-3] MESES
B13: 2 | C13: 3 | D13: 4 | E13: 5
A14: EDAD | B14: PÓLIZAS O CERTIFICADOS AL FINAL DEL EJERCICIO | D14: INVALIDADOS EN EL EJERCICIO
A15: ALCANZADA | B15: Hombres | C15: Mujeres | D15: Hombres | E15: Mujeres
A16: Hasta15 años | B16: 5666 | C16: 5444 | D16: 2 | E16: 0
A17: 16 | B17: 793 | C17: 721
A18: 17 | B18: 803 | C18: 817 | D18: 0 | E18: 0
A19: 18 | B19: 851 | C19: 831 | D19: 0 | E19: 0
A20: 19 | B20: 1088 | C20: 968
A21: 20 | B21: 2225 | C21: 1600
A22: 21 | B22: 3446 | C22: 2330
A23: 22 | B23: 4298 | C23: 3167
A24: 23 | B24: 5471 | C24: 4085 | D24: 1 | E24: 0
A25: 24 | B25: 6756 | C25: 6331 | D25: 0 | E25: 2
A26: 25 | B26: 8826 | C26: 8924
A27: 26 | B27: 11279 | C27: 13031
A28: 27 | B28: 13739 | C28: 17682 | D28: 2 | E28: 0
A29: 28 | B29: 16281 | C29: 21798 | D29: 5 | E29: 4
A30: 29 | B30: 18156 | C30: 25077 | D30: 3 | E30: 0
A31: 30 | B31: 20036 | C31: 27690
A32: 31 | B32: 22485 | C32: 31514 | D32: 7 | E32: 3
A33: 32 | B33: 24408 | C33: 35071 | D33: 3 | E33: 3
A34: 33 | B34: 26463 | C34: 38119 | D34: 7 | E34: 6
A35: 34 | B35: 28205 | C35: 40542 | D35: 15 | E35: 2
A36: 35 | B36: 30454 | C36: 43295 | D36: 12 | E36: 4
A37: 36 | B37: 32170 | C37: 45910 | D37: 14 | E37: 2
A38: 37 | B38: 33710 | C38: 48480 | D38: 17 | E38: 9
A39: 38 | B39: 35031 | C39: 49640 | D39: 29 | E39: 15
A40: 39 | B40: 35485 | C40: 50054 | D40: 28 | E40: 11
A41: 40 | B41: 35614 | C41: 49713 | D41: 39 | E41: 12
A42: 41 | B42: 36604 | C42: 50700 | D42: 52 | E42: 17
A43: 42 | B43: 36251 | C43: 49122 | D43: 43 | E43: 26
A44: 43 | B44: 36324 | C44: 49367 | D44: 63 | E44: 21
A45: 44 | B45: 36971 | C45: 49211 | D45: 53 | E45: 23
A46: 45 | B46: 36619 | C46: 49171 | D46: 77 | E46: 30
A47: 46 | B47: 37422 | C47: 49923 | D47: 57 | E47: 28
A48: 47 | B48: 38058 | C48: 51562 | D48: 97 | E48: 32
A49: 48 | B49: 37436 | C49: 50895 | D49: 71 | E49: 25
A50: 49 | B50: 36316 | C50: 50481 | D50: 87 | E50: 27
A51: 50 | B51: 35769 | C51: 49336 | D51: 100 | E51: 40
A52: 51 | B52: 33811 | C52: 47132 | D52: 87 | E52: 46
A53: 52 | B53: 32598 | C53: 46874 | D53: 76 | E53: 40
A54: 53 | B54: 31405 | C54: 47820 | D54: 92 | E54: 37
A55: 54 | B55: 30371 | C55: 48496 | D55: 82 | E55: 36
A56: 55 | B56: 30321 | C56: 43142 | D56: 63 | E56: 31
A57: 56 | B57: 29487 | C57: 38978 | D57: 92 | E57: 31
A58: 57 | B58: 26189 | C58: 35830 | D58: 62 | E58: 32
A59: 58 | B59: 23238 | C59: 32843 | D59: 100 | E59: 40
A60: 59 | B60: 20624 | C60: 30021 | D60: 69 | E60: 24
A61: 60 | B61: 17684 | C61: 25796 | D61: 83 | E61: 20
A62: 61 | B62: 11711 | C62: 16400 | D62: 87 | E62: 21
A63: 62 | B63: 4517 | C63: 5123 | D63: 101 | E63: 18
A64: 63 | B64: 2949 | C64: 3120 | D64: 75 | E64: 24
A65: 64 | B65: 2304 | C65: 2370 | D65: 64 | E65: 12
A66: 65 | B66: 1824 | C66: 1856 | D66: 59 | E66: 10
A67: 66 o mas | B67: 6651 | C67: 6262 | D67: 416 | E67: 28
A68: Total | B68: =SUM(B16:B67) -> 1097193 | C68: =SUM(C16:C67) -> 1504665 | D68: =SUM(D16:D67) -> 2492 | E68: 792

Sheet 4VI 4_1 EPP.6
A3: 4. INVALIDEZ TOTAL Y PERMANENTE EN LA OPERACION DE VIDA POR TIPO
A4: DE SEGURO CONTRATADO, EDAD ALCANZADA Y PERIODOS DE ESPERA
A6: ='1 Total'!B3 -> DICIEMBRE DE 2021
A8: VIDA INDIVIDUAL
A10: EXENCION DE PAGO DE PRIMAS POR INVALIDEZ
C12: PERIODO DE ESPERA DE (3- 6] MESES
B13: 2 | C13: 3 | D13: 4 | E13: 5
A14: EDAD | B14: PÓLIZAS O CERTIFICADOS AL FINAL DEL EJERCICIO | D14: INVALIDADOS EN EL EJERCICIO
A15: ALCANZADA | B15: Hombres | C15: Mujeres | D15: Hombres | E15: Mujeres
A16: Hasta15 años | B16: 571 | C16: 586 | D16: 2 | E16: 0
A17: 16 | B17: 16 | C17: 23
A18: 17 | B18: 14 | C18: 12 | D18: 0 | E18: 0
A19: 18 | B19: 13 | C19: 14 | D19: 0 | E19: 0
A20: 19 | B20: 40 | C20: 19
A21: 20 | B21: 35 | C21: 35
A22: 21 | B22: 53 | C22: 52
A23: 22 | B23: 66 | C23: 70
A24: 23 | B24: 100 | C24: 86 | D24: 1 | E24: 0
A25: 24 | B25: 152 | C25: 144 | D25: 0 | E25: 2
A26: 25 | B26: 183 | C26: 177
A27: 26 | B27: 223 | C27: 290
A28: 27 | B28: 313 | C28: 323 | D28: 2 | E28: 0
A29: 28 | B29: 342 | C29: 426 | D29: 5 | E29: 4
A30: 29 | B30: 411 | C30: 424 | D30: 3 | E30: 0
A31: 30 | B31: 489 | C31: 496
A32: 31 | B32: 581 | C32: 570 | D32: 7 | E32: 3
A33: 32 | B33: 654 | C33: 620 | D33: 3 | E33: 3
A34: 33 | B34: 784 | C34: 667 | D34: 7 | E34: 6
A35: 34 | B35: 824 | C35: 731 | D35: 15 | E35: 2
A36: 35 | B36: 932 | C36: 758 | D36: 12 | E36: 4
A37: 36 | B37: 1018 | C37: 848 | D37: 14 | E37: 2
A38: 37 | B38: 1154 | C38: 919 | D38: 17 | E38: 9
A39: 38 | B39: 1118 | C39: 875 | D39: 29 | E39: 15
A40: 39 | B40: 1106 | C40: 874 | D40: 28 | E40: 11
A41: 40 | B41: 1130 | C41: 853 | D41: 39 | E41: 12
A42: 41 | B42: 1138 | C42: 842 | D42: 52 | E42: 17
A43: 42 | B43: 1050 | C43: 748 | D43: 43 | E43: 26
A44: 43 | B44: 1048 | C44: 732 | D44: 63 | E44: 21
A45: 44 | B45: 1080 | C45: 702 | D45: 53 | E45: 23
A46: 45 | B46: 1008 | C46: 671 | D46: 77 | E46: 30
A47: 46 | B47: 936 | C47: 641 | D47: 57 | E47: 28
A48: 47 | B48: 999 | C48: 596 | D48: 97 | E48: 32
A49: 48 | B49: 919 | C49: 592 | D49: 71 | E49: 25
A50: 49 | B50: 852 | C50: 585 | D50: 87 | E50: 27
A51: 50 | B51: 814 | C51: 527 | D51: 200 | E51: 80
A52: 51 | B52: 780 | C52: 440 | D52: 87 | E52: 46
A53: 52 | B53: 643 | C53: 425 | D53: 76 | E53: 40
A54: 53 | B54: 650 | C54: 413 | D54: 92 | E54: 37
A55: 54 | B55: 503 | C55: 338 | D55: 82 | E55: 36
A56: 55 | B56: 476 | C56: 343 | D56: 63 | E56: 31
A57: 56 | B57: 375 | C57: 241 | D57: 184 | E57: 62
A58: 57 | B58: 304 | C58: 191 | D58: 62 | E58: 32
A59: 58 | B59: 272 | C59: 144 | D59: 100 | E59: 40
A60: 59 | B60: 184 | C60: 107 | D60: 69 | E60: 24
A61: 60 | B61: 139 | C61: 93 | D61: 83 | E61: 20
A62: 61 | B62: 69 | C62: 34 | D62: 87 | E62: 21
A63: 62 | B63: 49 | C63: 21 | D63: 101 | E63: 18
A64: 63 | B64: 41 | C64: 18 | D64: 75 | E64: 24
A65: 64 | B65: 29 | C65: 9 | D65: 64 | E65: 12
A66: 65 | B66: 23 | C66: 12 | D66: 59 | E66: 10
A67: 66 o mas | B67: 74 | C67: 31 | D67: 414 | E67: 26
A68: Total | B68: =SUM(B16:B67) -> 26777 | C68: =SUM(C16:C67) -> 20388 | D68: 2682 | E68: 861

Sheet 4VI 4_1 EPP.9
A3: 4. INVALIDEZ TOTAL Y PERMANENTE EN LA OPERACION DE VIDA POR TIPO
A4: DE SEGURO CONTRATADO, EDAD ALCANZADA Y PERIODOS DE ESPERA
A6: ='1 Total'!B3 -> DICIEMBRE DE 2021
A8: VIDA INDIVIDUAL
A10: EXENCION DE PAGO DE PRIMAS POR INVALIDEZ
C12: PERIODO DE ESPERA DE (6- 9] MESES
B13: 2 | C13: 3 | D13: 4 | E13: 5
A14: EDAD | B14: PÓLIZAS O CERTIFICADOS AL FINAL DEL EJERCICIO | D14: INVALIDADOS EN EL EJERCICIO
A15: ALCANZADA | B15: Hombres | C15: Mujeres | D15: Hombres | E15: Mujeres
A16: Hasta15 años | B16: 0 | C16: 0 | D16: 0 | E16: 0
A17: 16 | B17: 0 | C17: 0 | D17: 0 | E17: 0
A18: 17 | B18: 0 | C18: 0 | D18: 0 | E18: 0
A19: 18 | B19: 0 | C19: 0 | D19: 0 | E19: 0
A20: 19 | B20: 0 | C20: 0 | D20: 0 | E20: 0
A21: 20 | B21: 0 | C21: 0 | D21: 0 | E21: 0
A22: 21 | B22: 0 | C22: 0 | D22: 0 | E22: 0
A23: 22 | B23: 0 | C23: 0 | D23: 0 | E23: 0
A24: 23 | B24: 0 | C24: 0 | D24: 0 | E24: 0
A25: 24 | B25: 0 | C25: 0 | D25: 0 | E25: 0
A26: 25 | B26: 0 | C26: 0 | D26: 0 | E26: 0
A27: 26 | B27: 0 | C27: 0 | D27: 0 | E27: 0
A28: 27 | B28: 0 | C28: 0 | D28: 0 | E28: 0
A29: 28 | B29: 0 | C29: 0 | D29: 0 | E29: 0
A30: 29 | B30: 0 | C30: 0 | D30: 0 | E30: 0
A31: 30 | B31: 0 | C31: 0 | D31: 0 | E31: 0
A32: 31 | B32: 0 | C32: 0 | D32: 0 | E32: 0
A33: 32 | B33: 0 | C33: 0 | D33: 0 | E33: 0
A34: 33 | B34: 0 | C34: 0 | D34: 0 | E34: 0
A35: 34 | B35: 0 | C35: 0 | D35: 0 | E35: 0
A36: 35 | B36: 0 | C36: 0 | D36: 0 | E36: 0
A37: 36 | B37: 0 | C37: 0 | D37: 0 | E37: 0
A38: 37 | B38: 0 | C38: 0 | D38: 0 | E38: 0
A39: 38 | B39: 0 | C39: 0 | D39: 0 | E39: 0
A40: 39 | B40: 0 | C40: 0 | D40: 0 | E40: 0
A41: 40 | B41: 0 | C41: 0 | D41: 0 | E41: 0
A42: 41 | B42: 0 | C42: 0 | D42: 0 | E42: 0
A43: 42 | B43: 0 | C43: 0 | D43: 0 | E43: 0
A44: 43 | B44: 0 | C44: 0 | D44: 0 | E44: 0
A45: 44 | B45: 0 | C45: 0 | D45: 0 | E45: 0
A46: 45 | B46: 0 | C46: 0 | D46: 0 | E46: 0
A47: 46 | B47: 0 | C47: 0 | D47: 0 | E47: 0
A48: 47 | B48: 0 | C48: 0 | D48: 0 | E48: 0
A49: 48 | B49: 0 | C49: 0 | D49: 0 | E49: 0
A50: 49 | B50: 0 | C50: 0 | D50: 0 | E50: 0
A51: 50 | B51: 0 | C51: 0 | D51: 0 | E51: 0
A52: 51 | B52: 0 | C52: 0 | D52: 0 | E52: 0
A53: 52 | B53: 0 | C53: 0 | D53: 0 | E53: 0
A54: 53 | B54: 0 | C54: 0 | D54: 0 | E54: 0
A55: 54 | B55: 0 | C55: 0 | D55: 0 | E55: 0
A56: 55 | B56: 0 | C56: 0 | D56: 0 | E56: 0
A57: 56 | B57: 0 | C57: 0 | D57: 0 | E57: 0
A58: 57 | B58: 0 | C58: 0 | D58: 0 | E58: 0
A59: 58 | B59: 0 | C59: 0 | D59: 0 | E59: 0
A60: 59 | B60: 0 | C60: 0 | D60: 0 | E60: 0
A61: 60 | B61: 0 | C61: 0 | D61: 0 | E61: 0
A62: 61 | B62: 0 | C62: 0 | D62: 0 | E62: 0
A63: 62 | B63: 0 | C63: 0 | D63: 0 | E63: 0
A64: 63 | B64: 0 | C64: 0 | D64: 0 | E64: 0
A65: 64 | B65: 0 | C65: 0 | D65: 0 | E65: 0
A66: 65 | B66: 0 | C66: 0 | D66: 0 | E66: 0
A67: 66 o mas | B67: 0 | C67: 0 | D67: 0 | E67: 0
A68: Total | B68: =SUM(B16:B67) -> 0 | C68: =SUM(C16:C67) -> 0 | D68: 0 | E68: 0

Sheet 4Total Ind PSA (hidden)
A3: 4. INVALIDEZ TOTAL Y PERMANENTE EN LA OPERACION DE VIDA POR TIPO
A4: DE SEGURO CONTRATADO, EDAD ALCANZADA Y PERIODOS DE ESPERA
A6: =#REF! -> 
A8: VIDA INDIVIDUAL
A10: PAGO DE LA SUMA ASEGURADA POR INVALIDEZ
C12: TOTAL
A14: EDAD | B14: PÓLIZAS O CERTIFICADOS AL FINAL DEL EJERCICIO | D14: INVALIDADOS EN EL EJERCICIO
A15: ALCANZADA | B15: Hombres | C15: Mujeres | D15: Hombres | E15: Mujeres
A16: Hasta15 años | B16: ='4V 4_1 PSA.3'!B16+'4V 4_1 PSA.6'!B16+'4V 4_1 PSA.9'!B16 -> 2673 | C16: ='4V 4_1 PSA.3'!C16+'4V 4_1 PSA.6'!C16+'4V 4_1 PSA.9'!C16 -> 7618 | D16: ='4V 4_1 PSA.3'!D16+'4V 4_1 PSA.6'!D16+'4V 4_1 PSA.9'!D16 -> 0 | E16: ='4V 4_1 PSA.3'!E16+'4V 4_1 PSA.6'!E16+'4V 4_1 PSA.9'!E16 -> 1
A17: 16 | B17: ='4V 4_1 PSA.3'!B17+'4V 4_1 PSA.6'!B17+'4V 4_1 PSA.9'!B17 -> 246 | C17: ='4V 4_1 PSA.3'!C17+'4V 4_1 PSA.6'!C17+'4V 4_1 PSA.9'!C17 -> 1039 | D17: ='4V 4_1 PSA.3'!D17+'4V 4_1 PSA.6'!D17+'4V 4_1 PSA.9'!D17 -> 0 | E17: ='4V 4_1 PSA.3'!E17+'4V 4_1 PSA.6'!E17+'4V 4_1 PSA.9'!E17 -> 1
A18: 17 | B18: ='4V 4_1 PSA.3'!B18+'4V 4_1 PSA.6'!B18+'4V 4_1 PSA.9'!B18 -> 296 | C18: ='4V 4_1 PSA.3'!C18+'4V 4_1 PSA.6'!C18+'4V 4_1 PSA.9'!C18 -> 1083 | D18: ='4V 4_1 PSA.3'!D18+'4V 4_1 PSA.6'!D18+'4V 4_1 PSA.9'!D18 -> 0 | E18: ='4V 4_1 PSA.3'!E18+'4V 4_1 PSA.6'!E18+'4V 4_1 PSA.9'!E18 -> 1
A19: 18 | B19: ='4V 4_1 PSA.3'!B19+'4V 4_1 PSA.6'!B19+'4V 4_1 PSA.9'!B19 -> 772 | C19: ='4V 4_1 PSA.3'!C19+'4V 4_1 PSA.6'!C19+'4V 4_1 PSA.9'!C19 -> 813 | D19: ='4V 4_1 PSA.3'!D19+'4V 4_1 PSA.6'!D19+'4V 4_1 PSA.9'!D19 -> 0 | E19: ='4V 4_1 PSA.3'!E19+'4V 4_1 PSA.6'!E19+'4V 4_1 PSA.9'!E19 -> 1
A20: 19 | B20: ='4V 4_1 PSA.3'!B20+'4V 4_1 PSA.6'!B20+'4V 4_1 PSA.9'!B20 -> 1630 | C20: ='4V 4_1 PSA.3'!C20+'4V 4_1 PSA.6'!C20+'4V 4_1 PSA.9'!C20 -> 1167 | D20: ='4V 4_1 PSA.3'!D20+'4V 4_1 PSA.6'!D20+'4V 4_1 PSA.9'!D20 -> 0 | E20: ='4V 4_1 PSA.3'!E20+'4V 4_1 PSA.6'!E20+'4V 4_1 PSA.9'!E20 -> 0
A21: 20 | B21: ='4V 4_1 PSA.3'!B21+'4V 4_1 PSA.6'!B21+'4V 4_1 PSA.9'!B21 -> 2956 | C21: ='4V 4_1 PSA.3'!C21+'4V 4_1 PSA.6'!C21+'4V 4_1 PSA.9'!C21 -> 2048 | D21: ='4V 4_1 PSA.3'!D21+'4V 4_1 PSA.6'!D21+'4V 4_1 PSA.9'!D21 -> 0 | E21: ='4V 4_1 PSA.3'!E21+'4V 4_1 PSA.6'!E21+'4V 4_1 PSA.9'!E21 -> 1
A22: 21 | B22: ='4V 4_1 PSA.3'!B22+'4V 4_1 PSA.6'!B22+'4V 4_1 PSA.9'!B22 -> 4800 | C22: ='4V 4_1 PSA.3'!C22+'4V 4_1 PSA.6'!C22+'4V 4_1 PSA.9'!C22 -> 3226 | D22: ='4V 4_1 PSA.3'!D22+'4V 4_1 PSA.6'!D22+'4V 4_1 PSA.9'!D22 -> 1 | E22: ='4V 4_1 PSA.3'!E22+'4V 4_1 PSA.6'!E22+'4V 4_1 PSA.9'!E22 -> 0
A23: 22 | B23: ='4V 4_1 PSA.3'!B23+'4V 4_1 PSA.6'!B23+'4V 4_1 PSA.9'!B23 -> 6610 | C23: ='4V 4_1 PSA.3'!C23+'4V 4_1 PSA.6'!C23+'4V 4_1 PSA.9'!C23 -> 4748 | D23: ='4V 4_1 PSA.3'!D23+'4V 4_1 PSA.6'!D23+'4V 4_1 PSA.9'!D23 -> 2 | E23: ='4V 4_1 PSA.3'!E23+'4V 4_1 PSA.6'!E23+'4V 4_1 PSA.9'!E23 -> 1
A24: 23 | B24: ='4V 4_1 PSA.3'!B24+'4V 4_1 PSA.6'!B24+'4V 4_1 PSA.9'!B24 -> 8709 | C24: ='4V 4_1 PSA.3'!C24+'4V 4_1 PSA.6'!C24+'4V 4_1 PSA.9'!C24 -> 7252 | D24: ='4V 4_1 PSA.3'!D24+'4V 4_1 PSA.6'!D24+'4V 4_1 PSA.9'!D24 -> 1 | E24: ='4V 4_1 PSA.3'!E24+'4V 4_1 PSA.6'!E24+'4V 4_1 PSA.9'!E24 -> 2
A25: 24 | B25: ='4V 4_1 PSA.3'!B25+'4V 4_1 PSA.6'!B25+'4V 4_1 PSA.9'!B25 -> 11526 | C25: ='4V 4_1 PSA.3'!C25+'4V 4_1 PSA.6'!C25+'4V 4_1 PSA.9'!C25 -> 10293 | D25: ='4V 4_1 PSA.3'!D25+'4V 4_1 PSA.6'!D25+'4V 4_1 PSA.9'!D25 -> 0 | E25: ='4V 4_1 PSA.3'!E25+'4V 4_1 PSA.6'!E25+'4V 4_1 PSA.9'!E25 -> 1
A26: 25 | B26: ='4V 4_1 PSA.3'!B26+'4V 4_1 PSA.6'!B26+'4V 4_1 PSA.9'!B26 -> 15135 | C26: ='4V 4_1 PSA.3'!C26+'4V 4_1 PSA.6'!C26+'4V 4_1 PSA.9'!C26 -> 15249 | D26: ='4V 4_1 PSA.3'!D26+'4V 4_1 PSA.6'!D26+'4V 4_1 PSA.9'!D26 -> 1 | E26: ='4V 4_1 PSA.3'!E26+'4V 4_1 PSA.6'!E26+'4V 4_1 PSA.9'!E26 -> 1
A27: 26 | B27: ='4V 4_1 PSA.3'!B27+'4V 4_1 PSA.6'!B27+'4V 4_1 PSA.9'!B27 -> 18805 | C27: ='4V 4_1 PSA.3'!C27+'4V 4_1 PSA.6'!C27+'4V 4_1 PSA.9'!C27 -> 21304 | D27: ='4V 4_1 PSA.3'!D27+'4V 4_1 PSA.6'!D27+'4V 4_1 PSA.9'!D27 -> 2 | E27: ='4V 4_1 PSA.3'!E27+'4V 4_1 PSA.6'!E27+'4V 4_1 PSA.9'!E27 -> 1
A28: 27 | B28: ='4V 4_1 PSA.3'!B28+'4V 4_1 PSA.6'!B28+'4V 4_1 PSA.9'!B28 -> 22636 | C28: ='4V 4_1 PSA.3'!C28+'4V 4_1 PSA.6'!C28+'4V 4_1 PSA.9'!C28 -> 26758 | D28: ='4V 4_1 PSA.3'!D28+'4V 4_1 PSA.6'!D28+'4V 4_1 PSA.9'!D28 -> 4 | E28: ='4V 4_1 PSA.3'!E28+'4V 4_1 PSA.6'!E28+'4V 4_1 PSA.9'!E28 -> 1
A29: 28 | B29: ='4V 4_1 PSA.3'!B29+'4V 4_1 PSA.6'!B29+'4V 4_1 PSA.9'!B29 -> 25720 | C29: ='4V 4_1 PSA.3'!C29+'4V 4_1 PSA.6'!C29+'4V 4_1 PSA.9'!C29 -> 30916 | D29: ='4V 4_1 PSA.3'!D29+'4V 4_1 PSA.6'!D29+'4V 4_1 PSA.9'!D29 -> 1 | E29: ='4V 4_1 PSA.3'!E29+'4V 4_1 PSA.6'!E29+'4V 4_1 PSA.9'!E29 -> 0
A30: 29 | B30: ='4V 4_1 PSA.3'!B30+'4V 4_1 PSA.6'!B30+'4V 4_1 PSA.9'!B30 -> 28488 | C30: ='4V 4_1 PSA.3'!C30+'4V 4_1 PSA.6'!C30+'4V 4_1 PSA.9'!C30 -> 34529 | D30: ='4V 4_1 PSA.3'!D30+'4V 4_1 PSA.6'!D30+'4V 4_1 PSA.9'!D30 -> 1 | E30: ='4V 4_1 PSA.3'!E30+'4V 4_1 PSA.6'!E30+'4V 4_1 PSA.9'!E30 -> 2
A31: 30 | B31: ='4V 4_1 PSA.3'!B31+'4V 4_1 PSA.6'!B31+'4V 4_1 PSA.9'!B31 -> 31853 | C31: ='4V 4_1 PSA.3'!C31+'4V 4_1 PSA.6'!C31+'4V 4_1 PSA.9'!C31 -> 39429 | D31: ='4V 4_1 PSA.3'!D31+'4V 4_1 PSA.6'!D31+'4V 4_1 PSA.9'!D31 -> 2 | E31: ='4V 4_1 PSA.3'!E31+'4V 4_1 PSA.6'!E31+'4V 4_1 PSA.9'!E31 -> 3
A32: 31 | B32: ='4V 4_1 PSA.3'!B32+'4V 4_1 PSA.6'!B32+'4V 4_1 PSA.9'!B32 -> 34311 | C32: ='4V 4_1 PSA.3'!C32+'4V 4_1 PSA.6'!C32+'4V 4_1 PSA.9'!C32 -> 43280 | D32: ='4V 4_1 PSA.3'!D32+'4V 4_1 PSA.6'!D32+'4V 4_1 PSA.9'!D32 -> 1 | E32: ='4V 4_1 PSA.3'!E32+'4V 4_1 PSA.6'!E32+'4V 4_1 PSA.9'!E32 -> 5
A33: 32 | B33: ='4V 4_1 PSA.3'!B33+'4V 4_1 PSA.6'!B33+'4V 4_1 PSA.9'!B33 -> 37047 | C33: ='4V 4_1 PSA.3'!C33+'4V 4_1 PSA.6'!C33+'4V 4_1 PSA.9'!C33 -> 47329 | D33: ='4V 4_1 PSA.3'!D33+'4V 4_1 PSA.6'!D33+'4V 4_1 PSA.9'!D33 -> 10 | E33: ='4V 4_1 PSA.3'!E33+'4V 4_1 PSA.6'!E33+'4V 4_1 PSA.9'!E33 -> 10
A34: 33 | B34: ='4V 4_1 PSA.3'!B34+'4V 4_1 PSA.6'!B34+'4V 4_1 PSA.9'!B34 -> 38974 | C34: ='4V 4_1 PSA.3'!C34+'4V 4_1 PSA.6'!C34+'4V 4_1 PSA.9'!C34 -> 50152 | D34: ='4V 4_1 PSA.3'!D34+'4V 4_1 PSA.6'!D34+'4V 4_1 PSA.9'!D34 -> 4 | E34: ='4V 4_1 PSA.3'!E34+'4V 4_1 PSA.6'!E34+'4V 4_1 PSA.9'!E34 -> 5
A35: 34 | B35: ='4V 4_1 PSA.3'!B35+'4V 4_1 PSA.6'!B35+'4V 4_1 PSA.9'!B35 -> 42413 | C35: ='4V 4_1 PSA.3'!C35+'4V 4_1 PSA.6'!C35+'4V 4_1 PSA.9'!C35 -> 53098 | D35: ='4V 4_1 PSA.3'!D35+'4V 4_1 PSA.6'!D35+'4V 4_1 PSA.9'!D35 -> 4 | E35: ='4V 4_1 PSA.3'!E35+'4V 4_1 PSA.6'!E35+'4V 4_1 PSA.9'!E35 -> 10
A36: 35 | B36: ='4V 4_1 PSA.3'!B36+'4V 4_1 PSA.6'!B36+'4V 4_1 PSA.9'!B36 -> 44357 | C36: ='4V 4_1 PSA.3'!C36+'4V 4_1 PSA.6'!C36+'4V 4_1 PSA.9'!C36 -> 56098 | D36: ='4V 4_1 PSA.3'!D36+'4V 4_1 PSA.6'!D36+'4V 4_1 PSA.9'!D36 -> 2 | E36: ='4V 4_1 PSA.3'!E36+'4V 4_1 PSA.6'!E36+'4V 4_1 PSA.9'!E36 -> 2
A37: 36 | B37: ='4V 4_1 PSA.3'!B37+'4V 4_1 PSA.6'!B37+'4V 4_1 PSA.9'!B37 -> 46496 | C37: ='4V 4_1 PSA.3'!C37+'4V 4_1 PSA.6'!C37+'4V 4_1 PSA.9'!C37 -> 58697 | D37: ='4V 4_1 PSA.3'!D37+'4V 4_1 PSA.6'!D37+'4V 4_1 PSA.9'!D37 -> 15 | E37: ='4V 4_1 PSA.3'!E37+'4V 4_1 PSA.6'!E37+'4V 4_1 PSA.9'!E37 -> 9
A38: 37 | B38: ='4V 4_1 PSA.3'!B38+'4V 4_1 PSA.6'!B38+'4V 4_1 PSA.9'!B38 -> 48279 | C38: ='4V 4_1 PSA.3'!C38+'4V 4_1 PSA.6'!C38+'4V 4_1 PSA.9'!C38 -> 60339 | D38: ='4V 4_1 PSA.3'!D38+'4V 4_1 PSA.6'!D38+'4V 4_1 PSA.9'!D38 -> 11 | E38: ='4V 4_1 PSA.3'!E38+'4V 4_1 PSA.6'!E38+'4V 4_1 PSA.9'!E38 -> 12
A39: 38 | B39: ='4V 4_1 PSA.3'!B39+'4V 4_1 PSA.6'!B39+'4V 4_1 PSA.9'!B39 -> 48922 | C39: ='4V 4_1 PSA.3'!C39+'4V 4_1 PSA.6'!C39+'4V 4_1 PSA.9'!C39 -> 60481 | D39: ='4V 4_1 PSA.3'!D39+'4V 4_1 PSA.6'!D39+'4V 4_1 PSA.9'!D39 -> 9 | E39: ='4V 4_1 PSA.3'!E39+'4V 4_1 PSA.6'!E39+'4V 4_1 PSA.9'!E39 -> 8
A40: 39 | B40: ='4V 4_1 PSA.3'!B40+'4V 4_1 PSA.6'!B40+'4V 4_1 PSA.9'!B40 -> 51393 | C40: ='4V 4_1 PSA.3'!C40+'4V 4_1 PSA.6'!C40+'4V 4_1 PSA.9'!C40 -> 61319 | D40: ='4V 4_1 PSA.3'!D40+'4V 4_1 PSA.6'!D40+'4V 4_1 PSA.9'!D40 -> 15 | E40: ='4V 4_1 PSA.3'!E40+'4V 4_1 PSA.6'!E40+'4V 4_1 PSA.9'!E40 -> 13
A41: 40 | B41: ='4V 4_1 PSA.3'!B41+'4V 4_1 PSA.6'!B41+'4V 4_1 PSA.9'!B41 -> 50293 | C41: ='4V 4_1 PSA.3'!C41+'4V 4_1 PSA.6'!C41+'4V 4_1 PSA.9'!C41 -> 60717 | D41: ='4V 4_1 PSA.3'!D41+'4V 4_1 PSA.6'!D41+'4V 4_1 PSA.9'!D41 -> 15 | E41: ='4V 4_1 PSA.3'!E41+'4V 4_1 PSA.6'!E41+'4V 4_1 PSA.9'!E41 -> 14
A42: 41 | B42: ='4V 4_1 PSA.3'!B42+'4V 4_1 PSA.6'!B42+'4V 4_1 PSA.9'!B42 -> 49242 | C42: ='4V 4_1 PSA.3'!C42+'4V 4_1 PSA.6'!C42+'4V 4_1 PSA.9'!C42 -> 58424 | D42: ='4V 4_1 PSA.3'!D42+'4V 4_1 PSA.6'!D42+'4V 4_1 PSA.9'!D42 -> 21 | E42: ='4V 4_1 PSA.3'!E42+'4V 4_1 PSA.6'!E42+'4V 4_1 PSA.9'!E42 -> 10
A43: 42 | B43: ='4V 4_1 PSA.3'!B43+'4V 4_1 PSA.6'!B43+'4V 4_1 PSA.9'!B43 -> 49517 | C43: ='4V 4_1 PSA.3'!C43+'4V 4_1 PSA.6'!C43+'4V 4_1 PSA.9'!C43 -> 58375 | D43: ='4V 4_1 PSA.3'!D43+'4V 4_1 PSA.6'!D43+'4V 4_1 PSA.9'!D43 -> 14 | E43: ='4V 4_1 PSA.3'!E43+'4V 4_1 PSA.6'!E43+'4V 4_1 PSA.9'!E43 -> 26
A44: 43 | B44: ='4V 4_1 PSA.3'!B44+'4V 4_1 PSA.6'!B44+'4V 4_1 PSA.9'!B44 -> 50118 | C44: ='4V 4_1 PSA.3'!C44+'4V 4_1 PSA.6'!C44+'4V 4_1 PSA.9'!C44 -> 57636 | D44: ='4V 4_1 PSA.3'!D44+'4V 4_1 PSA.6'!D44+'4V 4_1 PSA.9'!D44 -> 10 | E44: ='4V 4_1 PSA.3'!E44+'4V 4_1 PSA.6'!E44+'4V 4_1 PSA.9'!E44 -> 19
A45: 44 | B45: ='4V 4_1 PSA.3'!B45+'4V 4_1 PSA.6'!B45+'4V 4_1 PSA.9'!B45 -> 49700 | C45: ='4V 4_1 PSA.3'!C45+'4V 4_1 PSA.6'!C45+'4V 4_1 PSA.9'!C45 -> 57154 | D45: ='4V 4_1 PSA.3'!D45+'4V 4_1 PSA.6'!D45+'4V 4_1 PSA.9'!D45 -> 15 | E45: ='4V 4_1 PSA.3'!E45+'4V 4_1 PSA.6'!E45+'4V 4_1 PSA.9'!E45 -> 26
A46: 45 | B46: ='4V 4_1 PSA.3'!B46+'4V 4_1 PSA.6'!B46+'4V 4_1 PSA.9'!B46 -> 50106 | C46: ='4V 4_1 PSA.3'!C46+'4V 4_1 PSA.6'!C46+'4V 4_1 PSA.9'!C46 -> 57740 | D46: ='4V 4_1 PSA.3'!D46+'4V 4_1 PSA.6'!D46+'4V 4_1 PSA.9'!D46 -> 26 | E46: ='4V 4_1 PSA.3'!E46+'4V 4_1 PSA.6'!E46+'4V 4_1 PSA.9'!E46 -> 29
A47: 46 | B47: ='4V 4_1 PSA.3'!B47+'4V 4_1 PSA.6'!B47+'4V 4_1 PSA.9'!B47 -> 50982 | C47: ='4V 4_1 PSA.3'!C47+'4V 4_1 PSA.6'!C47+'4V 4_1 PSA.9'!C47 -> 59187 | D47: ='4V 4_1 PSA.3'!D47+'4V 4_1 PSA.6'!D47+'4V 4_1 PSA.9'!D47 -> 28 | E47: ='4V 4_1 PSA.3'!E47+'4V 4_1 PSA.6'!E47+'4V 4_1 PSA.9'!E47 -> 34
A48: 47 | B48: ='4V 4_1 PSA.3'!B48+'4V 4_1 PSA.6'!B48+'4V 4_1 PSA.9'!B48 -> 49971 | C48: ='4V 4_1 PSA.3'!C48+'4V 4_1 PSA.6'!C48+'4V 4_1 PSA.9'!C48 -> 57901 | D48: ='4V 4_1 PSA.3'!D48+'4V 4_1 PSA.6'!D48+'4V 4_1 PSA.9'!D48 -> 21 | E48: ='4V 4_1 PSA.3'!E48+'4V 4_1 PSA.6'!E48+'4V 4_1 PSA.9'!E48 -> 35
A49: 48 | B49: ='4V 4_1 PSA.3'!B49+'4V 4_1 PSA.6'!B49+'4V 4_1 PSA.9'!B49 -> 48055 | C49: ='4V 4_1 PSA.3'!C49+'4V 4_1 PSA.6'!C49+'4V 4_1 PSA.9'!C49 -> 56999 | D49: ='4V 4_1 PSA.3'!D49+'4V 4_1 PSA.6'!D49+'4V 4_1 PSA.9'!D49 -> 39 | E49: ='4V 4_1 PSA.3'!E49+'4V 4_1 PSA.6'!E49+'4V 4_1 PSA.9'!E49 -> 40
A50: 49 | B50: ='4V 4_1 PSA.3'!B50+'4V 4_1 PSA.6'!B50+'4V 4_1 PSA.9'!B50 -> 46552 | C50: ='4V 4_1 PSA.3'!C50+'4V 4_1 PSA.6'!C50+'4V 4_1 PSA.9'!C50 -> 55518 | D50: ='4V 4_1 PSA.3'!D50+'4V 4_1 PSA.6'!D50+'4V 4_1 PSA.9'!D50 -> 35 | E50: ='4V 4_1 PSA.3'!E50+'4V 4_1 PSA.6'!E50+'4V 4_1 PSA.9'!E50 -> 44
A51: 50 | B51: ='4V 4_1 PSA.3'!B51+'4V 4_1 PSA.6'!B51+'4V 4_1 PSA.9'!B51 -> 44122 | C51: ='4V 4_1 PSA.3'!C51+'4V 4_1 PSA.6'!C51+'4V 4_1 PSA.9'!C51 -> 52549 | D51: ='4V 4_1 PSA.3'!D51+'4V 4_1 PSA.6'!D51+'4V 4_1 PSA.9'!D51 -> 40 | E51: ='4V 4_1 PSA.3'!E51+'4V 4_1 PSA.6'!E51+'4V 4_1 PSA.9'!E51 -> 53
A52: 51 | B52: ='4V 4_1 PSA.3'!B52+'4V 4_1 PSA.6'!B52+'4V 4_1 PSA.9'!B52 -> 41703 | C52: ='4V 4_1 PSA.3'!C52+'4V 4_1 PSA.6'!C52+'4V 4_1 PSA.9'!C52 -> 51758 | D52: ='4V 4_1 PSA.3'!D52+'4V 4_1 PSA.6'!D52+'4V 4_1 PSA.9'!D52 -> 28 | E52: ='4V 4_1 PSA.3'!E52+'4V 4_1 PSA.6'!E52+'4V 4_1 PSA.9'!E52 -> 68
A53: 52 | B53: ='4V 4_1 PSA.3'!B53+'4V 4_1 PSA.6'!B53+'4V 4_1 PSA.9'!B53 -> 39900 | C53: ='4V 4_1 PSA.3'!C53+'4V 4_1 PSA.6'!C53+'4V 4_1 PSA.9'!C53 -> 52320 | D53: ='4V 4_1 PSA.3'!D53+'4V 4_1 PSA.6'!D53+'4V 4_1 PSA.9'!D53 -> 55 | E53: ='4V 4_1 PSA.3'!E53+'4V 4_1 PSA.6'!E53+'4V 4_1 PSA.9'!E53 -> 53
A54: 53 | B54: ='4V 4_1 PSA.3'!B54+'4V 4_1 PSA.6'!B54+'4V 4_1 PSA.9'!B54 -> 38053 | C54: ='4V 4_1 PSA.3'!C54+'4V 4_1 PSA.6'!C54+'4V 4_1 PSA.9'!C54 -> 52379 | D54: ='4V 4_1 PSA.3'!D54+'4V 4_1 PSA.6'!D54+'4V 4_1 PSA.9'!D54 -> 46 | E54: ='4V 4_1 PSA.3'!E54+'4V 4_1 PSA.6'!E54+'4V 4_1 PSA.9'!E54 -> 54
A55: 54 | B55: ='4V 4_1 PSA.3'!B55+'4V 4_1 PSA.6'!B55+'4V 4_1 PSA.9'!B55 -> 37320 | C55: ='4V 4_1 PSA.3'!C55+'4V 4_1 PSA.6'!C55+'4V 4_1 PSA.9'!C55 -> 47920 | D55: ='4V 4_1 PSA.3'!D55+'4V 4_1 PSA.6'!D55+'4V 4_1 PSA.9'!D55 -> 50 | E55: ='4V 4_1 PSA.3'!E55+'4V 4_1 PSA.6'!E55+'4V 4_1 PSA.9'!E55 -> 65
A56: 55 | B56: ='4V 4_1 PSA.3'!B56+'4V 4_1 PSA.6'!B56+'4V 4_1 PSA.9'!B56 -> 36404 | C56: ='4V 4_1 PSA.3'!C56+'4V 4_1 PSA.6'!C56+'4V 4_1 PSA.9'!C56 -> 43544 | D56: ='4V 4_1 PSA.3'!D56+'4V 4_1 PSA.6'!D56+'4V 4_1 PSA.9'!D56 -> 55 | E56: ='4V 4_1 PSA.3'!E56+'4V 4_1 PSA.6'!E56+'4V 4_1 PSA.9'!E56 -> 76
A57: 56 | B57: ='4V 4_1 PSA.3'!B57+'4V 4_1 PSA.6'!B57+'4V 4_1 PSA.9'!B57 -> 33096 | C57: ='4V 4_1 PSA.3'!C57+'4V 4_1 PSA.6'!C57+'4V 4_1 PSA.9'!C57 -> 39773 | D57: ='4V 4_1 PSA.3'!D57+'4V 4_1 PSA.6'!D57+'4V 4_1 PSA.9'!D57 -> 42 | E57: ='4V 4_1 PSA.3'!E57+'4V 4_1 PSA.6'!E57+'4V 4_1 PSA.9'!E57 -> 47
A58: 57 | B58: ='4V 4_1 PSA.3'!B58+'4V 4_1 PSA.6'!B58+'4V 4_1 PSA.9'!B58 -> 28869 | C58: ='4V 4_1 PSA.3'!C58+'4V 4_1 PSA.6'!C58+'4V 4_1 PSA.9'!C58 -> 35669 | D58: ='4V 4_1 PSA.3'!D58+'4V 4_1 PSA.6'!D58+'4V 4_1 PSA.9'!D58 -> 53 | E58: ='4V 4_1 PSA.3'!E58+'4V 4_1 PSA.6'!E58+'4V 4_1 PSA.9'!E58 -> 47
A59: 58 | B59: ='4V 4_1 PSA.3'!B59+'4V 4_1 PSA.6'!B59+'4V 4_1 PSA.9'!B59 -> 25324 | C59: ='4V 4_1 PSA.3'!C59+'4V 4_1 PSA.6'!C59+'4V 4_1 PSA.9'!C59 -> 31740 | D59: ='4V 4_1 PSA.3'!D59+'4V 4_1 PSA.6'!D59+'4V 4_1 PSA.9'!D59 -> 46 | E59: ='4V 4_1 PSA.3'!E59+'4V 4_1 PSA.6'!E59+'4V 4_1 PSA.9'!E59 -> 43
A60: 59 | B60: ='4V 4_1 PSA.3'!B60+'4V 4_1 PSA.6'!B60+'4V 4_1 PSA.9'!B60 -> 21851 | C60: ='4V 4_1 PSA.3'!C60+'4V 4_1 PSA.6'!C60+'4V 4_1 PSA.9'!C60 -> 27112 | D60: ='4V 4_1 PSA.3'!D60+'4V 4_1 PSA.6'!D60+'4V 4_1 PSA.9'!D60 -> 54 | E60: ='4V 4_1 PSA.3'!E60+'4V 4_1 PSA.6'!E60+'4V 4_1 PSA.9'!E60 -> 49
A61: 60 | B61: ='4V 4_1 PSA.3'!B61+'4V 4_1 PSA.6'!B61+'4V 4_1 PSA.9'!B61 -> 15423 | C61: ='4V 4_1 PSA.3'!C61+'4V 4_1 PSA.6'!C61+'4V 4_1 PSA.9'!C61 -> 16630 | D61: ='4V 4_1 PSA.3'!D61+'4V 4_1 PSA.6'!D61+'4V 4_1 PSA.9'!D61 -> 38 | E61: ='4V 4_1 PSA.3'!E61+'4V 4_1 PSA.6'!E61+'4V 4_1 PSA.9'!E61 -> 53
A62: 61 | B62: ='4V 4_1 PSA.3'!B62+'4V 4_1 PSA.6'!B62+'4V 4_1 PSA.9'!B62 -> 8773 | C62: ='4V 4_1 PSA.3'!C62+'4V 4_1 PSA.6'!C62+'4V 4_1 PSA.9'!C62 -> 7381 | D62: ='4V 4_1 PSA.3'!D62+'4V 4_1 PSA.6'!D62+'4V 4_1 PSA.9'!D62 -> 20 | E62: ='4V 4_1 PSA.3'!E62+'4V 4_1 PSA.6'!E62+'4V 4_1 PSA.9'!E62 -> 14
A63: 62 | B63: ='4V 4_1 PSA.3'!B63+'4V 4_1 PSA.6'!B63+'4V 4_1 PSA.9'!B63 -> 6971 | C63: ='4V 4_1 PSA.3'!C63+'4V 4_1 PSA.6'!C63+'4V 4_1 PSA.9'!C63 -> 5609 | D63: ='4V 4_1 PSA.3'!D63+'4V 4_1 PSA.6'!D63+'4V 4_1 PSA.9'!D63 -> 6 | E63: ='4V 4_1 PSA.3'!E63+'4V 4_1 PSA.6'!E63+'4V 4_1 PSA.9'!E63 -> 11
A64: 63 | B64: ='4V 4_1 PSA.3'!B64+'4V 4_1 PSA.6'!B64+'4V 4_1 PSA.9'!B64 -> 6192 | C64: ='4V 4_1 PSA.3'!C64+'4V 4_1 PSA.6'!C64+'4V 4_1 PSA.9'!C64 -> 4790 | D64: ='4V 4_1 PSA.3'!D64+'4V 4_1 PSA.6'!D64+'4V 4_1 PSA.9'!D64 -> 4 | E64: ='4V 4_1 PSA.3'!E64+'4V 4_1 PSA.6'!E64+'4V 4_1 PSA.9'!E64 -> 10
A65: 64 | B65: ='4V 4_1 PSA.3'!B65+'4V 4_1 PSA.6'!B65+'4V 4_1 PSA.9'!B65 -> 5371 | C65: ='4V 4_1 PSA.3'!C65+'4V 4_1 PSA.6'!C65+'4V 4_1 PSA.9'!C65 -> 3968 | D65: ='4V 4_1 PSA.3'!D65+'4V 4_1 PSA.6'!D65+'4V 4_1 PSA.9'!D65 -> 4 | E65: ='4V 4_1 PSA.3'!E65+'4V 4_1 PSA.6'!E65+'4V 4_1 PSA.9'!E65 -> 3
A66: 65 | B66: ='4V 4_1 PSA.3'!B66+'4V 4_1 PSA.6'!B66+'4V 4_1 PSA.9'!B66 -> 4558 | C66: ='4V 4_1 PSA.3'!C66+'4V 4_1 PSA.6'!C66+'4V 4_1 PSA.9'!C66 -> 3094 | D66: ='4V 4_1 PSA.3'!D66+'4V 4_1 PSA.6'!D66+'4V 4_1 PSA.9'!D66 -> 8 | E66: ='4V 4_1 PSA.3'!E66+'4V 4_1 PSA.6'!E66+'4V 4_1 PSA.9'!E66 -> 3
A67: 66 o más | B67: ='4V 4_1 PSA.3'!B67+'4V 4_1 PSA.6'!B67+'4V 4_1 PSA.9'!B67 -> 25745 | C67: ='4V 4_1 PSA.3'!C67+'4V 4_1 PSA.6'!C67+'4V 4_1 PSA.9'!C67 -> 18157 | D67: ='4V 4_1 PSA.3'!D67+'4V 4_1 PSA.6'!D67+'4V 4_1 PSA.9'!D67 -> 20 | E67: ='4V 4_1 PSA.3'!E67+'4V 4_1 PSA.6'!E67+'4V 4_1 PSA.9'!E67 -> 16
A68: Total | B68: =SUM(B16:B67) -> 1489258 | C68: =SUM(C16:C67) -> 1772309 | D68: =SUM(D16:D67) -> 879 | E68: 1033
A69: CIFRAS EN PESOS, ESTIMADAS AL 100%.

Sheet 4V 4_1 PSA.3 (hidden)
A3: 4. INVALIDEZ TOTAL Y PERMANENTE EN LA OPERACION DE VIDA POR TIPO
A4: DE SEGURO CONTRATADO, EDAD ALCANZADA Y PERIODOS DE ESPERA
A6: =#REF! -> 
A8: VIDA INDIVIDUAL
A10: PAGO DE LA SUMA ASEGURADA POR INVALIDEZ
C12: PERIODO DE ESPERA DE (0-3] MESES
B13: 2 | C13: 3 | D13: 4 | E13: 5
A14: EDAD | B14: PÓLIZAS O CERTIFICADOS AL FINAL DEL EJERCICIO | D14: INVALIDADOS EN EL EJERCICIO
A15: ALCANZADA | B15: Hombres | C15: Mujeres | D15: Hombres | E15: Mujeres
A16: Hasta15 años | B16: 8 | C16: 11 | D16: 0 | E16: 0
A17: 16 | B17: 13 | C17: 19 | D17: 0 | E17: 0
A18: 17 | B18: 19 | C18: 33 | D18: 0 | E18: 0
A19: 18 | B19: 424 | C19: 79 | D19: 0 | E19: 0
A20: 19 | B20: 876 | C20: 334 | D20: 0 | E20: 0
A21: 20 | B21: 1434 | C21: 677 | D21: 0 | E21: 1
A22: 21 | B22: 2163 | C22: 1075 | D22: 0 | E22: 0
A23: 22 | B23: 2912 | C23: 1523 | D23: 1 | E23: 1
A24: 23 | B24: 3665 | C24: 2138 | D24: 0 | E24: 2
A25: 24 | B25: 4417 | C25: 2807 | D25: 0 | E25: 0
A26: 25 | B26: 5741 | C26: 4090 | D26: 0 | E26: 0
A27: 26 | B27: 6908 | C27: 5243 | D27: 1 | E27: 1
A28: 27 | B28: 8020 | C28: 6307 | D28: 3 | E28: 1
A29: 28 | B29: 8819 | C29: 7067 | D29: 0 | E29: 0
A30: 29 | B30: 9261 | C30: 7512 | D30: 1 | E30: 1
A31: 30 | B31: 9962 | C31: 8257 | D31: 0 | E31: 1
A32: 31 | B32: 10066 | C32: 8489 | D32: 1 | E32: 2
A33: 32 | B33: 10294 | C33: 9125 | D33: 6 | E33: 6
A34: 33 | B34: 10420 | C34: 9039 | D34: 0 | E34: 2
A35: 34 | B35: 10778 | C35: 9335 | D35: 3 | E35: 3
A36: 35 | B36: 10542 | C36: 9487 | D36: 1 | E36: 1
A37: 36 | B37: 10741 | C37: 9608 | D37: 10 | E37: 3
A38: 37 | B38: 10749 | C38: 9592 | D38: 5 | E38: 5
A39: 38 | B39: 10597 | C39: 9658 | D39: 6 | E39: 4
A40: 39 | B40: 10199 | C40: 9571 | D40: 8 | E40: 5
A41: 40 | B41: 10463 | C41: 9568 | D41: 11 | E41: 7
A42: 41 | B42: 10257 | C42: 9205 | D42: 12 | E42: 5
A43: 42 | B43: 10153 | C43: 8982 | D43: 10 | E43: 12
A44: 43 | B44: 10269 | C44: 8855 | D44: 6 | E44: 16
A45: 44 | B45: 10226 | C45: 8922 | D45: 11 | E45: 15
A46: 45 | B46: 10193 | C46: 9027 | D46: 16 | E46: 13
A47: 46 | B47: 10332 | C47: 9104 | D47: 14 | E47: 15
A48: 47 | B48: 10345 | C48: 8858 | D48: 15 | E48: 21
A49: 48 | B49: 9890 | C49: 8552 | D49: 25 | E49: 20
A50: 49 | B50: 9464 | C50: 8327 | D50: 18 | E50: 29
A51: 50 | B51: 8803 | C51: 7774 | D51: 20 | E51: 30
A52: 51 | B52: 8552 | C52: 7494 | D52: 16 | E52: 42
A53: 52 | B53: 8300 | C53: 7439 | D53: 33 | E53: 33
A54: 53 | B54: 7815 | C54: 7241 | D54: 31 | E54: 24
A55: 54 | B55: 7653 | C55: 7546 | D55: 36 | E55: 36
A56: 55 | B56: 7529 | C56: 7634 | D56: 37 | E56: 49
A57: 56 | B57: 7304 | C57: 7167 | D57: 31 | E57: 24
A58: 57 | B58: 6744 | C58: 6739 | D58: 36 | E58: 32
A59: 58 | B59: 6288 | C59: 6244 | D59: 34 | E59: 24
A60: 59 | B60: 5602 | C60: 5476 | D60: 37 | E60: 31
A61: 60 | B61: 5459 | C61: 4882 | D61: 30 | E61: 44
A62: 61 | B62: 5137 | C62: 4390 | D62: 19 | E62: 13
A63: 62 | B63: 4655 | C63: 3528 | D63: 5 | E63: 8
A64: 63 | B64: 4427 | C64: 3288 | D64: 3 | E64: 8
A65: 64 | B65: 3928 | C65: 2840 | D65: 3 | E65: 3
A66: 65 | B66: 3811 | C66: 2505 | D66: 8 | E66: 1
A67: 66 o mas | B67: 24502 | C67: 17313 | D67: 19 | E67: 16
A68: Total | B68: =SUM(B16:B67) -> 387129 | C68: =SUM(C16:C67) -> 329976 | D68: 582 | E68: 610
A69: CIFRAS EN PESOS, ESTIMADAS AL 100%.

Sheet 4V 4_1 PSA.6 (hidden)
A3: 4. INVALIDEZ TOTAL Y PERMANENTE EN LA OPERACION DE VIDA POR TIPO
A4: DE SEGURO CONTRATADO, EDAD ALCANZADA Y PERIODOS DE ESPERA
A6: =#REF! -> 
A8: VIDA INDIVIDUAL
A10: PAGO DE LA SUMA ASEGURADA POR INVALIDEZ
C12: PERIODO DE ESPERA DE (3- 6] MESES
B13: 2 | C13: 3 | D13: 4 | E13: 5
A14: EDAD | B14: PÓLIZAS O CERTIFICADOS AL FINAL DEL EJERCICIO | D14: INVALIDADOS EN EL EJERCICIO
A15: ALCANZADA | B15: Hombres | C15: Mujeres | D15: Hombres | E15: Mujeres
A16: Hasta15 años | B16: 2664 | C16: 7603 | D16: 0 | E16: 1
A17: 16 | B17: 232 | C17: 1020 | D17: 0 | E17: 1
A18: 17 | B18: 277 | C18: 1049 | D18: 0 | E18: 1
A19: 18 | B19: 348 | C19: 734 | D19: 0 | E19: 1
A20: 19 | B20: 754 | C20: 833 | D20: 0 | E20: 0
A21: 20 | B21: 1522 | C21: 1371 | D21: 0 | E21: 0
A22: 21 | B22: 2637 | C22: 2151 | D22: 1 | E22: 0
A23: 22 | B23: 3697 | C23: 3225 | D23: 1 | E23: 0
A24: 23 | B24: 5044 | C24: 5114 | D24: 1 | E24: 0
A25: 24 | B25: 7109 | C25: 7486 | D25: 0 | E25: 1
A26: 25 | B26: 9394 | C26: 11159 | D26: 1 | E26: 1
A27: 26 | B27: 11897 | C27: 16061 | D27: 1 | E27: 0
A28: 27 | B28: 14616 | C28: 20451 | D28: 1 | E28: 0
A29: 28 | B29: 16901 | C29: 23849 | D29: 1 | E29: 0
A30: 29 | B30: 19227 | C30: 27017 | D30: 0 | E30: 1
A31: 30 | B31: 21891 | C31: 31172 | D31: 2 | E31: 2
A32: 31 | B32: 24245 | C32: 34791 | D32: 0 | E32: 3
A33: 32 | B33: 26753 | C33: 38204 | D33: 4 | E33: 4
A34: 33 | B34: 28554 | C34: 41113 | D34: 4 | E34: 3
A35: 34 | B35: 31635 | C35: 43763 | D35: 1 | E35: 7
A36: 35 | B36: 33815 | C36: 46611 | D36: 1 | E36: 1
A37: 36 | B37: 35755 | C37: 49089 | D37: 5 | E37: 6
A38: 37 | B38: 37530 | C38: 50747 | D38: 6 | E38: 7
A39: 38 | B39: 38325 | C39: 50823 | D39: 3 | E39: 4
A40: 39 | B40: 41194 | C40: 51748 | D40: 7 | E40: 8
A41: 40 | B41: 39830 | C41: 51149 | D41: 4 | E41: 7
A42: 41 | B42: 38985 | C42: 49219 | D42: 9 | E42: 5
A43: 42 | B43: 39363 | C43: 49393 | D43: 4 | E43: 14
A44: 43 | B44: 39849 | C44: 48781 | D44: 4 | E44: 3
A45: 44 | B45: 39473 | C45: 48232 | D45: 4 | E45: 11
A46: 45 | B46: 39913 | C46: 48712 | D46: 10 | E46: 16
A47: 46 | B47: 40650 | C47: 50083 | D47: 14 | E47: 19
A48: 47 | B48: 39626 | C48: 49043 | D48: 6 | E48: 14
A49: 48 | B49: 38165 | C49: 48447 | D49: 14 | E49: 20
A50: 49 | B50: 37088 | C50: 47191 | D50: 17 | E50: 15
A51: 50 | B51: 35319 | C51: 44775 | D51: 20 | E51: 23
A52: 51 | B52: 33151 | C52: 44264 | D52: 12 | E52: 26
A53: 52 | B53: 31600 | C53: 44881 | D53: 22 | E53: 20
A54: 53 | B54: 30238 | C54: 45138 | D54: 15 | E54: 30
A55: 54 | B55: 29667 | C55: 40374 | D55: 14 | E55: 29
A56: 55 | B56: 28875 | C56: 35910 | D56: 18 | E56: 27
A57: 56 | B57: 25792 | C57: 32606 | D57: 11 | E57: 23
A58: 57 | B58: 22125 | C58: 28930 | D58: 17 | E58: 15
A59: 58 | B59: 19036 | C59: 25496 | D59: 12 | E59: 19
A60: 59 | B60: 16248 | C60: 21635 | D60: 17 | E60: 18
A61: 60 | B61: 9963 | C61: 11748 | D61: 8 | E61: 9
A62: 61 | B62: 3636 | C62: 2991 | D62: 1 | E62: 1
A63: 62 | B63: 2316 | C63: 2081 | D63: 1 | E63: 3
A64: 63 | B64: 1765 | C64: 1502 | D64: 1 | E64: 2
A65: 64 | B65: 1443 | C65: 1128 | D65: 1 | E65: 0
A66: 65 | B66: 747 | C66: 589 | D66: 0 | E66: 2
A67: 66 o mas | B67: 1243 | C67: 844 | D67: 1 | E67: 0
A68: Total | B68: =SUM(B16:B67) -> 1102122 | C68: =SUM(C16:C67) -> 1442326 | D68: 297 | E68: 423
